Workbook

Sheet DMT
B1: CÁLCULO DO DMT PARA AS MÁQUINAS
B2: ORIGEM | C2: DESTINO | E2: DMT (KM)
B3: CIDADES POLO AL | C3: MUNICÍPIOS AL | D3: AL | E3: 134.8
B5: CÁLCULO DO DMT PARA AS MÁQUINAS
B6: ORIGEM | C6: DESTINO | E6: DMT (KM)
B7: CIDADES POLO AP | C7: MUNICÍPIOS AP | D7: AP | E7: 250
B9: CÁLCULO DO DMT PARA AS MÁQUINAS
B10: ORIGEM | C10: DESTINO | E10: DMT (KM)
B11: CIDADES POLO BA | C11: MUNICÍPIOS BA | D11: BA | E11: 350
B13: CÁLCULO DO DMT PARA AS MÁQUINAS
B14: ORIGEM | C14: DESTINO | E14: DMT (KM)
B15: CIDADES POLO CE | C15: MUNICÍPIOS CE | D15: CE | E15: 250
B17: CÁLCULO DO DMT PARA AS MÁQUINAS
B18: ORIGEM | C18: DESTINO | E18: DMT (KM)
B19: BRASÍLIA - DF | C19: DISTRITO FEDERAL (BACIAS TOCANTINS E SÃO FRANCISCO) | D19: DF | E19: 50
B21: CÁLCULO DO DMT PARA AS MÁQUINAS
B22: ORIGEM | C22: DESTINO | E22: DMT (KM)
B23: CIDADES POLO GO | C23: MUNICÍPIOS GO | D23: GO | E23: 238.5
B25: CÁLCULO DO DMT PARA AS MÁQUINAS
B26: ORIGEM | C26: DESTINO | E26: DMT (KM)
B27: CIDADES POLO MA | C27: MUNICÍPIOS MA | D27: MA | E27: 350
B29: CÁLCULO DO DMT PARA AS MÁQUINAS
B30: ORIGEM | C30: DESTINO | E30: DMT (KM)
B31: CIDADES POLO MT | C31: MUNICÍPIOS MT (BACIA ARAGUAIA) | D31: MT | E31: 400
B33: CÁLCULO DO DMT PARA AS MÁQUINAS
B34: ORIGEM | C34: DESTINO | E34: DMT (KM)
B35: CIDADES POLO PA | C35: MUNICÍPIOS PA (BACIA TOCANTINS-ARAGUAIA) | D35: PA | E35: 350
B37: CÁLCULO DO DMT PARA AS MÁQUINAS
B38: ORIGEM | C38: DESTINO | E38: DMT (KM)
B39: CIDADES POLO PB | C39: MUNICÍPIOS PB | D39: PB | E39: 200
B41: CÁLCULO DO DMT PARA AS MÁQUINAS
B42: ORIGEM | C42: DESTINO | E42: DMT (KM)
B43: CIDADES POLO PE | C43: MUNICÍPIOS PE | D43: PE | E43: 250.48
B45: CÁLCULO DO DMT PARA AS MÁQUINAS
B46: ORIGEM | C46: DESTINO | E46: DMT (KM)
B47: CIDADES POLO PI | C47: MUNICÍPIOS PI | D47: PI | E47: 300
B49: CÁLCULO DO DMT PARA AS MÁQUINAS
B50: ORIGEM | C50: DESTINO | E50: DMT (KM)
B51: CIDADES POLO- RN | C51: MUNICÍPIOS RN | D51: RN | E51: 217.32
B53: CÁLCULO DO DMT PARA AS MÁQUINAS
B54: ORIGEM | C54: DESTINO | E54: DMT (KM)
B55: CIDADES POLO SE | C55: MUNICÍPIOS SE | D55: SE | E55: 88.71
B57: CÁLCULO DO DMT PARA AS MÁQUINAS
B58: ORIGEM | C58: DESTINO | E58: DMT (KM)
B59: CIDADES POLO TO | C59: MUNICÍPIOS TO | D59: TO | E59: 328.4

Sheet TEMPOS DE EXECUÇÃO POR UNIDADE
H2: BARRAGINHAS - Dimensões e tempos médios para execução
H3: Raio (m) | J3: 4 | K3: 6 | L3: 9 | M3: 12
H4: Profundidade (m) | J4: 1.5 | K4: 1.5 | L4: 2 | M4: 2
H5: Volume (m³) | J5: =1/6*PI()*J4*(3*J3^2+J4^2) -> 39.46625771 | K5: =1/6*PI()*K4*(3*K3^2+K4^2) -> 86.59014751 | L5: =1/6*PI()*L4*(3*L3^2+L4^2) -> 258.6577951 | M5: =1/6*PI()*M4*(3*M3^2+M4^2) -> 456.5781323
H6: Área contribuição (ha) | J6: =K6*J5/K5 -> 0.1728784404 | K6: =L6*K5/L5 -> 0.3793004587 | L6: =M6*L5/M5 -> 1.133027523 | M6: 2
H7: Tempo execuçao (h) | J7: =$M7*J5/$M5*1.5 -> 1.037270642 | K7: =$M7*K5/$M5*1.35 -> 2.048222477 | L7: =$M7*L5/$M5*1.1 -> 4.985321101 | M7: 8
H9: MÃO DE OBRA MÍNIMA ESTIMADA POR FRENTE DE SERVIÇO POR PROJETO
J10: Barraginhas 4 m | L10: Barraginhas 6 m | N10: Barraginhas 9 m | P10: Barraginhas 12 m | R10: Terraços | T10: Cercas Capr. | V10: Cercas Bov.
J11: und/mês | L11: und/mês | N11: und/mês | P11: und/mês | R11: km/mês | T11: m/mês | V11: m/mês
J12: ='CPU (DF)'!B105 -> 169.6760641 | L12: ='CPU (DF)'!B137 -> 85.9281655 | N12: ='CPU (DF)'!B168 -> 35.30364372 | P12: ='CPU (DF)'!B200 -> 22 | R12: ='CPU (DF)'!B48 -> 18.7 | T12: ='CPU (DF)'!B236 -> 1980 | V12: ='CPU (DF)'!B272 -> 1848
H13: PRAZO MÍNIMO POR PROJETO (DIAS) | J13: ='PROJETOS E QUANT'!C9 -> 52 | L13: ='PROJETOS E QUANT'!D9 -> 231 | N13: ='PROJETOS E QUANT'!E9 -> 188 | P13: ='PROJETOS E QUANT'!F9 -> 171 | R13: ='PROJETOS E QUANT'!B9 -> 321 | T13: ='PROJETOS E QUANT'!G21 -> 122 | V13: ='PROJETOS E QUANT'!H21 -> 195
H14: Und/ Hora | J14: =J12/22/8 -> 0.9640685462 | L14: =L12/22/8 -> 0.4882282131 | N14: =N12/22/8 -> 0.2005888848 | P14: =P12/22/8 -> 0.125 | R14: =R12/22/8 -> 0.10625 | T14: =T12/22/8 -> 11.25 | V14: =V12/22/8 -> 10.5
H15: Hora/ Und | J15: =(22*8)/J12 -> 1.037270642 | L15: =(22*8)/L12 -> 2.048222477 | N15: =(22*8)/N12 -> 4.985321101 | P15: =(22*8)/P12 -> 8 | R15: =(22*8)/R12 -> 9.411764706 | T15: =(22*8)/T12 -> 0.08888888889 | V15: =(22*8)/V12 -> 0.09523809524
H16: Profissional | I16: Quantidade | J16: h/und | K16: prof/frente | L16: h/und | M16: prof/frente | N16: h/und | O16: prof/frente | P16: h/und | Q16: prof/frente | R16: h/km | S16: prof/frente | T16: h/m | U16: prof/frente | V16: h/m | W16: prof/frente
H17: ENGENHEIRO | I17: =SUM(K17+M17+O17+Q17+S17+U17+W17) -> 0.9982654323 | J17: =J18/3 -> 0.25 | K17: =J$12/(22*8/J17) -> 0.2410171365 | L17: =L18/3 -> 0.2666666667 | M17: =L$12/(22*8/L17) -> 0.1301941902 | N17: =N18/3 -> 0.2833333333 | O17: =N$12/(22*8/N17) -> 0.05683351736 | P17: =P18/3 -> 0.3 | Q17: =P$12/(22*8/P17) -> 0.0375 | R17: =R18/3 -> 1 | S17: =R$12/(22*8/R17) -> 0.10625 | T17: =T18/3 -> 0.01960784314 | U17: =T$12/(22*8/T17) -> 0.2205882353 | V17: =V18/3 -> 0.01960784314 | W17: =V$12/(22*8/V17) -> 0.2058823529
H18: ENCARREGADO | I18: =SUM(K18+M18+O18+Q18+S18+U18+W18) -> 2.994796297 | J18: 0.75 | K18: =J$12/(22*8/J18) -> 0.7230514096 | L18: 0.8 | M18: =L$12/(22*8/L18) -> 0.3905825705 | N18: 0.85 | O18: =N$12/(22*8/N18) -> 0.1705005521 | P18: 0.9 | Q18: =P$12/(22*8/P18) -> 0.1125 | R18: 3 | S18: =R$12/(22*8/R18) -> 0.31875 | T18: =1/17 -> 0.05882352941 | U18: =T$12/(22*8/T18) -> 0.6617647059 | V18: =1/17 -> 0.05882352941 | W18: =V$12/(22*8/V18) -> 0.6176470588
H19: TOPOGRAFOS | I19: 2.436135831 | J19: 0.6 | K19: =J$12/(22*8/J19) -> 0.5784411277 | L19: 0.6 | M19: =L$12/(22*8/L19) -> 0.2929369279 | N19: 0.65 | O19: =N$12/(22*8/N19) -> 0.1303827751 | P19: 0.65 | Q19: =P$12/(22*8/P19) -> 0.08125 | R19: 2.5 | S19: =R$12/(22*8/R19) -> 0.265625 | T19: =1/20 -> 0.05 | U19: =T$12/(22*8/T19) -> 0.5625 | V19: =1/20 -> 0.05 | W19: =V$12/(22*8/V19) -> 0.525
H20: AUXILIAR DE TOPOGRÁFOS | I20: 2.436135831 | J20: 0.6 | K20: =J$12/(22*8/J20) -> 0.5784411277 | L20: 0.6 | M20: =L$12/(22*8/L20) -> 0.2929369279 | N20: 0.65 | O20: =N$12/(22*8/N20) -> 0.1303827751 | P20: 0.65 | Q20: =P$12/(22*8/P20) -> 0.08125 | R20: 2.5 | S20: =R$12/(22*8/R20) -> 0.265625 | T20: =1/20 -> 0.05 | U20: =T$12/(22*8/T20) -> 0.5625 | V20: =1/20 -> 0.05 | W20: =V$12/(22*8/V20) -> 0.525
H21: SERVENTE | I21: 9 | J21: =K21*22*8/J$12 -> 1.037270642 | K21: 1 | L21: 2.048222477 | M21: 1 | N21: =O21*22*8/N$12 -> 4.985321101 | O21: 1 | P21: =Q21*22*8/P$12 -> 8 | Q21: 1 | R21: =S21*22*8/R$12 -> 9.411764706 | S21: 1 | T21: =U21*22*8/T$12 -> 0.1777777778 | U21: 2 | V21: 0.1904761905 | W21: 2
H22: TRATORISTA | I22: 5 | J22: 1.037270642 | K22: 1 | L22: 2.048222477 | M22: 1 | N22: =O22*22*8/N$12 -> 4.985321101 | O22: 1 | P22: =Q22*22*8/P$12 -> 8 | Q22: 1 | R22: =S22*22*8/R$12 -> 9.411764706 | S22: 1
H23: CARPINTEIRO | I23: 2 | T23: 0.08888888889 | U23: 1 | V23: 0.09523809524 | W23: 1
H24: AJUDANTE DE CARPINTEIRO | I24: 2 | T24: 0.08888888889 | U24: 1 | V24: 0.09523809524 | W24: 1

Sheet CPU (AL)
A1: COMPOSIÇÃO DE PREÇO UNITÁRIO
A2: MOBILIZAÇÃO E DESMOBILIZAÇÃO | C2: REGIÃO: | G2: AL | I2: UNIDADE: | J2: R$/Tonelada/ Projeto
A3: EQUIPAMENTO
A4: DISCRIMINAÇÃO | B4: UNIDADE | C4: QUANT. PROD. | D4: QUANT. IMPROD. | E4: COD. | G4: FONTE | H4: P.UNIT. PROD | I4: P.UNIT. IMPR | J4: P.TOTAL
J5: =C5*E5*H5+C5*G5*I5 -> 0
A6: SUB-TOTAL | J6: =SUM(J5:J5) -> 0
A7: MATERIAL
A8: DISCRIMINAÇÃO | B8: UNIDADE | C8: QUANT. | E8: COD. | G8: FONTE | I8: P.UNIT. | J8: P.TOTAL
J9: Toneladas/ Projeto
J10: =C10*I10 -> 0
A11: SUB-TOTAL | J11: =SUM(J9:J10) -> 0
A12: SERVIÇOS - COMPOSIÇÕES AUXILIARES
A13: DISCRIMINAÇÃO | B13: UNIDADE | C13: QUANT. | E13: COD. | G13: FONTE | I13: P.UNIT. | J13: P.TOTAL
A14: TRANSPORTE COM CAVALO MECÂNICO COM SEMIRREBOQUE COM CAPACIDADE DE 30 T - RODOVIA PAVIMENTADA | B14: t*km | C14: ='CPU (DF)'!C14 -> 1 | E14: 5914640 | G14: SICRO AL 01/2023 | I14: =VLOOKUP(E14,[1]Sheet1!$A:$D,4,FALSE) -> 0.56 | J14: =C14*I14 -> 0.56
A15: SUB-TOTAL | J15: =SUM(J14:J14) -> 0.56
A16: MÃO DE OBRA
A17: DISCRIMINAÇÃO | B17: UNIDADE | C17: QUANT. | I17: P.UNIT. | J17: P.TOTAL
J18: =C18*I18 -> 0
A19: SUB-TOTAL | J19: =SUM(J18:J18) -> 0
A20: PRODUÇÃO DA EQUIPE (MOB E DESMOB) EM km | B20: =VLOOKUP(G2,DMT!D:E,2)*2 -> 269.6 | C20: CUSTO | J20: =J19+J15+J11+J6 -> 0.56
A21: TOTAL | J21: =J20*B20 -> 150.976
A22: BDI % | J22: 24.1
A23: TOTAL DO SERVIÇO - R$ | J23: =J21*(1+J22/100) -> 187.361216
A25: COMPOSIÇÃO DE PREÇO UNITÁRIO
A26: LOCAÇÃO E CONSTRUÇÃO DE TERRAÇOS - INCLUSIVE SOLOS DUROS E SECOS | I26: UNIDADE: | J26: km
A27: EQUIPAMENTO
A28: DISCRIMINAÇÃO | B28: UNIDADE | C28: QUANT. PROD. | D28: QUANT. IMPROD. | E28: COD. P | F28: COD. I | G28: FONTE | H28: CHP | I28: CHI | J28: P.TOTAL
A29: TRATOR DE ESTEIRAS, POTÊNCIA 125 HP, PESO OPERACIONAL 12,9 T, COM LÂMINA 2,7 M3 | B29: H | C29: ='CPU (DF)'!C29 -> 7.058823529 | D29: ='CPU (DF)'!D29 -> 2.352941176 | E29: 5851 | F29: 5853 | G29: SINAPI AL 06/223 | H29: =VLOOKUP(E29,[2]planilhanull!$G$7:$K$7520,5,FALSE) -> 203.94 | I29: =VLOOKUP(F29,[2]planilhanull!$G$7:$K$7520,5,FALSE) -> 64.95 | J29: =C29*H29+D29*I29 -> 1592.4
A30: VEÍCULO DE PASSEIO PARA DESLOCAMENTO DA EQUIPE | B30: H | C30: ='CPU (DF)'!C30 -> 0.9375 | D30: ='CPU (DF)'!D30 -> 1.5625 | E30: E9093 | F30: E9093 | G30: SICRO AL 01/2023 | H30: =VLOOKUP(E30,[3]Sheet1!$A:$K,10,FALSE) -> 33.2152 | I30: =VLOOKUP(F30,[3]Sheet1!$A:$K,11,FALSE) -> 6.3881 | J30: =C30*H30+D30*I30 -> 41.12065625
A31: CAMINHONETE CABINE SIMPLES COM MOTOR 1.6 FLEX, CÂMBIO MANUAL, POTÊNCIA 101/104 CV, 2 PORTAS | B31: H | C31: ='CPU (DF)'!C31 -> 0.5625 | D31: ='CPU (DF)'!D31 -> 0.9375 | E31: 92145 | F31: 92146 | G31: SINAPI AL 06/223 | H31: =VLOOKUP(E31,[2]planilhanull!$G$7:$K$7520,5,FALSE) -> 69.73 | I31: =VLOOKUP(F31,[2]planilhanull!$G$7:$K$7520,5,FALSE) -> 28.51 | J31: =C31*H31+D31*I31 -> 65.95125
A32: SUB-TOTAL | J32: =SUM(J29:J31) -> 1699.471906
A33: MATERIAL
A34: DISCRIMINAÇÃO | B34: UNIDADE | C34: QUANT. | E34: COD. | G34: FONTE | I34: P.UNIT. | J34: P.TOTAL
A36: SUB-TOTAL | J36: =SUM(J35:J35) -> 0
A37: SERVIÇOS - COMPOSIÇÕES AUXILIARES
A38: DISCRIMINAÇÃO | B38: UNIDADE | C38: QUANT. | E38: COD. | G38: FONTE | I38: P.UNIT. | J38: P.TOTAL
A39: LOCAÇÃO E NIVELAMENTO DE TERRAÇOS COM TOPOGRAFIA | B39: KM | C39: ='CPU (DF)'!C39 -> 1 | E39: COMPOSIÇÃO | I39: =J75 -> 171.77 | J39: =C39*I39 -> 171.77
A40: REVESTIMENTO VEGETAL POR SEMEADURA A LANÇO MANUAL DE GRAMÍNEAS E LEGUMINOSAS | B40: m² | C40: ='CPU (DF)'!C40 -> 1000 | E40: 4413993 | G40: SICRO AL 01/2023 | I40: =VLOOKUP(E40,[1]Sheet1!$A:$D,4,FALSE) -> 0.62 | J40: =C40*I40 -> 620
A41: SUB-TOTAL | J41: =SUM(J39:J40) -> 791.77
A42: MÃO DE OBRA
A43: DISCRIMINAÇÃO | B43: UNIDADE | C43: QUANT. | E43: COD. P | F43: COD. I | G43: FONTE | I43: P.UNIT. | J43: P.TOTAL
A44: ENGENHEIRO COM ENCARGO | B44: MES | C44: ='CPU (DF)'!C44 -> 0.005681818182 | E44: 93565 | G44: SINAPI AL 06/223 | I44: =VLOOKUP(E44,[2]planilhanull!$G$7:$K$7520,5,FALSE) -> 20255.25 | J44: =C44*I44 -> 115.0866477
A45: SERVENTE COM ENCARGOS COMPLEMENTARES - INLUSIVE ABERTURA E FECHAMENTO DE CERCAS | B45: MES | C45: ='CPU (DF)'!C45 -> 0.05347593583 | E45: 101452 | G45: SINAPI AL 06/223 | I45: =VLOOKUP(E45,[2]planilhanull!$G$7:$K$7520,5,FALSE) -> 3257.89 | J45: =C45*I45 -> 174.2187166
A46: ENCARREGADO COM ENCARGO | B46: MES | C46: ='CPU (DF)'!C46 -> 0.01704545455 | E46: 93572 | G46: SINAPI AL 06/223 | I46: =VLOOKUP(E46,[2]planilhanull!$G$7:$K$7520,5,FALSE) -> 4374.42 | J46: =C46*I46 -> 74.56397727
A47: SUB-TOTAL | J47: =SUM(J44:J46) -> 363.8693416
A48: PRODUÇÃO DA EQUIPE MÊS 22 KM, MAS COM FATOR DE REDUÇÃO PARA PÉRIODOS COM CHUVAS | B48: ='CPU (DF)'!B48 -> 18.7 | C48: CUSTO | J48: =J47+J41+J36+J32 -> 2855.111248
A49: TOTAL | J49: =ROUND(J48,2) -> 2855.11
A50: BDI % | J50: 24.1
A51: TOTAL DO SERVIÇO - R$ | J51: =ROUND(J49*(1+J50/100),2) -> 3543.19
A53: COMPOSIÇÃO DE PREÇO UNITÁRIO
A54: LOCAÇÃO E NIVELAMENTO DE TERRAÇOS COM TOPOGRAFIA | I54: UNIDADE: | J54: km
A55: EQUIPAMENTO
A56: DISCRIMINAÇÃO | B56: UNIDADE | C56: QUANT. PROD. | D56: QUANT. IMPROD. | E56: COD. P | F56: COD. I | G56: FONTE | H56: CHP/ P.UNIT. | I56: CHI | J56: P.TOTAL
A57: NIVEL OPTICO, COM PRECISAO DE 0,7 MM, AUMENTO DE 32X | B57: H | C57: ='CPU (DF)'!C57 -> 0.99609375 | E57: 7252 | G57: SINAPI AL 06/223 | H57: =VLOOKUP(E57,[4]sheet1!$A$1:$E$65536,5,FALSE) -> 2.25 | J57: =C57*H57+D57*I57 -> 2.241210937
A58: TEODOLITO ELETRONICO, PRECISAO ANGULAR DE 5 A 7 SEGUNDOS, INCLUINDO TRIPE | B58: H | C58: ='CPU (DF)'!C58 -> 0.99609375 | E58: 7247 | G58: SINAPI AL 06/223 | H58: =VLOOKUP(E58,[4]sheet1!$A$1:$E$65536,5,FALSE) -> 2.25 | J58: =C58*H58+D58*I58 -> 2.241210937
A59: CAMINHONETE CABINE SIMPLES COM MOTOR 1.6 FLEX, CÂMBIO MANUAL, POTÊNCIA 101/104 CV, 2 PORTAS | B59: H | C59: ='CPU (DF)'!C59 -> 0.3735351562 | D59: ='CPU (DF)'!D59 -> 0.6225585938 | E59: 92145 | F59: 92146 | G59: SINAPI AL 06/223 | H59: =H31 -> 69.73 | I59: =I31 -> 28.51 | J59: =C59*H59+D59*I59 -> 43.79575195
A60: SUB-TOTAL | J60: =SUM(J57:J59) -> 48.27817383
A61: MATERIAL
A62: DISCRIMINAÇÃO | B62: UNIDADE | C62: QUANT. | E62: COD. | I62: P.UNIT. | J62: P.TOTAL
A63: ESTACA/PIQUETE DE MADEIRA | B63: U | C63: ='CPU (DF)'!C63 -> 83.33333333 | E63: 4408 | G63: SINAPI AL 06/223 | I63: =VLOOKUP(E63,[4]sheet1!$A$1:$E$65536,5,FALSE)*0.4 -> 0.76 | J63: =C63*I63 -> 63.33333333
A64: SUB-TOTAL | J64: =SUM(J63:J63) -> 63.33333333
A65: SERVIÇOS - COMPOSIÇÕES AUXILIARES
A66: DISCRIMINAÇÃO | B66: UNIDADE | C66: QUANT. | I66: P.UNIT. | J66: P.TOTAL
A68: SUB-TOTAL
A69: MÃO DE OBRA
A70: DISCRIMINAÇÃO | B70: UNIDADE | C70: QUANT. | E70: COD. P | F70: COD. I | I70: P.UNIT. | J70: P.TOTAL
A71: AUXILIAR DE TOPOGRÁFO COM ENCARGOS | B71: MÊS | C71: ='CPU (DF)'!C71 -> 0.00565962358 | E71: 101389 | G71: SINAPI AL 06/223 | I71: =VLOOKUP(E71,[2]planilhanull!$G$7:$K$7520,5,FALSE) -> 3439.23 | J71: =C71*I71 -> 19.4647472
A72: TOPOGRAFO COM ENCARGOS | B72: MÊS | C72: ='CPU (DF)'!C72 -> 0.00565962358 | E72: 94296 | G72: SINAPI AL 06/223 | I72: =VLOOKUP(E72,[2]planilhanull!$G$7:$K$7520,5,FALSE) -> 7189.65 | J72: =C72*I72 -> 40.69071267
A73: SUB-TOTAL | J73: =SUM(J71:J72) -> 60.15545987
A74: PRODUÇÃO MENSAL DA EQUIPE | B74: ='CPU (DF)'!B74 -> 46.93333333 | C74: CUSTO | J74: =J73+J68+J64+J60 -> 171.766967
A75: TOTAL | J75: =ROUND(J74,2) -> 171.77
A76: BDI % | J76: 24.1
A77: TOTAL DO SERVIÇO - R$ | J77: =ROUND(J75*(1+J76/100),2) -> 213.17
A79: COMPOSIÇÃO DE PREÇO UNITÁRIO
A80: LOCAÇÃO E CONSTRUÇÃO DE BACIAS DE CAPTAÇÃO DE ENXURRADA (4 METROS DE RAIO) | I80: UNIDADE: | J80: UNID.
A81: EQUIPAMENTO
A82: DISCRIMINAÇÃO | B82: UNIDADE | C82: QUANT. PROD. | D82: QUANT. IMPROD. | E82: COD. P | F82: COD. I | G82: FONTE | H82: CHP/ P.UNIT. | I82: CHI | J82: P.TOTAL
A83: NIVEL OPTICO, COM PRECISAO DE 0,7 MM, AUMENTO DE 32X | B83: H | C83: ='CPU (DF)'!C83 -> 0.6 | E83: 7252 | G83: SINAPI AL 06/223 | H83: =$H$57 -> 2.25 | J83: =C83*H83+D83*I83 -> 1.35
A84: TEODOLITO ELETRONICO, PRECISAO ANGULAR DE 5 A 7 SEGUNDOS, INCLUINDO TRIPE | B84: H | C84: ='CPU (DF)'!C84 -> 0.6 | E84: 7247 | G84: SINAPI AL 06/223 | H84: =$H$58 -> 2.25 | J84: =C84*H84+D84*I84 -> 1.35
A85: PÁ CARREGADEIRA SOBRE RODAS, POTÊNCIA LÍQUIDA 128 HP, CAPACIDADE DA CAÇAMBA 1,7 A 2,8 M³ | B85: H | C85: ='CPU (DF)'!C85 -> 0.7779529817 | D85: ='CPU (DF)'!D85 -> 0.2593176606 | E85: 5940 | F85: 5942 | G85: SINAPI AL 06/223 | H85: =VLOOKUP(E85,[2]planilhanull!$G$7:$K$7520,5,FALSE) -> 157.69 | I85: =VLOOKUP(F85,[2]planilhanull!$G$7:$K$7520,5,FALSE) -> 58.6 | J85: =C85*H85+D85*I85 -> 137.8714206
A86: VEÍCULO DE PASSEIO PARA DESLOCAMENTO DA EQUIPE | B86: H | C86: ='CPU (DF)'!C86 -> 0.234375 | D86: ='CPU (DF)'!D86 -> 0.390625 | E86: E9093 | G86: SICRO AL 01/2023 | H86: =$H$30 -> 33.2152 | I86: =$I$30 -> 6.3881 | J86: =C86*H86+D86*I86 -> 10.28016406
A87: CAMINHONETE CABINE SIMPLES COM MOTOR 1.6 FLEX, CÂMBIO MANUAL, POTÊNCIA 101/104 CV, 2 PORTAS | B87: H | C87: ='CPU (DF)'!C87 -> 0.609375 | D87: ='CPU (DF)'!D87 -> 0.365625 | E87: 92145 | F87: 92146 | G87: SINAPI AL 06/223 | H87: =$H$31 -> 69.73 | I87: =$I$31 -> 28.51 | J87: =C87*H87+D87*I87 -> 52.9156875
A88: SUB-TOTAL | J88: =SUM(J83:J87) -> 203.7672721
A89: MATERIAL
A90: DISCRIMINAÇÃO | B90: UNIDADE | C90: QUANT. | E90: COD. | I90: P.UNIT. | J90: P.TOTAL
A91: ESTACA/PIQUETE DE MADEIRA | B91: U | C91: ='CPU (DF)'!C91 -> 12 | E91: 4408 | G91: SINAPI AL 06/223 | I91: =$I$63 -> 0.76 | J91: =C91*I91 -> 9.12
A92: SUB-TOTAL | J92: =SUM(J91:J91) -> 9.12
A93: SERVIÇOS - COMPOSIÇÕES AUXILIARES
A94: DISCRIMINAÇÃO | B94: UNIDADE | C94: QUANT. | I94: P.UNIT. | J94: P.TOTAL
A95: REVESTIMENTO VEGETAL POR SEMEADURA A LANÇO MANUAL DE GRAMÍNEAS E LEGUMINOSAS | B95: m² | C95: ='CPU (DF)'!C95 -> 50.26548246 | E95: 4413993 | G95: SICRO AL 01/2023 | I95: =VLOOKUP(E95,[1]Sheet1!$A:$D,4,FALSE) -> 0.62 | J95: =C95*I95 -> 31.16459912
A96: SUB-TOTAL | J96: =SUM(J95:J95) -> 31.16459912
A97: MÃO DE OBRA
A98: DISCRIMINAÇÃO | B98: UNIDADE | C98: QUANT. | E98: COD. P | F98: COD. I | I98: P.UNIT. | J98: P.TOTAL
A99: ENGENHEIRO COM ENCARGO | B99: MÊS | C99: ='CPU (DF)'!C99 -> 0.001420454545 | E99: 93565 | G99: SINAPI AL 06/223 | I99: =$I$44 -> 20255.25 | J99: =C99*I99 -> 28.77166193
A100: ENCARREGADO COM ENCARGO | B100: MÊS | C100: ='CPU (DF)'!C100 -> 0.004261363636 | E100: 93572 | G100: SINAPI AL 06/223 | I100: =$I$46 -> 4374.42 | J100: =C100*I100 -> 18.64099432
A101: TOPOGRAFO COM ENCARGOS | B101: MÊS | C101: ='CPU (DF)'!C101 -> 0.003409090909 | E101: 94296 | G101: SINAPI AL 06/223 | I101: =$I$72 -> 7189.65 | J101: =C101*I101 -> 24.51017045
A102: AUXILIAR DE TOPOGRÁFO COM ENCARGOS | B102: MÊS | C102: ='CPU (DF)'!C102 -> 0.003409090909 | E102: 101389 | G102: SINAPI AL 06/223 | I102: =$I$71 -> 3439.23 | J102: =C102*I102 -> 11.72464773
A103: SERVENTE COM ENCARGOS COMPLEMENTARES - INLUSIVE ABERTURA E FECHAMENTO DE CERCAS | B103: MES | C103: ='CPU (DF)'!C103 -> 0.005893583194 | E103: 101452 | G103: SINAPI AL 06/223 | I103: =$I$45 -> 3257.89 | J103: =C103*I103 -> 19.20064575
A104: SUB-TOTAL | J104: =SUM(J99:J103) -> 102.8481202
A105: PRODUÇÃO MENSAL DA EQUIPE | B105: ='CPU (DF)'!B105 -> 169.6760641 | C105: CUSTO | J105: =J104+J96+J92+J88 -> 346.8999915
A106: TOTAL | J106: =ROUND(J105,2) -> 346.9
A107: BDI % | J107: 24.1
A108: TOTAL DO SERVIÇO - R$ | J108: =ROUND(J106*(1+J107/100),2) -> 430.5
A111: COMPOSIÇÃO DE PREÇO UNITÁRIO
A112: LOCAÇÃO E CONSTRUÇÃO DE BACIAS DE CAPTAÇÃO DE ENXURRADA (6 METROS DE RAIO) | I112: UNIDADE: | J112: UNID.
A113: EQUIPAMENTO
A114: DISCRIMINAÇÃO | B114: UNIDADE | C114: QUANT. PROD. | D114: QUANT. IMPROD. | E114: COD. P | F114: COD. I | G114: FONTE | H114: CHP/ P.UNIT. | I114: CHI | J114: P.TOTAL
A115: NIVEL OPTICO, COM PRECISAO DE 0,7 MM, AUMENTO DE 32X | B115: H | C115: ='CPU (DF)'!C115 -> 0.6 | E115: 7252 | G115: SINAPI AL 06/223 | H115: =$H$57 -> 2.25 | J115: =C115*H115+D115*I115 -> 1.35
A116: TEODOLITO ELETRONICO, PRECISAO ANGULAR DE 5 A 7 SEGUNDOS, INCLUINDO TRIPE | B116: H | C116: ='CPU (DF)'!C116 -> 0.6 | E116: 7247 | G116: SINAPI AL 06/223 | H116: =$H$58 -> 2.25 | J116: =C116*H116+D116*I116 -> 1.35
A117: PÁ CARREGADEIRA SOBRE RODAS, POTÊNCIA LÍQUIDA 128 HP, CAPACIDADE DA CAÇAMBA 1,7 A 2,8 M³ | B117: H | C117: ='CPU (DF)'!C117 -> 1.536166858 | D117: ='CPU (DF)'!D117 -> 0.5120556193 | E117: 5940 | F117: 5942 | G117: SINAPI AL 06/223 | H117: =$H$85 -> 157.69 | I117: =$I$85 -> 58.6 | J117: =C117*H117+D117*I117 -> 272.2446111
A118: VEÍCULO DE PASSEIO PARA DESLOCAMENTO DA EQUIPE | B118: H | C118: ='CPU (DF)'!C118 -> 0.25 | D118: ='CPU (DF)'!D118 -> 0.4166666667 | E118: E9093 | G118: SICRO AL 01/2023 | H118: =$H$30 -> 33.2152 | I118: =$I$30 -> 6.3881 | J118: =C118*H118+D118*I118 -> 10.96550833
A119: CAMINHONETE CABINE SIMPLES COM MOTOR 1.6 FLEX, CÂMBIO MANUAL, POTÊNCIA 101/104 CV, 2 PORTAS | B119: H | C119: ='CPU (DF)'!C119 -> 0.625 | D119: ='CPU (DF)'!D119 -> 0.375 | E119: 92145 | F119: 92146 | G119: SINAPI AL 06/223 | H119: =$H$31 -> 69.73 | I119: =$I$31 -> 28.51 | J119: =C119*H119+D119*I119 -> 54.2725
A120: SUB-TOTAL | J120: =SUM(J115:J119) -> 340.1826194
A121: MATERIAL
A122: DISCRIMINAÇÃO | B122: UNIDADE | C122: QUANT. | E122: COD. | I122: P.UNIT. | J122: P.TOTAL
A123: ESTACA/PIQUETE DE MADEIRA | B123: U | C123: ='CPU (DF)'!C123 -> 12 | E123: 4408 | G123: SINAPI AL 06/223 | I123: =$I$63 -> 0.76 | J123: =C123*I123 -> 9.12
A124: SUB-TOTAL | J124: =SUM(J123:J123) -> 9.12
A125: SERVIÇOS - COMPOSIÇÕES AUXILIARES
A126: DISCRIMINAÇÃO | B126: UNIDADE | C126: QUANT. | I126: P.UNIT. | J126: P.TOTAL
A127: REVESTIMENTO VEGETAL POR SEMEADURA A LANÇO MANUAL DE GRAMÍNEAS E LEGUMINOSAS | B127: m² | C127: ='CPU (DF)'!C127 -> 94.24777961 | E127: 4413993 | G127: SICRO AL 01/2023 | I127: =VLOOKUP(E127,[1]Sheet1!$A:$D,4,FALSE) -> 0.62 | J127: =C127*I127 -> 58.43362336
A128: SUB-TOTAL | J128: =SUM(J127:J127) -> 58.43362336
A129: MÃO DE OBRA
A130: DISCRIMINAÇÃO | B130: UNIDADE | C130: QUANT. | E130: COD. P | F130: COD. I | I130: P.UNIT. | J130: P.TOTAL
A131: ENGENHEIRO COM ENCARGO | B131: MÊS | C131: ='CPU (DF)'!C131 -> 0.001515151515 | E131: 93565 | G131: SINAPI AL 06/223 | I131: =$I$44 -> 20255.25 | J131: =C131*I131 -> 30.68977273
A132: ENCARREGADO COM ENCARGO | B132: MÊS | C132: ='CPU (DF)'!C132 -> 0.004545454545 | E132: 93572 | G132: SINAPI AL 06/223 | I132: =$I$46 -> 4374.42 | J132: =C132*I132 -> 19.88372727
A133: TOPOGRAFO COM ENCARGOS | B133: MÊS | C133: ='CPU (DF)'!C133 -> 0.003409090909 | E133: 94296 | G133: SINAPI AL 06/223 | I133: =$I$72 -> 7189.65 | J133: =C133*I133 -> 24.51017045
A134: AUXILIAR DE TOPOGRÁFO COM ENCARGOS | B134: MÊS | C134: ='CPU (DF)'!C134 -> 0.003409090909 | E134: 101389 | G134: SINAPI AL 06/223 | I134: =$I$71 -> 3439.23 | J134: =C134*I134 -> 11.72464773
A135: SERVENTE COM ENCARGOS COMPLEMENTARES - INLUSIVE ABERTURA E FECHAMENTO DE CERCAS | B135: MES | C135: ='CPU (DF)'!C135 -> 0.01163762771 | E135: 101452 | G135: SINAPI AL 06/223 | I135: =$I$45 -> 3257.89 | J135: =C135*I135 -> 37.91411094
A136: SUB-TOTAL | J136: =SUM(J131:J135) -> 124.7224291
A137: PRODUÇÃO MENSAL DA EQUIPE | B137: ='CPU (DF)'!B137 -> 85.9281655 | C137: CUSTO | J137: =J136+J128+J124+J120 -> 532.4586719
A138: TOTAL | J138: =ROUND(J137,2) -> 532.46
A139: BDI % | J139: 24.1
A140: TOTAL DO SERVIÇO - R$ | J140: =ROUND(J138*(1+J139/100),2) -> 660.78
A142: COMPOSIÇÃO DE PREÇO UNITÁRIO
A143: LOCAÇÃO E CONSTRUÇÃO DE BACIAS DE CAPTAÇÃO DE ENXURRADA (9 METROS DE RAIO) | I143: UNIDADE: | J143: UNID.
A144: EQUIPAMENTO
A145: DISCRIMINAÇÃO | B145: UNIDADE | C145: QUANT. PROD. | D145: QUANT. IMPROD. | E145: COD. P | F145: COD. I | G145: FONTE | H145: CHP/ P.UNIT. | I145: CHI | J145: P.TOTAL
A146: NIVEL OPTICO, COM PRECISAO DE 0,7 MM, AUMENTO DE 32X | B146: H | C146: ='CPU (DF)'!C146 -> 0.65 | E146: 7252 | G146: SINAPI AL 06/223 | H146: =$H$57 -> 2.25 | J146: =C146*H146+D146*I146 -> 1.4625
A147: TEODOLITO ELETRONICO, PRECISAO ANGULAR DE 5 A 7 SEGUNDOS, INCLUINDO TRIPE | B147: H | C147: ='CPU (DF)'!C147 -> 0.65 | E147: 7247 | G147: SINAPI AL 06/223 | H147: =$H$58 -> 2.25 | J147: =C147*H147+D147*I147 -> 1.4625
A148: PÁ CARREGADEIRA SOBRE RODAS, POTÊNCIA LÍQUIDA 128 HP, CAPACIDADE DA CAÇAMBA 1,7 A 2,8 M³ | B148: H | C148: ='CPU (DF)'!C148 -> 3.738990826 | D148: ='CPU (DF)'!D148 -> 1.246330275 | E148: 5940 | F148: 5942 | G148: SINAPI AL 06/223 | H148: =$H$85 -> 157.69 | I148: =$I$85 -> 58.6 | J148: =C148*H148+D148*I148 -> 662.6364174
A149: VEÍCULO DE PASSEIO PARA DESLOCAMENTO DA EQUIPE | B149: H | C149: ='CPU (DF)'!C149 -> 0.265625 | D149: ='CPU (DF)'!D149 -> 0.4427083333 | E149: E9093 | G149: SICRO AL 01/2023 | H149: =$H$30 -> 33.2152 | I149: =$I$30 -> 6.3881 | J149: =C149*H149+D149*I149 -> 11.6508526
A150: CAMINHONETE CABINE SIMPLES COM MOTOR 1.6 FLEX, CÂMBIO MANUAL, POTÊNCIA 101/104 CV, 2 PORTAS | B150: H | C150: ='CPU (DF)'!C150 -> 0.671875 | D150: ='CPU (DF)'!D150 -> 0.403125 | E150: 92145 | F150: 92146 | G150: SINAPI AL 06/223 | H150: =$H$31 -> 69.73 | I150: =$I$31 -> 28.51 | J150: =C150*H150+D150*I150 -> 58.3429375
A151: SUB-TOTAL | J151: =SUM(J146:J150) -> 735.5552075
A152: MATERIAL
A153: DISCRIMINAÇÃO | B153: UNIDADE | C153: QUANT. | E153: COD. | I153: P.UNIT. | J153: P.TOTAL
A154: ESTACA/PIQUETE DE MADEIRA | B154: U | C154: ='CPU (DF)'!C154 -> 12 | E154: 4408 | G154: SINAPI AL 06/223 | I154: =$I$63 -> 0.76 | J154: =C154*I154 -> 9.12
A155: SUB-TOTAL | J155: =SUM(J154:J154) -> 9.12
A156: SERVIÇOS - COMPOSIÇÕES AUXILIARES
A157: DISCRIMINAÇÃO | B157: UNIDADE | C157: QUANT. | I157: P.UNIT. | J157: P.TOTAL
A158: REVESTIMENTO VEGETAL POR SEMEADURA A LANÇO MANUAL DE GRAMÍNEAS E LEGUMINOSAS | B158: m² | C158: ='CPU (DF)'!C158 -> 169.6460033 | E158: 4413993 | G158: SICRO AL 01/2023 | I158: =VLOOKUP(E158,[1]Sheet1!$A:$D,4,FALSE) -> 0.62 | J158: =C158*I158 -> 105.180522
A159: SUB-TOTAL | J159: =SUM(J158:J158) -> 105.180522
A160: MÃO DE OBRA
A161: DISCRIMINAÇÃO | B161: UNIDADE | C161: QUANT. | E161: COD. P | F161: COD. I | I161: P.UNIT. | J161: P.TOTAL
A162: ENGENHEIRO COM ENCARGO | B162: MÊS | C162: ='CPU (DF)'!C162 -> 0.001609848485 | E162: 93565 | G162: SINAPI AL 06/223 | I162: =$I$44 -> 20255.25 | J162: =C162*I162 -> 32.60788352
A163: ENCARREGADO COM ENCARGO | B163: MÊS | C163: ='CPU (DF)'!C163 -> 0.004829545455 | E163: 93572 | G163: SINAPI AL 06/223 | I163: =$I$46 -> 4374.42 | J163: =C163*I163 -> 21.12646023
A164: TOPOGRAFO COM ENCARGOS | B164: MÊS | C164: ='CPU (DF)'!C164 -> 0.003693181818 | E164: 94296 | G164: SINAPI AL 06/223 | I164: =$I$72 -> 7189.65 | J164: =C164*I164 -> 26.55268466
A165: AUXILIAR DE TOPOGRÁFO COM ENCARGOS | B165: MÊS | C165: ='CPU (DF)'!C165 -> 0.003693181818 | E165: 101389 | G165: SINAPI AL 06/223 | I165: =$I$71 -> 3439.23 | J165: =C165*I165 -> 12.7017017
A166: SERVENTE COM ENCARGOS COMPLEMENTARES - INLUSIVE ABERTURA E FECHAMENTO DE CERCAS | B166: MES | C166: ='CPU (DF)'!C166 -> 0.02832568807 | E166: 101452 | G166: SINAPI AL 06/223 | I166: =$I$45 -> 3257.89 | J166: =C166*I166 -> 92.28197592
A167: SUB-TOTAL | J167: =SUM(J162:J166) -> 185.270706
A168: PRODUÇÃO MENSAL DA EQUIPE | B168: ='CPU (DF)'!B168 -> 35.30364372 | C168: CUSTO | J168: =J167+J159+J155+J151 -> 1035.126436
A169: TOTAL | J169: =ROUND(J168,2) -> 1035.13
A170: BDI % | J170: 24.1
A171: TOTAL DO SERVIÇO - R$ | J171: =ROUND(J169*(1+J170/100),2) -> 1284.6
A174: COMPOSIÇÃO DE PREÇO UNITÁRIO
A175: LOCAÇÃO E CONSTRUÇÃO DE BACIAS DE CAPTAÇÃO DE ENXURRADA (12 METROS DE RAIO) | I175: UNIDADE: | J175: UNID.
A176: EQUIPAMENTO
A177: DISCRIMINAÇÃO | B177: UNIDADE | C177: QUANT. PROD. | D177: QUANT. IMPROD. | E177: COD. P | F177: COD. I | G177: FONTE | H177: CHP/ P.UNIT. | I177: CHI | J177: P.TOTAL
A178: NIVEL OPTICO, COM PRECISAO DE 0,7 MM, AUMENTO DE 32X | B178: H | C178: ='CPU (DF)'!C178 -> 0.65 | E178: 7252 | G178: SINAPI AL 06/223 | H178: =$H$57 -> 2.25 | J178: =C178*H178+D178*I178 -> 1.4625
A179: TEODOLITO ELETRONICO, PRECISAO ANGULAR DE 5 A 7 SEGUNDOS, INCLUINDO TRIPE | B179: H | C179: ='CPU (DF)'!C179 -> 0.65 | E179: 7247 | G179: SINAPI AL 06/223 | H179: =$H$58 -> 2.25 | J179: =C179*H179+D179*I179 -> 1.4625
A180: PÁ CARREGADEIRA SOBRE RODAS, POTÊNCIA LÍQUIDA 128 HP, CAPACIDADE DA CAÇAMBA 1,7 A 2,8 M³ | B180: H | C180: ='CPU (DF)'!C180 -> 6 | D180: ='CPU (DF)'!D180 -> 2 | E180: 5940 | F180: 5942 | G180: SINAPI AL 06/223 | H180: =$H$85 -> 157.69 | I180: =$I$85 -> 58.6 | J180: =C180*H180+D180*I180 -> 1063.34
A181: VEÍCULO DE PASSEIO PARA DESLOCAMENTO DA EQUIPE | B181: H | C181: ='CPU (DF)'!C181 -> 0.28125 | D181: ='CPU (DF)'!D181 -> 0.46875 | E181: E9093 | G181: SICRO AL 01/2023 | H181: =$H$30 -> 33.2152 | I181: =$I$30 -> 6.3881 | J181: =C181*H181+D181*I181 -> 12.33619687
A182: CAMINHONETE CABINE SIMPLES COM MOTOR 1.6 FLEX, CÂMBIO MANUAL, POTÊNCIA 101/104 CV, 2 PORTAS | B182: H | C182: ='CPU (DF)'!C182 -> 0.6875 | D182: ='CPU (DF)'!D182 -> 0.4125 | E182: 92145 | F182: 92146 | G182: SINAPI AL 06/223 | H182: =$H$31 -> 69.73 | I182: =$I$31 -> 28.51 | J182: =C182*H182+D182*I182 -> 59.69975
A183: SUB-TOTAL | J183: =SUM(J178:J182) -> 1138.300947
A184: MATERIAL
A185: DISCRIMINAÇÃO | B185: UNIDADE | C185: QUANT. | E185: COD. | I185: P.UNIT. | J185: P.TOTAL
A186: ESTACA/PIQUETE DE MADEIRA | B186: U | C186: ='CPU (DF)'!C186 -> 16 | E186: 4408 | G186: SINAPI AL 06/223 | I186: =$I$63 -> 0.76 | J186: =C186*I186 -> 12.16
A187: SUB-TOTAL | J187: =SUM(J186:J186) -> 12.16
A188: SERVIÇOS - COMPOSIÇÕES AUXILIARES
A189: DISCRIMINAÇÃO | B189: UNIDADE | C189: QUANT. | I189: P.UNIT. | J189: P.TOTAL
A190: REVESTIMENTO VEGETAL POR SEMEADURA A LANÇO MANUAL DE GRAMÍNEAS E LEGUMINOSAS | B190: m² | C190: ='CPU (DF)'!C190 -> 263.8937829 | E190: 4413993 | G190: SICRO AL 01/2023 | I190: =VLOOKUP(E190,[1]Sheet1!$A:$D,4,FALSE) -> 0.62 | J190: =C190*I190 -> 163.6141454
A191: SUB-TOTAL | J191: =SUM(J190:J190) -> 163.6141454
A192: MÃO DE OBRA
A193: DISCRIMINAÇÃO | B193: UNIDADE | C193: QUANT. | E193: COD. P | F193: COD. I | I193: P.UNIT. | J193: P.TOTAL
A194: ENGENHEIRO COM ENCARGO | B194: MES | C194: ='CPU (DF)'!C194 -> 0.001704545455 | E194: 93565 | G194: SINAPI AL 06/223 | I194: =$I$44 -> 20255.25 | J194: =C194*I194 -> 34.52599432
A195: ENCARREGADO COM ENCARGO | B195: MES | C195: ='CPU (DF)'!C195 -> 0.005113636364 | E195: 93572 | G195: SINAPI AL 06/223 | I195: =$I$46 -> 4374.42 | J195: =C195*I195 -> 22.36919318
A196: TOPOGRAFO COM ENCARGOS | B196: MÊS | C196: ='CPU (DF)'!C196 -> 0.003693181818 | E196: 94296 | G196: SINAPI AL 06/223 | I196: =$I$72 -> 7189.65 | J196: =C196*I196 -> 26.55268466
A197: AUXILIAR DE TOPOGRÁFO COM ENCARGOS | B197: MÊS | C197: ='CPU (DF)'!C197 -> 0.003693181818 | E197: 101389 | G197: SINAPI AL 06/223 | I197: =$I$71 -> 3439.23 | J197: =C197*I197 -> 12.7017017
A198: SERVENTE COM ENCARGOS COMPLEMENTARES - INLUSIVE ABERTURA E FECHAMENTO DE CERCAS | B198: MES | C198: ='CPU (DF)'!C198 -> 0.04545454545 | E198: 101452 | G198: SINAPI AL 06/223 | I198: =$I$45 -> 3257.89 | J198: =C198*I198 -> 148.0859091
A199: SUB-TOTAL | J199: =SUM(J194:J198) -> 244.235483
A200: PRODUÇÃO DA EQUIPE | B200: ='CPU (DF)'!B200 -> 22 | C200: CUSTO | J200: =J199+J191+J187+J183 -> 1558.310575
A201: TOTAL | J201: =ROUND(J200,2) -> 1558.31
A202: BDI % | J202: 24.1
A203: TOTAL DO SERVIÇO - R$ | J203: =ROUND(J201*(1+J202/100),2) -> 1933.86
A205: COMPOSIÇÃO DE PREÇO UNITÁRIO
A206: CERCAMENTO DE ÁREAS AMBIENTALMENTE VULNERÁVEIS À CAPRINOVINOCULTURA | I206: UNIDADE: | J206: m
A207: EQUIPAMENTO
A208: DISCRIMINAÇÃO | B208: UNIDADE | C208: QUANT. PROD. | D208: QUANT. IMPROD. | E208: COD. P | F208: COD. I | G208: FONTE | I208: P.UNIT. | J208: P.TOTAL
A209: NIVEL OPTICO, COM PRECISAO DE 0,7 MM, AUMENTO DE 32X | B209: h | C209: ='CPU (DF)'!C209 -> 0.05 | E209: 7252 | G209: SINAPI AL 06/223 | H209: =H178 -> 2.25 | J209: =C209*H209+D209*I209 -> 0.1125
A210: TEODOLITO ELETRONICO, PRECISAO ANGULAR DE 5 A 7 SEGUNDOS, INCLUINDO TRIPE | B210: h | C210: ='CPU (DF)'!C210 -> 0.05 | E210: 7247 | G210: SINAPI AL 06/223 | H210: =H179 -> 2.25 | J210: =C210*H210+D210*I210 -> 0.1125
A211: VEÍCULO DE PASSEIO PARA DESLOCAMENTO DA EQUIPE | B211: h | C211: ='CPU (DF)'!C211 -> 0.01838235294 | D211: ='CPU (DF)'!D211 -> 0.0306372549 | E211: E9093 | F211: E9093 | G211: SICRO AL 01/2023 | H211: =H30 -> 33.2152 | I211: =I30 -> 6.3881 | J211: =C211*H211+D211*I211 -> 0.8062873775
... 87 more rows

Sheet CPU (AP)
A1: COMPOSIÇÃO DE PREÇO UNITÁRIO
A2: MOBILIZAÇÃO E DESMOBILIZAÇÃO | C2: REGIÃO: | G2: AP | I2: UNIDADE: | J2: R$/Tonelada/ Projeto
A3: EQUIPAMENTO
A4: DISCRIMINAÇÃO | B4: UNIDADE | C4: QUANT. PROD. | D4: QUANT. IMPROD. | E4: COD. | G4: FONTE | H4: P.UNIT. PROD | I4: P.UNIT. IMPR | J4: P.TOTAL
J5: =C5*E5*H5+C5*G5*I5 -> 0
A6: SUB-TOTAL | J6: =SUM(J5:J5) -> 0
A7: MATERIAL
A8: DISCRIMINAÇÃO | B8: UNIDADE | C8: QUANT. | E8: COD. | G8: FONTE | I8: P.UNIT. | J8: P.TOTAL
J9: Toneladas/ Projeto
J10: =C10*I10 -> 0
A11: SUB-TOTAL | J11: =SUM(J9:J10) -> 0
A12: SERVIÇOS - COMPOSIÇÕES AUXILIARES
A13: DISCRIMINAÇÃO | B13: UNIDADE | C13: QUANT. | E13: COD. | G13: FONTE | I13: P.UNIT. | J13: P.TOTAL
A14: TRANSPORTE COM CAVALO MECÂNICO COM SEMIRREBOQUE COM CAPACIDADE DE 30 T - RODOVIA PAVIMENTADA | B14: t*km | C14: ='CPU (DF)'!C14 -> 1 | E14: 5914640 | G14: SICRO AP 01/2023 | I14: =VLOOKUP(E14,[5]Sheet1!$A:$D,4,FALSE) -> 0.61 | J14: =C14*I14 -> 0.61
A15: SUB-TOTAL | J15: =SUM(J14:J14) -> 0.61
A16: MÃO DE OBRA
A17: DISCRIMINAÇÃO | B17: UNIDADE | C17: QUANT. | I17: P.UNIT. | J17: P.TOTAL
J18: =C18*I18 -> 0
A19: SUB-TOTAL | J19: =SUM(J18:J18) -> 0
A20: PRODUÇÃO DA EQUIPE (MOB E DESMOB) EM km | B20: =VLOOKUP(G2,DMT!D:E,2)*2 -> 500 | C20: CUSTO | J20: =J19+J15+J11+J6 -> 0.61
A21: TOTAL | J21: =J20*B20 -> 305
A22: BDI % | J22: 24.1
A23: TOTAL DO SERVIÇO - R$ | J23: =J21*(1+J22/100) -> 378.505
A25: COMPOSIÇÃO DE PREÇO UNITÁRIO
A26: LOCAÇÃO E CONSTRUÇÃO DE TERRAÇOS - INCLUSIVE SOLOS DUROS E SECOS | I26: UNIDADE: | J26: km
A27: EQUIPAMENTO
A28: DISCRIMINAÇÃO | B28: UNIDADE | C28: QUANT. PROD. | D28: QUANT. IMPROD. | E28: COD. P | F28: COD. I | G28: FONTE | H28: CHP | I28: CHI | J28: P.TOTAL
A29: TRATOR DE ESTEIRAS, POTÊNCIA 125 HP, PESO OPERACIONAL 12,9 T, COM LÂMINA 2,7 M3 | B29: H | C29: ='CPU (DF)'!C29 -> 7.058823529 | D29: ='CPU (DF)'!D29 -> 2.352941176 | E29: 5851 | F29: 5853 | G29: SINAPI AP 06/223 | H29: =VLOOKUP(E29,[6]planilhanull!$G$7:$K$7520,5,FALSE) -> 209.15 | I29: =VLOOKUP(F29,[6]planilhanull!$G$7:$K$7520,5,FALSE) -> 62.16 | J29: =C29*H29+D29*I29 -> 1622.611765
A30: VEÍCULO DE PASSEIO PARA DESLOCAMENTO DA EQUIPE | B30: H | C30: ='CPU (DF)'!C30 -> 0.9375 | D30: ='CPU (DF)'!D30 -> 1.5625 | E30: E9093 | F30: E9093 | G30: SICRO AP 01/2023 | H30: =VLOOKUP(E30,[7]Sheet1!$A:$K,10,FALSE) -> 32.6572 | I30: =VLOOKUP(F30,[7]Sheet1!$A:$K,11,FALSE) -> 6.4775 | J30: =C30*H30+D30*I30 -> 40.73721875
A31: CAMINHONETE CABINE SIMPLES COM MOTOR 1.6 FLEX, CÂMBIO MANUAL, POTÊNCIA 101/104 CV, 2 PORTAS | B31: H | C31: ='CPU (DF)'!C31 -> 0.5625 | D31: ='CPU (DF)'!D31 -> 0.9375 | E31: 92145 | F31: 92146 | G31: SINAPI AP 06/223 | H31: =VLOOKUP(E31,[6]planilhanull!$G$7:$K$7520,5,FALSE) -> 64.36 | I31: =VLOOKUP(F31,[6]planilhanull!$G$7:$K$7520,5,FALSE) -> 24.55 | J31: =C31*H31+D31*I31 -> 59.218125
A32: SUB-TOTAL | J32: =SUM(J29:J31) -> 1722.567108
A33: MATERIAL
A34: DISCRIMINAÇÃO | B34: UNIDADE | C34: QUANT. | E34: COD. | G34: FONTE | I34: P.UNIT. | J34: P.TOTAL
A36: SUB-TOTAL | J36: =SUM(J35:J35) -> 0
A37: SERVIÇOS - COMPOSIÇÕES AUXILIARES
A38: DISCRIMINAÇÃO | B38: UNIDADE | C38: QUANT. | E38: COD. | G38: FONTE | I38: P.UNIT. | J38: P.TOTAL
A39: LOCAÇÃO E NIVELAMENTO DE TERRAÇOS COM TOPOGRAFIA | B39: KM | C39: ='CPU (DF)'!C39 -> 1 | E39: COMPOSIÇÃO | I39: =J75 -> 128.3 | J39: =C39*I39 -> 128.3
A40: REVESTIMENTO VEGETAL POR SEMEADURA A LANÇO MANUAL DE GRAMÍNEAS E LEGUMINOSAS | B40: m² | C40: ='CPU (DF)'!C40 -> 1000 | E40: 4413993 | G40: SICRO AP 01/2023 | I40: =VLOOKUP(E40,[5]Sheet1!$A:$D,4,FALSE) -> 0.65 | J40: =C40*I40 -> 650
A41: SUB-TOTAL | J41: =SUM(J39:J40) -> 778.3
A42: MÃO DE OBRA
A43: DISCRIMINAÇÃO | B43: UNIDADE | C43: QUANT. | E43: COD. P | F43: COD. I | G43: FONTE | I43: P.UNIT. | J43: P.TOTAL
A44: ENGENHEIRO COM ENCARGO | B44: MES | C44: ='CPU (DF)'!C44 -> 0.005681818182 | E44: 93565 | G44: SINAPI AP 06/223 | I44: =VLOOKUP(E44,[6]planilhanull!$G$7:$K$7520,5,FALSE) -> 19584.39 | J44: =C44*I44 -> 111.2749432
A45: SERVENTE COM ENCARGOS COMPLEMENTARES - INLUSIVE ABERTURA E FECHAMENTO DE CERCAS | B45: MES | C45: ='CPU (DF)'!C45 -> 0.05347593583 | E45: 101452 | G45: SINAPI AP 06/223 | I45: =VLOOKUP(E45,[6]planilhanull!$G$7:$K$7520,5,FALSE) -> 3036.88 | J45: =C45*I45 -> 162.4
A46: ENCARREGADO COM ENCARGO | B46: MES | C46: ='CPU (DF)'!C46 -> 0.01704545455 | E46: 93572 | G46: SINAPI AP 06/223 | I46: =VLOOKUP(E46,[6]planilhanull!$G$7:$K$7520,5,FALSE) -> 4411.66 | J46: =C46*I46 -> 75.19875
A47: SUB-TOTAL | J47: =SUM(J44:J46) -> 348.8736932
A48: PRODUÇÃO DA EQUIPE MÊS 22 KM, MAS COM FATOR DE REDUÇÃO PARA PÉRIODOS COM CHUVAS | B48: ='CPU (DF)'!B48 -> 18.7 | C48: CUSTO | J48: =J47+J41+J36+J32 -> 2849.740802
A49: TOTAL | J49: =ROUND(J48,2) -> 2849.74
A50: BDI % | J50: 24.1
A51: TOTAL DO SERVIÇO - R$ | J51: =ROUND(J49*(1+J50/100),2) -> 3536.53
A53: COMPOSIÇÃO DE PREÇO UNITÁRIO
A54: LOCAÇÃO E NIVELAMENTO DE TERRAÇOS COM TOPOGRAFIA | I54: UNIDADE: | J54: km
A55: EQUIPAMENTO
A56: DISCRIMINAÇÃO | B56: UNIDADE | C56: QUANT. PROD. | D56: QUANT. IMPROD. | E56: COD. P | F56: COD. I | G56: FONTE | H56: CHP/ P.UNIT. | I56: CHI | J56: P.TOTAL
A57: NIVEL OPTICO, COM PRECISAO DE 0,7 MM, AUMENTO DE 32X | B57: H | C57: ='CPU (DF)'!C57 -> 0.99609375 | E57: 7252 | G57: SINAPI AP 06/223 | H57: =VLOOKUP(E57,[8]sheet1!$A$1:$E$65536,5,FALSE) -> 2.25 | J57: =C57*H57+D57*I57 -> 2.241210937
A58: TEODOLITO ELETRONICO, PRECISAO ANGULAR DE 5 A 7 SEGUNDOS, INCLUINDO TRIPE | B58: H | C58: ='CPU (DF)'!C58 -> 0.99609375 | E58: 7247 | G58: SINAPI AP 06/223 | H58: =VLOOKUP(E58,[8]sheet1!$A$1:$E$65536,5,FALSE) -> 2.25 | J58: =C58*H58+D58*I58 -> 2.241210937
A59: CAMINHONETE CABINE SIMPLES COM MOTOR 1.6 FLEX, CÂMBIO MANUAL, POTÊNCIA 101/104 CV, 2 PORTAS | B59: H | C59: ='CPU (DF)'!C59 -> 0.3735351562 | D59: ='CPU (DF)'!D59 -> 0.6225585938 | E59: 92145 | F59: 92146 | G59: SINAPI AP 06/223 | H59: =H31 -> 64.36 | I59: =I31 -> 24.55 | J59: =C59*H59+D59*I59 -> 39.32453613
A60: SUB-TOTAL | J60: =SUM(J57:J59) -> 43.80695801
A61: MATERIAL
A62: DISCRIMINAÇÃO | B62: UNIDADE | C62: QUANT. | E62: COD. | I62: P.UNIT. | J62: P.TOTAL
A63: ESTACA/PIQUETE DE MADEIRA | B63: U | C63: ='CPU (DF)'!C63 -> 83.33333333 | E63: 4408 | G63: SINAPI AP 06/223 | I63: =VLOOKUP(E63,[8]sheet1!$A$1:$E$65536,5,FALSE)*0.4 -> 0.58 | J63: =C63*I63 -> 48.33333333
A64: SUB-TOTAL | J64: =SUM(J63:J63) -> 48.33333333
A65: SERVIÇOS - COMPOSIÇÕES AUXILIARES
A66: DISCRIMINAÇÃO | B66: UNIDADE | C66: QUANT. | I66: P.UNIT. | J66: P.TOTAL
A68: SUB-TOTAL
A69: MÃO DE OBRA
A70: DISCRIMINAÇÃO | B70: UNIDADE | C70: QUANT. | E70: COD. P | F70: COD. I | I70: P.UNIT. | J70: P.TOTAL
A71: AUXILIAR DE TOPOGRÁFO COM ENCARGOS | B71: MÊS | C71: ='CPU (DF)'!C71 -> 0.00565962358 | E71: 101389 | G71: SINAPI AP 06/223 | I71: =VLOOKUP(E71,[6]planilhanull!$G$7:$K$7520,5,FALSE) -> 2118.62 | J71: =C71*I71 -> 11.99059171
A72: TOPOGRAFO COM ENCARGOS | B72: MÊS | C72: ='CPU (DF)'!C72 -> 0.00565962358 | E72: 94296 | G72: SINAPI AP 06/223 | I72: =VLOOKUP(E72,[6]planilhanull!$G$7:$K$7520,5,FALSE) -> 4270.96 | J72: =C72*I72 -> 24.17202592
A73: SUB-TOTAL | J73: =SUM(J71:J72) -> 36.16261763
A74: PRODUÇÃO MENSAL DA EQUIPE | B74: ='CPU (DF)'!B74 -> 46.93333333 | C74: CUSTO | J74: =J73+J68+J64+J60 -> 128.302909
A75: TOTAL | J75: =ROUND(J74,2) -> 128.3
A76: BDI % | J76: 24.1
A77: TOTAL DO SERVIÇO - R$ | J77: =ROUND(J75*(1+J76/100),2) -> 159.22
A79: COMPOSIÇÃO DE PREÇO UNITÁRIO
A80: LOCAÇÃO E CONSTRUÇÃO DE BACIAS DE CAPTAÇÃO DE ENXURRADA (4 METROS DE RAIO) | I80: UNIDADE: | J80: UNID.
A81: EQUIPAMENTO
A82: DISCRIMINAÇÃO | B82: UNIDADE | C82: QUANT. PROD. | D82: QUANT. IMPROD. | E82: COD. P | F82: COD. I | G82: FONTE | H82: CHP/ P.UNIT. | I82: CHI | J82: P.TOTAL
A83: NIVEL OPTICO, COM PRECISAO DE 0,7 MM, AUMENTO DE 32X | B83: H | C83: ='CPU (DF)'!C83 -> 0.6 | E83: 7252 | G83: SINAPI AP 06/223 | H83: =$H$57 -> 2.25 | J83: =C83*H83+D83*I83 -> 1.35
A84: TEODOLITO ELETRONICO, PRECISAO ANGULAR DE 5 A 7 SEGUNDOS, INCLUINDO TRIPE | B84: H | C84: ='CPU (DF)'!C84 -> 0.6 | E84: 7247 | G84: SINAPI AP 06/223 | H84: =$H$58 -> 2.25 | J84: =C84*H84+D84*I84 -> 1.35
A85: PÁ CARREGADEIRA SOBRE RODAS, POTÊNCIA LÍQUIDA 128 HP, CAPACIDADE DA CAÇAMBA 1,7 A 2,8 M³ | B85: H | C85: ='CPU (DF)'!C85 -> 0.7779529817 | D85: ='CPU (DF)'!D85 -> 0.2593176606 | E85: 5940 | F85: 5942 | G85: SINAPI AP 06/223 | H85: =VLOOKUP(E85,[6]planilhanull!$G$7:$K$7520,5,FALSE) -> 163.14 | I85: =VLOOKUP(F85,[6]planilhanull!$G$7:$K$7520,5,FALSE) -> 60.15 | J85: =C85*H85+D85*I85 -> 142.5132067
A86: VEÍCULO DE PASSEIO PARA DESLOCAMENTO DA EQUIPE | B86: H | C86: ='CPU (DF)'!C86 -> 0.234375 | D86: ='CPU (DF)'!D86 -> 0.390625 | E86: E9093 | G86: SICRO AP 01/2023 | H86: =$H$30 -> 32.6572 | I86: =$I$30 -> 6.4775 | J86: =C86*H86+D86*I86 -> 10.18430469
A87: CAMINHONETE CABINE SIMPLES COM MOTOR 1.6 FLEX, CÂMBIO MANUAL, POTÊNCIA 101/104 CV, 2 PORTAS | B87: H | C87: ='CPU (DF)'!C87 -> 0.609375 | D87: ='CPU (DF)'!D87 -> 0.365625 | E87: 92145 | F87: 92146 | G87: SINAPI AP 06/223 | H87: =$H$31 -> 64.36 | I87: =$I$31 -> 24.55 | J87: =C87*H87+D87*I87 -> 48.19546875
A88: SUB-TOTAL | J88: =SUM(J83:J87) -> 203.5929801
A89: MATERIAL
A90: DISCRIMINAÇÃO | B90: UNIDADE | C90: QUANT. | E90: COD. | I90: P.UNIT. | J90: P.TOTAL
A91: ESTACA/PIQUETE DE MADEIRA | B91: U | C91: ='CPU (DF)'!C91 -> 12 | E91: 4408 | G91: SINAPI AP 06/223 | I91: =$I$63 -> 0.58 | J91: =C91*I91 -> 6.96
A92: SUB-TOTAL | J92: =SUM(J91:J91) -> 6.96
A93: SERVIÇOS - COMPOSIÇÕES AUXILIARES
A94: DISCRIMINAÇÃO | B94: UNIDADE | C94: QUANT. | I94: P.UNIT. | J94: P.TOTAL
A95: REVESTIMENTO VEGETAL POR SEMEADURA A LANÇO MANUAL DE GRAMÍNEAS E LEGUMINOSAS | B95: m² | C95: ='CPU (DF)'!C95 -> 50.26548246 | E95: 4413993 | G95: SICRO AP 01/2023 | I95: =VLOOKUP(E95,[5]Sheet1!$A:$D,4,FALSE) -> 0.65 | J95: =C95*I95 -> 32.6725636
A96: SUB-TOTAL | J96: =SUM(J95:J95) -> 32.6725636
A97: MÃO DE OBRA
A98: DISCRIMINAÇÃO | B98: UNIDADE | C98: QUANT. | E98: COD. P | F98: COD. I | I98: P.UNIT. | J98: P.TOTAL
A99: ENGENHEIRO COM ENCARGO | B99: MÊS | C99: ='CPU (DF)'!C99 -> 0.001420454545 | E99: 93565 | G99: SINAPI AP 06/223 | I99: =$I$44 -> 19584.39 | J99: =C99*I99 -> 27.8187358
A100: ENCARREGADO COM ENCARGO | B100: MÊS | C100: ='CPU (DF)'!C100 -> 0.004261363636 | E100: 93572 | G100: SINAPI AP 06/223 | I100: =$I$46 -> 4411.66 | J100: =C100*I100 -> 18.7996875
A101: TOPOGRAFO COM ENCARGOS | B101: MÊS | C101: ='CPU (DF)'!C101 -> 0.003409090909 | E101: 94296 | G101: SINAPI AP 06/223 | I101: =$I$72 -> 4270.96 | J101: =C101*I101 -> 14.56009091
A102: AUXILIAR DE TOPOGRÁFO COM ENCARGOS | B102: MÊS | C102: ='CPU (DF)'!C102 -> 0.003409090909 | E102: 101389 | G102: SINAPI AP 06/223 | I102: =$I$71 -> 2118.62 | J102: =C102*I102 -> 7.222568182
A103: SERVENTE COM ENCARGOS COMPLEMENTARES - INLUSIVE ABERTURA E FECHAMENTO DE CERCAS | B103: MES | C103: ='CPU (DF)'!C103 -> 0.005893583194 | E103: 101452 | G103: SINAPI AP 06/223 | I103: =$I$45 -> 3036.88 | J103: =C103*I103 -> 17.89810493
A104: SUB-TOTAL | J104: =SUM(J99:J103) -> 86.29918732
A105: PRODUÇÃO MENSAL DA EQUIPE | B105: ='CPU (DF)'!B105 -> 169.6760641 | C105: CUSTO | J105: =J104+J96+J92+J88 -> 329.5247311
A106: TOTAL | J106: =ROUND(J105,2) -> 329.52
A107: BDI % | J107: 24.1
A108: TOTAL DO SERVIÇO - R$ | J108: =ROUND(J106*(1+J107/100),2) -> 408.93
A111: COMPOSIÇÃO DE PREÇO UNITÁRIO
A112: LOCAÇÃO E CONSTRUÇÃO DE BACIAS DE CAPTAÇÃO DE ENXURRADA (6 METROS DE RAIO) | I112: UNIDADE: | J112: UNID.
A113: EQUIPAMENTO
A114: DISCRIMINAÇÃO | B114: UNIDADE | C114: QUANT. PROD. | D114: QUANT. IMPROD. | E114: COD. P | F114: COD. I | G114: FONTE | H114: CHP/ P.UNIT. | I114: CHI | J114: P.TOTAL
A115: NIVEL OPTICO, COM PRECISAO DE 0,7 MM, AUMENTO DE 32X | B115: H | C115: ='CPU (DF)'!C115 -> 0.6 | E115: 7252 | G115: SINAPI AP 06/223 | H115: =$H$57 -> 2.25 | J115: =C115*H115+D115*I115 -> 1.35
A116: TEODOLITO ELETRONICO, PRECISAO ANGULAR DE 5 A 7 SEGUNDOS, INCLUINDO TRIPE | B116: H | C116: ='CPU (DF)'!C116 -> 0.6 | E116: 7247 | G116: SINAPI AP 06/223 | H116: =$H$58 -> 2.25 | J116: =C116*H116+D116*I116 -> 1.35
A117: PÁ CARREGADEIRA SOBRE RODAS, POTÊNCIA LÍQUIDA 128 HP, CAPACIDADE DA CAÇAMBA 1,7 A 2,8 M³ | B117: H | C117: ='CPU (DF)'!C117 -> 1.536166858 | D117: ='CPU (DF)'!D117 -> 0.5120556193 | E117: 5940 | F117: 5942 | G117: SINAPI AP 06/223 | H117: =$H$85 -> 163.14 | I117: =$I$85 -> 60.15 | J117: =C117*H117+D117*I117 -> 281.4104067
A118: VEÍCULO DE PASSEIO PARA DESLOCAMENTO DA EQUIPE | B118: H | C118: ='CPU (DF)'!C118 -> 0.25 | D118: ='CPU (DF)'!D118 -> 0.4166666667 | E118: E9093 | G118: SICRO AP 01/2023 | H118: =$H$30 -> 32.6572 | I118: =$I$30 -> 6.4775 | J118: =C118*H118+D118*I118 -> 10.86325833
A119: CAMINHONETE CABINE SIMPLES COM MOTOR 1.6 FLEX, CÂMBIO MANUAL, POTÊNCIA 101/104 CV, 2 PORTAS | B119: H | C119: ='CPU (DF)'!C119 -> 0.625 | D119: ='CPU (DF)'!D119 -> 0.375 | E119: 92145 | F119: 92146 | G119: SINAPI AP 06/223 | H119: =$H$31 -> 64.36 | I119: =$I$31 -> 24.55 | J119: =C119*H119+D119*I119 -> 49.43125
A120: SUB-TOTAL | J120: =SUM(J115:J119) -> 344.404915
A121: MATERIAL
A122: DISCRIMINAÇÃO | B122: UNIDADE | C122: QUANT. | E122: COD. | I122: P.UNIT. | J122: P.TOTAL
A123: ESTACA/PIQUETE DE MADEIRA | B123: U | C123: ='CPU (DF)'!C123 -> 12 | E123: 4408 | G123: SINAPI AP 06/223 | I123: =$I$63 -> 0.58 | J123: =C123*I123 -> 6.96
A124: SUB-TOTAL | J124: =SUM(J123:J123) -> 6.96
A125: SERVIÇOS - COMPOSIÇÕES AUXILIARES
A126: DISCRIMINAÇÃO | B126: UNIDADE | C126: QUANT. | I126: P.UNIT. | J126: P.TOTAL
A127: REVESTIMENTO VEGETAL POR SEMEADURA A LANÇO MANUAL DE GRAMÍNEAS E LEGUMINOSAS | B127: m² | C127: ='CPU (DF)'!C127 -> 94.24777961 | E127: 4413993 | G127: SICRO AP 01/2023 | I127: =VLOOKUP(E127,[5]Sheet1!$A:$D,4,FALSE) -> 0.65 | J127: =C127*I127 -> 61.26105675
A128: SUB-TOTAL | J128: =SUM(J127:J127) -> 61.26105675
A129: MÃO DE OBRA
A130: DISCRIMINAÇÃO | B130: UNIDADE | C130: QUANT. | E130: COD. P | F130: COD. I | I130: P.UNIT. | J130: P.TOTAL
A131: ENGENHEIRO COM ENCARGO | B131: MÊS | C131: ='CPU (DF)'!C131 -> 0.001515151515 | E131: 93565 | G131: SINAPI AP 06/223 | I131: =$I$44 -> 19584.39 | J131: =C131*I131 -> 29.67331818
A132: ENCARREGADO COM ENCARGO | B132: MÊS | C132: ='CPU (DF)'!C132 -> 0.004545454545 | E132: 93572 | G132: SINAPI AP 06/223 | I132: =$I$46 -> 4411.66 | J132: =C132*I132 -> 20.053
A133: TOPOGRAFO COM ENCARGOS | B133: MÊS | C133: ='CPU (DF)'!C133 -> 0.003409090909 | E133: 94296 | G133: SINAPI AP 06/223 | I133: =$I$72 -> 4270.96 | J133: =C133*I133 -> 14.56009091
A134: AUXILIAR DE TOPOGRÁFO COM ENCARGOS | B134: MÊS | C134: ='CPU (DF)'!C134 -> 0.003409090909 | E134: 101389 | G134: SINAPI AP 06/223 | I134: =$I$71 -> 2118.62 | J134: =C134*I134 -> 7.222568182
A135: SERVENTE COM ENCARGOS COMPLEMENTARES - INLUSIVE ABERTURA E FECHAMENTO DE CERCAS | B135: MES | C135: ='CPU (DF)'!C135 -> 0.01163762771 | E135: 101452 | G135: SINAPI AP 06/223 | I135: =$I$45 -> 3036.88 | J135: =C135*I135 -> 35.34207884
A136: SUB-TOTAL | J136: =SUM(J131:J135) -> 106.8510561
A137: PRODUÇÃO MENSAL DA EQUIPE | B137: ='CPU (DF)'!B137 -> 85.9281655 | C137: CUSTO | J137: =J136+J128+J124+J120 -> 519.4770279
A138: TOTAL | J138: =ROUND(J137,2) -> 519.48
A139: BDI % | J139: 24.1
A140: TOTAL DO SERVIÇO - R$ | J140: =ROUND(J138*(1+J139/100),2) -> 644.67
A142: COMPOSIÇÃO DE PREÇO UNITÁRIO
A143: LOCAÇÃO E CONSTRUÇÃO DE BACIAS DE CAPTAÇÃO DE ENXURRADA (9 METROS DE RAIO) | I143: UNIDADE: | J143: UNID.
A144: EQUIPAMENTO
A145: DISCRIMINAÇÃO | B145: UNIDADE | C145: QUANT. PROD. | D145: QUANT. IMPROD. | E145: COD. P | F145: COD. I | G145: FONTE | H145: CHP/ P.UNIT. | I145: CHI | J145: P.TOTAL
A146: NIVEL OPTICO, COM PRECISAO DE 0,7 MM, AUMENTO DE 32X | B146: H | C146: ='CPU (DF)'!C146 -> 0.65 | E146: 7252 | G146: SINAPI AP 06/223 | H146: =$H$57 -> 2.25 | J146: =C146*H146+D146*I146 -> 1.4625
A147: TEODOLITO ELETRONICO, PRECISAO ANGULAR DE 5 A 7 SEGUNDOS, INCLUINDO TRIPE | B147: H | C147: ='CPU (DF)'!C147 -> 0.65 | E147: 7247 | G147: SINAPI AP 06/223 | H147: =$H$58 -> 2.25 | J147: =C147*H147+D147*I147 -> 1.4625
A148: PÁ CARREGADEIRA SOBRE RODAS, POTÊNCIA LÍQUIDA 128 HP, CAPACIDADE DA CAÇAMBA 1,7 A 2,8 M³ | B148: H | C148: ='CPU (DF)'!C148 -> 3.738990826 | D148: ='CPU (DF)'!D148 -> 1.246330275 | E148: 5940 | F148: 5942 | G148: SINAPI AP 06/223 | H148: =$H$85 -> 163.14 | I148: =$I$85 -> 60.15 | J148: =C148*H148+D148*I148 -> 684.9457294
A149: VEÍCULO DE PASSEIO PARA DESLOCAMENTO DA EQUIPE | B149: H | C149: ='CPU (DF)'!C149 -> 0.265625 | D149: ='CPU (DF)'!D149 -> 0.4427083333 | E149: E9093 | G149: SICRO AP 01/2023 | H149: =$H$30 -> 32.6572 | I149: =$I$30 -> 6.4775 | J149: =C149*H149+D149*I149 -> 11.54221198
A150: CAMINHONETE CABINE SIMPLES COM MOTOR 1.6 FLEX, CÂMBIO MANUAL, POTÊNCIA 101/104 CV, 2 PORTAS | B150: H | C150: ='CPU (DF)'!C150 -> 0.671875 | D150: ='CPU (DF)'!D150 -> 0.403125 | E150: 92145 | F150: 92146 | G150: SINAPI AP 06/223 | H150: =$H$31 -> 64.36 | I150: =$I$31 -> 24.55 | J150: =C150*H150+D150*I150 -> 53.13859375
A151: SUB-TOTAL | J151: =SUM(J146:J150) -> 752.5515351
A152: MATERIAL
A153: DISCRIMINAÇÃO | B153: UNIDADE | C153: QUANT. | E153: COD. | I153: P.UNIT. | J153: P.TOTAL
A154: ESTACA/PIQUETE DE MADEIRA | B154: U | C154: ='CPU (DF)'!C154 -> 12 | E154: 4408 | G154: SINAPI AP 06/223 | I154: =$I$63 -> 0.58 | J154: =C154*I154 -> 6.96
A155: SUB-TOTAL | J155: =SUM(J154:J154) -> 6.96
A156: SERVIÇOS - COMPOSIÇÕES AUXILIARES
A157: DISCRIMINAÇÃO | B157: UNIDADE | C157: QUANT. | I157: P.UNIT. | J157: P.TOTAL
A158: REVESTIMENTO VEGETAL POR SEMEADURA A LANÇO MANUAL DE GRAMÍNEAS E LEGUMINOSAS | B158: m² | C158: ='CPU (DF)'!C158 -> 169.6460033 | E158: 4413993 | G158: SICRO AP 01/2023 | I158: =VLOOKUP(E158,[5]Sheet1!$A:$D,4,FALSE) -> 0.65 | J158: =C158*I158 -> 110.2699021
A159: SUB-TOTAL | J159: =SUM(J158:J158) -> 110.2699021
A160: MÃO DE OBRA
A161: DISCRIMINAÇÃO | B161: UNIDADE | C161: QUANT. | E161: COD. P | F161: COD. I | I161: P.UNIT. | J161: P.TOTAL
A162: ENGENHEIRO COM ENCARGO | B162: MÊS | C162: ='CPU (DF)'!C162 -> 0.001609848485 | E162: 93565 | G162: SINAPI AP 06/223 | I162: =$I$44 -> 19584.39 | J162: =C162*I162 -> 31.52790057
A163: ENCARREGADO COM ENCARGO | B163: MÊS | C163: ='CPU (DF)'!C163 -> 0.004829545455 | E163: 93572 | G163: SINAPI AP 06/223 | I163: =$I$46 -> 4411.66 | J163: =C163*I163 -> 21.3063125
A164: TOPOGRAFO COM ENCARGOS | B164: MÊS | C164: ='CPU (DF)'!C164 -> 0.003693181818 | E164: 94296 | G164: SINAPI AP 06/223 | I164: =$I$72 -> 4270.96 | J164: =C164*I164 -> 15.77343182
A165: AUXILIAR DE TOPOGRÁFO COM ENCARGOS | B165: MÊS | C165: ='CPU (DF)'!C165 -> 0.003693181818 | E165: 101389 | G165: SINAPI AP 06/223 | I165: =$I$71 -> 2118.62 | J165: =C165*I165 -> 7.824448864
A166: SERVENTE COM ENCARGOS COMPLEMENTARES - INLUSIVE ABERTURA E FECHAMENTO DE CERCAS | B166: MES | C166: ='CPU (DF)'!C166 -> 0.02832568807 | E166: 101452 | G166: SINAPI AP 06/223 | I166: =$I$45 -> 3036.88 | J166: =C166*I166 -> 86.0217156
A167: SUB-TOTAL | J167: =SUM(J162:J166) -> 162.4538093
A168: PRODUÇÃO MENSAL DA EQUIPE | B168: ='CPU (DF)'!B168 -> 35.30364372 | C168: CUSTO | J168: =J167+J159+J155+J151 -> 1032.235247
A169: TOTAL | J169: =ROUND(J168,2) -> 1032.24
A170: BDI % | J170: 24.1
A171: TOTAL DO SERVIÇO - R$ | J171: =ROUND(J169*(1+J170/100),2) -> 1281.01
A174: COMPOSIÇÃO DE PREÇO UNITÁRIO
A175: LOCAÇÃO E CONSTRUÇÃO DE BACIAS DE CAPTAÇÃO DE ENXURRADA (12 METROS DE RAIO) | I175: UNIDADE: | J175: UNID.
A176: EQUIPAMENTO
A177: DISCRIMINAÇÃO | B177: UNIDADE | C177: QUANT. PROD. | D177: QUANT. IMPROD. | E177: COD. P | F177: COD. I | G177: FONTE | H177: CHP/ P.UNIT. | I177: CHI | J177: P.TOTAL
A178: NIVEL OPTICO, COM PRECISAO DE 0,7 MM, AUMENTO DE 32X | B178: H | C178: ='CPU (DF)'!C178 -> 0.65 | E178: 7252 | G178: SINAPI AP 06/223 | H178: =$H$57 -> 2.25 | J178: =C178*H178+D178*I178 -> 1.4625
A179: TEODOLITO ELETRONICO, PRECISAO ANGULAR DE 5 A 7 SEGUNDOS, INCLUINDO TRIPE | B179: H | C179: ='CPU (DF)'!C179 -> 0.65 | E179: 7247 | G179: SINAPI AP 06/223 | H179: =$H$58 -> 2.25 | J179: =C179*H179+D179*I179 -> 1.4625
A180: PÁ CARREGADEIRA SOBRE RODAS, POTÊNCIA LÍQUIDA 128 HP, CAPACIDADE DA CAÇAMBA 1,7 A 2,8 M³ | B180: H | C180: ='CPU (DF)'!C180 -> 6 | D180: ='CPU (DF)'!D180 -> 2 | E180: 5940 | F180: 5942 | G180: SINAPI AP 06/223 | H180: =$H$85 -> 163.14 | I180: =$I$85 -> 60.15 | J180: =C180*H180+D180*I180 -> 1099.14
A181: VEÍCULO DE PASSEIO PARA DESLOCAMENTO DA EQUIPE | B181: H | C181: ='CPU (DF)'!C181 -> 0.28125 | D181: ='CPU (DF)'!D181 -> 0.46875 | E181: E9093 | G181: SICRO AP 01/2023 | H181: =$H$30 -> 32.6572 | I181: =$I$30 -> 6.4775 | J181: =C181*H181+D181*I181 -> 12.22116563
A182: CAMINHONETE CABINE SIMPLES COM MOTOR 1.6 FLEX, CÂMBIO MANUAL, POTÊNCIA 101/104 CV, 2 PORTAS | B182: H | C182: ='CPU (DF)'!C182 -> 0.6875 | D182: ='CPU (DF)'!D182 -> 0.4125 | E182: 92145 | F182: 92146 | G182: SINAPI AP 06/223 | H182: =$H$31 -> 64.36 | I182: =$I$31 -> 24.55 | J182: =C182*H182+D182*I182 -> 54.374375
A183: SUB-TOTAL | J183: =SUM(J178:J182) -> 1168.660541
A184: MATERIAL
A185: DISCRIMINAÇÃO | B185: UNIDADE | C185: QUANT. | E185: COD. | I185: P.UNIT. | J185: P.TOTAL
A186: ESTACA/PIQUETE DE MADEIRA | B186: U | C186: ='CPU (DF)'!C186 -> 16 | E186: 4408 | G186: SINAPI AP 06/223 | I186: =$I$63 -> 0.58 | J186: =C186*I186 -> 9.28
A187: SUB-TOTAL | J187: =SUM(J186:J186) -> 9.28
A188: SERVIÇOS - COMPOSIÇÕES AUXILIARES
A189: DISCRIMINAÇÃO | B189: UNIDADE | C189: QUANT. | I189: P.UNIT. | J189: P.TOTAL
A190: REVESTIMENTO VEGETAL POR SEMEADURA A LANÇO MANUAL DE GRAMÍNEAS E LEGUMINOSAS | B190: m² | C190: ='CPU (DF)'!C190 -> 263.8937829 | E190: 4413993 | G190: SICRO AP 01/2023 | I190: =VLOOKUP(E190,[5]Sheet1!$A:$D,4,FALSE) -> 0.65 | J190: =C190*I190 -> 171.5309589
A191: SUB-TOTAL | J191: =SUM(J190:J190) -> 171.5309589
A192: MÃO DE OBRA
A193: DISCRIMINAÇÃO | B193: UNIDADE | C193: QUANT. | E193: COD. P | F193: COD. I | I193: P.UNIT. | J193: P.TOTAL
A194: ENGENHEIRO COM ENCARGO | B194: MES | C194: ='CPU (DF)'!C194 -> 0.001704545455 | E194: 93565 | G194: SINAPI AP 06/223 | I194: =$I$44 -> 19584.39 | J194: =C194*I194 -> 33.38248295
A195: ENCARREGADO COM ENCARGO | B195: MES | C195: ='CPU (DF)'!C195 -> 0.005113636364 | E195: 93572 | G195: SINAPI AP 06/223 | I195: =$I$46 -> 4411.66 | J195: =C195*I195 -> 22.559625
A196: TOPOGRAFO COM ENCARGOS | B196: MÊS | C196: ='CPU (DF)'!C196 -> 0.003693181818 | E196: 94296 | G196: SINAPI AP 06/223 | I196: =$I$72 -> 4270.96 | J196: =C196*I196 -> 15.77343182
A197: AUXILIAR DE TOPOGRÁFO COM ENCARGOS | B197: MÊS | C197: ='CPU (DF)'!C197 -> 0.003693181818 | E197: 101389 | G197: SINAPI AP 06/223 | I197: =$I$71 -> 2118.62 | J197: =C197*I197 -> 7.824448864
A198: SERVENTE COM ENCARGOS COMPLEMENTARES - INLUSIVE ABERTURA E FECHAMENTO DE CERCAS | B198: MES | C198: ='CPU (DF)'!C198 -> 0.04545454545 | E198: 101452 | G198: SINAPI AP 06/223 | I198: =$I$45 -> 3036.88 | J198: =C198*I198 -> 138.04
A199: SUB-TOTAL | J199: =SUM(J194:J198) -> 217.5799886
A200: PRODUÇÃO DA EQUIPE | B200: ='CPU (DF)'!B200 -> 22 | C200: CUSTO | J200: =J199+J191+J187+J183 -> 1567.051488
A201: TOTAL | J201: =ROUND(J200,2) -> 1567.05
A202: BDI % | J202: 24.1
A203: TOTAL DO SERVIÇO - R$ | J203: =ROUND(J201*(1+J202/100),2) -> 1944.71
A205: COMPOSIÇÃO DE PREÇO UNITÁRIO
A206: CERCAMENTO DE ÁREAS AMBIENTALMENTE VULNERÁVEIS À CAPRINOVINOCULTURA | I206: UNIDADE: | J206: m
A207: EQUIPAMENTO
A208: DISCRIMINAÇÃO | B208: UNIDADE | C208: QUANT. PROD. | D208: QUANT. IMPROD. | E208: COD. P | F208: COD. I | G208: FONTE | I208: P.UNIT. | J208: P.TOTAL
A209: NIVEL OPTICO, COM PRECISAO DE 0,7 MM, AUMENTO DE 32X | B209: h | C209: ='CPU (DF)'!C209 -> 0.05 | E209: 7252 | G209: SINAPI AP 06/223 | H209: =H178 -> 2.25 | J209: =C209*H209+D209*I209 -> 0.1125
A210: TEODOLITO ELETRONICO, PRECISAO ANGULAR DE 5 A 7 SEGUNDOS, INCLUINDO TRIPE | B210: h | C210: ='CPU (DF)'!C210 -> 0.05 | E210: 7247 | G210: SINAPI AP 06/223 | H210: =H179 -> 2.25 | J210: =C210*H210+D210*I210 -> 0.1125
A211: VEÍCULO DE PASSEIO PARA DESLOCAMENTO DA EQUIPE | B211: h | C211: ='CPU (DF)'!C211 -> 0.01838235294 | D211: ='CPU (DF)'!D211 -> 0.0306372549 | E211: E9093 | F211: E9093 | G211: SICRO AP 01/2023 | H211: =H30 -> 32.6572 | I211: =I30 -> 6.4775 | J211: =C211*H211+D211*I211 -> 0.7987689951
... 87 more rows

Sheet CPU (BA)
A1: COMPOSIÇÃO DE PREÇO UNITÁRIO
A2: MOBILIZAÇÃO E DESMOBILIZAÇÃO | C2: REGIÃO: | G2: BA | I2: UNIDADE: | J2: R$/Tonelada/ Projeto
A3: EQUIPAMENTO
A4: DISCRIMINAÇÃO | B4: UNIDADE | C4: QUANT. PROD. | D4: QUANT. IMPROD. | E4: COD. | G4: FONTE | H4: P.UNIT. PROD | I4: P.UNIT. IMPR | J4: P.TOTAL
J5: =C5*E5*H5+C5*G5*I5 -> 0
A6: SUB-TOTAL | J6: =SUM(J5:J5) -> 0
A7: MATERIAL
A8: DISCRIMINAÇÃO | B8: UNIDADE | C8: QUANT. | E8: COD. | G8: FONTE | I8: P.UNIT. | J8: P.TOTAL
J9: Toneladas/ Projeto
J10: =C10*I10 -> 0
A11: SUB-TOTAL | J11: =SUM(J9:J10) -> 0
A12: SERVIÇOS - COMPOSIÇÕES AUXILIARES
A13: DISCRIMINAÇÃO | B13: UNIDADE | C13: QUANT. | E13: COD. | G13: FONTE | I13: P.UNIT. | J13: P.TOTAL
A14: TRANSPORTE COM CAVALO MECÂNICO COM SEMIRREBOQUE COM CAPACIDADE DE 30 T - RODOVIA PAVIMENTADA | B14: t*km | C14: ='CPU (DF)'!C14 -> 1 | E14: 5914640 | G14: SICRO BA 01/2023 | I14: =VLOOKUP(E14,[9]Sheet1!$A:$D,4,FALSE) -> 0.57 | J14: =C14*I14 -> 0.57
A15: SUB-TOTAL | J15: =SUM(J14:J14) -> 0.57
A16: MÃO DE OBRA
A17: DISCRIMINAÇÃO | B17: UNIDADE | C17: QUANT. | I17: P.UNIT. | J17: P.TOTAL
J18: =C18*I18 -> 0
A19: SUB-TOTAL | J19: =SUM(J18:J18) -> 0
A20: PRODUÇÃO DA EQUIPE (MOB E DESMOB) EM km | B20: =VLOOKUP(G2,DMT!D:E,2)*2 -> 700 | C20: CUSTO | J20: =J19+J15+J11+J6 -> 0.57
A21: TOTAL | J21: =J20*B20 -> 399
A22: BDI % | J22: 24.1
A23: TOTAL DO SERVIÇO - R$ | J23: =J21*(1+J22/100) -> 495.159
A25: COMPOSIÇÃO DE PREÇO UNITÁRIO
A26: LOCAÇÃO E CONSTRUÇÃO DE TERRAÇOS - INCLUSIVE SOLOS DUROS E SECOS | I26: UNIDADE: | J26: km
A27: EQUIPAMENTO
A28: DISCRIMINAÇÃO | B28: UNIDADE | C28: QUANT. PROD. | D28: QUANT. IMPROD. | E28: COD. P | F28: COD. I | G28: FONTE | H28: CHP | I28: CHI | J28: P.TOTAL
A29: TRATOR DE ESTEIRAS, POTÊNCIA 125 HP, PESO OPERACIONAL 12,9 T, COM LÂMINA 2,7 M3 | B29: H | C29: ='CPU (DF)'!C29 -> 7.058823529 | D29: ='CPU (DF)'!D29 -> 2.352941176 | E29: 5851 | F29: 5853 | G29: SINAPI BA 06/223 | H29: =VLOOKUP(E29,[10]planilhanull!$G$7:$K$7520,5,FALSE) -> 237 | I29: =VLOOKUP(F29,[10]planilhanull!$G$7:$K$7520,5,FALSE) -> 86.72 | J29: =C29*H29+D29*I29 -> 1876.988235
A30: VEÍCULO DE PASSEIO PARA DESLOCAMENTO DA EQUIPE | B30: H | C30: ='CPU (DF)'!C30 -> 0.9375 | D30: ='CPU (DF)'!D30 -> 1.5625 | E30: E9093 | F30: E9093 | G30: SICRO BA 01/2023 | H30: =VLOOKUP(E30,[11]Sheet1!$A:$K,10,FALSE) -> 33.7059 | I30: =VLOOKUP(F30,[11]Sheet1!$A:$K,11,FALSE) -> 6.3537 | J30: =C30*H30+D30*I30 -> 41.5269375
A31: CAMINHONETE CABINE SIMPLES COM MOTOR 1.6 FLEX, CÂMBIO MANUAL, POTÊNCIA 101/104 CV, 2 PORTAS | B31: H | C31: ='CPU (DF)'!C31 -> 0.5625 | D31: ='CPU (DF)'!D31 -> 0.9375 | E31: 92145 | F31: 92146 | G31: SINAPI BA 06/223 | H31: =VLOOKUP(E31,[10]planilhanull!$G$7:$K$7520,5,FALSE) -> 75.38 | I31: =VLOOKUP(F31,[10]planilhanull!$G$7:$K$7520,5,FALSE) -> 34.9 | J31: =C31*H31+D31*I31 -> 75.12
A32: SUB-TOTAL | J32: =SUM(J29:J31) -> 1993.635173
A33: MATERIAL
A34: DISCRIMINAÇÃO | B34: UNIDADE | C34: QUANT. | E34: COD. | G34: FONTE | I34: P.UNIT. | J34: P.TOTAL
A36: SUB-TOTAL | J36: =SUM(J35:J35) -> 0
A37: SERVIÇOS - COMPOSIÇÕES AUXILIARES
A38: DISCRIMINAÇÃO | B38: UNIDADE | C38: QUANT. | E38: COD. | G38: FONTE | I38: P.UNIT. | J38: P.TOTAL
A39: LOCAÇÃO E NIVELAMENTO DE TERRAÇOS COM TOPOGRAFIA | B39: KM | C39: ='CPU (DF)'!C39 -> 1 | E39: COMPOSIÇÃO | I39: =J75 -> 191.67 | J39: =C39*I39 -> 191.67
A40: REVESTIMENTO VEGETAL POR SEMEADURA A LANÇO MANUAL DE GRAMÍNEAS E LEGUMINOSAS | B40: m² | C40: ='CPU (DF)'!C40 -> 1000 | E40: 4413993 | G40: SICRO BA 01/2023 | I40: =VLOOKUP(E40,[9]Sheet1!$A:$D,4,FALSE) -> 0.62 | J40: =C40*I40 -> 620
A41: SUB-TOTAL | J41: =SUM(J39:J40) -> 811.67
A42: MÃO DE OBRA
A43: DISCRIMINAÇÃO | B43: UNIDADE | C43: QUANT. | E43: COD. P | F43: COD. I | G43: FONTE | I43: P.UNIT. | J43: P.TOTAL
A44: ENGENHEIRO COM ENCARGO | B44: MES | C44: ='CPU (DF)'!C44 -> 0.005681818182 | E44: 93565 | G44: SINAPI BA 06/223 | I44: =VLOOKUP(E44,[10]planilhanull!$G$7:$K$7520,5,FALSE) -> 19799.31 | J44: =C44*I44 -> 112.4960795
A45: SERVENTE COM ENCARGOS COMPLEMENTARES - INLUSIVE ABERTURA E FECHAMENTO DE CERCAS | B45: MES | C45: ='CPU (DF)'!C45 -> 0.05347593583 | E45: 101452 | G45: SINAPI BA 06/223 | I45: =VLOOKUP(E45,[10]planilhanull!$G$7:$K$7520,5,FALSE) -> 3859.29 | J45: =C45*I45 -> 206.3791444
A46: ENCARREGADO COM ENCARGO | B46: MES | C46: ='CPU (DF)'!C46 -> 0.01704545455 | E46: 93572 | G46: SINAPI BA 06/223 | I46: =VLOOKUP(E46,[10]planilhanull!$G$7:$K$7520,5,FALSE) -> 6446.14 | J46: =C46*I46 -> 109.8773864
A47: SUB-TOTAL | J47: =SUM(J44:J46) -> 428.7526103
A48: PRODUÇÃO DA EQUIPE MÊS 22 KM, MAS COM FATOR DE REDUÇÃO PARA PÉRIODOS COM CHUVAS | B48: ='CPU (DF)'!B48 -> 18.7 | C48: CUSTO | J48: =J47+J41+J36+J32 -> 3234.057783
A49: TOTAL | J49: =ROUND(J48,2) -> 3234.06
A50: BDI % | J50: 24.1
A51: TOTAL DO SERVIÇO - R$ | J51: =ROUND(J49*(1+J50/100),2) -> 4013.47
A53: COMPOSIÇÃO DE PREÇO UNITÁRIO
A54: LOCAÇÃO E NIVELAMENTO DE TERRAÇOS COM TOPOGRAFIA | I54: UNIDADE: | J54: km
A55: EQUIPAMENTO
A56: DISCRIMINAÇÃO | B56: UNIDADE | C56: QUANT. PROD. | D56: QUANT. IMPROD. | E56: COD. P | F56: COD. I | G56: FONTE | H56: CHP/ P.UNIT. | I56: CHI | J56: P.TOTAL
A57: NIVEL OPTICO, COM PRECISAO DE 0,7 MM, AUMENTO DE 32X | B57: H | C57: ='CPU (DF)'!C57 -> 0.99609375 | E57: 7252 | G57: SINAPI BA 06/223 | H57: =VLOOKUP(E57,[12]sheet1!$A$1:$E$65536,5,FALSE) -> 2.25 | J57: =C57*H57+D57*I57 -> 2.241210937
A58: TEODOLITO ELETRONICO, PRECISAO ANGULAR DE 5 A 7 SEGUNDOS, INCLUINDO TRIPE | B58: H | C58: ='CPU (DF)'!C58 -> 0.99609375 | E58: 7247 | G58: SINAPI BA 06/223 | H58: =VLOOKUP(E58,[12]sheet1!$A$1:$E$65536,5,FALSE) -> 2.25 | J58: =C58*H58+D58*I58 -> 2.241210937
A59: CAMINHONETE CABINE SIMPLES COM MOTOR 1.6 FLEX, CÂMBIO MANUAL, POTÊNCIA 101/104 CV, 2 PORTAS | B59: H | C59: ='CPU (DF)'!C59 -> 0.3735351562 | D59: ='CPU (DF)'!D59 -> 0.6225585938 | E59: 92145 | F59: 92146 | G59: SINAPI BA 06/223 | H59: =H31 -> 75.38 | I59: =I31 -> 34.9 | J59: =C59*H59+D59*I59 -> 49.884375
A60: SUB-TOTAL | J60: =SUM(J57:J59) -> 54.36679687
A61: MATERIAL
A62: DISCRIMINAÇÃO | B62: UNIDADE | C62: QUANT. | E62: COD. | I62: P.UNIT. | J62: P.TOTAL
A63: ESTACA/PIQUETE DE MADEIRA | B63: U | C63: ='CPU (DF)'!C63 -> 83.33333333 | E63: 4408 | G63: SINAPI BA 06/223 | I63: =VLOOKUP(E63,[12]sheet1!$A$1:$E$65536,5,FALSE)*0.4 -> 1.004 | J63: =C63*I63 -> 83.66666667
A64: SUB-TOTAL | J64: =SUM(J63:J63) -> 83.66666667
A65: SERVIÇOS - COMPOSIÇÕES AUXILIARES
A66: DISCRIMINAÇÃO | B66: UNIDADE | C66: QUANT. | I66: P.UNIT. | J66: P.TOTAL
A68: SUB-TOTAL
A69: MÃO DE OBRA
A70: DISCRIMINAÇÃO | B70: UNIDADE | C70: QUANT. | E70: COD. P | F70: COD. I | I70: P.UNIT. | J70: P.TOTAL
A71: AUXILIAR DE TOPOGRÁFO COM ENCARGOS | B71: MÊS | C71: ='CPU (DF)'!C71 -> 0.00565962358 | E71: 101389 | G71: SINAPI BA 06/223 | I71: =VLOOKUP(E71,[10]planilhanull!$G$7:$K$7520,5,FALSE) -> 3081.67 | J71: =C71*I71 -> 17.4410922
A72: TOPOGRAFO COM ENCARGOS | B72: MÊS | C72: ='CPU (DF)'!C72 -> 0.00565962358 | E72: 94296 | G72: SINAPI BA 06/223 | I72: =VLOOKUP(E72,[10]planilhanull!$G$7:$K$7520,5,FALSE) -> 6395.15 | J72: =C72*I72 -> 36.19414173
A73: SUB-TOTAL | J73: =SUM(J71:J72) -> 53.63523393
A74: PRODUÇÃO MENSAL DA EQUIPE | B74: ='CPU (DF)'!B74 -> 46.93333333 | C74: CUSTO | J74: =J73+J68+J64+J60 -> 191.6686975
A75: TOTAL | J75: =ROUND(J74,2) -> 191.67
A76: BDI % | J76: 24.1
A77: TOTAL DO SERVIÇO - R$ | J77: =ROUND(J75*(1+J76/100),2) -> 237.86
A79: COMPOSIÇÃO DE PREÇO UNITÁRIO
A80: LOCAÇÃO E CONSTRUÇÃO DE BACIAS DE CAPTAÇÃO DE ENXURRADA (4 METROS DE RAIO) | I80: UNIDADE: | J80: UNID.
A81: EQUIPAMENTO
A82: DISCRIMINAÇÃO | B82: UNIDADE | C82: QUANT. PROD. | D82: QUANT. IMPROD. | E82: COD. P | F82: COD. I | G82: FONTE | H82: CHP/ P.UNIT. | I82: CHI | J82: P.TOTAL
A83: NIVEL OPTICO, COM PRECISAO DE 0,7 MM, AUMENTO DE 32X | B83: H | C83: ='CPU (DF)'!C83 -> 0.6 | E83: 7252 | G83: SINAPI BA 06/223 | H83: =$H$57 -> 2.25 | J83: =C83*H83+D83*I83 -> 1.35
A84: TEODOLITO ELETRONICO, PRECISAO ANGULAR DE 5 A 7 SEGUNDOS, INCLUINDO TRIPE | B84: H | C84: ='CPU (DF)'!C84 -> 0.6 | E84: 7247 | G84: SINAPI BA 06/223 | H84: =$H$58 -> 2.25 | J84: =C84*H84+D84*I84 -> 1.35
A85: PÁ CARREGADEIRA SOBRE RODAS, POTÊNCIA LÍQUIDA 128 HP, CAPACIDADE DA CAÇAMBA 1,7 A 2,8 M³ | B85: H | C85: ='CPU (DF)'!C85 -> 0.7779529817 | D85: ='CPU (DF)'!D85 -> 0.2593176606 | E85: 5940 | F85: 5942 | G85: SINAPI BA 06/223 | H85: =VLOOKUP(E85,[10]planilhanull!$G$7:$K$7520,5,FALSE) -> 213.82 | I85: =VLOOKUP(F85,[10]planilhanull!$G$7:$K$7520,5,FALSE) -> 95.23 | J85: =C85*H85+D85*I85 -> 191.0367274
A86: VEÍCULO DE PASSEIO PARA DESLOCAMENTO DA EQUIPE | B86: H | C86: ='CPU (DF)'!C86 -> 0.234375 | D86: ='CPU (DF)'!D86 -> 0.390625 | E86: E9093 | G86: SICRO BA 01/2023 | H86: =$H$30 -> 33.7059 | I86: =$I$30 -> 6.3537 | J86: =C86*H86+D86*I86 -> 10.38173438
A87: CAMINHONETE CABINE SIMPLES COM MOTOR 1.6 FLEX, CÂMBIO MANUAL, POTÊNCIA 101/104 CV, 2 PORTAS | B87: H | C87: ='CPU (DF)'!C87 -> 0.609375 | D87: ='CPU (DF)'!D87 -> 0.365625 | E87: 92145 | F87: 92146 | G87: SINAPI BA 06/223 | H87: =$H$31 -> 75.38 | I87: =$I$31 -> 34.9 | J87: =C87*H87+D87*I87 -> 58.695
A88: SUB-TOTAL | J88: =SUM(J83:J87) -> 262.8134617
A89: MATERIAL
A90: DISCRIMINAÇÃO | B90: UNIDADE | C90: QUANT. | E90: COD. | I90: P.UNIT. | J90: P.TOTAL
A91: ESTACA/PIQUETE DE MADEIRA | B91: U | C91: ='CPU (DF)'!C91 -> 12 | E91: 4408 | G91: SINAPI BA 06/223 | I91: =$I$63 -> 1.004 | J91: =C91*I91 -> 12.048
A92: SUB-TOTAL | J92: =SUM(J91:J91) -> 12.048
A93: SERVIÇOS - COMPOSIÇÕES AUXILIARES
A94: DISCRIMINAÇÃO | B94: UNIDADE | C94: QUANT. | I94: P.UNIT. | J94: P.TOTAL
A95: REVESTIMENTO VEGETAL POR SEMEADURA A LANÇO MANUAL DE GRAMÍNEAS E LEGUMINOSAS | B95: m² | C95: ='CPU (DF)'!C95 -> 50.26548246 | E95: 4413993 | G95: SICRO BA 01/2023 | I95: =VLOOKUP(E95,[9]Sheet1!$A:$D,4,FALSE) -> 0.62 | J95: =C95*I95 -> 31.16459912
A96: SUB-TOTAL | J96: =SUM(J95:J95) -> 31.16459912
A97: MÃO DE OBRA
A98: DISCRIMINAÇÃO | B98: UNIDADE | C98: QUANT. | E98: COD. P | F98: COD. I | I98: P.UNIT. | J98: P.TOTAL
A99: ENGENHEIRO COM ENCARGO | B99: MÊS | C99: ='CPU (DF)'!C99 -> 0.001420454545 | E99: 93565 | G99: SINAPI BA 06/223 | I99: =$I$44 -> 19799.31 | J99: =C99*I99 -> 28.12401989
A100: ENCARREGADO COM ENCARGO | B100: MÊS | C100: ='CPU (DF)'!C100 -> 0.004261363636 | E100: 93572 | G100: SINAPI BA 06/223 | I100: =$I$46 -> 6446.14 | J100: =C100*I100 -> 27.46934659
A101: TOPOGRAFO COM ENCARGOS | B101: MÊS | C101: ='CPU (DF)'!C101 -> 0.003409090909 | E101: 94296 | G101: SINAPI BA 06/223 | I101: =$I$72 -> 6395.15 | J101: =C101*I101 -> 21.80164773
A102: AUXILIAR DE TOPOGRÁFO COM ENCARGOS | B102: MÊS | C102: ='CPU (DF)'!C102 -> 0.003409090909 | E102: 101389 | G102: SINAPI BA 06/223 | I102: =$I$71 -> 3081.67 | J102: =C102*I102 -> 10.50569318
A103: SERVENTE COM ENCARGOS COMPLEMENTARES - INLUSIVE ABERTURA E FECHAMENTO DE CERCAS | B103: MES | C103: ='CPU (DF)'!C103 -> 0.005893583194 | E103: 101452 | G103: SINAPI BA 06/223 | I103: =$I$45 -> 3859.29 | J103: =C103*I103 -> 22.74504669
A104: SUB-TOTAL | J104: =SUM(J99:J103) -> 110.6457541
A105: PRODUÇÃO MENSAL DA EQUIPE | B105: ='CPU (DF)'!B105 -> 169.6760641 | C105: CUSTO | J105: =J104+J96+J92+J88 -> 416.6718149
A106: TOTAL | J106: =ROUND(J105,2) -> 416.67
A107: BDI % | J107: 24.1
A108: TOTAL DO SERVIÇO - R$ | J108: =ROUND(J106*(1+J107/100),2) -> 517.09
A111: COMPOSIÇÃO DE PREÇO UNITÁRIO
A112: LOCAÇÃO E CONSTRUÇÃO DE BACIAS DE CAPTAÇÃO DE ENXURRADA (6 METROS DE RAIO) | I112: UNIDADE: | J112: UNID.
A113: EQUIPAMENTO
A114: DISCRIMINAÇÃO | B114: UNIDADE | C114: QUANT. PROD. | D114: QUANT. IMPROD. | E114: COD. P | F114: COD. I | G114: FONTE | H114: CHP/ P.UNIT. | I114: CHI | J114: P.TOTAL
A115: NIVEL OPTICO, COM PRECISAO DE 0,7 MM, AUMENTO DE 32X | B115: H | C115: ='CPU (DF)'!C115 -> 0.6 | E115: 7252 | G115: SINAPI BA 06/223 | H115: =$H$57 -> 2.25 | J115: =C115*H115+D115*I115 -> 1.35
A116: TEODOLITO ELETRONICO, PRECISAO ANGULAR DE 5 A 7 SEGUNDOS, INCLUINDO TRIPE | B116: H | C116: ='CPU (DF)'!C116 -> 0.6 | E116: 7247 | G116: SINAPI BA 06/223 | H116: =$H$58 -> 2.25 | J116: =C116*H116+D116*I116 -> 1.35
A117: PÁ CARREGADEIRA SOBRE RODAS, POTÊNCIA LÍQUIDA 128 HP, CAPACIDADE DA CAÇAMBA 1,7 A 2,8 M³ | B117: H | C117: ='CPU (DF)'!C117 -> 1.536166858 | D117: ='CPU (DF)'!D117 -> 0.5120556193 | E117: 5940 | F117: 5942 | G117: SINAPI BA 06/223 | H117: =$H$85 -> 213.82 | I117: =$I$85 -> 95.23 | J117: =C117*H117+D117*I117 -> 377.2262542
A118: VEÍCULO DE PASSEIO PARA DESLOCAMENTO DA EQUIPE | B118: H | C118: ='CPU (DF)'!C118 -> 0.25 | D118: ='CPU (DF)'!D118 -> 0.4166666667 | E118: E9093 | G118: SICRO BA 01/2023 | H118: =$H$30 -> 33.7059 | I118: =$I$30 -> 6.3537 | J118: =C118*H118+D118*I118 -> 11.07385
A119: CAMINHONETE CABINE SIMPLES COM MOTOR 1.6 FLEX, CÂMBIO MANUAL, POTÊNCIA 101/104 CV, 2 PORTAS | B119: H | C119: ='CPU (DF)'!C119 -> 0.625 | D119: ='CPU (DF)'!D119 -> 0.375 | E119: 92145 | F119: 92146 | G119: SINAPI BA 06/223 | H119: =$H$31 -> 75.38 | I119: =$I$31 -> 34.9 | J119: =C119*H119+D119*I119 -> 60.2
A120: SUB-TOTAL | J120: =SUM(J115:J119) -> 451.2001042
A121: MATERIAL
A122: DISCRIMINAÇÃO | B122: UNIDADE | C122: QUANT. | E122: COD. | I122: P.UNIT. | J122: P.TOTAL
A123: ESTACA/PIQUETE DE MADEIRA | B123: U | C123: ='CPU (DF)'!C123 -> 12 | E123: 4408 | G123: SINAPI BA 06/223 | I123: =$I$63 -> 1.004 | J123: =C123*I123 -> 12.048
A124: SUB-TOTAL | J124: =SUM(J123:J123) -> 12.048
A125: SERVIÇOS - COMPOSIÇÕES AUXILIARES
A126: DISCRIMINAÇÃO | B126: UNIDADE | C126: QUANT. | I126: P.UNIT. | J126: P.TOTAL
A127: REVESTIMENTO VEGETAL POR SEMEADURA A LANÇO MANUAL DE GRAMÍNEAS E LEGUMINOSAS | B127: m² | C127: ='CPU (DF)'!C127 -> 94.24777961 | E127: 4413993 | G127: SICRO BA 01/2023 | I127: =VLOOKUP(E127,[9]Sheet1!$A:$D,4,FALSE) -> 0.62 | J127: =C127*I127 -> 58.43362336
A128: SUB-TOTAL | J128: =SUM(J127:J127) -> 58.43362336
A129: MÃO DE OBRA
A130: DISCRIMINAÇÃO | B130: UNIDADE | C130: QUANT. | E130: COD. P | F130: COD. I | I130: P.UNIT. | J130: P.TOTAL
A131: ENGENHEIRO COM ENCARGO | B131: MÊS | C131: ='CPU (DF)'!C131 -> 0.001515151515 | E131: 93565 | G131: SINAPI BA 06/223 | I131: =$I$44 -> 19799.31 | J131: =C131*I131 -> 29.99895455
A132: ENCARREGADO COM ENCARGO | B132: MÊS | C132: ='CPU (DF)'!C132 -> 0.004545454545 | E132: 93572 | G132: SINAPI BA 06/223 | I132: =$I$46 -> 6446.14 | J132: =C132*I132 -> 29.30063636
A133: TOPOGRAFO COM ENCARGOS | B133: MÊS | C133: ='CPU (DF)'!C133 -> 0.003409090909 | E133: 94296 | G133: SINAPI BA 06/223 | I133: =$I$72 -> 6395.15 | J133: =C133*I133 -> 21.80164773
A134: AUXILIAR DE TOPOGRÁFO COM ENCARGOS | B134: MÊS | C134: ='CPU (DF)'!C134 -> 0.003409090909 | E134: 101389 | G134: SINAPI BA 06/223 | I134: =$I$71 -> 3081.67 | J134: =C134*I134 -> 10.50569318
A135: SERVENTE COM ENCARGOS COMPLEMENTARES - INLUSIVE ABERTURA E FECHAMENTO DE CERCAS | B135: MES | C135: ='CPU (DF)'!C135 -> 0.01163762771 | E135: 101452 | G135: SINAPI BA 06/223 | I135: =$I$45 -> 3859.29 | J135: =C135*I135 -> 44.91298025
A136: SUB-TOTAL | J136: =SUM(J131:J135) -> 136.5199121
A137: PRODUÇÃO MENSAL DA EQUIPE | B137: ='CPU (DF)'!B137 -> 85.9281655 | C137: CUSTO | J137: =J136+J128+J124+J120 -> 658.2016396
A138: TOTAL | J138: =ROUND(J137,2) -> 658.2
A139: BDI % | J139: 24.1
A140: TOTAL DO SERVIÇO - R$ | J140: =ROUND(J138*(1+J139/100),2) -> 816.83
A142: COMPOSIÇÃO DE PREÇO UNITÁRIO
A143: LOCAÇÃO E CONSTRUÇÃO DE BACIAS DE CAPTAÇÃO DE ENXURRADA (9 METROS DE RAIO) | I143: UNIDADE: | J143: UNID.
A144: EQUIPAMENTO
A145: DISCRIMINAÇÃO | B145: UNIDADE | C145: QUANT. PROD. | D145: QUANT. IMPROD. | E145: COD. P | F145: COD. I | G145: FONTE | H145: CHP/ P.UNIT. | I145: CHI | J145: P.TOTAL
A146: NIVEL OPTICO, COM PRECISAO DE 0,7 MM, AUMENTO DE 32X | B146: H | C146: ='CPU (DF)'!C146 -> 0.65 | E146: 7252 | G146: SINAPI BA 06/223 | H146: =$H$57 -> 2.25 | J146: =C146*H146+D146*I146 -> 1.4625
A147: TEODOLITO ELETRONICO, PRECISAO ANGULAR DE 5 A 7 SEGUNDOS, INCLUINDO TRIPE | B147: H | C147: ='CPU (DF)'!C147 -> 0.65 | E147: 7247 | G147: SINAPI BA 06/223 | H147: =$H$58 -> 2.25 | J147: =C147*H147+D147*I147 -> 1.4625
A148: PÁ CARREGADEIRA SOBRE RODAS, POTÊNCIA LÍQUIDA 128 HP, CAPACIDADE DA CAÇAMBA 1,7 A 2,8 M³ | B148: H | C148: ='CPU (DF)'!C148 -> 3.738990826 | D148: ='CPU (DF)'!D148 -> 1.246330275 | E148: 5940 | F148: 5942 | G148: SINAPI BA 06/223 | H148: =$H$85 -> 213.82 | I148: =$I$85 -> 95.23 | J148: =C148*H148+D148*I148 -> 918.1590505
A149: VEÍCULO DE PASSEIO PARA DESLOCAMENTO DA EQUIPE | B149: H | C149: ='CPU (DF)'!C149 -> 0.265625 | D149: ='CPU (DF)'!D149 -> 0.4427083333 | E149: E9093 | G149: SICRO BA 01/2023 | H149: =$H$30 -> 33.7059 | I149: =$I$30 -> 6.3537 | J149: =C149*H149+D149*I149 -> 11.76596562
A150: CAMINHONETE CABINE SIMPLES COM MOTOR 1.6 FLEX, CÂMBIO MANUAL, POTÊNCIA 101/104 CV, 2 PORTAS | B150: H | C150: ='CPU (DF)'!C150 -> 0.671875 | D150: ='CPU (DF)'!D150 -> 0.403125 | E150: 92145 | F150: 92146 | G150: SINAPI BA 06/223 | H150: =$H$31 -> 75.38 | I150: =$I$31 -> 34.9 | J150: =C150*H150+D150*I150 -> 64.715
A151: SUB-TOTAL | J151: =SUM(J146:J150) -> 997.5650161
A152: MATERIAL
A153: DISCRIMINAÇÃO | B153: UNIDADE | C153: QUANT. | E153: COD. | I153: P.UNIT. | J153: P.TOTAL
A154: ESTACA/PIQUETE DE MADEIRA | B154: U | C154: ='CPU (DF)'!C154 -> 12 | E154: 4408 | G154: SINAPI BA 06/223 | I154: =$I$63 -> 1.004 | J154: =C154*I154 -> 12.048
A155: SUB-TOTAL | J155: =SUM(J154:J154) -> 12.048
A156: SERVIÇOS - COMPOSIÇÕES AUXILIARES
A157: DISCRIMINAÇÃO | B157: UNIDADE | C157: QUANT. | I157: P.UNIT. | J157: P.TOTAL
A158: REVESTIMENTO VEGETAL POR SEMEADURA A LANÇO MANUAL DE GRAMÍNEAS E LEGUMINOSAS | B158: m² | C158: ='CPU (DF)'!C158 -> 169.6460033 | E158: 4413993 | G158: SICRO BA 01/2023 | I158: =VLOOKUP(E158,[9]Sheet1!$A:$D,4,FALSE) -> 0.62 | J158: =C158*I158 -> 105.180522
A159: SUB-TOTAL | J159: =SUM(J158:J158) -> 105.180522
A160: MÃO DE OBRA
A161: DISCRIMINAÇÃO | B161: UNIDADE | C161: QUANT. | E161: COD. P | F161: COD. I | I161: P.UNIT. | J161: P.TOTAL
A162: ENGENHEIRO COM ENCARGO | B162: MÊS | C162: ='CPU (DF)'!C162 -> 0.001609848485 | E162: 93565 | G162: SINAPI BA 06/223 | I162: =$I$44 -> 19799.31 | J162: =C162*I162 -> 31.8738892
A163: ENCARREGADO COM ENCARGO | B163: MÊS | C163: ='CPU (DF)'!C163 -> 0.004829545455 | E163: 93572 | G163: SINAPI BA 06/223 | I163: =$I$46 -> 6446.14 | J163: =C163*I163 -> 31.13192614
A164: TOPOGRAFO COM ENCARGOS | B164: MÊS | C164: ='CPU (DF)'!C164 -> 0.003693181818 | E164: 94296 | G164: SINAPI BA 06/223 | I164: =$I$72 -> 6395.15 | J164: =C164*I164 -> 23.6184517
A165: AUXILIAR DE TOPOGRÁFO COM ENCARGOS | B165: MÊS | C165: ='CPU (DF)'!C165 -> 0.003693181818 | E165: 101389 | G165: SINAPI BA 06/223 | I165: =$I$71 -> 3081.67 | J165: =C165*I165 -> 11.38116761
A166: SERVENTE COM ENCARGOS COMPLEMENTARES - INLUSIVE ABERTURA E FECHAMENTO DE CERCAS | B166: MES | C166: ='CPU (DF)'!C166 -> 0.02832568807 | E166: 101452 | G166: SINAPI BA 06/223 | I166: =$I$45 -> 3859.29 | J166: =C166*I166 -> 109.3170447
A167: SUB-TOTAL | J167: =SUM(J162:J166) -> 207.3224794
A168: PRODUÇÃO MENSAL DA EQUIPE | B168: ='CPU (DF)'!B168 -> 35.30364372 | C168: CUSTO | J168: =J167+J159+J155+J151 -> 1322.116018
A169: TOTAL | J169: =ROUND(J168,2) -> 1322.12
A170: BDI % | J170: 24.1
A171: TOTAL DO SERVIÇO - R$ | J171: =ROUND(J169*(1+J170/100),2) -> 1640.75
A174: COMPOSIÇÃO DE PREÇO UNITÁRIO
A175: LOCAÇÃO E CONSTRUÇÃO DE BACIAS DE CAPTAÇÃO DE ENXURRADA (12 METROS DE RAIO) | I175: UNIDADE: | J175: UNID.
A176: EQUIPAMENTO
A177: DISCRIMINAÇÃO | B177: UNIDADE | C177: QUANT. PROD. | D177: QUANT. IMPROD. | E177: COD. P | F177: COD. I | G177: FONTE | H177: CHP/ P.UNIT. | I177: CHI | J177: P.TOTAL
A178: NIVEL OPTICO, COM PRECISAO DE 0,7 MM, AUMENTO DE 32X | B178: H | C178: ='CPU (DF)'!C178 -> 0.65 | E178: 7252 | G178: SINAPI BA 06/223 | H178: =$H$57 -> 2.25 | J178: =C178*H178+D178*I178 -> 1.4625
A179: TEODOLITO ELETRONICO, PRECISAO ANGULAR DE 5 A 7 SEGUNDOS, INCLUINDO TRIPE | B179: H | C179: ='CPU (DF)'!C179 -> 0.65 | E179: 7247 | G179: SINAPI BA 06/223 | H179: =$H$58 -> 2.25 | J179: =C179*H179+D179*I179 -> 1.4625
A180: PÁ CARREGADEIRA SOBRE RODAS, POTÊNCIA LÍQUIDA 128 HP, CAPACIDADE DA CAÇAMBA 1,7 A 2,8 M³ | B180: H | C180: ='CPU (DF)'!C180 -> 6 | D180: ='CPU (DF)'!D180 -> 2 | E180: 5940 | F180: 5942 | G180: SINAPI BA 06/223 | H180: =$H$85 -> 213.82 | I180: =$I$85 -> 95.23 | J180: =C180*H180+D180*I180 -> 1473.38
A181: VEÍCULO DE PASSEIO PARA DESLOCAMENTO DA EQUIPE | B181: H | C181: ='CPU (DF)'!C181 -> 0.28125 | D181: ='CPU (DF)'!D181 -> 0.46875 | E181: E9093 | G181: SICRO BA 01/2023 | H181: =$H$30 -> 33.7059 | I181: =$I$30 -> 6.3537 | J181: =C181*H181+D181*I181 -> 12.45808125
A182: CAMINHONETE CABINE SIMPLES COM MOTOR 1.6 FLEX, CÂMBIO MANUAL, POTÊNCIA 101/104 CV, 2 PORTAS | B182: H | C182: ='CPU (DF)'!C182 -> 0.6875 | D182: ='CPU (DF)'!D182 -> 0.4125 | E182: 92145 | F182: 92146 | G182: SINAPI BA 06/223 | H182: =$H$31 -> 75.38 | I182: =$I$31 -> 34.9 | J182: =C182*H182+D182*I182 -> 66.22
A183: SUB-TOTAL | J183: =SUM(J178:J182) -> 1554.983081
A184: MATERIAL
A185: DISCRIMINAÇÃO | B185: UNIDADE | C185: QUANT. | E185: COD. | I185: P.UNIT. | J185: P.TOTAL
A186: ESTACA/PIQUETE DE MADEIRA | B186: U | C186: ='CPU (DF)'!C186 -> 16 | E186: 4408 | G186: SINAPI BA 06/223 | I186: =$I$63 -> 1.004 | J186: =C186*I186 -> 16.064
A187: SUB-TOTAL | J187: =SUM(J186:J186) -> 16.064
A188: SERVIÇOS - COMPOSIÇÕES AUXILIARES
A189: DISCRIMINAÇÃO | B189: UNIDADE | C189: QUANT. | I189: P.UNIT. | J189: P.TOTAL
A190: REVESTIMENTO VEGETAL POR SEMEADURA A LANÇO MANUAL DE GRAMÍNEAS E LEGUMINOSAS | B190: m² | C190: ='CPU (DF)'!C190 -> 263.8937829 | E190: 4413993 | G190: SICRO BA 01/2023 | I190: =VLOOKUP(E190,[9]Sheet1!$A:$D,4,FALSE) -> 0.62 | J190: =C190*I190 -> 163.6141454
A191: SUB-TOTAL | J191: =SUM(J190:J190) -> 163.6141454
A192: MÃO DE OBRA
A193: DISCRIMINAÇÃO | B193: UNIDADE | C193: QUANT. | E193: COD. P | F193: COD. I | I193: P.UNIT. | J193: P.TOTAL
A194: ENGENHEIRO COM ENCARGO | B194: MES | C194: ='CPU (DF)'!C194 -> 0.001704545455 | E194: 93565 | G194: SINAPI BA 06/223 | I194: =$I$44 -> 19799.31 | J194: =C194*I194 -> 33.74882386
A195: ENCARREGADO COM ENCARGO | B195: MES | C195: ='CPU (DF)'!C195 -> 0.005113636364 | E195: 93572 | G195: SINAPI BA 06/223 | I195: =$I$46 -> 6446.14 | J195: =C195*I195 -> 32.96321591
A196: TOPOGRAFO COM ENCARGOS | B196: MÊS | C196: ='CPU (DF)'!C196 -> 0.003693181818 | E196: 94296 | G196: SINAPI BA 06/223 | I196: =$I$72 -> 6395.15 | J196: =C196*I196 -> 23.6184517
A197: AUXILIAR DE TOPOGRÁFO COM ENCARGOS | B197: MÊS | C197: ='CPU (DF)'!C197 -> 0.003693181818 | E197: 101389 | G197: SINAPI BA 06/223 | I197: =$I$71 -> 3081.67 | J197: =C197*I197 -> 11.38116761
A198: SERVENTE COM ENCARGOS COMPLEMENTARES - INLUSIVE ABERTURA E FECHAMENTO DE CERCAS | B198: MES | C198: ='CPU (DF)'!C198 -> 0.04545454545 | E198: 101452 | G198: SINAPI BA 06/223 | I198: =$I$45 -> 3859.29 | J198: =C198*I198 -> 175.4222727
A199: SUB-TOTAL | J199: =SUM(J194:J198) -> 277.1339318
A200: PRODUÇÃO DA EQUIPE | B200: ='CPU (DF)'!B200 -> 22 | C200: CUSTO | J200: =J199+J191+J187+J183 -> 2011.795158
A201: TOTAL | J201: =ROUND(J200,2) -> 2011.8
A202: BDI % | J202: 24.1
A203: TOTAL DO SERVIÇO - R$ | J203: =ROUND(J201*(1+J202/100),2) -> 2496.64
A205: COMPOSIÇÃO DE PREÇO UNITÁRIO
A206: CERCAMENTO DE ÁREAS AMBIENTALMENTE VULNERÁVEIS À CAPRINOVINOCULTURA | I206: UNIDADE: | J206: m
A207: EQUIPAMENTO
A208: DISCRIMINAÇÃO | B208: UNIDADE | C208: QUANT. PROD. | D208: QUANT. IMPROD. | E208: COD. P | F208: COD. I | G208: FONTE | I208: P.UNIT. | J208: P.TOTAL
A209: NIVEL OPTICO, COM PRECISAO DE 0,7 MM, AUMENTO DE 32X | B209: h | C209: ='CPU (DF)'!C209 -> 0.05 | E209: 7252 | G209: SINAPI BA 06/223 | H209: =H178 -> 2.25 | J209: =C209*H209+D209*I209 -> 0.1125
A210: TEODOLITO ELETRONICO, PRECISAO ANGULAR DE 5 A 7 SEGUNDOS, INCLUINDO TRIPE | B210: h | C210: ='CPU (DF)'!C210 -> 0.05 | E210: 7247 | G210: SINAPI BA 06/223 | H210: =H179 -> 2.25 | J210: =C210*H210+D210*I210 -> 0.1125
A211: VEÍCULO DE PASSEIO PARA DESLOCAMENTO DA EQUIPE | B211: h | C211: ='CPU (DF)'!C211 -> 0.01838235294 | D211: ='CPU (DF)'!D211 -> 0.0306372549 | E211: E9093 | F211: E9093 | G211: SICRO BA 01/2023 | H211: =H30 -> 33.7059 | I211: =I30 -> 6.3537 | J211: =C211*H211+D211*I211 -> 0.8142536765
... 87 more rows

Sheet CPU (CE)
A1: COMPOSIÇÃO DE PREÇO UNITÁRIO
A2: MOBILIZAÇÃO E DESMOBILIZAÇÃO | C2: REGIÃO: | G2: CE | I2: UNIDADE: | J2: R$/Tonelada/ Projeto
A3: EQUIPAMENTO
A4: DISCRIMINAÇÃO | B4: UNIDADE | C4: QUANT. PROD. | D4: QUANT. IMPROD. | E4: COD. | G4: FONTE | H4: P.UNIT. PROD | I4: P.UNIT. IMPR | J4: P.TOTAL
J5: =C5*E5*H5+C5*G5*I5 -> 0
A6: SUB-TOTAL | J6: =SUM(J5:J5) -> 0
A7: MATERIAL
A8: DISCRIMINAÇÃO | B8: UNIDADE | C8: QUANT. | E8: COD. | G8: FONTE | I8: P.UNIT. | J8: P.TOTAL
J9: Toneladas/ Projeto
J10: =C10*I10 -> 0
A11: SUB-TOTAL | J11: =SUM(J9:J10) -> 0
A12: SERVIÇOS - COMPOSIÇÕES AUXILIARES
A13: DISCRIMINAÇÃO | B13: UNIDADE | C13: QUANT. | E13: COD. | G13: FONTE | I13: P.UNIT. | J13: P.TOTAL
A14: TRANSPORTE COM CAVALO MECÂNICO COM SEMIRREBOQUE COM CAPACIDADE DE 30 T - RODOVIA PAVIMENTADA | B14: t*km | C14: ='CPU (DF)'!C14 -> 1 | E14: 5914640 | G14: SICRO CE 01/2023 | I14: =VLOOKUP(E14,[13]Sheet1!$A:$D,4,FALSE) -> 0.61 | J14: =C14*I14 -> 0.61
A15: SUB-TOTAL | J15: =SUM(J14:J14) -> 0.61
A16: MÃO DE OBRA
A17: DISCRIMINAÇÃO | B17: UNIDADE | C17: QUANT. | I17: P.UNIT. | J17: P.TOTAL
J18: =C18*I18 -> 0
A19: SUB-TOTAL | J19: =SUM(J18:J18) -> 0
A20: PRODUÇÃO DA EQUIPE (MOB E DESMOB) EM km | B20: =VLOOKUP(G2,DMT!D:E,2)*2 -> 500 | C20: CUSTO | J20: =J19+J15+J11+J6 -> 0.61
A21: TOTAL | J21: =J20*B20 -> 305
A22: BDI % | J22: 24.1
A23: TOTAL DO SERVIÇO - R$ | J23: =J21*(1+J22/100) -> 378.505
A25: COMPOSIÇÃO DE PREÇO UNITÁRIO
A26: LOCAÇÃO E CONSTRUÇÃO DE TERRAÇOS - INCLUSIVE SOLOS DUROS E SECOS | I26: UNIDADE: | J26: km
A27: EQUIPAMENTO
A28: DISCRIMINAÇÃO | B28: UNIDADE | C28: QUANT. PROD. | D28: QUANT. IMPROD. | E28: COD. P | F28: COD. I | G28: FONTE | H28: CHP | I28: CHI | J28: P.TOTAL
A29: TRATOR DE ESTEIRAS, POTÊNCIA 125 HP, PESO OPERACIONAL 12,9 T, COM LÂMINA 2,7 M3 | B29: H | C29: ='CPU (DF)'!C29 -> 7.058823529 | D29: ='CPU (DF)'!D29 -> 2.352941176 | E29: 5851 | F29: 5853 | G29: SINAPI CE 06/223 | H29: =VLOOKUP(E29,[14]planilhanull!$G$7:$K$7520,5,FALSE) -> 211.41 | I29: =VLOOKUP(F29,[14]planilhanull!$G$7:$K$7520,5,FALSE) -> 68.18 | J29: =C29*H29+D29*I29 -> 1652.729412
A30: VEÍCULO DE PASSEIO PARA DESLOCAMENTO DA EQUIPE | B30: H | C30: ='CPU (DF)'!C30 -> 0.9375 | D30: ='CPU (DF)'!D30 -> 1.5625 | E30: E9093 | F30: E9093 | G30: SICRO CE 01/2023 | H30: =VLOOKUP(E30,[15]Sheet1!$A:$K,10,FALSE) -> 33.9383 | I30: =VLOOKUP(F30,[15]Sheet1!$A:$K,11,FALSE) -> 6.4294 | J30: =C30*H30+D30*I30 -> 41.86309375
A31: CAMINHONETE CABINE SIMPLES COM MOTOR 1.6 FLEX, CÂMBIO MANUAL, POTÊNCIA 101/104 CV, 2 PORTAS | B31: H | C31: ='CPU (DF)'!C31 -> 0.5625 | D31: ='CPU (DF)'!D31 -> 0.9375 | E31: 92145 | F31: 92146 | G31: SINAPI CE 06/223 | H31: =VLOOKUP(E31,[14]planilhanull!$G$7:$K$7520,5,FALSE) -> 74.45 | I31: =VLOOKUP(F31,[14]planilhanull!$G$7:$K$7520,5,FALSE) -> 33.17 | J31: =C31*H31+D31*I31 -> 72.975
A32: SUB-TOTAL | J32: =SUM(J29:J31) -> 1767.567506
A33: MATERIAL
A34: DISCRIMINAÇÃO | B34: UNIDADE | C34: QUANT. | E34: COD. | G34: FONTE | I34: P.UNIT. | J34: P.TOTAL
A36: SUB-TOTAL | J36: =SUM(J35:J35) -> 0
A37: SERVIÇOS - COMPOSIÇÕES AUXILIARES
A38: DISCRIMINAÇÃO | B38: UNIDADE | C38: QUANT. | E38: COD. | G38: FONTE | I38: P.UNIT. | J38: P.TOTAL
A39: LOCAÇÃO E NIVELAMENTO DE TERRAÇOS COM TOPOGRAFIA | B39: KM | C39: ='CPU (DF)'!C39 -> 1 | E39: COMPOSIÇÃO | I39: =J75 -> 198.38 | J39: =C39*I39 -> 198.38
A40: REVESTIMENTO VEGETAL POR SEMEADURA A LANÇO MANUAL DE GRAMÍNEAS E LEGUMINOSAS | B40: m² | C40: ='CPU (DF)'!C40 -> 1000 | E40: 4413993 | G40: SICRO CE 01/2023 | I40: =VLOOKUP(E40,[13]Sheet1!$A:$D,4,FALSE) -> 0.64 | J40: =C40*I40 -> 640
A41: SUB-TOTAL | J41: =SUM(J39:J40) -> 838.38
A42: MÃO DE OBRA
A43: DISCRIMINAÇÃO | B43: UNIDADE | C43: QUANT. | E43: COD. P | F43: COD. I | G43: FONTE | I43: P.UNIT. | J43: P.TOTAL
A44: ENGENHEIRO COM ENCARGO | B44: MES | C44: ='CPU (DF)'!C44 -> 0.005681818182 | E44: 93565 | G44: SINAPI CE 06/223 | I44: =VLOOKUP(E44,[14]planilhanull!$G$7:$K$7520,5,FALSE) -> 19809.53 | J44: =C44*I44 -> 112.5541477
A45: SERVENTE COM ENCARGOS COMPLEMENTARES - INLUSIVE ABERTURA E FECHAMENTO DE CERCAS | B45: MES | C45: ='CPU (DF)'!C45 -> 0.05347593583 | E45: 101452 | G45: SINAPI CE 06/223 | I45: =VLOOKUP(E45,[14]planilhanull!$G$7:$K$7520,5,FALSE) -> 3679.7 | J45: =C45*I45 -> 196.7754011
A46: ENCARREGADO COM ENCARGO | B46: MES | C46: ='CPU (DF)'!C46 -> 0.01704545455 | E46: 93572 | G46: SINAPI CE 06/223 | I46: =VLOOKUP(E46,[14]planilhanull!$G$7:$K$7520,5,FALSE) -> 4552.47 | J46: =C46*I46 -> 77.59892045
A47: SUB-TOTAL | J47: =SUM(J44:J46) -> 386.9284693
A48: PRODUÇÃO DA EQUIPE MÊS 22 KM, MAS COM FATOR DE REDUÇÃO PARA PÉRIODOS COM CHUVAS | B48: ='CPU (DF)'!B48 -> 18.7 | C48: CUSTO | J48: =J47+J41+J36+J32 -> 2992.875975
A49: TOTAL | J49: =ROUND(J48,2) -> 2992.88
A50: BDI % | J50: 24.1
A51: TOTAL DO SERVIÇO - R$ | J51: =ROUND(J49*(1+J50/100),2) -> 3714.16
A53: COMPOSIÇÃO DE PREÇO UNITÁRIO
A54: LOCAÇÃO E NIVELAMENTO DE TERRAÇOS COM TOPOGRAFIA | I54: UNIDADE: | J54: km
A55: EQUIPAMENTO
A56: DISCRIMINAÇÃO | B56: UNIDADE | C56: QUANT. PROD. | D56: QUANT. IMPROD. | E56: COD. P | F56: COD. I | G56: FONTE | H56: CHP/ P.UNIT. | I56: CHI | J56: P.TOTAL
A57: NIVEL OPTICO, COM PRECISAO DE 0,7 MM, AUMENTO DE 32X | B57: H | C57: ='CPU (DF)'!C57 -> 0.99609375 | E57: 7252 | G57: SINAPI CE 06/223 | H57: =VLOOKUP(E57,[16]sheet1!$A$1:$E$65536,5,FALSE) -> 2.25 | J57: =C57*H57+D57*I57 -> 2.241210937
A58: TEODOLITO ELETRONICO, PRECISAO ANGULAR DE 5 A 7 SEGUNDOS, INCLUINDO TRIPE | B58: H | C58: ='CPU (DF)'!C58 -> 0.99609375 | E58: 7247 | G58: SINAPI CE 06/223 | H58: =VLOOKUP(E58,[16]sheet1!$A$1:$E$65536,5,FALSE) -> 2.25 | J58: =C58*H58+D58*I58 -> 2.241210937
A59: CAMINHONETE CABINE SIMPLES COM MOTOR 1.6 FLEX, CÂMBIO MANUAL, POTÊNCIA 101/104 CV, 2 PORTAS | B59: H | C59: ='CPU (DF)'!C59 -> 0.3735351562 | D59: ='CPU (DF)'!D59 -> 0.6225585938 | E59: 92145 | F59: 92146 | G59: SINAPI CE 06/223 | H59: =H31 -> 74.45 | I59: =I31 -> 33.17 | J59: =C59*H59+D59*I59 -> 48.45996094
A60: SUB-TOTAL | J60: =SUM(J57:J59) -> 52.94238281
A61: MATERIAL
A62: DISCRIMINAÇÃO | B62: UNIDADE | C62: QUANT. | E62: COD. | I62: P.UNIT. | J62: P.TOTAL
A63: ESTACA/PIQUETE DE MADEIRA | B63: U | C63: ='CPU (DF)'!C63 -> 83.33333333 | E63: 4408 | G63: SINAPI CE 06/223 | I63: =VLOOKUP(E63,[16]sheet1!$A$1:$E$65536,5,FALSE)*0.4 -> 1.052 | J63: =C63*I63 -> 87.66666667
A64: SUB-TOTAL | J64: =SUM(J63:J63) -> 87.66666667
A65: SERVIÇOS - COMPOSIÇÕES AUXILIARES
A66: DISCRIMINAÇÃO | B66: UNIDADE | C66: QUANT. | I66: P.UNIT. | J66: P.TOTAL
A68: SUB-TOTAL
A69: MÃO DE OBRA
A70: DISCRIMINAÇÃO | B70: UNIDADE | C70: QUANT. | E70: COD. P | F70: COD. I | I70: P.UNIT. | J70: P.TOTAL
A71: AUXILIAR DE TOPOGRÁFO COM ENCARGOS | B71: MÊS | C71: ='CPU (DF)'!C71 -> 0.00565962358 | E71: 101389 | G71: SINAPI CE 06/223 | I71: =VLOOKUP(E71,[14]planilhanull!$G$7:$K$7520,5,FALSE) -> 3308.45 | J71: =C71*I71 -> 18.72458163
A72: TOPOGRAFO COM ENCARGOS | B72: MÊS | C72: ='CPU (DF)'!C72 -> 0.00565962358 | E72: 94296 | G72: SINAPI CE 06/223 | I72: =VLOOKUP(E72,[14]planilhanull!$G$7:$K$7520,5,FALSE) -> 6899.07 | J72: =C72*I72 -> 39.04613925
A73: SUB-TOTAL | J73: =SUM(J71:J72) -> 57.77072088
A74: PRODUÇÃO MENSAL DA EQUIPE | B74: ='CPU (DF)'!B74 -> 46.93333333 | C74: CUSTO | J74: =J73+J68+J64+J60 -> 198.3797704
A75: TOTAL | J75: =ROUND(J74,2) -> 198.38
A76: BDI % | J76: 24.1
A77: TOTAL DO SERVIÇO - R$ | J77: =ROUND(J75*(1+J76/100),2) -> 246.19
A79: COMPOSIÇÃO DE PREÇO UNITÁRIO
A80: LOCAÇÃO E CONSTRUÇÃO DE BACIAS DE CAPTAÇÃO DE ENXURRADA (4 METROS DE RAIO) | I80: UNIDADE: | J80: UNID.
A81: EQUIPAMENTO
A82: DISCRIMINAÇÃO | B82: UNIDADE | C82: QUANT. PROD. | D82: QUANT. IMPROD. | E82: COD. P | F82: COD. I | G82: FONTE | H82: CHP/ P.UNIT. | I82: CHI | J82: P.TOTAL
A83: NIVEL OPTICO, COM PRECISAO DE 0,7 MM, AUMENTO DE 32X | B83: H | C83: ='CPU (DF)'!C83 -> 0.6 | E83: 7252 | G83: SINAPI CE 06/223 | H83: =$H$57 -> 2.25 | J83: =C83*H83+D83*I83 -> 1.35
A84: TEODOLITO ELETRONICO, PRECISAO ANGULAR DE 5 A 7 SEGUNDOS, INCLUINDO TRIPE | B84: H | C84: ='CPU (DF)'!C84 -> 0.6 | E84: 7247 | G84: SINAPI CE 06/223 | H84: =$H$58 -> 2.25 | J84: =C84*H84+D84*I84 -> 1.35
A85: PÁ CARREGADEIRA SOBRE RODAS, POTÊNCIA LÍQUIDA 128 HP, CAPACIDADE DA CAÇAMBA 1,7 A 2,8 M³ | B85: H | C85: ='CPU (DF)'!C85 -> 0.7779529817 | D85: ='CPU (DF)'!D85 -> 0.2593176606 | E85: 5940 | F85: 5942 | G85: SINAPI CE 06/223 | H85: =VLOOKUP(E85,[14]planilhanull!$G$7:$K$7520,5,FALSE) -> 185.56 | I85: =VLOOKUP(F85,[14]planilhanull!$G$7:$K$7520,5,FALSE) -> 73.41 | J85: =C85*H85+D85*I85 -> 163.3934647
A86: VEÍCULO DE PASSEIO PARA DESLOCAMENTO DA EQUIPE | B86: H | C86: ='CPU (DF)'!C86 -> 0.234375 | D86: ='CPU (DF)'!D86 -> 0.390625 | E86: E9093 | G86: SICRO CE 01/2023 | H86: =$H$30 -> 33.9383 | I86: =$I$30 -> 6.4294 | J86: =C86*H86+D86*I86 -> 10.46577344
A87: CAMINHONETE CABINE SIMPLES COM MOTOR 1.6 FLEX, CÂMBIO MANUAL, POTÊNCIA 101/104 CV, 2 PORTAS | B87: H | C87: ='CPU (DF)'!C87 -> 0.609375 | D87: ='CPU (DF)'!D87 -> 0.365625 | E87: 92145 | F87: 92146 | G87: SINAPI CE 06/223 | H87: =$H$31 -> 74.45 | I87: =$I$31 -> 33.17 | J87: =C87*H87+D87*I87 -> 57.49575
A88: SUB-TOTAL | J88: =SUM(J83:J87) -> 234.0549882
A89: MATERIAL
A90: DISCRIMINAÇÃO | B90: UNIDADE | C90: QUANT. | E90: COD. | I90: P.UNIT. | J90: P.TOTAL
A91: ESTACA/PIQUETE DE MADEIRA | B91: U | C91: ='CPU (DF)'!C91 -> 12 | E91: 4408 | G91: SINAPI CE 06/223 | I91: =$I$63 -> 1.052 | J91: =C91*I91 -> 12.624
A92: SUB-TOTAL | J92: =SUM(J91:J91) -> 12.624
A93: SERVIÇOS - COMPOSIÇÕES AUXILIARES
A94: DISCRIMINAÇÃO | B94: UNIDADE | C94: QUANT. | I94: P.UNIT. | J94: P.TOTAL
A95: REVESTIMENTO VEGETAL POR SEMEADURA A LANÇO MANUAL DE GRAMÍNEAS E LEGUMINOSAS | B95: m² | C95: ='CPU (DF)'!C95 -> 50.26548246 | E95: 4413993 | G95: SICRO CE 01/2023 | I95: =VLOOKUP(E95,[13]Sheet1!$A:$D,4,FALSE) -> 0.64 | J95: =C95*I95 -> 32.16990877
A96: SUB-TOTAL | J96: =SUM(J95:J95) -> 32.16990877
A97: MÃO DE OBRA
A98: DISCRIMINAÇÃO | B98: UNIDADE | C98: QUANT. | E98: COD. P | F98: COD. I | I98: P.UNIT. | J98: P.TOTAL
A99: ENGENHEIRO COM ENCARGO | B99: MÊS | C99: ='CPU (DF)'!C99 -> 0.001420454545 | E99: 93565 | G99: SINAPI CE 06/223 | I99: =$I$44 -> 19809.53 | J99: =C99*I99 -> 28.13853693
A100: ENCARREGADO COM ENCARGO | B100: MÊS | C100: ='CPU (DF)'!C100 -> 0.004261363636 | E100: 93572 | G100: SINAPI CE 06/223 | I100: =$I$46 -> 4552.47 | J100: =C100*I100 -> 19.39973011
A101: TOPOGRAFO COM ENCARGOS | B101: MÊS | C101: ='CPU (DF)'!C101 -> 0.003409090909 | E101: 94296 | G101: SINAPI CE 06/223 | I101: =$I$72 -> 6899.07 | J101: =C101*I101 -> 23.51955682
A102: AUXILIAR DE TOPOGRÁFO COM ENCARGOS | B102: MÊS | C102: ='CPU (DF)'!C102 -> 0.003409090909 | E102: 101389 | G102: SINAPI CE 06/223 | I102: =$I$71 -> 3308.45 | J102: =C102*I102 -> 11.27880682
A103: SERVENTE COM ENCARGOS COMPLEMENTARES - INLUSIVE ABERTURA E FECHAMENTO DE CERCAS | B103: MES | C103: ='CPU (DF)'!C103 -> 0.005893583194 | E103: 101452 | G103: SINAPI CE 06/223 | I103: =$I$45 -> 3679.7 | J103: =C103*I103 -> 21.68661808
A104: SUB-TOTAL | J104: =SUM(J99:J103) -> 104.0232488
A105: PRODUÇÃO MENSAL DA EQUIPE | B105: ='CPU (DF)'!B105 -> 169.6760641 | C105: CUSTO | J105: =J104+J96+J92+J88 -> 382.8721457
A106: TOTAL | J106: =ROUND(J105,2) -> 382.87
A107: BDI % | J107: 24.1
A108: TOTAL DO SERVIÇO - R$ | J108: =ROUND(J106*(1+J107/100),2) -> 475.14
A111: COMPOSIÇÃO DE PREÇO UNITÁRIO
A112: LOCAÇÃO E CONSTRUÇÃO DE BACIAS DE CAPTAÇÃO DE ENXURRADA (6 METROS DE RAIO) | I112: UNIDADE: | J112: UNID.
A113: EQUIPAMENTO
A114: DISCRIMINAÇÃO | B114: UNIDADE | C114: QUANT. PROD. | D114: QUANT. IMPROD. | E114: COD. P | F114: COD. I | G114: FONTE | H114: CHP/ P.UNIT. | I114: CHI | J114: P.TOTAL
A115: NIVEL OPTICO, COM PRECISAO DE 0,7 MM, AUMENTO DE 32X | B115: H | C115: ='CPU (DF)'!C115 -> 0.6 | E115: 7252 | G115: SINAPI CE 06/223 | H115: =$H$57 -> 2.25 | J115: =C115*H115+D115*I115 -> 1.35
A116: TEODOLITO ELETRONICO, PRECISAO ANGULAR DE 5 A 7 SEGUNDOS, INCLUINDO TRIPE | B116: H | C116: ='CPU (DF)'!C116 -> 0.6 | E116: 7247 | G116: SINAPI CE 06/223 | H116: =$H$58 -> 2.25 | J116: =C116*H116+D116*I116 -> 1.35
A117: PÁ CARREGADEIRA SOBRE RODAS, POTÊNCIA LÍQUIDA 128 HP, CAPACIDADE DA CAÇAMBA 1,7 A 2,8 M³ | B117: H | C117: ='CPU (DF)'!C117 -> 1.536166858 | D117: ='CPU (DF)'!D117 -> 0.5120556193 | E117: 5940 | F117: 5942 | G117: SINAPI CE 06/223 | H117: =$H$85 -> 185.56 | I117: =$I$85 -> 73.41 | J117: =C117*H117+D117*I117 -> 322.6411251
A118: VEÍCULO DE PASSEIO PARA DESLOCAMENTO DA EQUIPE | B118: H | C118: ='CPU (DF)'!C118 -> 0.25 | D118: ='CPU (DF)'!D118 -> 0.4166666667 | E118: E9093 | G118: SICRO CE 01/2023 | H118: =$H$30 -> 33.9383 | I118: =$I$30 -> 6.4294 | J118: =C118*H118+D118*I118 -> 11.16349167
A119: CAMINHONETE CABINE SIMPLES COM MOTOR 1.6 FLEX, CÂMBIO MANUAL, POTÊNCIA 101/104 CV, 2 PORTAS | B119: H | C119: ='CPU (DF)'!C119 -> 0.625 | D119: ='CPU (DF)'!D119 -> 0.375 | E119: 92145 | F119: 92146 | G119: SINAPI CE 06/223 | H119: =$H$31 -> 74.45 | I119: =$I$31 -> 33.17 | J119: =C119*H119+D119*I119 -> 58.97
A120: SUB-TOTAL | J120: =SUM(J115:J119) -> 395.4746168
A121: MATERIAL
A122: DISCRIMINAÇÃO | B122: UNIDADE | C122: QUANT. | E122: COD. | I122: P.UNIT. | J122: P.TOTAL
A123: ESTACA/PIQUETE DE MADEIRA | B123: U | C123: ='CPU (DF)'!C123 -> 12 | E123: 4408 | G123: SINAPI CE 06/223 | I123: =$I$63 -> 1.052 | J123: =C123*I123 -> 12.624
A124: SUB-TOTAL | J124: =SUM(J123:J123) -> 12.624
A125: SERVIÇOS - COMPOSIÇÕES AUXILIARES
A126: DISCRIMINAÇÃO | B126: UNIDADE | C126: QUANT. | I126: P.UNIT. | J126: P.TOTAL
A127: REVESTIMENTO VEGETAL POR SEMEADURA A LANÇO MANUAL DE GRAMÍNEAS E LEGUMINOSAS | B127: m² | C127: ='CPU (DF)'!C127 -> 94.24777961 | E127: 4413993 | G127: SICRO CE 01/2023 | I127: =VLOOKUP(E127,[13]Sheet1!$A:$D,4,FALSE) -> 0.64 | J127: =C127*I127 -> 60.31857895
A128: SUB-TOTAL | J128: =SUM(J127:J127) -> 60.31857895
A129: MÃO DE OBRA
A130: DISCRIMINAÇÃO | B130: UNIDADE | C130: QUANT. | E130: COD. P | F130: COD. I | I130: P.UNIT. | J130: P.TOTAL
A131: ENGENHEIRO COM ENCARGO | B131: MÊS | C131: ='CPU (DF)'!C131 -> 0.001515151515 | E131: 93565 | G131: SINAPI CE 06/223 | I131: =$I$44 -> 19809.53 | J131: =C131*I131 -> 30.01443939
A132: ENCARREGADO COM ENCARGO | B132: MÊS | C132: ='CPU (DF)'!C132 -> 0.004545454545 | E132: 93572 | G132: SINAPI CE 06/223 | I132: =$I$46 -> 4552.47 | J132: =C132*I132 -> 20.69304545
A133: TOPOGRAFO COM ENCARGOS | B133: MÊS | C133: ='CPU (DF)'!C133 -> 0.003409090909 | E133: 94296 | G133: SINAPI CE 06/223 | I133: =$I$72 -> 6899.07 | J133: =C133*I133 -> 23.51955682
A134: AUXILIAR DE TOPOGRÁFO COM ENCARGOS | B134: MÊS | C134: ='CPU (DF)'!C134 -> 0.003409090909 | E134: 101389 | G134: SINAPI CE 06/223 | I134: =$I$71 -> 3308.45 | J134: =C134*I134 -> 11.27880682
A135: SERVENTE COM ENCARGOS COMPLEMENTARES - INLUSIVE ABERTURA E FECHAMENTO DE CERCAS | B135: MES | C135: ='CPU (DF)'!C135 -> 0.01163762771 | E135: 101452 | G135: SINAPI CE 06/223 | I135: =$I$45 -> 3679.7 | J135: =C135*I135 -> 42.82297869
A136: SUB-TOTAL | J136: =SUM(J131:J135) -> 128.3288272
A137: PRODUÇÃO MENSAL DA EQUIPE | B137: ='CPU (DF)'!B137 -> 85.9281655 | C137: CUSTO | J137: =J136+J128+J124+J120 -> 596.7460229
A138: TOTAL | J138: =ROUND(J137,2) -> 596.75
A139: BDI % | J139: 24.1
A140: TOTAL DO SERVIÇO - R$ | J140: =ROUND(J138*(1+J139/100),2) -> 740.57
A142: COMPOSIÇÃO DE PREÇO UNITÁRIO
A143: LOCAÇÃO E CONSTRUÇÃO DE BACIAS DE CAPTAÇÃO DE ENXURRADA (9 METROS DE RAIO) | I143: UNIDADE: | J143: UNID.
A144: EQUIPAMENTO
A145: DISCRIMINAÇÃO | B145: UNIDADE | C145: QUANT. PROD. | D145: QUANT. IMPROD. | E145: COD. P | F145: COD. I | G145: FONTE | H145: CHP/ P.UNIT. | I145: CHI | J145: P.TOTAL
A146: NIVEL OPTICO, COM PRECISAO DE 0,7 MM, AUMENTO DE 32X | B146: H | C146: ='CPU (DF)'!C146 -> 0.65 | E146: 7252 | G146: SINAPI CE 06/223 | H146: =$H$57 -> 2.25 | J146: =C146*H146+D146*I146 -> 1.4625
A147: TEODOLITO ELETRONICO, PRECISAO ANGULAR DE 5 A 7 SEGUNDOS, INCLUINDO TRIPE | B147: H | C147: ='CPU (DF)'!C147 -> 0.65 | E147: 7247 | G147: SINAPI CE 06/223 | H147: =$H$58 -> 2.25 | J147: =C147*H147+D147*I147 -> 1.4625
A148: PÁ CARREGADEIRA SOBRE RODAS, POTÊNCIA LÍQUIDA 128 HP, CAPACIDADE DA CAÇAMBA 1,7 A 2,8 M³ | B148: H | C148: ='CPU (DF)'!C148 -> 3.738990826 | D148: ='CPU (DF)'!D148 -> 1.246330275 | E148: 5940 | F148: 5942 | G148: SINAPI CE 06/223 | H148: =$H$85 -> 185.56 | I148: =$I$85 -> 73.41 | J148: =C148*H148+D148*I148 -> 785.3002431
A149: VEÍCULO DE PASSEIO PARA DESLOCAMENTO DA EQUIPE | B149: H | C149: ='CPU (DF)'!C149 -> 0.265625 | D149: ='CPU (DF)'!D149 -> 0.4427083333 | E149: E9093 | G149: SICRO CE 01/2023 | H149: =$H$30 -> 33.9383 | I149: =$I$30 -> 6.4294 | J149: =C149*H149+D149*I149 -> 11.8612099
A150: CAMINHONETE CABINE SIMPLES COM MOTOR 1.6 FLEX, CÂMBIO MANUAL, POTÊNCIA 101/104 CV, 2 PORTAS | B150: H | C150: ='CPU (DF)'!C150 -> 0.671875 | D150: ='CPU (DF)'!D150 -> 0.403125 | E150: 92145 | F150: 92146 | G150: SINAPI CE 06/223 | H150: =$H$31 -> 74.45 | I150: =$I$31 -> 33.17 | J150: =C150*H150+D150*I150 -> 63.39275
A151: SUB-TOTAL | J151: =SUM(J146:J150) -> 863.479203
A152: MATERIAL
A153: DISCRIMINAÇÃO | B153: UNIDADE | C153: QUANT. | E153: COD. | I153: P.UNIT. | J153: P.TOTAL
A154: ESTACA/PIQUETE DE MADEIRA | B154: U | C154: ='CPU (DF)'!C154 -> 12 | E154: 4408 | G154: SINAPI CE 06/223 | I154: =$I$63 -> 1.052 | J154: =C154*I154 -> 12.624
A155: SUB-TOTAL | J155: =SUM(J154:J154) -> 12.624
A156: SERVIÇOS - COMPOSIÇÕES AUXILIARES
A157: DISCRIMINAÇÃO | B157: UNIDADE | C157: QUANT. | I157: P.UNIT. | J157: P.TOTAL
A158: REVESTIMENTO VEGETAL POR SEMEADURA A LANÇO MANUAL DE GRAMÍNEAS E LEGUMINOSAS | B158: m² | C158: ='CPU (DF)'!C158 -> 169.6460033 | E158: 4413993 | G158: SICRO CE 01/2023 | I158: =VLOOKUP(E158,[13]Sheet1!$A:$D,4,FALSE) -> 0.64 | J158: =C158*I158 -> 108.5734421
A159: SUB-TOTAL | J159: =SUM(J158:J158) -> 108.5734421
A160: MÃO DE OBRA
A161: DISCRIMINAÇÃO | B161: UNIDADE | C161: QUANT. | E161: COD. P | F161: COD. I | I161: P.UNIT. | J161: P.TOTAL
A162: ENGENHEIRO COM ENCARGO | B162: MÊS | C162: ='CPU (DF)'!C162 -> 0.001609848485 | E162: 93565 | G162: SINAPI CE 06/223 | I162: =$I$44 -> 19809.53 | J162: =C162*I162 -> 31.89034186
A163: ENCARREGADO COM ENCARGO | B163: MÊS | C163: ='CPU (DF)'!C163 -> 0.004829545455 | E163: 93572 | G163: SINAPI CE 06/223 | I163: =$I$46 -> 4552.47 | J163: =C163*I163 -> 21.9863608
A164: TOPOGRAFO COM ENCARGOS | B164: MÊS | C164: ='CPU (DF)'!C164 -> 0.003693181818 | E164: 94296 | G164: SINAPI CE 06/223 | I164: =$I$72 -> 6899.07 | J164: =C164*I164 -> 25.47951989
A165: AUXILIAR DE TOPOGRÁFO COM ENCARGOS | B165: MÊS | C165: ='CPU (DF)'!C165 -> 0.003693181818 | E165: 101389 | G165: SINAPI CE 06/223 | I165: =$I$71 -> 3308.45 | J165: =C165*I165 -> 12.21870739
A166: SERVENTE COM ENCARGOS COMPLEMENTARES - INLUSIVE ABERTURA E FECHAMENTO DE CERCAS | B166: MES | C166: ='CPU (DF)'!C166 -> 0.02832568807 | E166: 101452 | G166: SINAPI CE 06/223 | I166: =$I$45 -> 3679.7 | J166: =C166*I166 -> 104.2300344
A167: SUB-TOTAL | J167: =SUM(J162:J166) -> 195.8049643
A168: PRODUÇÃO MENSAL DA EQUIPE | B168: ='CPU (DF)'!B168 -> 35.30364372 | C168: CUSTO | J168: =J167+J159+J155+J151 -> 1180.481609
A169: TOTAL | J169: =ROUND(J168,2) -> 1180.48
A170: BDI % | J170: 24.1
A171: TOTAL DO SERVIÇO - R$ | J171: =ROUND(J169*(1+J170/100),2) -> 1464.98
A174: COMPOSIÇÃO DE PREÇO UNITÁRIO
A175: LOCAÇÃO E CONSTRUÇÃO DE BACIAS DE CAPTAÇÃO DE ENXURRADA (12 METROS DE RAIO) | I175: UNIDADE: | J175: UNID.
A176: EQUIPAMENTO
A177: DISCRIMINAÇÃO | B177: UNIDADE | C177: QUANT. PROD. | D177: QUANT. IMPROD. | E177: COD. P | F177: COD. I | G177: FONTE | H177: CHP/ P.UNIT. | I177: CHI | J177: P.TOTAL
A178: NIVEL OPTICO, COM PRECISAO DE 0,7 MM, AUMENTO DE 32X | B178: H | C178: ='CPU (DF)'!C178 -> 0.65 | E178: 7252 | G178: SINAPI CE 06/223 | H178: =$H$57 -> 2.25 | J178: =C178*H178+D178*I178 -> 1.4625
A179: TEODOLITO ELETRONICO, PRECISAO ANGULAR DE 5 A 7 SEGUNDOS, INCLUINDO TRIPE | B179: H | C179: ='CPU (DF)'!C179 -> 0.65 | E179: 7247 | G179: SINAPI CE 06/223 | H179: =$H$58 -> 2.25 | J179: =C179*H179+D179*I179 -> 1.4625
A180: PÁ CARREGADEIRA SOBRE RODAS, POTÊNCIA LÍQUIDA 128 HP, CAPACIDADE DA CAÇAMBA 1,7 A 2,8 M³ | B180: H | C180: ='CPU (DF)'!C180 -> 6 | D180: ='CPU (DF)'!D180 -> 2 | E180: 5940 | F180: 5942 | G180: SINAPI CE 06/223 | H180: =$H$85 -> 185.56 | I180: =$I$85 -> 73.41 | J180: =C180*H180+D180*I180 -> 1260.18
A181: VEÍCULO DE PASSEIO PARA DESLOCAMENTO DA EQUIPE | B181: H | C181: ='CPU (DF)'!C181 -> 0.28125 | D181: ='CPU (DF)'!D181 -> 0.46875 | E181: E9093 | G181: SICRO CE 01/2023 | H181: =$H$30 -> 33.9383 | I181: =$I$30 -> 6.4294 | J181: =C181*H181+D181*I181 -> 12.55892812
A182: CAMINHONETE CABINE SIMPLES COM MOTOR 1.6 FLEX, CÂMBIO MANUAL, POTÊNCIA 101/104 CV, 2 PORTAS | B182: H | C182: ='CPU (DF)'!C182 -> 0.6875 | D182: ='CPU (DF)'!D182 -> 0.4125 | E182: 92145 | F182: 92146 | G182: SINAPI CE 06/223 | H182: =$H$31 -> 74.45 | I182: =$I$31 -> 33.17 | J182: =C182*H182+D182*I182 -> 64.867
A183: SUB-TOTAL | J183: =SUM(J178:J182) -> 1340.530928
A184: MATERIAL
A185: DISCRIMINAÇÃO | B185: UNIDADE | C185: QUANT. | E185: COD. | I185: P.UNIT. | J185: P.TOTAL
A186: ESTACA/PIQUETE DE MADEIRA | B186: U | C186: ='CPU (DF)'!C186 -> 16 | E186: 4408 | G186: SINAPI CE 06/223 | I186: =$I$63 -> 1.052 | J186: =C186*I186 -> 16.832
A187: SUB-TOTAL | J187: =SUM(J186:J186) -> 16.832
A188: SERVIÇOS - COMPOSIÇÕES AUXILIARES
A189: DISCRIMINAÇÃO | B189: UNIDADE | C189: QUANT. | I189: P.UNIT. | J189: P.TOTAL
A190: REVESTIMENTO VEGETAL POR SEMEADURA A LANÇO MANUAL DE GRAMÍNEAS E LEGUMINOSAS | B190: m² | C190: ='CPU (DF)'!C190 -> 263.8937829 | E190: 4413993 | G190: SICRO CE 01/2023 | I190: =VLOOKUP(E190,[13]Sheet1!$A:$D,4,FALSE) -> 0.64 | J190: =C190*I190 -> 168.8920211
A191: SUB-TOTAL | J191: =SUM(J190:J190) -> 168.8920211
A192: MÃO DE OBRA
A193: DISCRIMINAÇÃO | B193: UNIDADE | C193: QUANT. | E193: COD. P | F193: COD. I | I193: P.UNIT. | J193: P.TOTAL
A194: ENGENHEIRO COM ENCARGO | B194: MES | C194: ='CPU (DF)'!C194 -> 0.001704545455 | E194: 93565 | G194: SINAPI CE 06/223 | I194: =$I$44 -> 19809.53 | J194: =C194*I194 -> 33.76624432
A195: ENCARREGADO COM ENCARGO | B195: MES | C195: ='CPU (DF)'!C195 -> 0.005113636364 | E195: 93572 | G195: SINAPI CE 06/223 | I195: =$I$46 -> 4552.47 | J195: =C195*I195 -> 23.27967614
A196: TOPOGRAFO COM ENCARGOS | B196: MÊS | C196: ='CPU (DF)'!C196 -> 0.003693181818 | E196: 94296 | G196: SINAPI CE 06/223 | I196: =$I$72 -> 6899.07 | J196: =C196*I196 -> 25.47951989
A197: AUXILIAR DE TOPOGRÁFO COM ENCARGOS | B197: MÊS | C197: ='CPU (DF)'!C197 -> 0.003693181818 | E197: 101389 | G197: SINAPI CE 06/223 | I197: =$I$71 -> 3308.45 | J197: =C197*I197 -> 12.21870739
A198: SERVENTE COM ENCARGOS COMPLEMENTARES - INLUSIVE ABERTURA E FECHAMENTO DE CERCAS | B198: MES | C198: ='CPU (DF)'!C198 -> 0.04545454545 | E198: 101452 | G198: SINAPI CE 06/223 | I198: =$I$45 -> 3679.7 | J198: =C198*I198 -> 167.2590909
A199: SUB-TOTAL | J199: =SUM(J194:J198) -> 262.0032386
A200: PRODUÇÃO DA EQUIPE | B200: ='CPU (DF)'!B200 -> 22 | C200: CUSTO | J200: =J199+J191+J187+J183 -> 1788.258188
A201: TOTAL | J201: =ROUND(J200,2) -> 1788.26
A202: BDI % | J202: 24.1
A203: TOTAL DO SERVIÇO - R$ | J203: =ROUND(J201*(1+J202/100),2) -> 2219.23
A205: COMPOSIÇÃO DE PREÇO UNITÁRIO
A206: CERCAMENTO DE ÁREAS AMBIENTALMENTE VULNERÁVEIS À CAPRINOVINOCULTURA | I206: UNIDADE: | J206: m
A207: EQUIPAMENTO
A208: DISCRIMINAÇÃO | B208: UNIDADE | C208: QUANT. PROD. | D208: QUANT. IMPROD. | E208: COD. P | F208: COD. I | G208: FONTE | I208: P.UNIT. | J208: P.TOTAL
A209: NIVEL OPTICO, COM PRECISAO DE 0,7 MM, AUMENTO DE 32X | B209: h | C209: ='CPU (DF)'!C209 -> 0.05 | E209: 7252 | G209: SINAPI CE 06/223 | H209: =H178 -> 2.25 | J209: =C209*H209+D209*I209 -> 0.1125
A210: TEODOLITO ELETRONICO, PRECISAO ANGULAR DE 5 A 7 SEGUNDOS, INCLUINDO TRIPE | B210: h | C210: ='CPU (DF)'!C210 -> 0.05 | E210: 7247 | G210: SINAPI CE 06/223 | H210: =H179 -> 2.25 | J210: =C210*H210+D210*I210 -> 0.1125
A211: VEÍCULO DE PASSEIO PARA DESLOCAMENTO DA EQUIPE | B211: h | C211: ='CPU (DF)'!C211 -> 0.01838235294 | D211: ='CPU (DF)'!D211 -> 0.0306372549 | E211: E9093 | F211: E9093 | G211: SICRO CE 01/2023 | H211: =H30 -> 33.9383 | I211: =I30 -> 6.4294 | J211: =C211*H211+D211*I211 -> 0.8208449755
... 87 more rows

Sheet CPU (DF)
A1: COMPOSIÇÃO DE PREÇO UNITÁRIO
A2: MOBILIZAÇÃO E DESMOBILIZAÇÃO | C2: REGIÃO: | G2: DF | I2: UNIDADE: | J2: R$/Tonelada/ Projeto
A3: EQUIPAMENTO
A4: DISCRIMINAÇÃO | B4: UNIDADE | C4: QUANT. PROD. | D4: QUANT. IMPROD. | E4: COD. | G4: FONTE | H4: P.UNIT. PROD | I4: P.UNIT. IMPR | J4: P.TOTAL
J5: =C5*E5*H5+C5*G5*I5 -> 0
A6: SUB-TOTAL | J6: =SUM(J5:J5) -> 0
A7: MATERIAL
A8: DISCRIMINAÇÃO | B8: UNIDADE | C8: QUANT. | E8: COD. | G8: FONTE | I8: P.UNIT. | J8: P.TOTAL
J9: Toneladas/ Projeto
J10: =C10*I10 -> 0
A11: SUB-TOTAL | J11: =SUM(J9:J10) -> 0
A12: SERVIÇOS - COMPOSIÇÕES AUXILIARES
A13: DISCRIMINAÇÃO | B13: UNIDADE | C13: QUANT. | E13: COD. | G13: FONTE | I13: P.UNIT. | J13: P.TOTAL
A14: TRANSPORTE COM CAVALO MECÂNICO COM SEMIRREBOQUE COM CAPACIDADE DE 30 T - RODOVIA PAVIMENTADA | B14: t*km | C14: 1 | E14: 5914640 | G14: SICRO DF 01/2023 | I14: =VLOOKUP(E14,[17]Sheet1!$A:$D,4,FALSE) -> 0.58 | J14: =C14*I14 -> 0.58
A15: SUB-TOTAL | J15: =SUM(J14:J14) -> 0.58
A16: MÃO DE OBRA
A17: DISCRIMINAÇÃO | B17: UNIDADE | C17: QUANT. | I17: P.UNIT. | J17: P.TOTAL
J18: =C18*I18 -> 0
A19: SUB-TOTAL | J19: =SUM(J18:J18) -> 0
A20: PRODUÇÃO DA EQUIPE (MOB E DESMOB) EM km | B20: =VLOOKUP(G2,DMT!D:E,2)*2 -> 100 | C20: CUSTO | J20: =J19+J15+J11+J6 -> 0.58
A21: TOTAL | J21: =J20*B20 -> 58
A22: BDI % | J22: 24.1
A23: TOTAL DO SERVIÇO - R$ | J23: =J21*(1+J22/100) -> 71.978
A25: COMPOSIÇÃO DE PREÇO UNITÁRIO
A26: LOCAÇÃO E CONSTRUÇÃO DE TERRAÇOS - INCLUSIVE SOLOS DUROS E SECOS | I26: UNIDADE: | J26: km
A27: EQUIPAMENTO
A28: DISCRIMINAÇÃO | B28: UNIDADE | C28: QUANT. PROD. | D28: QUANT. IMPROD. | E28: COD. P | F28: COD. I | G28: FONTE | H28: CHP | I28: CHI | J28: P.TOTAL
A29: TRATOR DE ESTEIRAS, POTÊNCIA 125 HP, PESO OPERACIONAL 12,9 T, COM LÂMINA 2,7 M3 | B29: H | C29: =22*6/B48 -> 7.058823529 | D29: =22*2/B48 -> 2.352941176 | E29: 5851 | F29: 5853 | G29: SINAPI DF 06/223 | H29: =VLOOKUP(E29,[18]planilhanull!$G$7:$K$7520,5,FALSE) -> 209.11 | I29: =VLOOKUP(F29,[18]planilhanull!$G$7:$K$7520,5,FALSE) -> 66.82 | J29: =C29*H29+D29*I29 -> 1633.294118
A30: VEÍCULO DE PASSEIO PARA DESLOCAMENTO DA EQUIPE | B30: H | C30: =(C46/2+C44)*3*22 -> 0.9375 | D30: =(C46/2+C44)*5*22 -> 1.5625 | E30: E9093 | F30: E9093 | G30: SICRO DF 01/2023 | H30: =VLOOKUP(E30,[19]Sheet1!$A:$K,10,FALSE) -> 34.3525 | I30: =VLOOKUP(F30,[19]Sheet1!$A:$K,11,FALSE) -> 6.3131 | J30: =C30*H30+D30*I30 -> 42.0696875
A31: CAMINHONETE CABINE SIMPLES COM MOTOR 1.6 FLEX, CÂMBIO MANUAL, POTÊNCIA 101/104 CV, 2 PORTAS | B31: H | C31: =(C46/2)*3*22 -> 0.5625 | D31: =(C46/2)*5*22 -> 0.9375 | E31: 92145 | F31: 92146 | G31: SINAPI DF 06/223 | H31: =VLOOKUP(E31,[18]planilhanull!$G$7:$K$7520,5,FALSE) -> 74.8 | I31: =VLOOKUP(F31,[18]planilhanull!$G$7:$K$7520,5,FALSE) -> 32.04 | J31: =C31*H31+D31*I31 -> 72.1125
A32: SUB-TOTAL | J32: =SUM(J29:J31) -> 1747.476305
A33: MATERIAL
A34: DISCRIMINAÇÃO | B34: UNIDADE | C34: QUANT. | E34: COD. | G34: FONTE | I34: P.UNIT. | J34: P.TOTAL
A36: SUB-TOTAL | J36: =SUM(J35:J35) -> 0
A37: SERVIÇOS - COMPOSIÇÕES AUXILIARES
A38: DISCRIMINAÇÃO | B38: UNIDADE | C38: QUANT. | E38: COD. | G38: FONTE | I38: P.UNIT. | J38: P.TOTAL
A39: LOCAÇÃO E NIVELAMENTO DE TERRAÇOS COM TOPOGRAFIA | B39: KM | C39: 1 | G39: COMPOSIÇÃO | I39: =J75 -> 193.2 | J39: =C39*I39 -> 193.2
A40: REVESTIMENTO VEGETAL POR SEMEADURA A LANÇO MANUAL DE GRAMÍNEAS E LEGUMINOSAS | B40: m² | C40: 1000 | E40: 4413993 | G40: SICRO DF 01/2023 | I40: =VLOOKUP(E40,[17]Sheet1!$A:$D,4,FALSE) -> 0.58 | J40: =C40*I40 -> 580
A41: SUB-TOTAL | J41: =SUM(J39:J40) -> 773.2
A42: MÃO DE OBRA
A43: DISCRIMINAÇÃO | B43: UNIDADE | C43: QUANT. | E43: COD. P | F43: COD. I | G43: FONTE | I43: P.UNIT. | J43: P.TOTAL
A44: ENGENHEIRO COM ENCARGO | B44: MES | C44: ='TEMPOS DE EXECUÇÃO POR UNIDADE'!S17/B48 -> 0.005681818182 | E44: 93565 | G44: SINAPI DF 06/223 | I44: =VLOOKUP(E44,[18]planilhanull!$G$7:$K$7520,5,FALSE) -> 19706.24 | J44: =C44*I44 -> 111.9672727
A45: SERVENTE COM ENCARGOS COMPLEMENTARES - INLUSIVE ABERTURA E FECHAMENTO DE CERCAS | B45: MES | C45: ='TEMPOS DE EXECUÇÃO POR UNIDADE'!S21/B48 -> 0.05347593583 | E45: 101452 | G45: SINAPI DF 06/223 | I45: =VLOOKUP(E45,[18]planilhanull!$G$7:$K$7520,5,FALSE) -> 3970.59 | J45: =C45*I45 -> 212.331016
A46: ENCARREGADO COM ENCARGO | B46: MES | C46: ='TEMPOS DE EXECUÇÃO POR UNIDADE'!S18/B48 -> 0.01704545455 | E46: 93572 | G46: SINAPI DF 06/223 | I46: =VLOOKUP(E46,[18]planilhanull!$G$7:$K$7520,5,FALSE) -> 4283.04 | J46: =C46*I46 -> 73.00636364
A47: SUB-TOTAL | J47: =SUM(J44:J46) -> 397.3046524
A48: PRODUÇÃO DA EQUIPE MÊS 22 KM, MAS COM FATOR DE REDUÇÃO PARA PÉRIODOS COM CHUVAS | B48: =22*0.85 -> 18.7 | C48: CUSTO | J48: =J47+J41+J36+J32 -> 2917.980958
A49: TOTAL | J49: =ROUND(J48,2) -> 2917.98
A50: BDI % | J50: 24.1
A51: TOTAL DO SERVIÇO - R$ | J51: =ROUND(J49*(1+J50/100),2) -> 3621.21
A53: COMPOSIÇÃO DE PREÇO UNITÁRIO
A54: LOCAÇÃO E NIVELAMENTO DE TERRAÇOS COM TOPOGRAFIA | I54: UNIDADE: | J54: km
A55: EQUIPAMENTO
A56: DISCRIMINAÇÃO | B56: UNIDADE | C56: QUANT. PROD. | D56: QUANT. IMPROD. | E56: COD. P | F56: COD. I | G56: FONTE | H56: CHP/ P.UNIT. | I56: CHI | J56: P.TOTAL
A57: NIVEL OPTICO, COM PRECISAO DE 0,7 MM, AUMENTO DE 32X | B57: H | C57: =C71*8*22 -> 0.99609375 | E57: 7252 | G57: SINAPI DF 06/223 | H57: =VLOOKUP(E57,[20]sheet1!$A$1:$E$65536,5,FALSE) -> 2.25 | J57: =C57*H57+D57*I57 -> 2.241210937
A58: TEODOLITO ELETRONICO, PRECISAO ANGULAR DE 5 A 7 SEGUNDOS, INCLUINDO TRIPE | B58: H | C58: =C71*8*22 -> 0.99609375 | E58: 7247 | G58: SINAPI DF 06/223 | H58: =VLOOKUP(E58,[20]sheet1!$A$1:$E$65536,5,FALSE) -> 2.25 | J58: =C58*H58+D58*I58 -> 2.241210937
A59: CAMINHONETE CABINE SIMPLES COM MOTOR 1.6 FLEX, CÂMBIO MANUAL, POTÊNCIA 101/104 CV, 2 PORTAS | B59: H | C59: =C71*3*22 -> 0.3735351562 | D59: =C71*5*22 -> 0.6225585938 | E59: 92145 | F59: 92146 | G59: SINAPI DF 06/223 | H59: =H31 -> 74.8 | I59: =I31 -> 32.04 | J59: =C59*H59+D59*I59 -> 47.88720703
A60: SUB-TOTAL | J60: =SUM(J57:J59) -> 52.36962891
A61: MATERIAL
A62: DISCRIMINAÇÃO | B62: UNIDADE | C62: QUANT. | E62: COD. | I62: P.UNIT. | J62: P.TOTAL
A63: ESTACA/PIQUETE DE MADEIRA | B63: U | C63: =1000/12 -> 83.33333333 | E63: 4408 | G63: SINAPI DF 06/223 | I63: =VLOOKUP(E63,[20]sheet1!$A$1:$E$65536,5,FALSE)*0.4 -> 1.268 | J63: =C63*I63 -> 105.6666667
A64: SUB-TOTAL | J64: =SUM(J63:J63) -> 105.6666667
A65: SERVIÇOS - COMPOSIÇÕES AUXILIARES
A66: DISCRIMINAÇÃO | B66: UNIDADE | C66: QUANT. | I66: P.UNIT. | J66: P.TOTAL
A68: SUB-TOTAL
A69: MÃO DE OBRA
A70: DISCRIMINAÇÃO | B70: UNIDADE | C70: QUANT. | E70: COD. P | F70: COD. I | I70: P.UNIT. | J70: P.TOTAL
A71: AUXILIAR DE TOPOGRÁFO COM ENCARGOS | B71: MÊS | C71: ='TEMPOS DE EXECUÇÃO POR UNIDADE'!S20/B74 -> 0.00565962358 | E71: 101389 | G71: SINAPI DF 06/223 | I71: =VLOOKUP(E71,[18]planilhanull!$G$7:$K$7520,5,FALSE) -> 2068.47 | J71: =C71*I71 -> 11.70676159
A72: TOPOGRAFO COM ENCARGOS | B72: MÊS | C72: ='TEMPOS DE EXECUÇÃO POR UNIDADE'!S19/B74 -> 0.00565962358 | E72: 94296 | G72: SINAPI DF 06/223 | I72: =VLOOKUP(E72,[18]planilhanull!$G$7:$K$7520,5,FALSE) -> 4143.75 | J72: =C72*I72 -> 23.45206521
A73: SUB-TOTAL | J73: =SUM(J71:J72) -> 35.15882679
A74: PRODUÇÃO MENSAL DA EQUIPE | B74: =22*8/3.75 -> 46.93333333 | C74: CUSTO | J74: =J73+J68+J64+J60 -> 193.1951224
A75: TOTAL | J75: =ROUND(J74,2) -> 193.2
A76: BDI % | J76: 24.1
A77: TOTAL DO SERVIÇO - R$ | J77: =ROUND(J75*(1+J76/100),2) -> 239.76
A79: COMPOSIÇÃO DE PREÇO UNITÁRIO
A80: LOCAÇÃO E CONSTRUÇÃO DE BACIAS DE CAPTAÇÃO DE ENXURRADA (4 METROS DE RAIO) | I80: UNIDADE: | J80: UNID.
A81: EQUIPAMENTO
A82: DISCRIMINAÇÃO | B82: UNIDADE | C82: QUANT. PROD. | D82: QUANT. IMPROD. | E82: COD. P | F82: COD. I | G82: FONTE | H82: CHP/ P.UNIT. | I82: CHI | J82: P.TOTAL
A83: NIVEL OPTICO, COM PRECISAO DE 0,7 MM, AUMENTO DE 32X | B83: H | C83: =C101*8*22 -> 0.6 | E83: 7252 | G83: SINAPI DF 06/223 | H83: =$H$57 -> 2.25 | J83: =C83*H83+D83*I83 -> 1.35
A84: TEODOLITO ELETRONICO, PRECISAO ANGULAR DE 5 A 7 SEGUNDOS, INCLUINDO TRIPE | B84: H | C84: =C101*8*22 -> 0.6 | E84: 7247 | G84: SINAPI DF 06/223 | H84: =$H$58 -> 2.25 | J84: =C84*H84+D84*I84 -> 1.35
A85: PÁ CARREGADEIRA SOBRE RODAS, POTÊNCIA LÍQUIDA 128 HP, CAPACIDADE DA CAÇAMBA 1,7 A 2,8 M³ | B85: H | C85: =$C$180*'TEMPOS DE EXECUÇÃO POR UNIDADE'!$J$7/'TEMPOS DE EXECUÇÃO POR UNIDADE'!$M$7 -> 0.7779529817 | D85: =$D$180*'TEMPOS DE EXECUÇÃO POR UNIDADE'!$J$7/'TEMPOS DE EXECUÇÃO POR UNIDADE'!$M$7 -> 0.2593176606 | E85: 5940 | F85: 5942 | G85: SINAPI DF 06/223 | H85: =VLOOKUP(E85,[18]planilhanull!$G$7:$K$7520,5,FALSE) -> 165.71 | I85: =VLOOKUP(F85,[18]planilhanull!$G$7:$K$7520,5,FALSE) -> 65.01 | J85: =C85*H85+D85*I85 -> 145.7728297
A86: VEÍCULO DE PASSEIO PARA DESLOCAMENTO DA EQUIPE | B86: H | C86: =(C99+C100/2)*3*22 -> 0.234375 | D86: =(C99+C100/2)*5*22 -> 0.390625 | E86: E9093 | G86: SICRO DF 01/2023 | H86: =$H$30 -> 34.3525 | I86: =$I$30 -> 6.3131 | J86: =C86*H86+D86*I86 -> 10.51742188
A87: CAMINHONETE CABINE SIMPLES COM MOTOR 1.6 FLEX, CÂMBIO MANUAL, POTÊNCIA 101/104 CV, 2 PORTAS | B87: H | C87: =(C100/2+C101)*5*22 -> 0.609375 | D87: =(C100/2+C101)*3*22 -> 0.365625 | E87: 92145 | F87: 92146 | G87: SINAPI DF 06/223 | H87: =$H$31 -> 74.8 | I87: =$I$31 -> 32.04 | J87: =C87*H87+D87*I87 -> 57.295875
A88: SUB-TOTAL | J88: =SUM(J83:J87) -> 216.2861266
A89: MATERIAL
A90: DISCRIMINAÇÃO | B90: UNIDADE | C90: QUANT. | E90: COD. | I90: P.UNIT. | J90: P.TOTAL
A91: ESTACA/PIQUETE DE MADEIRA | B91: U | C91: 12 | E91: 4408 | G91: SINAPI DF 06/223 | I91: =$I$63 -> 1.268 | J91: =C91*I91 -> 15.216
A92: SUB-TOTAL | J92: =SUM(J91:J91) -> 15.216
A93: SERVIÇOS - COMPOSIÇÕES AUXILIARES
A94: DISCRIMINAÇÃO | B94: UNIDADE | C94: QUANT. | I94: P.UNIT. | J94: P.TOTAL
A95: REVESTIMENTO VEGETAL POR SEMEADURA A LANÇO MANUAL DE GRAMÍNEAS E LEGUMINOSAS | B95: m² | C95: =PI()*4*4 -> 50.26548246 | E95: 4413993 | G95: SICRO DF 01/2023 | I95: =VLOOKUP(E95,[17]Sheet1!$A:$D,4,FALSE) -> 0.58 | J95: =C95*I95 -> 29.15397983
A96: SUB-TOTAL | J96: =SUM(J95:J95) -> 29.15397983
A97: MÃO DE OBRA
A98: DISCRIMINAÇÃO | B98: UNIDADE | C98: QUANT. | E98: COD. P | F98: COD. I | I98: P.UNIT. | J98: P.TOTAL
A99: ENGENHEIRO COM ENCARGO | B99: MÊS | C99: ='TEMPOS DE EXECUÇÃO POR UNIDADE'!K17/B$105 -> 0.001420454545 | E99: 93565 | G99: SINAPI DF 06/223 | I99: =$I$44 -> 19706.24 | J99: =C99*I99 -> 27.99181818
A100: ENCARREGADO COM ENCARGO | B100: MÊS | C100: ='TEMPOS DE EXECUÇÃO POR UNIDADE'!K18/B$105 -> 0.004261363636 | E100: 93572 | G100: SINAPI DF 06/223 | I100: =$I$46 -> 4283.04 | J100: =C100*I100 -> 18.25159091
A101: TOPOGRAFO COM ENCARGOS | B101: MÊS | C101: ='TEMPOS DE EXECUÇÃO POR UNIDADE'!K19/B$105 -> 0.003409090909 | E101: 94296 | G101: SINAPI DF 06/223 | I101: =$I$72 -> 4143.75 | J101: =C101*I101 -> 14.12642045
A102: AUXILIAR DE TOPOGRÁFO COM ENCARGOS | B102: MÊS | C102: ='TEMPOS DE EXECUÇÃO POR UNIDADE'!K20/B$105 -> 0.003409090909 | E102: 101389 | G102: SINAPI DF 06/223 | I102: =$I$71 -> 2068.47 | J102: =C102*I102 -> 7.051602273
A103: SERVENTE COM ENCARGOS COMPLEMENTARES - INLUSIVE ABERTURA E FECHAMENTO DE CERCAS | B103: MES | C103: ='TEMPOS DE EXECUÇÃO POR UNIDADE'!K21/B$105 -> 0.005893583194 | E103: 101452 | G103: SINAPI DF 06/223 | I103: =$I$45 -> 3970.59 | J103: =C103*I103 -> 23.4010025
A104: SUB-TOTAL | J104: =SUM(J99:J103) -> 90.82243431
A105: PRODUÇÃO MENSAL DA EQUIPE | B105: =22*8/(C85+D85) -> 169.6760641 | C105: CUSTO | J105: =J104+J96+J92+J88 -> 351.4785407
A106: TOTAL | J106: =ROUND(J105,2) -> 351.48
A107: BDI % | J107: 24.1
A108: TOTAL DO SERVIÇO - R$ | J108: =ROUND(J106*(1+J107/100),2) -> 436.19
A111: COMPOSIÇÃO DE PREÇO UNITÁRIO
A112: LOCAÇÃO E CONSTRUÇÃO DE BACIAS DE CAPTAÇÃO DE ENXURRADA (6 METROS DE RAIO) | I112: UNIDADE: | J112: UNID.
A113: EQUIPAMENTO
A114: DISCRIMINAÇÃO | B114: UNIDADE | C114: QUANT. PROD. | D114: QUANT. IMPROD. | E114: COD. P | F114: COD. I | G114: FONTE | H114: CHP/ P.UNIT. | I114: CHI | J114: P.TOTAL
A115: NIVEL OPTICO, COM PRECISAO DE 0,7 MM, AUMENTO DE 32X | B115: H | C115: =C133*8*22 -> 0.6 | E115: 7252 | G115: SINAPI DF 06/223 | H115: =$H$57 -> 2.25 | J115: =C115*H115+D115*I115 -> 1.35
A116: TEODOLITO ELETRONICO, PRECISAO ANGULAR DE 5 A 7 SEGUNDOS, INCLUINDO TRIPE | B116: H | C116: =C133*8*22 -> 0.6 | E116: 7247 | G116: SINAPI DF 06/223 | H116: =$H$58 -> 2.25 | J116: =C116*H116+D116*I116 -> 1.35
A117: PÁ CARREGADEIRA SOBRE RODAS, POTÊNCIA LÍQUIDA 128 HP, CAPACIDADE DA CAÇAMBA 1,7 A 2,8 M³ | B117: H | C117: =$C$180*'TEMPOS DE EXECUÇÃO POR UNIDADE'!$K$7/'TEMPOS DE EXECUÇÃO POR UNIDADE'!$M$7 -> 1.536166858 | D117: =$D$180*'TEMPOS DE EXECUÇÃO POR UNIDADE'!$K$7/'TEMPOS DE EXECUÇÃO POR UNIDADE'!$M$7 -> 0.5120556193 | E117: 5940 | F117: 5942 | G117: SINAPI DF 06/223 | H117: =$H$85 -> 165.71 | I117: =$I$85 -> 65.01 | J117: =C117*H117+D117*I117 -> 287.8469458
A118: VEÍCULO DE PASSEIO PARA DESLOCAMENTO DA EQUIPE | B118: H | C118: =(C131+C132/2)*3*22 -> 0.25 | D118: =(C131+C132/2)*5*22 -> 0.4166666667 | E118: E9093 | G118: SICRO DF 01/2023 | H118: =$H$30 -> 34.3525 | I118: =$I$30 -> 6.3131 | J118: =C118*H118+D118*I118 -> 11.21858333
A119: CAMINHONETE CABINE SIMPLES COM MOTOR 1.6 FLEX, CÂMBIO MANUAL, POTÊNCIA 101/104 CV, 2 PORTAS | B119: H | C119: =(C132/2+C133)*5*22 -> 0.625 | D119: =(C132/2+C133)*3*22 -> 0.375 | E119: 92145 | F119: 92146 | G119: SINAPI DF 06/223 | H119: =$H$31 -> 74.8 | I119: =$I$31 -> 32.04 | J119: =C119*H119+D119*I119 -> 58.765
A120: SUB-TOTAL | J120: =SUM(J115:J119) -> 360.5305291
A121: MATERIAL
A122: DISCRIMINAÇÃO | B122: UNIDADE | C122: QUANT. | E122: COD. | I122: P.UNIT. | J122: P.TOTAL
A123: ESTACA/PIQUETE DE MADEIRA | B123: U | C123: 12 | E123: 4408 | G123: SINAPI DF 06/223 | I123: =$I$63 -> 1.268 | J123: =C123*I123 -> 15.216
A124: SUB-TOTAL | J124: =SUM(J123:J123) -> 15.216
A125: SERVIÇOS - COMPOSIÇÕES AUXILIARES
A126: DISCRIMINAÇÃO | B126: UNIDADE | C126: QUANT. | I126: P.UNIT. | J126: P.TOTAL
A127: REVESTIMENTO VEGETAL POR SEMEADURA A LANÇO MANUAL DE GRAMÍNEAS E LEGUMINOSAS | B127: m² | C127: =PI()*6*5 -> 94.24777961 | E127: 4413993 | G127: SICRO DF 01/2023 | I127: =VLOOKUP(E127,[17]Sheet1!$A:$D,4,FALSE) -> 0.58 | J127: =C127*I127 -> 54.66371217
A128: SUB-TOTAL | J128: =SUM(J127:J127) -> 54.66371217
A129: MÃO DE OBRA
A130: DISCRIMINAÇÃO | B130: UNIDADE | C130: QUANT. | E130: COD. P | F130: COD. I | I130: P.UNIT. | J130: P.TOTAL
A131: ENGENHEIRO COM ENCARGO | B131: MÊS | C131: ='TEMPOS DE EXECUÇÃO POR UNIDADE'!M17/B$137 -> 0.001515151515 | E131: 93565 | G131: SINAPI DF 06/223 | I131: =$I$44 -> 19706.24 | J131: =C131*I131 -> 29.85793939
A132: ENCARREGADO COM ENCARGO | B132: MÊS | C132: ='TEMPOS DE EXECUÇÃO POR UNIDADE'!M18/B$137 -> 0.004545454545 | E132: 93572 | G132: SINAPI DF 06/223 | I132: =$I$46 -> 4283.04 | J132: =C132*I132 -> 19.46836364
A133: TOPOGRAFO COM ENCARGOS | B133: MÊS | C133: ='TEMPOS DE EXECUÇÃO POR UNIDADE'!M19/B$137 -> 0.003409090909 | E133: 94296 | G133: SINAPI DF 06/223 | I133: =$I$72 -> 4143.75 | J133: =C133*I133 -> 14.12642045
A134: AUXILIAR DE TOPOGRÁFO COM ENCARGOS | B134: MÊS | C134: ='TEMPOS DE EXECUÇÃO POR UNIDADE'!M20/B$137 -> 0.003409090909 | E134: 101389 | G134: SINAPI DF 06/223 | I134: =$I$71 -> 2068.47 | J134: =C134*I134 -> 7.051602273
A135: SERVENTE COM ENCARGOS COMPLEMENTARES - INLUSIVE ABERTURA E FECHAMENTO DE CERCAS | B135: MES | C135: ='TEMPOS DE EXECUÇÃO POR UNIDADE'!M21/B$137 -> 0.01163762771 | E135: 101452 | G135: SINAPI DF 06/223 | I135: =$I$45 -> 3970.59 | J135: =C135*I135 -> 46.20824821
A136: SUB-TOTAL | J136: =SUM(J131:J135) -> 116.712574
A137: PRODUÇÃO MENSAL DA EQUIPE | B137: =22*8/(C117+D117) -> 85.9281655 | C137: CUSTO | J137: =J136+J128+J124+J120 -> 547.1228153
A138: TOTAL | J138: =ROUND(J137,2) -> 547.12
A139: BDI % | J139: 24.1
A140: TOTAL DO SERVIÇO - R$ | J140: =ROUND(J138*(1+J139/100),2) -> 678.98
A142: COMPOSIÇÃO DE PREÇO UNITÁRIO
A143: LOCAÇÃO E CONSTRUÇÃO DE BACIAS DE CAPTAÇÃO DE ENXURRADA (9 METROS DE RAIO) | I143: UNIDADE: | J143: UNID.
A144: EQUIPAMENTO
A145: DISCRIMINAÇÃO | B145: UNIDADE | C145: QUANT. PROD. | D145: QUANT. IMPROD. | E145: COD. P | F145: COD. I | G145: FONTE | H145: CHP/ P.UNIT. | I145: CHI | J145: P.TOTAL
A146: NIVEL OPTICO, COM PRECISAO DE 0,7 MM, AUMENTO DE 32X | B146: H | C146: =C164*8*22 -> 0.65 | E146: 7252 | G146: SINAPI DF 06/223 | H146: =$H$57 -> 2.25 | J146: =C146*H146+D146*I146 -> 1.4625
A147: TEODOLITO ELETRONICO, PRECISAO ANGULAR DE 5 A 7 SEGUNDOS, INCLUINDO TRIPE | B147: H | C147: =C164*8*22 -> 0.65 | E147: 7247 | G147: SINAPI DF 06/223 | H147: =$H$58 -> 2.25 | J147: =C147*H147+D147*I147 -> 1.4625
A148: PÁ CARREGADEIRA SOBRE RODAS, POTÊNCIA LÍQUIDA 128 HP, CAPACIDADE DA CAÇAMBA 1,7 A 2,8 M³ | B148: H | C148: =$C$180*'TEMPOS DE EXECUÇÃO POR UNIDADE'!$L$7/'TEMPOS DE EXECUÇÃO POR UNIDADE'!$M$7 -> 3.738990826 | D148: =$D$180*'TEMPOS DE EXECUÇÃO POR UNIDADE'!$L$7/'TEMPOS DE EXECUÇÃO POR UNIDADE'!$M$7 -> 1.246330275 | E148: 5940 | F148: 5942 | G148: SINAPI DF 06/223 | H148: =$H$85 -> 165.71 | I148: =$I$85 -> 65.01 | J148: =C148*H148+D148*I148 -> 700.6121009
A149: VEÍCULO DE PASSEIO PARA DESLOCAMENTO DA EQUIPE | B149: H | C149: =(C162+C163/2)*3*22 -> 0.265625 | D149: =(C162+C163/2)*5*22 -> 0.4427083333 | E149: E9093 | G149: SICRO DF 01/2023 | H149: =$H$30 -> 34.3525 | I149: =$I$30 -> 6.3131 | J149: =C149*H149+D149*I149 -> 11.91974479
A150: CAMINHONETE CABINE SIMPLES COM MOTOR 1.6 FLEX, CÂMBIO MANUAL, POTÊNCIA 101/104 CV, 2 PORTAS | B150: H | C150: =(C163/2+C164)*5*22 -> 0.671875 | D150: =(C163/2+C164)*3*22 -> 0.403125 | E150: 92145 | F150: 92146 | G150: SINAPI DF 06/223 | H150: =$H$31 -> 74.8 | I150: =$I$31 -> 32.04 | J150: =C150*H150+D150*I150 -> 63.172375
A151: SUB-TOTAL | J151: =SUM(J146:J150) -> 778.6292207
A152: MATERIAL
A153: DISCRIMINAÇÃO | B153: UNIDADE | C153: QUANT. | E153: COD. | I153: P.UNIT. | J153: P.TOTAL
A154: ESTACA/PIQUETE DE MADEIRA | B154: U | C154: 12 | E154: 4408 | G154: SINAPI DF 06/223 | I154: =$I$63 -> 1.268 | J154: =C154*I154 -> 15.216
A155: SUB-TOTAL | J155: =SUM(J154:J154) -> 15.216
A156: SERVIÇOS - COMPOSIÇÕES AUXILIARES
A157: DISCRIMINAÇÃO | B157: UNIDADE | C157: QUANT. | I157: P.UNIT. | J157: P.TOTAL
A158: REVESTIMENTO VEGETAL POR SEMEADURA A LANÇO MANUAL DE GRAMÍNEAS E LEGUMINOSAS | B158: m² | C158: =PI()*9*6 -> 169.6460033 | E158: 4413993 | G158: SICRO DF 01/2023 | I158: =VLOOKUP(E158,[17]Sheet1!$A:$D,4,FALSE) -> 0.58 | J158: =C158*I158 -> 98.39468191
A159: SUB-TOTAL | J159: =SUM(J158:J158) -> 98.39468191
A160: MÃO DE OBRA
A161: DISCRIMINAÇÃO | B161: UNIDADE | C161: QUANT. | E161: COD. P | F161: COD. I | I161: P.UNIT. | J161: P.TOTAL
A162: ENGENHEIRO COM ENCARGO | B162: MÊS | C162: ='TEMPOS DE EXECUÇÃO POR UNIDADE'!O17/B$168 -> 0.001609848485 | E162: 93565 | G162: SINAPI DF 06/223 | I162: =$I$44 -> 19706.24 | J162: =C162*I162 -> 31.72406061
A163: ENCARREGADO COM ENCARGO | B163: MÊS | C163: ='TEMPOS DE EXECUÇÃO POR UNIDADE'!O18/B$168 -> 0.004829545455 | E163: 93572 | G163: SINAPI DF 06/223 | I163: =$I$46 -> 4283.04 | J163: =C163*I163 -> 20.68513636
A164: TOPOGRAFO COM ENCARGOS | B164: MÊS | C164: ='TEMPOS DE EXECUÇÃO POR UNIDADE'!O19/B$168 -> 0.003693181818 | E164: 94296 | G164: SINAPI DF 06/223 | I164: =$I$72 -> 4143.75 | J164: =C164*I164 -> 15.30362216
A165: AUXILIAR DE TOPOGRÁFO COM ENCARGOS | B165: MÊS | C165: ='TEMPOS DE EXECUÇÃO POR UNIDADE'!O20/B$168 -> 0.003693181818 | E165: 101389 | G165: SINAPI DF 06/223 | I165: =$I$71 -> 2068.47 | J165: =C165*I165 -> 7.639235795
A166: SERVENTE COM ENCARGOS COMPLEMENTARES - INLUSIVE ABERTURA E FECHAMENTO DE CERCAS | B166: MES | C166: ='TEMPOS DE EXECUÇÃO POR UNIDADE'!O21/B$168 -> 0.02832568807 | E166: 101452 | G166: SINAPI DF 06/223 | I166: =$I$45 -> 3970.59 | J166: =C166*I166 -> 112.4696938
A167: SUB-TOTAL | J167: =SUM(J162:J166) -> 187.8217487
A168: PRODUÇÃO MENSAL DA EQUIPE | B168: =22*8/(C148+D148) -> 35.30364372 | C168: CUSTO | J168: =J167+J159+J155+J151 -> 1080.061651
A169: TOTAL | J169: =ROUND(J168,2) -> 1080.06
A170: BDI % | J170: 24.1
A171: TOTAL DO SERVIÇO - R$ | J171: =ROUND(J169*(1+J170/100),2) -> 1340.35
A174: COMPOSIÇÃO DE PREÇO UNITÁRIO
A175: LOCAÇÃO E CONSTRUÇÃO DE BACIAS DE CAPTAÇÃO DE ENXURRADA (12 METROS DE RAIO) | I175: UNIDADE: | J175: UNID.
A176: EQUIPAMENTO
A177: DISCRIMINAÇÃO | B177: UNIDADE | C177: QUANT. PROD. | D177: QUANT. IMPROD. | E177: COD. P | F177: COD. I | G177: FONTE | H177: CHP/ P.UNIT. | I177: CHI | J177: P.TOTAL
A178: NIVEL OPTICO, COM PRECISAO DE 0,7 MM, AUMENTO DE 32X | B178: H | C178: =C196*8*22 -> 0.65 | E178: 7252 | G178: SINAPI DF 06/223 | H178: =$H$57 -> 2.25 | J178: =C178*H178+D178*I178 -> 1.4625
A179: TEODOLITO ELETRONICO, PRECISAO ANGULAR DE 5 A 7 SEGUNDOS, INCLUINDO TRIPE | B179: H | C179: =C196*8*22 -> 0.65 | E179: 7247 | G179: SINAPI DF 06/223 | H179: =$H$58 -> 2.25 | J179: =C179*H179+D179*I179 -> 1.4625
A180: PÁ CARREGADEIRA SOBRE RODAS, POTÊNCIA LÍQUIDA 128 HP, CAPACIDADE DA CAÇAMBA 1,7 A 2,8 M³ | B180: H | C180: 6 | D180: 2 | E180: 5940 | F180: 5942 | G180: SINAPI DF 06/223 | H180: =$H$85 -> 165.71 | I180: =$I$85 -> 65.01 | J180: =C180*H180+D180*I180 -> 1124.28
A181: VEÍCULO DE PASSEIO PARA DESLOCAMENTO DA EQUIPE | B181: H | C181: =(C194+C195/2)*3*22 -> 0.28125 | D181: =(C194+C195/2)*5*22 -> 0.46875 | E181: E9093 | G181: SICRO DF 01/2023 | H181: =$H$30 -> 34.3525 | I181: =$I$30 -> 6.3131 | J181: =C181*H181+D181*I181 -> 12.62090625
A182: CAMINHONETE CABINE SIMPLES COM MOTOR 1.6 FLEX, CÂMBIO MANUAL, POTÊNCIA 101/104 CV, 2 PORTAS | B182: H | C182: =(C195/2+C196)*5*22 -> 0.6875 | D182: =(C195/2+C196)*3*22 -> 0.4125 | E182: 92145 | F182: 92146 | G182: SINAPI DF 06/223 | H182: =$H$31 -> 74.8 | I182: =$I$31 -> 32.04 | J182: =C182*H182+D182*I182 -> 64.6415
A183: SUB-TOTAL | J183: =SUM(J178:J182) -> 1204.467406
A184: MATERIAL
A185: DISCRIMINAÇÃO | B185: UNIDADE | C185: QUANT. | E185: COD. | I185: P.UNIT. | J185: P.TOTAL
A186: ESTACA/PIQUETE DE MADEIRA | B186: U | C186: 16 | E186: 4408 | G186: SINAPI DF 06/223 | I186: =$I$63 -> 1.268 | J186: =C186*I186 -> 20.288
A187: SUB-TOTAL | J187: =SUM(J186:J186) -> 20.288
A188: SERVIÇOS - COMPOSIÇÕES AUXILIARES
A189: DISCRIMINAÇÃO | B189: UNIDADE | C189: QUANT. | I189: P.UNIT. | J189: P.TOTAL
A190: REVESTIMENTO VEGETAL POR SEMEADURA A LANÇO MANUAL DE GRAMÍNEAS E LEGUMINOSAS | B190: m² | C190: =PI()*12*7 -> 263.8937829 | E190: 4413993 | G190: SICRO DF 01/2023 | I190: =VLOOKUP(E190,[17]Sheet1!$A:$D,4,FALSE) -> 0.58 | J190: =C190*I190 -> 153.0583941
A191: SUB-TOTAL | J191: =SUM(J190:J190) -> 153.0583941
A192: MÃO DE OBRA
A193: DISCRIMINAÇÃO | B193: UNIDADE | C193: QUANT. | E193: COD. P | F193: COD. I | I193: P.UNIT. | J193: P.TOTAL
A194: ENGENHEIRO COM ENCARGO | B194: MES | C194: ='TEMPOS DE EXECUÇÃO POR UNIDADE'!Q17/B$200 -> 0.001704545455 | E194: 93565 | G194: SINAPI DF 06/223 | I194: =$I$44 -> 19706.24 | J194: =C194*I194 -> 33.59018182
A195: ENCARREGADO COM ENCARGO | B195: MES | C195: ='TEMPOS DE EXECUÇÃO POR UNIDADE'!Q18/B$200 -> 0.005113636364 | E195: 93572 | G195: SINAPI DF 06/223 | I195: =$I$46 -> 4283.04 | J195: =C195*I195 -> 21.90190909
A196: TOPOGRAFO COM ENCARGOS | B196: MÊS | C196: ='TEMPOS DE EXECUÇÃO POR UNIDADE'!Q19/B$200 -> 0.003693181818 | E196: 94296 | G196: SINAPI DF 06/223 | I196: =$I$72 -> 4143.75 | J196: =C196*I196 -> 15.30362216
A197: AUXILIAR DE TOPOGRÁFO COM ENCARGOS | B197: MÊS | C197: ='TEMPOS DE EXECUÇÃO POR UNIDADE'!Q20/B$200 -> 0.003693181818 | E197: 101389 | G197: SINAPI DF 06/223 | I197: =$I$71 -> 2068.47 | J197: =C197*I197 -> 7.639235795
A198: SERVENTE COM ENCARGOS COMPLEMENTARES - INLUSIVE ABERTURA E FECHAMENTO DE CERCAS | B198: MES | C198: ='TEMPOS DE EXECUÇÃO POR UNIDADE'!Q21/B$200 -> 0.04545454545 | E198: 101452 | G198: SINAPI DF 06/223 | I198: =$I$45 -> 3970.59 | J198: =C198*I198 -> 180.4813636
A199: SUB-TOTAL | J199: =SUM(J194:J198) -> 258.9163125
A200: PRODUÇÃO DA EQUIPE | B200: =22*8/(C180+D180) -> 22 | C200: CUSTO | J200: =J199+J191+J187+J183 -> 1636.730113
A201: TOTAL | J201: =ROUND(J200,2) -> 1636.73
A202: BDI % | J202: 24.1
A203: TOTAL DO SERVIÇO - R$ | J203: =ROUND(J201*(1+J202/100),2) -> 2031.18
A205: COMPOSIÇÃO DE PREÇO UNITÁRIO
A206: CERCAMENTO DE ÁREAS AMBIENTALMENTE VULNERÁVEIS À CAPRINOVINOCULTURA | I206: UNIDADE: | J206: m
A207: EQUIPAMENTO
A208: DISCRIMINAÇÃO | B208: UNIDADE | C208: QUANT. PROD. | D208: QUANT. IMPROD. | E208: COD. P | F208: COD. I | G208: FONTE | I208: P.UNIT. | J208: P.TOTAL
A209: NIVEL OPTICO, COM PRECISAO DE 0,7 MM, AUMENTO DE 32X | B209: h | C209: =C231*22*8 -> 0.05 | E209: 7252 | G209: SINAPI DF 06/223 | H209: =H178 -> 2.25 | J209: =C209*H209+D209*I209 -> 0.1125
A210: TEODOLITO ELETRONICO, PRECISAO ANGULAR DE 5 A 7 SEGUNDOS, INCLUINDO TRIPE | B210: h | C210: =C231*22*8 -> 0.05 | E210: 7247 | G210: SINAPI DF 06/223 | H210: =H179 -> 2.25 | J210: =C210*H210+D210*I210 -> 0.1125
A211: VEÍCULO DE PASSEIO PARA DESLOCAMENTO DA EQUIPE | B211: h | C211: =(C228+C229/2)*22*3 -> 0.01838235294 | D211: =(C228+C229/2)*22*5 -> 0.0306372549 | E211: E9093 | F211: E9093 | G211: SICRO DF 01/2023 | H211: =H30 -> 34.3525 | I211: =I30 -> 6.3131 | J211: =C211*H211+D211*I211 -> 0.8248958333
... 87 more rows

Sheet CPU (PA)
A1: COMPOSIÇÃO DE PREÇO UNITÁRIO
A2: MOBILIZAÇÃO E DESMOBILIZAÇÃO | C2: REGIÃO: | G2: PA | I2: UNIDADE: | J2: R$/Tonelada/ Projeto
A3: EQUIPAMENTO
A4: DISCRIMINAÇÃO | B4: UNIDADE | C4: QUANT. PROD. | D4: QUANT. IMPROD. | E4: COD. | G4: FONTE | H4: P.UNIT. PROD | I4: P.UNIT. IMPR | J4: P.TOTAL
J5: =C5*E5*H5+C5*G5*I5 -> 0
A6: SUB-TOTAL | J6: =SUM(J5:J5) -> 0
A7: MATERIAL
A8: DISCRIMINAÇÃO | B8: UNIDADE | C8: QUANT. | E8: COD. | G8: FONTE | I8: P.UNIT. | J8: P.TOTAL
J9: Toneladas/ Projeto
J10: =C10*I10 -> 0
A11: SUB-TOTAL | J11: =SUM(J9:J10) -> 0
A12: SERVIÇOS - COMPOSIÇÕES AUXILIARES
A13: DISCRIMINAÇÃO | B13: UNIDADE | C13: QUANT. | E13: COD. | G13: FONTE | I13: P.UNIT. | J13: P.TOTAL
A14: TRANSPORTE COM CAVALO MECÂNICO COM SEMIRREBOQUE COM CAPACIDADE DE 30 T - RODOVIA PAVIMENTADA | B14: t*km | C14: ='CPU (DF)'!C14 -> 1 | E14: 5914640 | G14: SICRO PA 01/2023 | I14: =VLOOKUP(E14,[21]Sheet1!$A:$D,4,FALSE) -> 0.59 | J14: =C14*I14 -> 0.59
A15: SUB-TOTAL | J15: =SUM(J14:J14) -> 0.59
A16: MÃO DE OBRA
A17: DISCRIMINAÇÃO | B17: UNIDADE | C17: QUANT. | I17: P.UNIT. | J17: P.TOTAL
J18: =C18*I18 -> 0
A19: SUB-TOTAL | J19: =SUM(J18:J18) -> 0
A20: PRODUÇÃO DA EQUIPE (MOB E DESMOB) EM km | B20: =VLOOKUP(G2,DMT!D:E,2)*2 -> 700 | C20: CUSTO | J20: =J19+J15+J11+J6 -> 0.59
A21: TOTAL | J21: =J20*B20 -> 413
A22: BDI % | J22: 24.1
A23: TOTAL DO SERVIÇO - R$ | J23: =J21*(1+J22/100) -> 512.533
A25: COMPOSIÇÃO DE PREÇO UNITÁRIO
A26: LOCAÇÃO E CONSTRUÇÃO DE TERRAÇOS - INCLUSIVE SOLOS DUROS E SECOS | I26: UNIDADE: | J26: km
A27: EQUIPAMENTO
A28: DISCRIMINAÇÃO | B28: UNIDADE | C28: QUANT. PROD. | D28: QUANT. IMPROD. | E28: COD. P | F28: COD. I | G28: FONTE | H28: CHP | I28: CHI | J28: P.TOTAL
A29: TRATOR DE ESTEIRAS, POTÊNCIA 125 HP, PESO OPERACIONAL 12,9 T, COM LÂMINA 2,7 M3 | B29: H | C29: ='CPU (DF)'!C29 -> 7.058823529 | D29: ='CPU (DF)'!D29 -> 2.352941176 | E29: 5851 | F29: 5853 | G29: SINAPI PA 06/223 | H29: =VLOOKUP(E29,[22]planilhanull!$G$7:$K$7520,5,FALSE) -> 212.91 | I29: =VLOOKUP(F29,[22]planilhanull!$G$7:$K$7520,5,FALSE) -> 68.59 | J29: =C29*H29+D29*I29 -> 1664.282353
A30: VEÍCULO DE PASSEIO PARA DESLOCAMENTO DA EQUIPE | B30: H | C30: ='CPU (DF)'!C30 -> 0.9375 | D30: ='CPU (DF)'!D30 -> 1.5625 | E30: E9093 | F30: E9093 | G30: SICRO PA 01/2023 | H30: =VLOOKUP(E30,[23]Sheet1!$A:$K,10,FALSE) -> 31.0825 | I30: =VLOOKUP(F30,[23]Sheet1!$A:$K,11,FALSE) -> 6.4572 | J30: =C30*H30+D30*I30 -> 39.22921875
A31: CAMINHONETE CABINE SIMPLES COM MOTOR 1.6 FLEX, CÂMBIO MANUAL, POTÊNCIA 101/104 CV, 2 PORTAS | B31: H | C31: ='CPU (DF)'!C31 -> 0.5625 | D31: ='CPU (DF)'!D31 -> 0.9375 | E31: 92145 | F31: 92146 | G31: SINAPI PA 06/223 | H31: =VLOOKUP(E31,[22]planilhanull!$G$7:$K$7520,5,FALSE) -> 68.27 | I31: =VLOOKUP(F31,[22]planilhanull!$G$7:$K$7520,5,FALSE) -> 27.99 | J31: =C31*H31+D31*I31 -> 64.6425
A32: SUB-TOTAL | J32: =SUM(J29:J31) -> 1768.154072
A33: MATERIAL
A34: DISCRIMINAÇÃO | B34: UNIDADE | C34: QUANT. | E34: COD. | G34: FONTE | I34: P.UNIT. | J34: P.TOTAL
A36: SUB-TOTAL | J36: =SUM(J35:J35) -> 0
A37: SERVIÇOS - COMPOSIÇÕES AUXILIARES
A38: DISCRIMINAÇÃO | B38: UNIDADE | C38: QUANT. | E38: COD. | G38: FONTE | I38: P.UNIT. | J38: P.TOTAL
A39: LOCAÇÃO E NIVELAMENTO DE TERRAÇOS COM TOPOGRAFIA | B39: KM | C39: ='CPU (DF)'!C39 -> 1 | E39: COMPOSIÇÃO | I39: =J75 -> 168.26 | J39: =C39*I39 -> 168.26
A40: REVESTIMENTO VEGETAL POR SEMEADURA A LANÇO MANUAL DE GRAMÍNEAS E LEGUMINOSAS | B40: m² | C40: ='CPU (DF)'!C40 -> 1000 | E40: 4413993 | G40: SICRO PA 01/2023 | I40: =VLOOKUP(E40,[21]Sheet1!$A:$D,4,FALSE) -> 0.64 | J40: =C40*I40 -> 640
A41: SUB-TOTAL | J41: =SUM(J39:J40) -> 808.26
A42: MÃO DE OBRA
A43: DISCRIMINAÇÃO | B43: UNIDADE | C43: QUANT. | E43: COD. P | F43: COD. I | G43: FONTE | I43: P.UNIT. | J43: P.TOTAL
A44: ENGENHEIRO COM ENCARGO | B44: MES | C44: ='CPU (DF)'!C44 -> 0.005681818182 | E44: 93565 | G44: SINAPI PA 06/223 | I44: =VLOOKUP(E44,[22]planilhanull!$G$7:$K$7520,5,FALSE) -> 19899.21 | J44: =C44*I44 -> 113.0636932
A45: SERVENTE COM ENCARGOS COMPLEMENTARES - INLUSIVE ABERTURA E FECHAMENTO DE CERCAS | B45: MES | C45: ='CPU (DF)'!C45 -> 0.05347593583 | E45: 101452 | G45: SINAPI PA 06/223 | I45: =VLOOKUP(E45,[22]planilhanull!$G$7:$K$7520,5,FALSE) -> 3759.6 | J45: =C45*I45 -> 201.0481283
A46: ENCARREGADO COM ENCARGO | B46: MES | C46: ='CPU (DF)'!C46 -> 0.01704545455 | E46: 93572 | G46: SINAPI PA 06/223 | I46: =VLOOKUP(E46,[22]planilhanull!$G$7:$K$7520,5,FALSE) -> 4136.28 | J46: =C46*I46 -> 70.50477273
A47: SUB-TOTAL | J47: =SUM(J44:J46) -> 384.6165943
A48: PRODUÇÃO DA EQUIPE MÊS 22 KM, MAS COM FATOR DE REDUÇÃO PARA PÉRIODOS COM CHUVAS | B48: ='CPU (DF)'!B48 -> 18.7 | C48: CUSTO | J48: =J47+J41+J36+J32 -> 2961.030666
A49: TOTAL | J49: =ROUND(J48,2) -> 2961.03
A50: BDI % | J50: 24.1
A51: TOTAL DO SERVIÇO - R$ | J51: =ROUND(J49*(1+J50/100),2) -> 3674.64
A53: COMPOSIÇÃO DE PREÇO UNITÁRIO
A54: LOCAÇÃO E NIVELAMENTO DE TERRAÇOS COM TOPOGRAFIA | I54: UNIDADE: | J54: km
A55: EQUIPAMENTO
A56: DISCRIMINAÇÃO | B56: UNIDADE | C56: QUANT. PROD. | D56: QUANT. IMPROD. | E56: COD. P | F56: COD. I | G56: FONTE | H56: CHP/ P.UNIT. | I56: CHI | J56: P.TOTAL
A57: NIVEL OPTICO, COM PRECISAO DE 0,7 MM, AUMENTO DE 32X | B57: H | C57: ='CPU (DF)'!C57 -> 0.99609375 | E57: 7252 | G57: SINAPI PA 06/223 | H57: =VLOOKUP(E57,[24]sheet1!$A$1:$E$65536,5,FALSE) -> 2.25 | J57: =C57*H57+D57*I57 -> 2.241210937
A58: TEODOLITO ELETRONICO, PRECISAO ANGULAR DE 5 A 7 SEGUNDOS, INCLUINDO TRIPE | B58: H | C58: ='CPU (DF)'!C58 -> 0.99609375 | E58: 7247 | G58: SINAPI PA 06/223 | H58: =VLOOKUP(E58,[24]sheet1!$A$1:$E$65536,5,FALSE) -> 2.25 | J58: =C58*H58+D58*I58 -> 2.241210937
A59: CAMINHONETE CABINE SIMPLES COM MOTOR 1.6 FLEX, CÂMBIO MANUAL, POTÊNCIA 101/104 CV, 2 PORTAS | B59: H | C59: ='CPU (DF)'!C59 -> 0.3735351562 | D59: ='CPU (DF)'!D59 -> 0.6225585938 | E59: 92145 | F59: 92146 | G59: SINAPI PA 06/223 | H59: =H31 -> 68.27 | I59: =I31 -> 27.99 | J59: =C59*H59+D59*I59 -> 42.92666016
A60: SUB-TOTAL | J60: =SUM(J57:J59) -> 47.40908203
A61: MATERIAL
A62: DISCRIMINAÇÃO | B62: UNIDADE | C62: QUANT. | E62: COD. | I62: P.UNIT. | J62: P.TOTAL
A63: ESTACA/PIQUETE DE MADEIRA | B63: U | C63: ='CPU (DF)'!C63 -> 83.33333333 | E63: 4408 | G63: SINAPI PA 06/223 | I63: =VLOOKUP(E63,[24]sheet1!$A$1:$E$65536,5,FALSE)*0.4 -> 0.912 | J63: =C63*I63 -> 76
A64: SUB-TOTAL | J64: =SUM(J63:J63) -> 76
A65: SERVIÇOS - COMPOSIÇÕES AUXILIARES
A66: DISCRIMINAÇÃO | B66: UNIDADE | C66: QUANT. | I66: P.UNIT. | J66: P.TOTAL
A68: SUB-TOTAL
A69: MÃO DE OBRA
A70: DISCRIMINAÇÃO | B70: UNIDADE | C70: QUANT. | E70: COD. P | F70: COD. I | I70: P.UNIT. | J70: P.TOTAL
A71: AUXILIAR DE TOPOGRÁFO COM ENCARGOS | B71: MÊS | C71: ='CPU (DF)'!C71 -> 0.00565962358 | E71: 101389 | G71: SINAPI PA 06/223 | I71: =VLOOKUP(E71,[22]planilhanull!$G$7:$K$7520,5,FALSE) -> 2599.94 | J71: =C71*I71 -> 14.71468173
A72: TOPOGRAFO COM ENCARGOS | B72: MÊS | C72: ='CPU (DF)'!C72 -> 0.00565962358 | E72: 94296 | G72: SINAPI PA 06/223 | I72: =VLOOKUP(E72,[22]planilhanull!$G$7:$K$7520,5,FALSE) -> 5324.72 | J72: =C72*I72 -> 30.13591087
A73: SUB-TOTAL | J73: =SUM(J71:J72) -> 44.8505926
A74: PRODUÇÃO MENSAL DA EQUIPE | B74: ='CPU (DF)'!B74 -> 46.93333333 | C74: CUSTO | J74: =J73+J68+J64+J60 -> 168.2596746
A75: TOTAL | J75: =ROUND(J74,2) -> 168.26
A76: BDI % | J76: 24.1
A77: TOTAL DO SERVIÇO - R$ | J77: =ROUND(J75*(1+J76/100),2) -> 208.81
A79: COMPOSIÇÃO DE PREÇO UNITÁRIO
A80: LOCAÇÃO E CONSTRUÇÃO DE BACIAS DE CAPTAÇÃO DE ENXURRADA (4 METROS DE RAIO) | I80: UNIDADE: | J80: UNID.
A81: EQUIPAMENTO
A82: DISCRIMINAÇÃO | B82: UNIDADE | C82: QUANT. PROD. | D82: QUANT. IMPROD. | E82: COD. P | F82: COD. I | G82: FONTE | H82: CHP/ P.UNIT. | I82: CHI | J82: P.TOTAL
A83: NIVEL OPTICO, COM PRECISAO DE 0,7 MM, AUMENTO DE 32X | B83: H | C83: ='CPU (DF)'!C83 -> 0.6 | E83: 7252 | G83: SINAPI PA 06/223 | H83: =$H$57 -> 2.25 | J83: =C83*H83+D83*I83 -> 1.35
A84: TEODOLITO ELETRONICO, PRECISAO ANGULAR DE 5 A 7 SEGUNDOS, INCLUINDO TRIPE | B84: H | C84: ='CPU (DF)'!C84 -> 0.6 | E84: 7247 | G84: SINAPI PA 06/223 | H84: =$H$58 -> 2.25 | J84: =C84*H84+D84*I84 -> 1.35
A85: PÁ CARREGADEIRA SOBRE RODAS, POTÊNCIA LÍQUIDA 128 HP, CAPACIDADE DA CAÇAMBA 1,7 A 2,8 M³ | B85: H | C85: ='CPU (DF)'!C85 -> 0.7779529817 | D85: ='CPU (DF)'!D85 -> 0.2593176606 | E85: 5940 | F85: 5942 | G85: SINAPI PA 06/223 | H85: =VLOOKUP(E85,[22]planilhanull!$G$7:$K$7520,5,FALSE) -> 200.08 | I85: =VLOOKUP(F85,[22]planilhanull!$G$7:$K$7520,5,FALSE) -> 77.89 | J85: =C85*H85+D85*I85 -> 175.8510851
A86: VEÍCULO DE PASSEIO PARA DESLOCAMENTO DA EQUIPE | B86: H | C86: ='CPU (DF)'!C86 -> 0.234375 | D86: ='CPU (DF)'!D86 -> 0.390625 | E86: E9093 | G86: SICRO PA 01/2023 | H86: =$H$30 -> 31.0825 | I86: =$I$30 -> 6.4572 | J86: =C86*H86+D86*I86 -> 9.807304688
A87: CAMINHONETE CABINE SIMPLES COM MOTOR 1.6 FLEX, CÂMBIO MANUAL, POTÊNCIA 101/104 CV, 2 PORTAS | B87: H | C87: ='CPU (DF)'!C87 -> 0.609375 | D87: ='CPU (DF)'!D87 -> 0.365625 | E87: 92145 | F87: 92146 | G87: SINAPI PA 06/223 | H87: =$H$31 -> 68.27 | I87: =$I$31 -> 27.99 | J87: =C87*H87+D87*I87 -> 51.835875
A88: SUB-TOTAL | J88: =SUM(J83:J87) -> 240.1942648
A89: MATERIAL
A90: DISCRIMINAÇÃO | B90: UNIDADE | C90: QUANT. | E90: COD. | I90: P.UNIT. | J90: P.TOTAL
A91: ESTACA/PIQUETE DE MADEIRA | B91: U | C91: ='CPU (DF)'!C91 -> 12 | E91: 4408 | G91: SINAPI PA 06/223 | I91: =$I$63 -> 0.912 | J91: =C91*I91 -> 10.944
A92: SUB-TOTAL | J92: =SUM(J91:J91) -> 10.944
A93: SERVIÇOS - COMPOSIÇÕES AUXILIARES
A94: DISCRIMINAÇÃO | B94: UNIDADE | C94: QUANT. | I94: P.UNIT. | J94: P.TOTAL
A95: REVESTIMENTO VEGETAL POR SEMEADURA A LANÇO MANUAL DE GRAMÍNEAS E LEGUMINOSAS | B95: m² | C95: ='CPU (DF)'!C95 -> 50.26548246 | E95: 4413993 | G95: SICRO PA 01/2023 | I95: =VLOOKUP(E95,[21]Sheet1!$A:$D,4,FALSE) -> 0.64 | J95: =C95*I95 -> 32.16990877
A96: SUB-TOTAL | J96: =SUM(J95:J95) -> 32.16990877
A97: MÃO DE OBRA
A98: DISCRIMINAÇÃO | B98: UNIDADE | C98: QUANT. | E98: COD. P | F98: COD. I | I98: P.UNIT. | J98: P.TOTAL
A99: ENGENHEIRO COM ENCARGO | B99: MÊS | C99: ='CPU (DF)'!C99 -> 0.001420454545 | E99: 93565 | G99: SINAPI PA 06/223 | I99: =$I$44 -> 19899.21 | J99: =C99*I99 -> 28.2659233
A100: ENCARREGADO COM ENCARGO | B100: MÊS | C100: ='CPU (DF)'!C100 -> 0.004261363636 | E100: 93572 | G100: SINAPI PA 06/223 | I100: =$I$46 -> 4136.28 | J100: =C100*I100 -> 17.62619318
A101: TOPOGRAFO COM ENCARGOS | B101: MÊS | C101: ='CPU (DF)'!C101 -> 0.003409090909 | E101: 94296 | G101: SINAPI PA 06/223 | I101: =$I$72 -> 5324.72 | J101: =C101*I101 -> 18.15245455
A102: AUXILIAR DE TOPOGRÁFO COM ENCARGOS | B102: MÊS | C102: ='CPU (DF)'!C102 -> 0.003409090909 | E102: 101389 | G102: SINAPI PA 06/223 | I102: =$I$71 -> 2599.94 | J102: =C102*I102 -> 8.863431818
A103: SERVENTE COM ENCARGOS COMPLEMENTARES - INLUSIVE ABERTURA E FECHAMENTO DE CERCAS | B103: MES | C103: ='CPU (DF)'!C103 -> 0.005893583194 | E103: 101452 | G103: SINAPI PA 06/223 | I103: =$I$45 -> 3759.6 | J103: =C103*I103 -> 22.15751538
A104: SUB-TOTAL | J104: =SUM(J99:J103) -> 95.06551822
A105: PRODUÇÃO MENSAL DA EQUIPE | B105: ='CPU (DF)'!B105 -> 169.6760641 | C105: CUSTO | J105: =J104+J96+J92+J88 -> 378.3736918
A106: TOTAL | J106: =ROUND(J105,2) -> 378.37
A107: BDI % | J107: 24.1
A108: TOTAL DO SERVIÇO - R$ | J108: =ROUND(J106*(1+J107/100),2) -> 469.56
A111: COMPOSIÇÃO DE PREÇO UNITÁRIO
A112: LOCAÇÃO E CONSTRUÇÃO DE BACIAS DE CAPTAÇÃO DE ENXURRADA (6 METROS DE RAIO) | I112: UNIDADE: | J112: UNID.
A113: EQUIPAMENTO
A114: DISCRIMINAÇÃO | B114: UNIDADE | C114: QUANT. PROD. | D114: QUANT. IMPROD. | E114: COD. P | F114: COD. I | G114: FONTE | H114: CHP/ P.UNIT. | I114: CHI | J114: P.TOTAL
A115: NIVEL OPTICO, COM PRECISAO DE 0,7 MM, AUMENTO DE 32X | B115: H | C115: ='CPU (DF)'!C115 -> 0.6 | E115: 7252 | G115: SINAPI PA 06/223 | H115: =$H$57 -> 2.25 | J115: =C115*H115+D115*I115 -> 1.35
A116: TEODOLITO ELETRONICO, PRECISAO ANGULAR DE 5 A 7 SEGUNDOS, INCLUINDO TRIPE | B116: H | C116: ='CPU (DF)'!C116 -> 0.6 | E116: 7247 | G116: SINAPI PA 06/223 | H116: =$H$58 -> 2.25 | J116: =C116*H116+D116*I116 -> 1.35
A117: PÁ CARREGADEIRA SOBRE RODAS, POTÊNCIA LÍQUIDA 128 HP, CAPACIDADE DA CAÇAMBA 1,7 A 2,8 M³ | B117: H | C117: ='CPU (DF)'!C117 -> 1.536166858 | D117: ='CPU (DF)'!D117 -> 0.5120556193 | E117: 5940 | F117: 5942 | G117: SINAPI PA 06/223 | H117: =$H$85 -> 200.08 | I117: =$I$85 -> 77.89 | J117: =C117*H117+D117*I117 -> 347.2402771
A118: VEÍCULO DE PASSEIO PARA DESLOCAMENTO DA EQUIPE | B118: H | C118: ='CPU (DF)'!C118 -> 0.25 | D118: ='CPU (DF)'!D118 -> 0.4166666667 | E118: E9093 | G118: SICRO PA 01/2023 | H118: =$H$30 -> 31.0825 | I118: =$I$30 -> 6.4572 | J118: =C118*H118+D118*I118 -> 10.461125
A119: CAMINHONETE CABINE SIMPLES COM MOTOR 1.6 FLEX, CÂMBIO MANUAL, POTÊNCIA 101/104 CV, 2 PORTAS | B119: H | C119: ='CPU (DF)'!C119 -> 0.625 | D119: ='CPU (DF)'!D119 -> 0.375 | E119: 92145 | F119: 92146 | G119: SINAPI PA 06/223 | H119: =$H$31 -> 68.27 | I119: =$I$31 -> 27.99 | J119: =C119*H119+D119*I119 -> 53.165
A120: SUB-TOTAL | J120: =SUM(J115:J119) -> 413.5664021
A121: MATERIAL
A122: DISCRIMINAÇÃO | B122: UNIDADE | C122: QUANT. | E122: COD. | I122: P.UNIT. | J122: P.TOTAL
A123: ESTACA/PIQUETE DE MADEIRA | B123: U | C123: ='CPU (DF)'!C123 -> 12 | E123: 4408 | G123: SINAPI PA 06/223 | I123: =$I$63 -> 0.912 | J123: =C123*I123 -> 10.944
A124: SUB-TOTAL | J124: =SUM(J123:J123) -> 10.944
A125: SERVIÇOS - COMPOSIÇÕES AUXILIARES
A126: DISCRIMINAÇÃO | B126: UNIDADE | C126: QUANT. | I126: P.UNIT. | J126: P.TOTAL
A127: REVESTIMENTO VEGETAL POR SEMEADURA A LANÇO MANUAL DE GRAMÍNEAS E LEGUMINOSAS | B127: m² | C127: ='CPU (DF)'!C127 -> 94.24777961 | E127: 4413993 | G127: SICRO PA 01/2023 | I127: =VLOOKUP(E127,[21]Sheet1!$A:$D,4,FALSE) -> 0.64 | J127: =C127*I127 -> 60.31857895
A128: SUB-TOTAL | J128: =SUM(J127:J127) -> 60.31857895
A129: MÃO DE OBRA
A130: DISCRIMINAÇÃO | B130: UNIDADE | C130: QUANT. | E130: COD. P | F130: COD. I | I130: P.UNIT. | J130: P.TOTAL
A131: ENGENHEIRO COM ENCARGO | B131: MÊS | C131: ='CPU (DF)'!C131 -> 0.001515151515 | E131: 93565 | G131: SINAPI PA 06/223 | I131: =$I$44 -> 19899.21 | J131: =C131*I131 -> 30.15031818
A132: ENCARREGADO COM ENCARGO | B132: MÊS | C132: ='CPU (DF)'!C132 -> 0.004545454545 | E132: 93572 | G132: SINAPI PA 06/223 | I132: =$I$46 -> 4136.28 | J132: =C132*I132 -> 18.80127273
A133: TOPOGRAFO COM ENCARGOS | B133: MÊS | C133: ='CPU (DF)'!C133 -> 0.003409090909 | E133: 94296 | G133: SINAPI PA 06/223 | I133: =$I$72 -> 5324.72 | J133: =C133*I133 -> 18.15245455
A134: AUXILIAR DE TOPOGRÁFO COM ENCARGOS | B134: MÊS | C134: ='CPU (DF)'!C134 -> 0.003409090909 | E134: 101389 | G134: SINAPI PA 06/223 | I134: =$I$71 -> 2599.94 | J134: =C134*I134 -> 8.863431818
A135: SERVENTE COM ENCARGOS COMPLEMENTARES - INLUSIVE ABERTURA E FECHAMENTO DE CERCAS | B135: MES | C135: ='CPU (DF)'!C135 -> 0.01163762771 | E135: 101452 | G135: SINAPI PA 06/223 | I135: =$I$45 -> 3759.6 | J135: =C135*I135 -> 43.75282514
A136: SUB-TOTAL | J136: =SUM(J131:J135) -> 119.7203024
A137: PRODUÇÃO MENSAL DA EQUIPE | B137: ='CPU (DF)'!B137 -> 85.9281655 | C137: CUSTO | J137: =J136+J128+J124+J120 -> 604.5492835
A138: TOTAL | J138: =ROUND(J137,2) -> 604.55
A139: BDI % | J139: 24.1
A140: TOTAL DO SERVIÇO - R$ | J140: =ROUND(J138*(1+J139/100),2) -> 750.25
A142: COMPOSIÇÃO DE PREÇO UNITÁRIO
A143: LOCAÇÃO E CONSTRUÇÃO DE BACIAS DE CAPTAÇÃO DE ENXURRADA (9 METROS DE RAIO) | I143: UNIDADE: | J143: UNID.
A144: EQUIPAMENTO
A145: DISCRIMINAÇÃO | B145: UNIDADE | C145: QUANT. PROD. | D145: QUANT. IMPROD. | E145: COD. P | F145: COD. I | G145: FONTE | H145: CHP/ P.UNIT. | I145: CHI | J145: P.TOTAL
A146: NIVEL OPTICO, COM PRECISAO DE 0,7 MM, AUMENTO DE 32X | B146: H | C146: ='CPU (DF)'!C146 -> 0.65 | E146: 7252 | G146: SINAPI PA 06/223 | H146: =$H$57 -> 2.25 | J146: =C146*H146+D146*I146 -> 1.4625
A147: TEODOLITO ELETRONICO, PRECISAO ANGULAR DE 5 A 7 SEGUNDOS, INCLUINDO TRIPE | B147: H | C147: ='CPU (DF)'!C147 -> 0.65 | E147: 7247 | G147: SINAPI PA 06/223 | H147: =$H$58 -> 2.25 | J147: =C147*H147+D147*I147 -> 1.4625
A148: PÁ CARREGADEIRA SOBRE RODAS, POTÊNCIA LÍQUIDA 128 HP, CAPACIDADE DA CAÇAMBA 1,7 A 2,8 M³ | B148: H | C148: ='CPU (DF)'!C148 -> 3.738990826 | D148: ='CPU (DF)'!D148 -> 1.246330275 | E148: 5940 | F148: 5942 | G148: SINAPI PA 06/223 | H148: =$H$85 -> 200.08 | I148: =$I$85 -> 77.89 | J148: =C148*H148+D148*I148 -> 845.1739495
A149: VEÍCULO DE PASSEIO PARA DESLOCAMENTO DA EQUIPE | B149: H | C149: ='CPU (DF)'!C149 -> 0.265625 | D149: ='CPU (DF)'!D149 -> 0.4427083333 | E149: E9093 | G149: SICRO PA 01/2023 | H149: =$H$30 -> 31.0825 | I149: =$I$30 -> 6.4572 | J149: =C149*H149+D149*I149 -> 11.11494531
A150: CAMINHONETE CABINE SIMPLES COM MOTOR 1.6 FLEX, CÂMBIO MANUAL, POTÊNCIA 101/104 CV, 2 PORTAS | B150: H | C150: ='CPU (DF)'!C150 -> 0.671875 | D150: ='CPU (DF)'!D150 -> 0.403125 | E150: 92145 | F150: 92146 | G150: SINAPI PA 06/223 | H150: =$H$31 -> 68.27 | I150: =$I$31 -> 27.99 | J150: =C150*H150+D150*I150 -> 57.152375
A151: SUB-TOTAL | J151: =SUM(J146:J150) -> 916.3662699
A152: MATERIAL
A153: DISCRIMINAÇÃO | B153: UNIDADE | C153: QUANT. | E153: COD. | I153: P.UNIT. | J153: P.TOTAL
A154: ESTACA/PIQUETE DE MADEIRA | B154: U | C154: ='CPU (DF)'!C154 -> 12 | E154: 4408 | G154: SINAPI PA 06/223 | I154: =$I$63 -> 0.912 | J154: =C154*I154 -> 10.944
A155: SUB-TOTAL | J155: =SUM(J154:J154) -> 10.944
A156: SERVIÇOS - COMPOSIÇÕES AUXILIARES
A157: DISCRIMINAÇÃO | B157: UNIDADE | C157: QUANT. | I157: P.UNIT. | J157: P.TOTAL
A158: REVESTIMENTO VEGETAL POR SEMEADURA A LANÇO MANUAL DE GRAMÍNEAS E LEGUMINOSAS | B158: m² | C158: ='CPU (DF)'!C158 -> 169.6460033 | E158: 4413993 | G158: SICRO PA 01/2023 | I158: =VLOOKUP(E158,[21]Sheet1!$A:$D,4,FALSE) -> 0.64 | J158: =C158*I158 -> 108.5734421
A159: SUB-TOTAL | J159: =SUM(J158:J158) -> 108.5734421
A160: MÃO DE OBRA
A161: DISCRIMINAÇÃO | B161: UNIDADE | C161: QUANT. | E161: COD. P | F161: COD. I | I161: P.UNIT. | J161: P.TOTAL
A162: ENGENHEIRO COM ENCARGO | B162: MÊS | C162: ='CPU (DF)'!C162 -> 0.001609848485 | E162: 93565 | G162: SINAPI PA 06/223 | I162: =$I$44 -> 19899.21 | J162: =C162*I162 -> 32.03471307
A163: ENCARREGADO COM ENCARGO | B163: MÊS | C163: ='CPU (DF)'!C163 -> 0.004829545455 | E163: 93572 | G163: SINAPI PA 06/223 | I163: =$I$46 -> 4136.28 | J163: =C163*I163 -> 19.97635227
A164: TOPOGRAFO COM ENCARGOS | B164: MÊS | C164: ='CPU (DF)'!C164 -> 0.003693181818 | E164: 94296 | G164: SINAPI PA 06/223 | I164: =$I$72 -> 5324.72 | J164: =C164*I164 -> 19.66515909
A165: AUXILIAR DE TOPOGRÁFO COM ENCARGOS | B165: MÊS | C165: ='CPU (DF)'!C165 -> 0.003693181818 | E165: 101389 | G165: SINAPI PA 06/223 | I165: =$I$71 -> 2599.94 | J165: =C165*I165 -> 9.602051136
A166: SERVENTE COM ENCARGOS COMPLEMENTARES - INLUSIVE ABERTURA E FECHAMENTO DE CERCAS | B166: MES | C166: ='CPU (DF)'!C166 -> 0.02832568807 | E166: 101452 | G166: SINAPI PA 06/223 | I166: =$I$45 -> 3759.6 | J166: =C166*I166 -> 106.4932569
A167: SUB-TOTAL | J167: =SUM(J162:J166) -> 187.7715324
A168: PRODUÇÃO MENSAL DA EQUIPE | B168: ='CPU (DF)'!B168 -> 35.30364372 | C168: CUSTO | J168: =J167+J159+J155+J151 -> 1223.655244
A169: TOTAL | J169: =ROUND(J168,2) -> 1223.66
A170: BDI % | J170: 24.1
A171: TOTAL DO SERVIÇO - R$ | J171: =ROUND(J169*(1+J170/100),2) -> 1518.56
A174: COMPOSIÇÃO DE PREÇO UNITÁRIO
A175: LOCAÇÃO E CONSTRUÇÃO DE BACIAS DE CAPTAÇÃO DE ENXURRADA (12 METROS DE RAIO) | I175: UNIDADE: | J175: UNID.
A176: EQUIPAMENTO
A177: DISCRIMINAÇÃO | B177: UNIDADE | C177: QUANT. PROD. | D177: QUANT. IMPROD. | E177: COD. P | F177: COD. I | G177: FONTE | H177: CHP/ P.UNIT. | I177: CHI | J177: P.TOTAL
A178: NIVEL OPTICO, COM PRECISAO DE 0,7 MM, AUMENTO DE 32X | B178: H | C178: ='CPU (DF)'!C178 -> 0.65 | E178: 7252 | G178: SINAPI PA 06/223 | H178: =$H$57 -> 2.25 | J178: =C178*H178+D178*I178 -> 1.4625
A179: TEODOLITO ELETRONICO, PRECISAO ANGULAR DE 5 A 7 SEGUNDOS, INCLUINDO TRIPE | B179: H | C179: ='CPU (DF)'!C179 -> 0.65 | E179: 7247 | G179: SINAPI PA 06/223 | H179: =$H$58 -> 2.25 | J179: =C179*H179+D179*I179 -> 1.4625
A180: PÁ CARREGADEIRA SOBRE RODAS, POTÊNCIA LÍQUIDA 128 HP, CAPACIDADE DA CAÇAMBA 1,7 A 2,8 M³ | B180: H | C180: ='CPU (DF)'!C180 -> 6 | D180: ='CPU (DF)'!D180 -> 2 | E180: 5940 | F180: 5942 | G180: SINAPI PA 06/223 | H180: =$H$85 -> 200.08 | I180: =$I$85 -> 77.89 | J180: =C180*H180+D180*I180 -> 1356.26
A181: VEÍCULO DE PASSEIO PARA DESLOCAMENTO DA EQUIPE | B181: H | C181: ='CPU (DF)'!C181 -> 0.28125 | D181: ='CPU (DF)'!D181 -> 0.46875 | E181: E9093 | G181: SICRO PA 01/2023 | H181: =$H$30 -> 31.0825 | I181: =$I$30 -> 6.4572 | J181: =C181*H181+D181*I181 -> 11.76876563
A182: CAMINHONETE CABINE SIMPLES COM MOTOR 1.6 FLEX, CÂMBIO MANUAL, POTÊNCIA 101/104 CV, 2 PORTAS | B182: H | C182: ='CPU (DF)'!C182 -> 0.6875 | D182: ='CPU (DF)'!D182 -> 0.4125 | E182: 92145 | F182: 92146 | G182: SINAPI PA 06/223 | H182: =$H$31 -> 68.27 | I182: =$I$31 -> 27.99 | J182: =C182*H182+D182*I182 -> 58.4815
A183: SUB-TOTAL | J183: =SUM(J178:J182) -> 1429.435266
A184: MATERIAL
A185: DISCRIMINAÇÃO | B185: UNIDADE | C185: QUANT. | E185: COD. | I185: P.UNIT. | J185: P.TOTAL
A186: ESTACA/PIQUETE DE MADEIRA | B186: U | C186: ='CPU (DF)'!C186 -> 16 | E186: 4408 | G186: SINAPI PA 06/223 | I186: =$I$63 -> 0.912 | J186: =C186*I186 -> 14.592
A187: SUB-TOTAL | J187: =SUM(J186:J186) -> 14.592
A188: SERVIÇOS - COMPOSIÇÕES AUXILIARES
A189: DISCRIMINAÇÃO | B189: UNIDADE | C189: QUANT. | I189: P.UNIT. | J189: P.TOTAL
A190: REVESTIMENTO VEGETAL POR SEMEADURA A LANÇO MANUAL DE GRAMÍNEAS E LEGUMINOSAS | B190: m² | C190: ='CPU (DF)'!C190 -> 263.8937829 | E190: 4413993 | G190: SICRO PA 01/2023 | I190: =VLOOKUP(E190,[21]Sheet1!$A:$D,4,FALSE) -> 0.64 | J190: =C190*I190 -> 168.8920211
A191: SUB-TOTAL | J191: =SUM(J190:J190) -> 168.8920211
A192: MÃO DE OBRA
A193: DISCRIMINAÇÃO | B193: UNIDADE | C193: QUANT. | E193: COD. P | F193: COD. I | I193: P.UNIT. | J193: P.TOTAL
A194: ENGENHEIRO COM ENCARGO | B194: MES | C194: ='CPU (DF)'!C194 -> 0.001704545455 | E194: 93565 | G194: SINAPI PA 06/223 | I194: =$I$44 -> 19899.21 | J194: =C194*I194 -> 33.91910795
A195: ENCARREGADO COM ENCARGO | B195: MES | C195: ='CPU (DF)'!C195 -> 0.005113636364 | E195: 93572 | G195: SINAPI PA 06/223 | I195: =$I$46 -> 4136.28 | J195: =C195*I195 -> 21.15143182
A196: TOPOGRAFO COM ENCARGOS | B196: MÊS | C196: ='CPU (DF)'!C196 -> 0.003693181818 | E196: 94296 | G196: SINAPI PA 06/223 | I196: =$I$72 -> 5324.72 | J196: =C196*I196 -> 19.66515909
A197: AUXILIAR DE TOPOGRÁFO COM ENCARGOS | B197: MÊS | C197: ='CPU (DF)'!C197 -> 0.003693181818 | E197: 101389 | G197: SINAPI PA 06/223 | I197: =$I$71 -> 2599.94 | J197: =C197*I197 -> 9.602051136
A198: SERVENTE COM ENCARGOS COMPLEMENTARES - INLUSIVE ABERTURA E FECHAMENTO DE CERCAS | B198: MES | C198: ='CPU (DF)'!C198 -> 0.04545454545 | E198: 101452 | G198: SINAPI PA 06/223 | I198: =$I$45 -> 3759.6 | J198: =C198*I198 -> 170.8909091
A199: SUB-TOTAL | J199: =SUM(J194:J198) -> 255.2286591
A200: PRODUÇÃO DA EQUIPE | B200: ='CPU (DF)'!B200 -> 22 | C200: CUSTO | J200: =J199+J191+J187+J183 -> 1868.147946
A201: TOTAL | J201: =ROUND(J200,2) -> 1868.15
A202: BDI % | J202: 24.1
A203: TOTAL DO SERVIÇO - R$ | J203: =ROUND(J201*(1+J202/100),2) -> 2318.37
A205: COMPOSIÇÃO DE PREÇO UNITÁRIO
A206: CERCAMENTO DE ÁREAS AMBIENTALMENTE VULNERÁVEIS À CAPRINOVINOCULTURA | I206: UNIDADE: | J206: m
A207: EQUIPAMENTO
A208: DISCRIMINAÇÃO | B208: UNIDADE | C208: QUANT. PROD. | D208: QUANT. IMPROD. | E208: COD. P | F208: COD. I | G208: FONTE | I208: P.UNIT. | J208: P.TOTAL
A209: NIVEL OPTICO, COM PRECISAO DE 0,7 MM, AUMENTO DE 32X | B209: h | C209: ='CPU (DF)'!C209 -> 0.05 | E209: 7252 | G209: SINAPI PA 06/223 | H209: =H178 -> 2.25 | J209: =C209*H209+D209*I209 -> 0.1125
A210: TEODOLITO ELETRONICO, PRECISAO ANGULAR DE 5 A 7 SEGUNDOS, INCLUINDO TRIPE | B210: h | C210: ='CPU (DF)'!C210 -> 0.05 | E210: 7247 | G210: SINAPI PA 06/223 | H210: =H179 -> 2.25 | J210: =C210*H210+D210*I210 -> 0.1125
A211: VEÍCULO DE PASSEIO PARA DESLOCAMENTO DA EQUIPE | B211: h | C211: ='CPU (DF)'!C211 -> 0.01838235294 | D211: ='CPU (DF)'!D211 -> 0.0306372549 | E211: E9093 | F211: E9093 | G211: SICRO PA 01/2023 | H211: =H30 -> 31.0825 | I211: =I30 -> 6.4572 | J211: =C211*H211+D211*I211 -> 0.7692003676
... 87 more rows

Sheet CPU (GO)
A1: COMPOSIÇÃO DE PREÇO UNITÁRIO
A2: MOBILIZAÇÃO E DESMOBILIZAÇÃO | C2: REGIÃO: | G2: GO | I2: UNIDADE: | J2: R$/Tonelada/ Projeto
A3: EQUIPAMENTO
A4: DISCRIMINAÇÃO | B4: UNIDADE | C4: QUANT. PROD. | D4: QUANT. IMPROD. | E4: COD. | G4: FONTE | H4: P.UNIT. PROD | I4: P.UNIT. IMPR | J4: P.TOTAL
J5: =C5*E5*H5+C5*G5*I5 -> 0
A6: SUB-TOTAL | J6: =SUM(J5:J5) -> 0
A7: MATERIAL
A8: DISCRIMINAÇÃO | B8: UNIDADE | C8: QUANT. | E8: COD. | G8: FONTE | I8: P.UNIT. | J8: P.TOTAL
J9: Toneladas/ Projeto
J10: =C10*I10 -> 0
A11: SUB-TOTAL | J11: =SUM(J9:J10) -> 0
A12: SERVIÇOS - COMPOSIÇÕES AUXILIARES
A13: DISCRIMINAÇÃO | B13: UNIDADE | C13: QUANT. | E13: COD. | G13: FONTE | I13: P.UNIT. | J13: P.TOTAL
A14: TRANSPORTE COM CAVALO MECÂNICO COM SEMIRREBOQUE COM CAPACIDADE DE 30 T - RODOVIA PAVIMENTADA | B14: t*km | C14: ='CPU (DF)'!C14 -> 1 | E14: 5914640 | G14: SICRO GO 01/2023 | I14: =VLOOKUP(E14,[25]Sheet1!$A:$D,4,FALSE) -> 0.57 | J14: =C14*I14 -> 0.57
A15: SUB-TOTAL | J15: =SUM(J14:J14) -> 0.57
A16: MÃO DE OBRA
A17: DISCRIMINAÇÃO | B17: UNIDADE | C17: QUANT. | I17: P.UNIT. | J17: P.TOTAL
J18: =C18*I18 -> 0
A19: SUB-TOTAL | J19: =SUM(J18:J18) -> 0
A20: PRODUÇÃO DA EQUIPE (MOB E DESMOB) EM km | B20: =VLOOKUP(G2,DMT!D:E,2)*2 -> 477 | C20: CUSTO | J20: =J19+J15+J11+J6 -> 0.57
A21: TOTAL | J21: =J20*B20 -> 271.89
A22: BDI % | J22: 24.1
A23: TOTAL DO SERVIÇO - R$ | J23: =J21*(1+J22/100) -> 337.41549
A25: COMPOSIÇÃO DE PREÇO UNITÁRIO
A26: LOCAÇÃO E CONSTRUÇÃO DE TERRAÇOS - INCLUSIVE SOLOS DUROS E SECOS | I26: UNIDADE: | J26: km
A27: EQUIPAMENTO
A28: DISCRIMINAÇÃO | B28: UNIDADE | C28: QUANT. PROD. | D28: QUANT. IMPROD. | E28: COD. P | F28: COD. I | G28: FONTE | H28: CHP | I28: CHI | J28: P.TOTAL
A29: TRATOR DE ESTEIRAS, POTÊNCIA 125 HP, PESO OPERACIONAL 12,9 T, COM LÂMINA 2,7 M3 | B29: H | C29: ='CPU (DF)'!C29 -> 7.058823529 | D29: ='CPU (DF)'!D29 -> 2.352941176 | E29: 5851 | F29: 5853 | G29: SINAPI GO 06/223 | H29: =VLOOKUP(E29,[26]planilhanull!$G$7:$K$7520,5,FALSE) -> 209.42 | I29: =VLOOKUP(F29,[26]planilhanull!$G$7:$K$7520,5,FALSE) -> 66.82 | J29: =C29*H29+D29*I29 -> 1635.482353
A30: VEÍCULO DE PASSEIO PARA DESLOCAMENTO DA EQUIPE | B30: H | C30: ='CPU (DF)'!C30 -> 0.9375 | D30: ='CPU (DF)'!D30 -> 1.5625 | E30: E9093 | F30: E9093 | G30: SICRO GO 01/2023 | H30: =VLOOKUP(E30,[27]Sheet1!$A:$K,10,FALSE) -> 33.3113 | I30: =VLOOKUP(F30,[27]Sheet1!$A:$K,11,FALSE) -> 6.3371 | J30: =C30*H30+D30*I30 -> 41.1310625
A31: CAMINHONETE CABINE SIMPLES COM MOTOR 1.6 FLEX, CÂMBIO MANUAL, POTÊNCIA 101/104 CV, 2 PORTAS | B31: H | C31: ='CPU (DF)'!C31 -> 0.5625 | D31: ='CPU (DF)'!D31 -> 0.9375 | E31: 92145 | F31: 92146 | G31: SINAPI GO 06/223 | H31: =VLOOKUP(E31,[26]planilhanull!$G$7:$K$7520,5,FALSE) -> 74.18 | I31: =VLOOKUP(F31,[26]planilhanull!$G$7:$K$7520,5,FALSE) -> 32.49 | J31: =C31*H31+D31*I31 -> 72.185625
A32: SUB-TOTAL | J32: =SUM(J29:J31) -> 1748.79904
A33: MATERIAL
A34: DISCRIMINAÇÃO | B34: UNIDADE | C34: QUANT. | E34: COD. | G34: FONTE | I34: P.UNIT. | J34: P.TOTAL
A36: SUB-TOTAL | J36: =SUM(J35:J35) -> 0
A37: SERVIÇOS - COMPOSIÇÕES AUXILIARES
A38: DISCRIMINAÇÃO | B38: UNIDADE | C38: QUANT. | E38: COD. | G38: FONTE | I38: P.UNIT. | J38: P.TOTAL
A39: LOCAÇÃO E NIVELAMENTO DE TERRAÇOS COM TOPOGRAFIA | B39: KM | C39: ='CPU (DF)'!C39 -> 1 | E39: COMPOSIÇÃO | I39: =J75 -> 175.82 | J39: =C39*I39 -> 175.82
A40: REVESTIMENTO VEGETAL POR SEMEADURA A LANÇO MANUAL DE GRAMÍNEAS E LEGUMINOSAS | B40: m² | C40: ='CPU (DF)'!C40 -> 1000 | E40: 4413993 | G40: SICRO GO 01/2023 | I40: =VLOOKUP(E40,[25]Sheet1!$A:$D,4,FALSE) -> 0.6 | J40: =C40*I40 -> 600
A41: SUB-TOTAL | J41: =SUM(J39:J40) -> 775.82
A42: MÃO DE OBRA
A43: DISCRIMINAÇÃO | B43: UNIDADE | C43: QUANT. | E43: COD. P | F43: COD. I | G43: FONTE | I43: P.UNIT. | J43: P.TOTAL
A44: ENGENHEIRO COM ENCARGO | B44: MES | C44: ='CPU (DF)'!C44 -> 0.005681818182 | E44: 93565 | G44: SINAPI GO 06/223 | I44: =VLOOKUP(E44,[26]planilhanull!$G$7:$K$7520,5,FALSE) -> 20464.3 | J44: =C44*I44 -> 116.2744318
A45: SERVENTE COM ENCARGOS COMPLEMENTARES - INLUSIVE ABERTURA E FECHAMENTO DE CERCAS | B45: MES | C45: ='CPU (DF)'!C45 -> 0.05347593583 | E45: 101452 | G45: SINAPI GO 06/223 | I45: =VLOOKUP(E45,[26]planilhanull!$G$7:$K$7520,5,FALSE) -> 3478.2 | J45: =C45*I45 -> 186
A46: ENCARREGADO COM ENCARGO | B46: MES | C46: ='CPU (DF)'!C46 -> 0.01704545455 | E46: 93572 | G46: SINAPI GO 06/223 | I46: =VLOOKUP(E46,[26]planilhanull!$G$7:$K$7520,5,FALSE) -> 5993.49 | J46: =C46*I46 -> 102.1617614
A47: SUB-TOTAL | J47: =SUM(J44:J46) -> 404.4361932
A48: PRODUÇÃO DA EQUIPE MÊS 22 KM, MAS COM FATOR DE REDUÇÃO PARA PÉRIODOS COM CHUVAS | B48: ='CPU (DF)'!B48 -> 18.7 | C48: CUSTO | J48: =J47+J41+J36+J32 -> 2929.055234
A49: TOTAL | J49: =ROUND(J48,2) -> 2929.06
A50: BDI % | J50: 24.1
A51: TOTAL DO SERVIÇO - R$ | J51: =ROUND(J49*(1+J50/100),2) -> 3634.96
A53: COMPOSIÇÃO DE PREÇO UNITÁRIO
A54: LOCAÇÃO E NIVELAMENTO DE TERRAÇOS COM TOPOGRAFIA | I54: UNIDADE: | J54: km
A55: EQUIPAMENTO
A56: DISCRIMINAÇÃO | B56: UNIDADE | C56: QUANT. PROD. | D56: QUANT. IMPROD. | E56: COD. P | F56: COD. I | G56: FONTE | H56: CHP/ P.UNIT. | I56: CHI | J56: P.TOTAL
A57: NIVEL OPTICO, COM PRECISAO DE 0,7 MM, AUMENTO DE 32X | B57: H | C57: ='CPU (DF)'!C57 -> 0.99609375 | E57: 7252 | G57: SINAPI GO 06/223 | H57: =VLOOKUP(E57,[28]sheet1!$A$1:$E$65536,5,FALSE) -> 2.25 | J57: =C57*H57+D57*I57 -> 2.241210937
A58: TEODOLITO ELETRONICO, PRECISAO ANGULAR DE 5 A 7 SEGUNDOS, INCLUINDO TRIPE | B58: H | C58: ='CPU (DF)'!C58 -> 0.99609375 | E58: 7247 | G58: SINAPI GO 06/223 | H58: =VLOOKUP(E58,[28]sheet1!$A$1:$E$65536,5,FALSE) -> 2.25 | J58: =C58*H58+D58*I58 -> 2.241210937
A59: CAMINHONETE CABINE SIMPLES COM MOTOR 1.6 FLEX, CÂMBIO MANUAL, POTÊNCIA 101/104 CV, 2 PORTAS | B59: H | C59: ='CPU (DF)'!C59 -> 0.3735351562 | D59: ='CPU (DF)'!D59 -> 0.6225585938 | E59: 92145 | F59: 92146 | G59: SINAPI GO 06/223 | H59: =H31 -> 74.18 | I59: =I31 -> 32.49 | J59: =C59*H59+D59*I59 -> 47.9357666
A60: SUB-TOTAL | J60: =SUM(J57:J59) -> 52.41818848
A61: MATERIAL
A62: DISCRIMINAÇÃO | B62: UNIDADE | C62: QUANT. | E62: COD. | I62: P.UNIT. | J62: P.TOTAL
A63: ESTACA/PIQUETE DE MADEIRA | B63: U | C63: ='CPU (DF)'!C63 -> 83.33333333 | E63: 4408 | G63: SINAPI GO 06/223 | I63: =VLOOKUP(E63,[28]sheet1!$A$1:$E$65536,5,FALSE)*0.4 -> 1.044 | J63: =C63*I63 -> 87
A64: SUB-TOTAL | J64: =SUM(J63:J63) -> 87
A65: SERVIÇOS - COMPOSIÇÕES AUXILIARES
A66: DISCRIMINAÇÃO | B66: UNIDADE | C66: QUANT. | I66: P.UNIT. | J66: P.TOTAL
A68: SUB-TOTAL
A69: MÃO DE OBRA
A70: DISCRIMINAÇÃO | B70: UNIDADE | C70: QUANT. | E70: COD. P | F70: COD. I | I70: P.UNIT. | J70: P.TOTAL
A71: AUXILIAR DE TOPOGRÁFO COM ENCARGOS | B71: MÊS | C71: ='CPU (DF)'!C71 -> 0.00565962358 | E71: 101389 | G71: SINAPI GO 06/223 | I71: =VLOOKUP(E71,[26]planilhanull!$G$7:$K$7520,5,FALSE) -> 2136.47 | J71: =C71*I71 -> 12.09161599
A72: TOPOGRAFO COM ENCARGOS | B72: MÊS | C72: ='CPU (DF)'!C72 -> 0.00565962358 | E72: 94296 | G72: SINAPI GO 06/223 | I72: =VLOOKUP(E72,[26]planilhanull!$G$7:$K$7520,5,FALSE) -> 4294.87 | J72: =C72*I72 -> 24.30734752
A73: SUB-TOTAL | J73: =SUM(J71:J72) -> 36.39896351
A74: PRODUÇÃO MENSAL DA EQUIPE | B74: ='CPU (DF)'!B74 -> 46.93333333 | C74: CUSTO | J74: =J73+J68+J64+J60 -> 175.817152
A75: TOTAL | J75: =ROUND(J74,2) -> 175.82
A76: BDI % | J76: 24.1
A77: TOTAL DO SERVIÇO - R$ | J77: =ROUND(J75*(1+J76/100),2) -> 218.19
A79: COMPOSIÇÃO DE PREÇO UNITÁRIO
A80: LOCAÇÃO E CONSTRUÇÃO DE BACIAS DE CAPTAÇÃO DE ENXURRADA (4 METROS DE RAIO) | I80: UNIDADE: | J80: UNID.
A81: EQUIPAMENTO
A82: DISCRIMINAÇÃO | B82: UNIDADE | C82: QUANT. PROD. | D82: QUANT. IMPROD. | E82: COD. P | F82: COD. I | G82: FONTE | H82: CHP/ P.UNIT. | I82: CHI | J82: P.TOTAL
A83: NIVEL OPTICO, COM PRECISAO DE 0,7 MM, AUMENTO DE 32X | B83: H | C83: ='CPU (DF)'!C83 -> 0.6 | E83: 7252 | G83: SINAPI GO 06/223 | H83: =$H$57 -> 2.25 | J83: =C83*H83+D83*I83 -> 1.35
A84: TEODOLITO ELETRONICO, PRECISAO ANGULAR DE 5 A 7 SEGUNDOS, INCLUINDO TRIPE | B84: H | C84: ='CPU (DF)'!C84 -> 0.6 | E84: 7247 | G84: SINAPI GO 06/223 | H84: =$H$58 -> 2.25 | J84: =C84*H84+D84*I84 -> 1.35
A85: PÁ CARREGADEIRA SOBRE RODAS, POTÊNCIA LÍQUIDA 128 HP, CAPACIDADE DA CAÇAMBA 1,7 A 2,8 M³ | B85: H | C85: ='CPU (DF)'!C85 -> 0.7779529817 | D85: ='CPU (DF)'!D85 -> 0.2593176606 | E85: 5940 | F85: 5942 | G85: SINAPI GO 06/223 | H85: =VLOOKUP(E85,[26]planilhanull!$G$7:$K$7520,5,FALSE) -> 163.25 | I85: =VLOOKUP(F85,[26]planilhanull!$G$7:$K$7520,5,FALSE) -> 62.4 | J85: =C85*H85+D85*I85 -> 143.1822463
A86: VEÍCULO DE PASSEIO PARA DESLOCAMENTO DA EQUIPE | B86: H | C86: ='CPU (DF)'!C86 -> 0.234375 | D86: ='CPU (DF)'!D86 -> 0.390625 | E86: E9093 | G86: SICRO GO 01/2023 | H86: =$H$30 -> 33.3113 | I86: =$I$30 -> 6.3371 | J86: =C86*H86+D86*I86 -> 10.28276563
A87: CAMINHONETE CABINE SIMPLES COM MOTOR 1.6 FLEX, CÂMBIO MANUAL, POTÊNCIA 101/104 CV, 2 PORTAS | B87: H | C87: ='CPU (DF)'!C87 -> 0.609375 | D87: ='CPU (DF)'!D87 -> 0.365625 | E87: 92145 | F87: 92146 | G87: SINAPI GO 06/223 | H87: =$H$31 -> 74.18 | I87: =$I$31 -> 32.49 | J87: =C87*H87+D87*I87 -> 57.08259375
A88: SUB-TOTAL | J88: =SUM(J83:J87) -> 213.2476056
A89: MATERIAL
A90: DISCRIMINAÇÃO | B90: UNIDADE | C90: QUANT. | E90: COD. | I90: P.UNIT. | J90: P.TOTAL
A91: ESTACA/PIQUETE DE MADEIRA | B91: U | C91: ='CPU (DF)'!C91 -> 12 | E91: 4408 | G91: SINAPI GO 06/223 | I91: =$I$63 -> 1.044 | J91: =C91*I91 -> 12.528
A92: SUB-TOTAL | J92: =SUM(J91:J91) -> 12.528
A93: SERVIÇOS - COMPOSIÇÕES AUXILIARES
A94: DISCRIMINAÇÃO | B94: UNIDADE | C94: QUANT. | I94: P.UNIT. | J94: P.TOTAL
A95: REVESTIMENTO VEGETAL POR SEMEADURA A LANÇO MANUAL DE GRAMÍNEAS E LEGUMINOSAS | B95: m² | C95: ='CPU (DF)'!C95 -> 50.26548246 | E95: 4413993 | G95: SICRO GO 01/2023 | I95: =VLOOKUP(E95,[25]Sheet1!$A:$D,4,FALSE) -> 0.6 | J95: =C95*I95 -> 30.15928947
A96: SUB-TOTAL | J96: =SUM(J95:J95) -> 30.15928947
A97: MÃO DE OBRA
A98: DISCRIMINAÇÃO | B98: UNIDADE | C98: QUANT. | E98: COD. P | F98: COD. I | I98: P.UNIT. | J98: P.TOTAL
A99: ENGENHEIRO COM ENCARGO | B99: MÊS | C99: ='CPU (DF)'!C99 -> 0.001420454545 | E99: 93565 | G99: SINAPI GO 06/223 | I99: =$I$44 -> 20464.3 | J99: =C99*I99 -> 29.06860795
A100: ENCARREGADO COM ENCARGO | B100: MÊS | C100: ='CPU (DF)'!C100 -> 0.004261363636 | E100: 93572 | G100: SINAPI GO 06/223 | I100: =$I$46 -> 5993.49 | J100: =C100*I100 -> 25.54044034
A101: TOPOGRAFO COM ENCARGOS | B101: MÊS | C101: ='CPU (DF)'!C101 -> 0.003409090909 | E101: 94296 | G101: SINAPI GO 06/223 | I101: =$I$72 -> 4294.87 | J101: =C101*I101 -> 14.64160227
A102: AUXILIAR DE TOPOGRÁFO COM ENCARGOS | B102: MÊS | C102: ='CPU (DF)'!C102 -> 0.003409090909 | E102: 101389 | G102: SINAPI GO 06/223 | I102: =$I$71 -> 2136.47 | J102: =C102*I102 -> 7.283420455
A103: SERVENTE COM ENCARGOS COMPLEMENTARES - INLUSIVE ABERTURA E FECHAMENTO DE CERCAS | B103: MES | C103: ='CPU (DF)'!C103 -> 0.005893583194 | E103: 101452 | G103: SINAPI GO 06/223 | I103: =$I$45 -> 3478.2 | J103: =C103*I103 -> 20.49906107
A104: SUB-TOTAL | J104: =SUM(J99:J103) -> 97.03313209
A105: PRODUÇÃO MENSAL DA EQUIPE | B105: ='CPU (DF)'!B105 -> 169.6760641 | C105: CUSTO | J105: =J104+J96+J92+J88 -> 352.9680272
A106: TOTAL | J106: =ROUND(J105,2) -> 352.97
A107: BDI % | J107: 24.1
A108: TOTAL DO SERVIÇO - R$ | J108: =ROUND(J106*(1+J107/100),2) -> 438.04
A111: COMPOSIÇÃO DE PREÇO UNITÁRIO
A112: LOCAÇÃO E CONSTRUÇÃO DE BACIAS DE CAPTAÇÃO DE ENXURRADA (6 METROS DE RAIO) | I112: UNIDADE: | J112: UNID.
A113: EQUIPAMENTO
A114: DISCRIMINAÇÃO | B114: UNIDADE | C114: QUANT. PROD. | D114: QUANT. IMPROD. | E114: COD. P | F114: COD. I | G114: FONTE | H114: CHP/ P.UNIT. | I114: CHI | J114: P.TOTAL
A115: NIVEL OPTICO, COM PRECISAO DE 0,7 MM, AUMENTO DE 32X | B115: H | C115: ='CPU (DF)'!C115 -> 0.6 | E115: 7252 | G115: SINAPI GO 06/223 | H115: =$H$57 -> 2.25 | J115: =C115*H115+D115*I115 -> 1.35
A116: TEODOLITO ELETRONICO, PRECISAO ANGULAR DE 5 A 7 SEGUNDOS, INCLUINDO TRIPE | B116: H | C116: ='CPU (DF)'!C116 -> 0.6 | E116: 7247 | G116: SINAPI GO 06/223 | H116: =$H$58 -> 2.25 | J116: =C116*H116+D116*I116 -> 1.35
A117: PÁ CARREGADEIRA SOBRE RODAS, POTÊNCIA LÍQUIDA 128 HP, CAPACIDADE DA CAÇAMBA 1,7 A 2,8 M³ | B117: H | C117: ='CPU (DF)'!C117 -> 1.536166858 | D117: ='CPU (DF)'!D117 -> 0.5120556193 | E117: 5940 | F117: 5942 | G117: SINAPI GO 06/223 | H117: =$H$85 -> 163.25 | I117: =$I$85 -> 62.4 | J117: =C117*H117+D117*I117 -> 282.7315102
A118: VEÍCULO DE PASSEIO PARA DESLOCAMENTO DA EQUIPE | B118: H | C118: ='CPU (DF)'!C118 -> 0.25 | D118: ='CPU (DF)'!D118 -> 0.4166666667 | E118: E9093 | G118: SICRO GO 01/2023 | H118: =$H$30 -> 33.3113 | I118: =$I$30 -> 6.3371 | J118: =C118*H118+D118*I118 -> 10.96828333
A119: CAMINHONETE CABINE SIMPLES COM MOTOR 1.6 FLEX, CÂMBIO MANUAL, POTÊNCIA 101/104 CV, 2 PORTAS | B119: H | C119: ='CPU (DF)'!C119 -> 0.625 | D119: ='CPU (DF)'!D119 -> 0.375 | E119: 92145 | F119: 92146 | G119: SINAPI GO 06/223 | H119: =$H$31 -> 74.18 | I119: =$I$31 -> 32.49 | J119: =C119*H119+D119*I119 -> 58.54625
A120: SUB-TOTAL | J120: =SUM(J115:J119) -> 354.9460435
A121: MATERIAL
A122: DISCRIMINAÇÃO | B122: UNIDADE | C122: QUANT. | E122: COD. | I122: P.UNIT. | J122: P.TOTAL
A123: ESTACA/PIQUETE DE MADEIRA | B123: U | C123: ='CPU (DF)'!C123 -> 12 | E123: 4408 | G123: SINAPI GO 06/223 | I123: =$I$63 -> 1.044 | J123: =C123*I123 -> 12.528
A124: SUB-TOTAL | J124: =SUM(J123:J123) -> 12.528
A125: SERVIÇOS - COMPOSIÇÕES AUXILIARES
A126: DISCRIMINAÇÃO | B126: UNIDADE | C126: QUANT. | I126: P.UNIT. | J126: P.TOTAL
A127: REVESTIMENTO VEGETAL POR SEMEADURA A LANÇO MANUAL DE GRAMÍNEAS E LEGUMINOSAS | B127: m² | C127: ='CPU (DF)'!C127 -> 94.24777961 | E127: 4413993 | G127: SICRO GO 01/2023 | I127: =VLOOKUP(E127,[25]Sheet1!$A:$D,4,FALSE) -> 0.6 | J127: =C127*I127 -> 56.54866776
A128: SUB-TOTAL | J128: =SUM(J127:J127) -> 56.54866776
A129: MÃO DE OBRA
A130: DISCRIMINAÇÃO | B130: UNIDADE | C130: QUANT. | E130: COD. P | F130: COD. I | I130: P.UNIT. | J130: P.TOTAL
A131: ENGENHEIRO COM ENCARGO | B131: MÊS | C131: ='CPU (DF)'!C131 -> 0.001515151515 | E131: 93565 | G131: SINAPI GO 06/223 | I131: =$I$44 -> 20464.3 | J131: =C131*I131 -> 31.00651515
A132: ENCARREGADO COM ENCARGO | B132: MÊS | C132: ='CPU (DF)'!C132 -> 0.004545454545 | E132: 93572 | G132: SINAPI GO 06/223 | I132: =$I$46 -> 5993.49 | J132: =C132*I132 -> 27.24313636
A133: TOPOGRAFO COM ENCARGOS | B133: MÊS | C133: ='CPU (DF)'!C133 -> 0.003409090909 | E133: 94296 | G133: SINAPI GO 06/223 | I133: =$I$72 -> 4294.87 | J133: =C133*I133 -> 14.64160227
A134: AUXILIAR DE TOPOGRÁFO COM ENCARGOS | B134: MÊS | C134: ='CPU (DF)'!C134 -> 0.003409090909 | E134: 101389 | G134: SINAPI GO 06/223 | I134: =$I$71 -> 2136.47 | J134: =C134*I134 -> 7.283420455
A135: SERVENTE COM ENCARGOS COMPLEMENTARES - INLUSIVE ABERTURA E FECHAMENTO DE CERCAS | B135: MES | C135: ='CPU (DF)'!C135 -> 0.01163762771 | E135: 101452 | G135: SINAPI GO 06/223 | I135: =$I$45 -> 3478.2 | J135: =C135*I135 -> 40.4779967
A136: SUB-TOTAL | J136: =SUM(J131:J135) -> 120.6526709
A137: PRODUÇÃO MENSAL DA EQUIPE | B137: ='CPU (DF)'!B137 -> 85.9281655 | C137: CUSTO | J137: =J136+J128+J124+J120 -> 544.6753822
A138: TOTAL | J138: =ROUND(J137,2) -> 544.68
A139: BDI % | J139: 24.1
A140: TOTAL DO SERVIÇO - R$ | J140: =ROUND(J138*(1+J139/100),2) -> 675.95
A142: COMPOSIÇÃO DE PREÇO UNITÁRIO
A143: LOCAÇÃO E CONSTRUÇÃO DE BACIAS DE CAPTAÇÃO DE ENXURRADA (9 METROS DE RAIO) | I143: UNIDADE: | J143: UNID.
A144: EQUIPAMENTO
A145: DISCRIMINAÇÃO | B145: UNIDADE | C145: QUANT. PROD. | D145: QUANT. IMPROD. | E145: COD. P | F145: COD. I | G145: FONTE | H145: CHP/ P.UNIT. | I145: CHI | J145: P.TOTAL
A146: NIVEL OPTICO, COM PRECISAO DE 0,7 MM, AUMENTO DE 32X | B146: H | C146: ='CPU (DF)'!C146 -> 0.65 | E146: 7252 | G146: SINAPI GO 06/223 | H146: =$H$57 -> 2.25 | J146: =C146*H146+D146*I146 -> 1.4625
A147: TEODOLITO ELETRONICO, PRECISAO ANGULAR DE 5 A 7 SEGUNDOS, INCLUINDO TRIPE | B147: H | C147: ='CPU (DF)'!C147 -> 0.65 | E147: 7247 | G147: SINAPI GO 06/223 | H147: =$H$58 -> 2.25 | J147: =C147*H147+D147*I147 -> 1.4625
A148: PÁ CARREGADEIRA SOBRE RODAS, POTÊNCIA LÍQUIDA 128 HP, CAPACIDADE DA CAÇAMBA 1,7 A 2,8 M³ | B148: H | C148: ='CPU (DF)'!C148 -> 3.738990826 | D148: ='CPU (DF)'!D148 -> 1.246330275 | E148: 5940 | F148: 5942 | G148: SINAPI GO 06/223 | H148: =$H$85 -> 163.25 | I148: =$I$85 -> 62.4 | J148: =C148*H148+D148*I148 -> 688.1612615
A149: VEÍCULO DE PASSEIO PARA DESLOCAMENTO DA EQUIPE | B149: H | C149: ='CPU (DF)'!C149 -> 0.265625 | D149: ='CPU (DF)'!D149 -> 0.4427083333 | E149: E9093 | G149: SICRO GO 01/2023 | H149: =$H$30 -> 33.3113 | I149: =$I$30 -> 6.3371 | J149: =C149*H149+D149*I149 -> 11.65380104
A150: CAMINHONETE CABINE SIMPLES COM MOTOR 1.6 FLEX, CÂMBIO MANUAL, POTÊNCIA 101/104 CV, 2 PORTAS | B150: H | C150: ='CPU (DF)'!C150 -> 0.671875 | D150: ='CPU (DF)'!D150 -> 0.403125 | E150: 92145 | F150: 92146 | G150: SINAPI GO 06/223 | H150: =$H$31 -> 74.18 | I150: =$I$31 -> 32.49 | J150: =C150*H150+D150*I150 -> 62.93721875
A151: SUB-TOTAL | J151: =SUM(J146:J150) -> 765.6772813
A152: MATERIAL
A153: DISCRIMINAÇÃO | B153: UNIDADE | C153: QUANT. | E153: COD. | I153: P.UNIT. | J153: P.TOTAL
A154: ESTACA/PIQUETE DE MADEIRA | B154: U | C154: ='CPU (DF)'!C154 -> 12 | E154: 4408 | G154: SINAPI GO 06/223 | I154: =$I$63 -> 1.044 | J154: =C154*I154 -> 12.528
A155: SUB-TOTAL | J155: =SUM(J154:J154) -> 12.528
A156: SERVIÇOS - COMPOSIÇÕES AUXILIARES
A157: DISCRIMINAÇÃO | B157: UNIDADE | C157: QUANT. | I157: P.UNIT. | J157: P.TOTAL
A158: REVESTIMENTO VEGETAL POR SEMEADURA A LANÇO MANUAL DE GRAMÍNEAS E LEGUMINOSAS | B158: m² | C158: ='CPU (DF)'!C158 -> 169.6460033 | E158: 4413993 | G158: SICRO GO 01/2023 | I158: =VLOOKUP(E158,[25]Sheet1!$A:$D,4,FALSE) -> 0.6 | J158: =C158*I158 -> 101.787602
A159: SUB-TOTAL | J159: =SUM(J158:J158) -> 101.787602
A160: MÃO DE OBRA
A161: DISCRIMINAÇÃO | B161: UNIDADE | C161: QUANT. | E161: COD. P | F161: COD. I | I161: P.UNIT. | J161: P.TOTAL
A162: ENGENHEIRO COM ENCARGO | B162: MÊS | C162: ='CPU (DF)'!C162 -> 0.001609848485 | E162: 93565 | G162: SINAPI GO 06/223 | I162: =$I$44 -> 20464.3 | J162: =C162*I162 -> 32.94442235
A163: ENCARREGADO COM ENCARGO | B163: MÊS | C163: ='CPU (DF)'!C163 -> 0.004829545455 | E163: 93572 | G163: SINAPI GO 06/223 | I163: =$I$46 -> 5993.49 | J163: =C163*I163 -> 28.94583239
A164: TOPOGRAFO COM ENCARGOS | B164: MÊS | C164: ='CPU (DF)'!C164 -> 0.003693181818 | E164: 94296 | G164: SINAPI GO 06/223 | I164: =$I$72 -> 4294.87 | J164: =C164*I164 -> 15.8617358
A165: AUXILIAR DE TOPOGRÁFO COM ENCARGOS | B165: MÊS | C165: ='CPU (DF)'!C165 -> 0.003693181818 | E165: 101389 | G165: SINAPI GO 06/223 | I165: =$I$71 -> 2136.47 | J165: =C165*I165 -> 7.890372159
A166: SERVENTE COM ENCARGOS COMPLEMENTARES - INLUSIVE ABERTURA E FECHAMENTO DE CERCAS | B166: MES | C166: ='CPU (DF)'!C166 -> 0.02832568807 | E166: 101452 | G166: SINAPI GO 06/223 | I166: =$I$45 -> 3478.2 | J166: =C166*I166 -> 98.52240826
A167: SUB-TOTAL | J167: =SUM(J162:J166) -> 184.1647709
A168: PRODUÇÃO MENSAL DA EQUIPE | B168: ='CPU (DF)'!B168 -> 35.30364372 | C168: CUSTO | J168: =J167+J159+J155+J151 -> 1064.157654
A169: TOTAL | J169: =ROUND(J168,2) -> 1064.16
A170: BDI % | J170: 24.1
A171: TOTAL DO SERVIÇO - R$ | J171: =ROUND(J169*(1+J170/100),2) -> 1320.62
A174: COMPOSIÇÃO DE PREÇO UNITÁRIO
A175: LOCAÇÃO E CONSTRUÇÃO DE BACIAS DE CAPTAÇÃO DE ENXURRADA (12 METROS DE RAIO) | I175: UNIDADE: | J175: UNID.
A176: EQUIPAMENTO
A177: DISCRIMINAÇÃO | B177: UNIDADE | C177: QUANT. PROD. | D177: QUANT. IMPROD. | E177: COD. P | F177: COD. I | G177: FONTE | H177: CHP/ P.UNIT. | I177: CHI | J177: P.TOTAL
A178: NIVEL OPTICO, COM PRECISAO DE 0,7 MM, AUMENTO DE 32X | B178: H | C178: ='CPU (DF)'!C178 -> 0.65 | E178: 7252 | G178: SINAPI GO 06/223 | H178: =$H$57 -> 2.25 | J178: =C178*H178+D178*I178 -> 1.4625
A179: TEODOLITO ELETRONICO, PRECISAO ANGULAR DE 5 A 7 SEGUNDOS, INCLUINDO TRIPE | B179: H | C179: ='CPU (DF)'!C179 -> 0.65 | E179: 7247 | G179: SINAPI GO 06/223 | H179: =$H$58 -> 2.25 | J179: =C179*H179+D179*I179 -> 1.4625
A180: PÁ CARREGADEIRA SOBRE RODAS, POTÊNCIA LÍQUIDA 128 HP, CAPACIDADE DA CAÇAMBA 1,7 A 2,8 M³ | B180: H | C180: ='CPU (DF)'!C180 -> 6 | D180: ='CPU (DF)'!D180 -> 2 | E180: 5940 | F180: 5942 | G180: SINAPI GO 06/223 | H180: =$H$85 -> 163.25 | I180: =$I$85 -> 62.4 | J180: =C180*H180+D180*I180 -> 1104.3
A181: VEÍCULO DE PASSEIO PARA DESLOCAMENTO DA EQUIPE | B181: H | C181: ='CPU (DF)'!C181 -> 0.28125 | D181: ='CPU (DF)'!D181 -> 0.46875 | E181: E9093 | G181: SICRO GO 01/2023 | H181: =$H$30 -> 33.3113 | I181: =$I$30 -> 6.3371 | J181: =C181*H181+D181*I181 -> 12.33931875
A182: CAMINHONETE CABINE SIMPLES COM MOTOR 1.6 FLEX, CÂMBIO MANUAL, POTÊNCIA 101/104 CV, 2 PORTAS | B182: H | C182: ='CPU (DF)'!C182 -> 0.6875 | D182: ='CPU (DF)'!D182 -> 0.4125 | E182: 92145 | F182: 92146 | G182: SINAPI GO 06/223 | H182: =$H$31 -> 74.18 | I182: =$I$31 -> 32.49 | J182: =C182*H182+D182*I182 -> 64.400875
A183: SUB-TOTAL | J183: =SUM(J178:J182) -> 1183.965194
A184: MATERIAL
A185: DISCRIMINAÇÃO | B185: UNIDADE | C185: QUANT. | E185: COD. | I185: P.UNIT. | J185: P.TOTAL
A186: ESTACA/PIQUETE DE MADEIRA | B186: U | C186: ='CPU (DF)'!C186 -> 16 | E186: 4408 | G186: SINAPI GO 06/223 | I186: =$I$63 -> 1.044 | J186: =C186*I186 -> 16.704
A187: SUB-TOTAL | J187: =SUM(J186:J186) -> 16.704
A188: SERVIÇOS - COMPOSIÇÕES AUXILIARES
A189: DISCRIMINAÇÃO | B189: UNIDADE | C189: QUANT. | I189: P.UNIT. | J189: P.TOTAL
A190: REVESTIMENTO VEGETAL POR SEMEADURA A LANÇO MANUAL DE GRAMÍNEAS E LEGUMINOSAS | B190: m² | C190: ='CPU (DF)'!C190 -> 263.8937829 | E190: 4413993 | G190: SICRO GO 01/2023 | I190: =VLOOKUP(E190,[25]Sheet1!$A:$D,4,FALSE) -> 0.6 | J190: =C190*I190 -> 158.3362697
A191: SUB-TOTAL | J191: =SUM(J190:J190) -> 158.3362697
A192: MÃO DE OBRA
A193: DISCRIMINAÇÃO | B193: UNIDADE | C193: QUANT. | E193: COD. P | F193: COD. I | I193: P.UNIT. | J193: P.TOTAL
A194: ENGENHEIRO COM ENCARGO | B194: MES | C194: ='CPU (DF)'!C194 -> 0.001704545455 | E194: 93565 | G194: SINAPI GO 06/223 | I194: =$I$44 -> 20464.3 | J194: =C194*I194 -> 34.88232955
A195: ENCARREGADO COM ENCARGO | B195: MES | C195: ='CPU (DF)'!C195 -> 0.005113636364 | E195: 93572 | G195: SINAPI GO 06/223 | I195: =$I$46 -> 5993.49 | J195: =C195*I195 -> 30.64852841
A196: TOPOGRAFO COM ENCARGOS | B196: MÊS | C196: ='CPU (DF)'!C196 -> 0.003693181818 | E196: 94296 | G196: SINAPI GO 06/223 | I196: =$I$72 -> 4294.87 | J196: =C196*I196 -> 15.8617358
A197: AUXILIAR DE TOPOGRÁFO COM ENCARGOS | B197: MÊS | C197: ='CPU (DF)'!C197 -> 0.003693181818 | E197: 101389 | G197: SINAPI GO 06/223 | I197: =$I$71 -> 2136.47 | J197: =C197*I197 -> 7.890372159
A198: SERVENTE COM ENCARGOS COMPLEMENTARES - INLUSIVE ABERTURA E FECHAMENTO DE CERCAS | B198: MES | C198: ='CPU (DF)'!C198 -> 0.04545454545 | E198: 101452 | G198: SINAPI GO 06/223 | I198: =$I$45 -> 3478.2 | J198: =C198*I198 -> 158.1
A199: SUB-TOTAL | J199: =SUM(J194:J198) -> 247.3829659
A200: PRODUÇÃO DA EQUIPE | B200: ='CPU (DF)'!B200 -> 22 | C200: CUSTO | J200: =J199+J191+J187+J183 -> 1606.388429
A201: TOTAL | J201: =ROUND(J200,2) -> 1606.39
A202: BDI % | J202: 24.1
A203: TOTAL DO SERVIÇO - R$ | J203: =ROUND(J201*(1+J202/100),2) -> 1993.53
A205: COMPOSIÇÃO DE PREÇO UNITÁRIO
A206: CERCAMENTO DE ÁREAS AMBIENTALMENTE VULNERÁVEIS À CAPRINOVINOCULTURA | I206: UNIDADE: | J206: m
A207: EQUIPAMENTO
A208: DISCRIMINAÇÃO | B208: UNIDADE | C208: QUANT. PROD. | D208: QUANT. IMPROD. | E208: COD. P | F208: COD. I | G208: FONTE | I208: P.UNIT. | J208: P.TOTAL
A209: NIVEL OPTICO, COM PRECISAO DE 0,7 MM, AUMENTO DE 32X | B209: h | C209: ='CPU (DF)'!C209 -> 0.05 | E209: 7252 | G209: SINAPI GO 06/223 | H209: =H178 -> 2.25 | J209: =C209*H209+D209*I209 -> 0.1125
A210: TEODOLITO ELETRONICO, PRECISAO ANGULAR DE 5 A 7 SEGUNDOS, INCLUINDO TRIPE | B210: h | C210: ='CPU (DF)'!C210 -> 0.05 | E210: 7247 | G210: SINAPI GO 06/223 | H210: =H179 -> 2.25 | J210: =C210*H210+D210*I210 -> 0.1125
A211: VEÍCULO DE PASSEIO PARA DESLOCAMENTO DA EQUIPE | B211: h | C211: ='CPU (DF)'!C211 -> 0.01838235294 | D211: ='CPU (DF)'!D211 -> 0.0306372549 | E211: E9093 | F211: E9093 | G211: SICRO GO 01/2023 | H211: =H30 -> 33.3113 | I211: =I30 -> 6.3371 | J211: =C211*H211+D211*I211 -> 0.8064914216
... 87 more rows

Sheet CPU (MA)
A1: COMPOSIÇÃO DE PREÇO UNITÁRIO
A2: MOBILIZAÇÃO E DESMOBILIZAÇÃO | C2: REGIÃO: | G2: MA | I2: UNIDADE: | J2: R$/Tonelada/ Projeto
A3: EQUIPAMENTO
A4: DISCRIMINAÇÃO | B4: UNIDADE | C4: QUANT. PROD. | D4: QUANT. IMPROD. | E4: COD. | G4: FONTE | H4: P.UNIT. PROD | I4: P.UNIT. IMPR | J4: P.TOTAL
J5: =C5*E5*H5+C5*G5*I5 -> 0
A6: SUB-TOTAL | J6: =SUM(J5:J5) -> 0
A7: MATERIAL
A8: DISCRIMINAÇÃO | B8: UNIDADE | C8: QUANT. | E8: COD. | G8: FONTE | I8: P.UNIT. | J8: P.TOTAL
J9: Toneladas/ Projeto
J10: =C10*I10 -> 0
A11: SUB-TOTAL | J11: =SUM(J9:J10) -> 0
A12: SERVIÇOS - COMPOSIÇÕES AUXILIARES
A13: DISCRIMINAÇÃO | B13: UNIDADE | C13: QUANT. | E13: COD. | G13: FONTE | I13: P.UNIT. | J13: P.TOTAL
A14: TRANSPORTE COM CAVALO MECÂNICO COM SEMIRREBOQUE COM CAPACIDADE DE 30 T - RODOVIA PAVIMENTADA | B14: t*km | C14: ='CPU (DF)'!C14 -> 1 | E14: 5914640 | G14: SICRO MA 01/2023 | I14: =VLOOKUP(E14,[29]Sheet1!$A:$D,4,FALSE) -> 0.56 | J14: =C14*I14 -> 0.56
A15: SUB-TOTAL | J15: =SUM(J14:J14) -> 0.56
A16: MÃO DE OBRA
A17: DISCRIMINAÇÃO | B17: UNIDADE | C17: QUANT. | I17: P.UNIT. | J17: P.TOTAL
J18: =C18*I18 -> 0
A19: SUB-TOTAL | J19: =SUM(J18:J18) -> 0
A20: PRODUÇÃO DA EQUIPE (MOB E DESMOB) EM km | B20: =VLOOKUP(G2,DMT!D:E,2)*2 -> 700 | C20: CUSTO | J20: =J19+J15+J11+J6 -> 0.56
A21: TOTAL | J21: =J20*B20 -> 392
A22: BDI % | J22: 24.1
A23: TOTAL DO SERVIÇO - R$ | J23: =J21*(1+J22/100) -> 486.472
A25: COMPOSIÇÃO DE PREÇO UNITÁRIO
A26: LOCAÇÃO E CONSTRUÇÃO DE TERRAÇOS - INCLUSIVE SOLOS DUROS E SECOS | I26: UNIDADE: | J26: km
A27: EQUIPAMENTO
A28: DISCRIMINAÇÃO | B28: UNIDADE | C28: QUANT. PROD. | D28: QUANT. IMPROD. | E28: COD. P | F28: COD. I | G28: FONTE | H28: CHP | I28: CHI | J28: P.TOTAL
A29: TRATOR DE ESTEIRAS, POTÊNCIA 125 HP, PESO OPERACIONAL 12,9 T, COM LÂMINA 2,7 M3 | B29: H | C29: ='CPU (DF)'!C29 -> 7.058823529 | D29: ='CPU (DF)'!D29 -> 2.352941176 | E29: 5851 | F29: 5853 | G29: SINAPI MA 06/223 | H29: =VLOOKUP(E29,[30]planilhanull!$G$7:$K$7520,5,FALSE) -> 201.07 | I29: =VLOOKUP(F29,[30]planilhanull!$G$7:$K$7520,5,FALSE) -> 63.8 | J29: =C29*H29+D29*I29 -> 1569.435294
A30: VEÍCULO DE PASSEIO PARA DESLOCAMENTO DA EQUIPE | B30: H | C30: ='CPU (DF)'!C30 -> 0.9375 | D30: ='CPU (DF)'!D30 -> 1.5625 | E30: E9093 | F30: E9093 | G30: SICRO MA 01/2023 | H30: =VLOOKUP(E30,[31]Sheet1!$A:$K,10,FALSE) -> 33.4354 | I30: =VLOOKUP(F30,[31]Sheet1!$A:$K,11,FALSE) -> 6.4369 | J30: =C30*H30+D30*I30 -> 41.40334375
A31: CAMINHONETE CABINE SIMPLES COM MOTOR 1.6 FLEX, CÂMBIO MANUAL, POTÊNCIA 101/104 CV, 2 PORTAS | B31: H | C31: ='CPU (DF)'!C31 -> 0.5625 | D31: ='CPU (DF)'!D31 -> 0.9375 | E31: 92145 | F31: 92146 | G31: SINAPI MA 06/223 | H31: =VLOOKUP(E31,[30]planilhanull!$G$7:$K$7520,5,FALSE) -> 70.51 | I31: =VLOOKUP(F31,[30]planilhanull!$G$7:$K$7520,5,FALSE) -> 30.83 | J31: =C31*H31+D31*I31 -> 68.565
A32: SUB-TOTAL | J32: =SUM(J29:J31) -> 1679.403638
A33: MATERIAL
A34: DISCRIMINAÇÃO | B34: UNIDADE | C34: QUANT. | E34: COD. | G34: FONTE | I34: P.UNIT. | J34: P.TOTAL
A36: SUB-TOTAL | J36: =SUM(J35:J35) -> 0
A37: SERVIÇOS - COMPOSIÇÕES AUXILIARES
A38: DISCRIMINAÇÃO | B38: UNIDADE | C38: QUANT. | E38: COD. | G38: FONTE | I38: P.UNIT. | J38: P.TOTAL
A39: LOCAÇÃO E NIVELAMENTO DE TERRAÇOS COM TOPOGRAFIA | B39: KM | C39: ='CPU (DF)'!C39 -> 1 | E39: COMPOSIÇÃO | I39: =J75 -> 179.95 | J39: =C39*I39 -> 179.95
A40: REVESTIMENTO VEGETAL POR SEMEADURA A LANÇO MANUAL DE GRAMÍNEAS E LEGUMINOSAS | B40: m² | C40: ='CPU (DF)'!C40 -> 1000 | E40: 4413993 | G40: SICRO MA 01/2023 | I40: =VLOOKUP(E40,[29]Sheet1!$A:$D,4,FALSE) -> 0.64 | J40: =C40*I40 -> 640
A41: SUB-TOTAL | J41: =SUM(J39:J40) -> 819.95
A42: MÃO DE OBRA
A43: DISCRIMINAÇÃO | B43: UNIDADE | C43: QUANT. | E43: COD. P | F43: COD. I | G43: FONTE | I43: P.UNIT. | J43: P.TOTAL
A44: ENGENHEIRO COM ENCARGO | B44: MES | C44: ='CPU (DF)'!C44 -> 0.005681818182 | E44: 93565 | G44: SINAPI MA 06/223 | I44: =VLOOKUP(E44,[30]planilhanull!$G$7:$K$7520,5,FALSE) -> 19801.19 | J44: =C44*I44 -> 112.5067614
A45: SERVENTE COM ENCARGOS COMPLEMENTARES - INLUSIVE ABERTURA E FECHAMENTO DE CERCAS | B45: MES | C45: ='CPU (DF)'!C45 -> 0.05347593583 | E45: 101452 | G45: SINAPI MA 06/223 | I45: =VLOOKUP(E45,[30]planilhanull!$G$7:$K$7520,5,FALSE) -> 3451.72 | J45: =C45*I45 -> 184.5839572
A46: ENCARREGADO COM ENCARGO | B46: MES | C46: ='CPU (DF)'!C46 -> 0.01704545455 | E46: 93572 | G46: SINAPI MA 06/223 | I46: =VLOOKUP(E46,[30]planilhanull!$G$7:$K$7520,5,FALSE) -> 5636.73 | J46: =C46*I46 -> 96.080625
A47: SUB-TOTAL | J47: =SUM(J44:J46) -> 393.1713436
A48: PRODUÇÃO DA EQUIPE MÊS 22 KM, MAS COM FATOR DE REDUÇÃO PARA PÉRIODOS COM CHUVAS | B48: ='CPU (DF)'!B48 -> 18.7 | C48: CUSTO | J48: =J47+J41+J36+J32 -> 2892.524981
A49: TOTAL | J49: =ROUND(J48,2) -> 2892.52
A50: BDI % | J50: 24.1
A51: TOTAL DO SERVIÇO - R$ | J51: =ROUND(J49*(1+J50/100),2) -> 3589.62
A53: COMPOSIÇÃO DE PREÇO UNITÁRIO
A54: LOCAÇÃO E NIVELAMENTO DE TERRAÇOS COM TOPOGRAFIA | I54: UNIDADE: | J54: km
A55: EQUIPAMENTO
A56: DISCRIMINAÇÃO | B56: UNIDADE | C56: QUANT. PROD. | D56: QUANT. IMPROD. | E56: COD. P | F56: COD. I | G56: FONTE | H56: CHP/ P.UNIT. | I56: CHI | J56: P.TOTAL
A57: NIVEL OPTICO, COM PRECISAO DE 0,7 MM, AUMENTO DE 32X | B57: H | C57: ='CPU (DF)'!C57 -> 0.99609375 | E57: 7252 | G57: SINAPI MA 06/223 | H57: =VLOOKUP(E57,[32]sheet1!$A$1:$E$65536,5,FALSE) -> 2.25 | J57: =C57*H57+D57*I57 -> 2.241210937
A58: TEODOLITO ELETRONICO, PRECISAO ANGULAR DE 5 A 7 SEGUNDOS, INCLUINDO TRIPE | B58: H | C58: ='CPU (DF)'!C58 -> 0.99609375 | E58: 7247 | G58: SINAPI MA 06/223 | H58: =VLOOKUP(E58,[32]sheet1!$A$1:$E$65536,5,FALSE) -> 2.25 | J58: =C58*H58+D58*I58 -> 2.241210937
A59: CAMINHONETE CABINE SIMPLES COM MOTOR 1.6 FLEX, CÂMBIO MANUAL, POTÊNCIA 101/104 CV, 2 PORTAS | B59: H | C59: ='CPU (DF)'!C59 -> 0.3735351562 | D59: ='CPU (DF)'!D59 -> 0.6225585938 | E59: 92145 | F59: 92146 | G59: SINAPI MA 06/223 | H59: =H31 -> 70.51 | I59: =I31 -> 30.83 | J59: =C59*H59+D59*I59 -> 45.53144531
A60: SUB-TOTAL | J60: =SUM(J57:J59) -> 50.01386719
A61: MATERIAL
A62: DISCRIMINAÇÃO | B62: UNIDADE | C62: QUANT. | E62: COD. | I62: P.UNIT. | J62: P.TOTAL
A63: ESTACA/PIQUETE DE MADEIRA | B63: U | C63: ='CPU (DF)'!C63 -> 83.33333333 | E63: 4408 | G63: SINAPI MA 06/223 | I63: =VLOOKUP(E63,[32]sheet1!$A$1:$E$65536,5,FALSE)*0.4 -> 1.088 | J63: =C63*I63 -> 90.66666667
A64: SUB-TOTAL | J64: =SUM(J63:J63) -> 90.66666667
A65: SERVIÇOS - COMPOSIÇÕES AUXILIARES
A66: DISCRIMINAÇÃO | B66: UNIDADE | C66: QUANT. | I66: P.UNIT. | J66: P.TOTAL
A68: SUB-TOTAL
A69: MÃO DE OBRA
A70: DISCRIMINAÇÃO | B70: UNIDADE | C70: QUANT. | E70: COD. P | F70: COD. I | I70: P.UNIT. | J70: P.TOTAL
A71: AUXILIAR DE TOPOGRÁFO COM ENCARGOS | B71: MÊS | C71: ='CPU (DF)'!C71 -> 0.00565962358 | E71: 101389 | G71: SINAPI MA 06/223 | I71: =VLOOKUP(E71,[30]planilhanull!$G$7:$K$7520,5,FALSE) -> 2288.75 | J71: =C71*I71 -> 12.95346347
A72: TOPOGRAFO COM ENCARGOS | B72: MÊS | C72: ='CPU (DF)'!C72 -> 0.00565962358 | E72: 94296 | G72: SINAPI MA 06/223 | I72: =VLOOKUP(E72,[30]planilhanull!$G$7:$K$7520,5,FALSE) -> 4648.99 | J72: =C72*I72 -> 26.31153343
A73: SUB-TOTAL | J73: =SUM(J71:J72) -> 39.26499689
A74: PRODUÇÃO MENSAL DA EQUIPE | B74: ='CPU (DF)'!B74 -> 46.93333333 | C74: CUSTO | J74: =J73+J68+J64+J60 -> 179.9455307
A75: TOTAL | J75: =ROUND(J74,2) -> 179.95
A76: BDI % | J76: 24.1
A77: TOTAL DO SERVIÇO - R$ | J77: =ROUND(J75*(1+J76/100),2) -> 223.32
A79: COMPOSIÇÃO DE PREÇO UNITÁRIO
A80: LOCAÇÃO E CONSTRUÇÃO DE BACIAS DE CAPTAÇÃO DE ENXURRADA (4 METROS DE RAIO) | I80: UNIDADE: | J80: UNID.
A81: EQUIPAMENTO
A82: DISCRIMINAÇÃO | B82: UNIDADE | C82: QUANT. PROD. | D82: QUANT. IMPROD. | E82: COD. P | F82: COD. I | G82: FONTE | H82: CHP/ P.UNIT. | I82: CHI | J82: P.TOTAL
A83: NIVEL OPTICO, COM PRECISAO DE 0,7 MM, AUMENTO DE 32X | B83: H | C83: ='CPU (DF)'!C83 -> 0.6 | E83: 7252 | G83: SINAPI MA 06/223 | H83: =$H$57 -> 2.25 | J83: =C83*H83+D83*I83 -> 1.35
A84: TEODOLITO ELETRONICO, PRECISAO ANGULAR DE 5 A 7 SEGUNDOS, INCLUINDO TRIPE | B84: H | C84: ='CPU (DF)'!C84 -> 0.6 | E84: 7247 | G84: SINAPI MA 06/223 | H84: =$H$58 -> 2.25 | J84: =C84*H84+D84*I84 -> 1.35
A85: PÁ CARREGADEIRA SOBRE RODAS, POTÊNCIA LÍQUIDA 128 HP, CAPACIDADE DA CAÇAMBA 1,7 A 2,8 M³ | B85: H | C85: ='CPU (DF)'!C85 -> 0.7779529817 | D85: ='CPU (DF)'!D85 -> 0.2593176606 | E85: 5940 | F85: 5942 | G85: SINAPI MA 06/223 | H85: =VLOOKUP(E85,[30]planilhanull!$G$7:$K$7520,5,FALSE) -> 158.09 | I85: =VLOOKUP(F85,[30]planilhanull!$G$7:$K$7520,5,FALSE) -> 59.84 | J85: =C85*H85+D85*I85 -> 138.5041557
A86: VEÍCULO DE PASSEIO PARA DESLOCAMENTO DA EQUIPE | B86: H | C86: ='CPU (DF)'!C86 -> 0.234375 | D86: ='CPU (DF)'!D86 -> 0.390625 | E86: E9093 | G86: SICRO MA 01/2023 | H86: =$H$30 -> 33.4354 | I86: =$I$30 -> 6.4369 | J86: =C86*H86+D86*I86 -> 10.35083594
A87: CAMINHONETE CABINE SIMPLES COM MOTOR 1.6 FLEX, CÂMBIO MANUAL, POTÊNCIA 101/104 CV, 2 PORTAS | B87: H | C87: ='CPU (DF)'!C87 -> 0.609375 | D87: ='CPU (DF)'!D87 -> 0.365625 | E87: 92145 | F87: 92146 | G87: SINAPI MA 06/223 | H87: =$H$31 -> 70.51 | I87: =$I$31 -> 30.83 | J87: =C87*H87+D87*I87 -> 54.23925
A88: SUB-TOTAL | J88: =SUM(J83:J87) -> 205.7942416
A89: MATERIAL
A90: DISCRIMINAÇÃO | B90: UNIDADE | C90: QUANT. | E90: COD. | I90: P.UNIT. | J90: P.TOTAL
A91: ESTACA/PIQUETE DE MADEIRA | B91: U | C91: ='CPU (DF)'!C91 -> 12 | E91: 4408 | G91: SINAPI MA 06/223 | I91: =$I$63 -> 1.088 | J91: =C91*I91 -> 13.056
A92: SUB-TOTAL | J92: =SUM(J91:J91) -> 13.056
A93: SERVIÇOS - COMPOSIÇÕES AUXILIARES
A94: DISCRIMINAÇÃO | B94: UNIDADE | C94: QUANT. | I94: P.UNIT. | J94: P.TOTAL
A95: REVESTIMENTO VEGETAL POR SEMEADURA A LANÇO MANUAL DE GRAMÍNEAS E LEGUMINOSAS | B95: m² | C95: ='CPU (DF)'!C95 -> 50.26548246 | E95: 4413993 | G95: SICRO MA 01/2023 | I95: =VLOOKUP(E95,[29]Sheet1!$A:$D,4,FALSE) -> 0.64 | J95: =C95*I95 -> 32.16990877
A96: SUB-TOTAL | J96: =SUM(J95:J95) -> 32.16990877
A97: MÃO DE OBRA
A98: DISCRIMINAÇÃO | B98: UNIDADE | C98: QUANT. | E98: COD. P | F98: COD. I | I98: P.UNIT. | J98: P.TOTAL
A99: ENGENHEIRO COM ENCARGO | B99: MÊS | C99: ='CPU (DF)'!C99 -> 0.001420454545 | E99: 93565 | G99: SINAPI MA 06/223 | I99: =$I$44 -> 19801.19 | J99: =C99*I99 -> 28.12669034
A100: ENCARREGADO COM ENCARGO | B100: MÊS | C100: ='CPU (DF)'!C100 -> 0.004261363636 | E100: 93572 | G100: SINAPI MA 06/223 | I100: =$I$46 -> 5636.73 | J100: =C100*I100 -> 24.02015625
A101: TOPOGRAFO COM ENCARGOS | B101: MÊS | C101: ='CPU (DF)'!C101 -> 0.003409090909 | E101: 94296 | G101: SINAPI MA 06/223 | I101: =$I$72 -> 4648.99 | J101: =C101*I101 -> 15.84882955
A102: AUXILIAR DE TOPOGRÁFO COM ENCARGOS | B102: MÊS | C102: ='CPU (DF)'!C102 -> 0.003409090909 | E102: 101389 | G102: SINAPI MA 06/223 | I102: =$I$71 -> 2288.75 | J102: =C102*I102 -> 7.802556818
A103: SERVENTE COM ENCARGOS COMPLEMENTARES - INLUSIVE ABERTURA E FECHAMENTO DE CERCAS | B103: MES | C103: ='CPU (DF)'!C103 -> 0.005893583194 | E103: 101452 | G103: SINAPI MA 06/223 | I103: =$I$45 -> 3451.72 | J103: =C103*I103 -> 20.34299898
A104: SUB-TOTAL | J104: =SUM(J99:J103) -> 96.14123194
A105: PRODUÇÃO MENSAL DA EQUIPE | B105: ='CPU (DF)'!B105 -> 169.6760641 | C105: CUSTO | J105: =J104+J96+J92+J88 -> 347.1613823
A106: TOTAL | J106: =ROUND(J105,2) -> 347.16
A107: BDI % | J107: 24.1
A108: TOTAL DO SERVIÇO - R$ | J108: =ROUND(J106*(1+J107/100),2) -> 430.83
A111: COMPOSIÇÃO DE PREÇO UNITÁRIO
A112: LOCAÇÃO E CONSTRUÇÃO DE BACIAS DE CAPTAÇÃO DE ENXURRADA (6 METROS DE RAIO) | I112: UNIDADE: | J112: UNID.
A113: EQUIPAMENTO
A114: DISCRIMINAÇÃO | B114: UNIDADE | C114: QUANT. PROD. | D114: QUANT. IMPROD. | E114: COD. P | F114: COD. I | G114: FONTE | H114: CHP/ P.UNIT. | I114: CHI | J114: P.TOTAL
A115: NIVEL OPTICO, COM PRECISAO DE 0,7 MM, AUMENTO DE 32X | B115: H | C115: ='CPU (DF)'!C115 -> 0.6 | E115: 7252 | G115: SINAPI MA 06/223 | H115: =$H$57 -> 2.25 | J115: =C115*H115+D115*I115 -> 1.35
A116: TEODOLITO ELETRONICO, PRECISAO ANGULAR DE 5 A 7 SEGUNDOS, INCLUINDO TRIPE | B116: H | C116: ='CPU (DF)'!C116 -> 0.6 | E116: 7247 | G116: SINAPI MA 06/223 | H116: =$H$58 -> 2.25 | J116: =C116*H116+D116*I116 -> 1.35
A117: PÁ CARREGADEIRA SOBRE RODAS, POTÊNCIA LÍQUIDA 128 HP, CAPACIDADE DA CAÇAMBA 1,7 A 2,8 M³ | B117: H | C117: ='CPU (DF)'!C117 -> 1.536166858 | D117: ='CPU (DF)'!D117 -> 0.5120556193 | E117: 5940 | F117: 5942 | G117: SINAPI MA 06/223 | H117: =$H$85 -> 158.09 | I117: =$I$85 -> 59.84 | J117: =C117*H117+D117*I117 -> 273.4940268
A118: VEÍCULO DE PASSEIO PARA DESLOCAMENTO DA EQUIPE | B118: H | C118: ='CPU (DF)'!C118 -> 0.25 | D118: ='CPU (DF)'!D118 -> 0.4166666667 | E118: E9093 | G118: SICRO MA 01/2023 | H118: =$H$30 -> 33.4354 | I118: =$I$30 -> 6.4369 | J118: =C118*H118+D118*I118 -> 11.04089167
A119: CAMINHONETE CABINE SIMPLES COM MOTOR 1.6 FLEX, CÂMBIO MANUAL, POTÊNCIA 101/104 CV, 2 PORTAS | B119: H | C119: ='CPU (DF)'!C119 -> 0.625 | D119: ='CPU (DF)'!D119 -> 0.375 | E119: 92145 | F119: 92146 | G119: SINAPI MA 06/223 | H119: =$H$31 -> 70.51 | I119: =$I$31 -> 30.83 | J119: =C119*H119+D119*I119 -> 55.63
A120: SUB-TOTAL | J120: =SUM(J115:J119) -> 342.8649185
A121: MATERIAL
A122: DISCRIMINAÇÃO | B122: UNIDADE | C122: QUANT. | E122: COD. | I122: P.UNIT. | J122: P.TOTAL
A123: ESTACA/PIQUETE DE MADEIRA | B123: U | C123: ='CPU (DF)'!C123 -> 12 | E123: 4408 | G123: SINAPI MA 06/223 | I123: =$I$63 -> 1.088 | J123: =C123*I123 -> 13.056
A124: SUB-TOTAL | J124: =SUM(J123:J123) -> 13.056
A125: SERVIÇOS - COMPOSIÇÕES AUXILIARES
A126: DISCRIMINAÇÃO | B126: UNIDADE | C126: QUANT. | I126: P.UNIT. | J126: P.TOTAL
A127: REVESTIMENTO VEGETAL POR SEMEADURA A LANÇO MANUAL DE GRAMÍNEAS E LEGUMINOSAS | B127: m² | C127: ='CPU (DF)'!C127 -> 94.24777961 | E127: 4413993 | G127: SICRO MA 01/2023 | I127: =VLOOKUP(E127,[29]Sheet1!$A:$D,4,FALSE) -> 0.64 | J127: =C127*I127 -> 60.31857895
A128: SUB-TOTAL | J128: =SUM(J127:J127) -> 60.31857895
A129: MÃO DE OBRA
A130: DISCRIMINAÇÃO | B130: UNIDADE | C130: QUANT. | E130: COD. P | F130: COD. I | I130: P.UNIT. | J130: P.TOTAL
A131: ENGENHEIRO COM ENCARGO | B131: MÊS | C131: ='CPU (DF)'!C131 -> 0.001515151515 | E131: 93565 | G131: SINAPI MA 06/223 | I131: =$I$44 -> 19801.19 | J131: =C131*I131 -> 30.00180303
A132: ENCARREGADO COM ENCARGO | B132: MÊS | C132: ='CPU (DF)'!C132 -> 0.004545454545 | E132: 93572 | G132: SINAPI MA 06/223 | I132: =$I$46 -> 5636.73 | J132: =C132*I132 -> 25.6215
A133: TOPOGRAFO COM ENCARGOS | B133: MÊS | C133: ='CPU (DF)'!C133 -> 0.003409090909 | E133: 94296 | G133: SINAPI MA 06/223 | I133: =$I$72 -> 4648.99 | J133: =C133*I133 -> 15.84882955
A134: AUXILIAR DE TOPOGRÁFO COM ENCARGOS | B134: MÊS | C134: ='CPU (DF)'!C134 -> 0.003409090909 | E134: 101389 | G134: SINAPI MA 06/223 | I134: =$I$71 -> 2288.75 | J134: =C134*I134 -> 7.802556818
A135: SERVENTE COM ENCARGOS COMPLEMENTARES - INLUSIVE ABERTURA E FECHAMENTO DE CERCAS | B135: MES | C135: ='CPU (DF)'!C135 -> 0.01163762771 | E135: 101452 | G135: SINAPI MA 06/223 | I135: =$I$45 -> 3451.72 | J135: =C135*I135 -> 40.16983232
A136: SUB-TOTAL | J136: =SUM(J131:J135) -> 119.4445217
A137: PRODUÇÃO MENSAL DA EQUIPE | B137: ='CPU (DF)'!B137 -> 85.9281655 | C137: CUSTO | J137: =J136+J128+J124+J120 -> 535.6840191
A138: TOTAL | J138: =ROUND(J137,2) -> 535.68
A139: BDI % | J139: 24.1
A140: TOTAL DO SERVIÇO - R$ | J140: =ROUND(J138*(1+J139/100),2) -> 664.78
A142: COMPOSIÇÃO DE PREÇO UNITÁRIO
A143: LOCAÇÃO E CONSTRUÇÃO DE BACIAS DE CAPTAÇÃO DE ENXURRADA (9 METROS DE RAIO) | I143: UNIDADE: | J143: UNID.
A144: EQUIPAMENTO
A145: DISCRIMINAÇÃO | B145: UNIDADE | C145: QUANT. PROD. | D145: QUANT. IMPROD. | E145: COD. P | F145: COD. I | G145: FONTE | H145: CHP/ P.UNIT. | I145: CHI | J145: P.TOTAL
A146: NIVEL OPTICO, COM PRECISAO DE 0,7 MM, AUMENTO DE 32X | B146: H | C146: ='CPU (DF)'!C146 -> 0.65 | E146: 7252 | G146: SINAPI MA 06/223 | H146: =$H$57 -> 2.25 | J146: =C146*H146+D146*I146 -> 1.4625
A147: TEODOLITO ELETRONICO, PRECISAO ANGULAR DE 5 A 7 SEGUNDOS, INCLUINDO TRIPE | B147: H | C147: ='CPU (DF)'!C147 -> 0.65 | E147: 7247 | G147: SINAPI MA 06/223 | H147: =$H$58 -> 2.25 | J147: =C147*H147+D147*I147 -> 1.4625
A148: PÁ CARREGADEIRA SOBRE RODAS, POTÊNCIA LÍQUIDA 128 HP, CAPACIDADE DA CAÇAMBA 1,7 A 2,8 M³ | B148: H | C148: ='CPU (DF)'!C148 -> 3.738990826 | D148: ='CPU (DF)'!D148 -> 1.246330275 | E148: 5940 | F148: 5942 | G148: SINAPI MA 06/223 | H148: =$H$85 -> 158.09 | I148: =$I$85 -> 59.84 | J148: =C148*H148+D148*I148 -> 665.6774633
A149: VEÍCULO DE PASSEIO PARA DESLOCAMENTO DA EQUIPE | B149: H | C149: ='CPU (DF)'!C149 -> 0.265625 | D149: ='CPU (DF)'!D149 -> 0.4427083333 | E149: E9093 | G149: SICRO MA 01/2023 | H149: =$H$30 -> 33.4354 | I149: =$I$30 -> 6.4369 | J149: =C149*H149+D149*I149 -> 11.7309474
A150: CAMINHONETE CABINE SIMPLES COM MOTOR 1.6 FLEX, CÂMBIO MANUAL, POTÊNCIA 101/104 CV, 2 PORTAS | B150: H | C150: ='CPU (DF)'!C150 -> 0.671875 | D150: ='CPU (DF)'!D150 -> 0.403125 | E150: 92145 | F150: 92146 | G150: SINAPI MA 06/223 | H150: =$H$31 -> 70.51 | I150: =$I$31 -> 30.83 | J150: =C150*H150+D150*I150 -> 59.80225
A151: SUB-TOTAL | J151: =SUM(J146:J150) -> 740.1356607
A152: MATERIAL
A153: DISCRIMINAÇÃO | B153: UNIDADE | C153: QUANT. | E153: COD. | I153: P.UNIT. | J153: P.TOTAL
A154: ESTACA/PIQUETE DE MADEIRA | B154: U | C154: ='CPU (DF)'!C154 -> 12 | E154: 4408 | G154: SINAPI MA 06/223 | I154: =$I$63 -> 1.088 | J154: =C154*I154 -> 13.056
A155: SUB-TOTAL | J155: =SUM(J154:J154) -> 13.056
A156: SERVIÇOS - COMPOSIÇÕES AUXILIARES
A157: DISCRIMINAÇÃO | B157: UNIDADE | C157: QUANT. | I157: P.UNIT. | J157: P.TOTAL
A158: REVESTIMENTO VEGETAL POR SEMEADURA A LANÇO MANUAL DE GRAMÍNEAS E LEGUMINOSAS | B158: m² | C158: ='CPU (DF)'!C158 -> 169.6460033 | E158: 4413993 | G158: SICRO MA 01/2023 | I158: =VLOOKUP(E158,[29]Sheet1!$A:$D,4,FALSE) -> 0.64 | J158: =C158*I158 -> 108.5734421
A159: SUB-TOTAL | J159: =SUM(J158:J158) -> 108.5734421
A160: MÃO DE OBRA
A161: DISCRIMINAÇÃO | B161: UNIDADE | C161: QUANT. | E161: COD. P | F161: COD. I | I161: P.UNIT. | J161: P.TOTAL
A162: ENGENHEIRO COM ENCARGO | B162: MÊS | C162: ='CPU (DF)'!C162 -> 0.001609848485 | E162: 93565 | G162: SINAPI MA 06/223 | I162: =$I$44 -> 19801.19 | J162: =C162*I162 -> 31.87691572
A163: ENCARREGADO COM ENCARGO | B163: MÊS | C163: ='CPU (DF)'!C163 -> 0.004829545455 | E163: 93572 | G163: SINAPI MA 06/223 | I163: =$I$46 -> 5636.73 | J163: =C163*I163 -> 27.22284375
A164: TOPOGRAFO COM ENCARGOS | B164: MÊS | C164: ='CPU (DF)'!C164 -> 0.003693181818 | E164: 94296 | G164: SINAPI MA 06/223 | I164: =$I$72 -> 4648.99 | J164: =C164*I164 -> 17.16956534
A165: AUXILIAR DE TOPOGRÁFO COM ENCARGOS | B165: MÊS | C165: ='CPU (DF)'!C165 -> 0.003693181818 | E165: 101389 | G165: SINAPI MA 06/223 | I165: =$I$71 -> 2288.75 | J165: =C165*I165 -> 8.452769886
A166: SERVENTE COM ENCARGOS COMPLEMENTARES - INLUSIVE ABERTURA E FECHAMENTO DE CERCAS | B166: MES | C166: ='CPU (DF)'!C166 -> 0.02832568807 | E166: 101452 | G166: SINAPI MA 06/223 | I166: =$I$45 -> 3451.72 | J166: =C166*I166 -> 97.77234404
A167: SUB-TOTAL | J167: =SUM(J162:J166) -> 182.4944387
A168: PRODUÇÃO MENSAL DA EQUIPE | B168: ='CPU (DF)'!B168 -> 35.30364372 | C168: CUSTO | J168: =J167+J159+J155+J151 -> 1044.259542
A169: TOTAL | J169: =ROUND(J168,2) -> 1044.26
A170: BDI % | J170: 24.1
A171: TOTAL DO SERVIÇO - R$ | J171: =ROUND(J169*(1+J170/100),2) -> 1295.93
A174: COMPOSIÇÃO DE PREÇO UNITÁRIO
A175: LOCAÇÃO E CONSTRUÇÃO DE BACIAS DE CAPTAÇÃO DE ENXURRADA (12 METROS DE RAIO) | I175: UNIDADE: | J175: UNID.
A176: EQUIPAMENTO
A177: DISCRIMINAÇÃO | B177: UNIDADE | C177: QUANT. PROD. | D177: QUANT. IMPROD. | E177: COD. P | F177: COD. I | G177: FONTE | H177: CHP/ P.UNIT. | I177: CHI | J177: P.TOTAL
A178: NIVEL OPTICO, COM PRECISAO DE 0,7 MM, AUMENTO DE 32X | B178: H | C178: ='CPU (DF)'!C178 -> 0.65 | E178: 7252 | G178: SINAPI MA 06/223 | H178: =$H$57 -> 2.25 | J178: =C178*H178+D178*I178 -> 1.4625
A179: TEODOLITO ELETRONICO, PRECISAO ANGULAR DE 5 A 7 SEGUNDOS, INCLUINDO TRIPE | B179: H | C179: ='CPU (DF)'!C179 -> 0.65 | E179: 7247 | G179: SINAPI MA 06/223 | H179: =$H$58 -> 2.25 | J179: =C179*H179+D179*I179 -> 1.4625
A180: PÁ CARREGADEIRA SOBRE RODAS, POTÊNCIA LÍQUIDA 128 HP, CAPACIDADE DA CAÇAMBA 1,7 A 2,8 M³ | B180: H | C180: ='CPU (DF)'!C180 -> 6 | D180: ='CPU (DF)'!D180 -> 2 | E180: 5940 | F180: 5942 | G180: SINAPI MA 06/223 | H180: =$H$85 -> 158.09 | I180: =$I$85 -> 59.84 | J180: =C180*H180+D180*I180 -> 1068.22
A181: VEÍCULO DE PASSEIO PARA DESLOCAMENTO DA EQUIPE | B181: H | C181: ='CPU (DF)'!C181 -> 0.28125 | D181: ='CPU (DF)'!D181 -> 0.46875 | E181: E9093 | G181: SICRO MA 01/2023 | H181: =$H$30 -> 33.4354 | I181: =$I$30 -> 6.4369 | J181: =C181*H181+D181*I181 -> 12.42100313
A182: CAMINHONETE CABINE SIMPLES COM MOTOR 1.6 FLEX, CÂMBIO MANUAL, POTÊNCIA 101/104 CV, 2 PORTAS | B182: H | C182: ='CPU (DF)'!C182 -> 0.6875 | D182: ='CPU (DF)'!D182 -> 0.4125 | E182: 92145 | F182: 92146 | G182: SINAPI MA 06/223 | H182: =$H$31 -> 70.51 | I182: =$I$31 -> 30.83 | J182: =C182*H182+D182*I182 -> 61.193
A183: SUB-TOTAL | J183: =SUM(J178:J182) -> 1144.759003
A184: MATERIAL
A185: DISCRIMINAÇÃO | B185: UNIDADE | C185: QUANT. | E185: COD. | I185: P.UNIT. | J185: P.TOTAL
A186: ESTACA/PIQUETE DE MADEIRA | B186: U | C186: ='CPU (DF)'!C186 -> 16 | E186: 4408 | G186: SINAPI MA 06/223 | I186: =$I$63 -> 1.088 | J186: =C186*I186 -> 17.408
A187: SUB-TOTAL | J187: =SUM(J186:J186) -> 17.408
A188: SERVIÇOS - COMPOSIÇÕES AUXILIARES
A189: DISCRIMINAÇÃO | B189: UNIDADE | C189: QUANT. | I189: P.UNIT. | J189: P.TOTAL
A190: REVESTIMENTO VEGETAL POR SEMEADURA A LANÇO MANUAL DE GRAMÍNEAS E LEGUMINOSAS | B190: m² | C190: ='CPU (DF)'!C190 -> 263.8937829 | E190: 4413993 | G190: SICRO MA 01/2023 | I190: =VLOOKUP(E190,[29]Sheet1!$A:$D,4,FALSE) -> 0.64 | J190: =C190*I190 -> 168.8920211
A191: SUB-TOTAL | J191: =SUM(J190:J190) -> 168.8920211
A192: MÃO DE OBRA
A193: DISCRIMINAÇÃO | B193: UNIDADE | C193: QUANT. | E193: COD. P | F193: COD. I | I193: P.UNIT. | J193: P.TOTAL
A194: ENGENHEIRO COM ENCARGO | B194: MES | C194: ='CPU (DF)'!C194 -> 0.001704545455 | E194: 93565 | G194: SINAPI MA 06/223 | I194: =$I$44 -> 19801.19 | J194: =C194*I194 -> 33.75202841
A195: ENCARREGADO COM ENCARGO | B195: MES | C195: ='CPU (DF)'!C195 -> 0.005113636364 | E195: 93572 | G195: SINAPI MA 06/223 | I195: =$I$46 -> 5636.73 | J195: =C195*I195 -> 28.8241875
A196: TOPOGRAFO COM ENCARGOS | B196: MÊS | C196: ='CPU (DF)'!C196 -> 0.003693181818 | E196: 94296 | G196: SINAPI MA 06/223 | I196: =$I$72 -> 4648.99 | J196: =C196*I196 -> 17.16956534
A197: AUXILIAR DE TOPOGRÁFO COM ENCARGOS | B197: MÊS | C197: ='CPU (DF)'!C197 -> 0.003693181818 | E197: 101389 | G197: SINAPI MA 06/223 | I197: =$I$71 -> 2288.75 | J197: =C197*I197 -> 8.452769886
A198: SERVENTE COM ENCARGOS COMPLEMENTARES - INLUSIVE ABERTURA E FECHAMENTO DE CERCAS | B198: MES | C198: ='CPU (DF)'!C198 -> 0.04545454545 | E198: 101452 | G198: SINAPI MA 06/223 | I198: =$I$45 -> 3451.72 | J198: =C198*I198 -> 156.8963636
A199: SUB-TOTAL | J199: =SUM(J194:J198) -> 245.0949148
A200: PRODUÇÃO DA EQUIPE | B200: ='CPU (DF)'!B200 -> 22 | C200: CUSTO | J200: =J199+J191+J187+J183 -> 1576.153939
A201: TOTAL | J201: =ROUND(J200,2) -> 1576.15
A202: BDI % | J202: 24.1
A203: TOTAL DO SERVIÇO - R$ | J203: =ROUND(J201*(1+J202/100),2) -> 1956
A205: COMPOSIÇÃO DE PREÇO UNITÁRIO
A206: CERCAMENTO DE ÁREAS AMBIENTALMENTE VULNERÁVEIS À CAPRINOVINOCULTURA | I206: UNIDADE: | J206: m
A207: EQUIPAMENTO
A208: DISCRIMINAÇÃO | B208: UNIDADE | C208: QUANT. PROD. | D208: QUANT. IMPROD. | E208: COD. P | F208: COD. I | G208: FONTE | I208: P.UNIT. | J208: P.TOTAL
A209: NIVEL OPTICO, COM PRECISAO DE 0,7 MM, AUMENTO DE 32X | B209: h | C209: ='CPU (DF)'!C209 -> 0.05 | E209: 7252 | G209: SINAPI MA 06/223 | H209: =H178 -> 2.25 | J209: =C209*H209+D209*I209 -> 0.1125
A210: TEODOLITO ELETRONICO, PRECISAO ANGULAR DE 5 A 7 SEGUNDOS, INCLUINDO TRIPE | B210: h | C210: ='CPU (DF)'!C210 -> 0.05 | E210: 7247 | G210: SINAPI MA 06/223 | H210: =H179 -> 2.25 | J210: =C210*H210+D210*I210 -> 0.1125
A211: VEÍCULO DE PASSEIO PARA DESLOCAMENTO DA EQUIPE | B211: h | C211: ='CPU (DF)'!C211 -> 0.01838235294 | D211: ='CPU (DF)'!D211 -> 0.0306372549 | E211: E9093 | F211: E9093 | G211: SICRO MA 01/2023 | H211: =H30 -> 33.4354 | I211: =I30 -> 6.4369 | J211: =C211*H211+D211*I211 -> 0.8118302696
... 87 more rows

Sheet CPU (MT)
A1: COMPOSIÇÃO DE PREÇO UNITÁRIO
A2: MOBILIZAÇÃO E DESMOBILIZAÇÃO | C2: REGIÃO: | G2: MT | I2: UNIDADE: | J2: R$/Tonelada/ Projeto
A3: EQUIPAMENTO
A4: DISCRIMINAÇÃO | B4: UNIDADE | C4: QUANT. PROD. | D4: QUANT. IMPROD. | E4: COD. | G4: FONTE | H4: P.UNIT. PROD | I4: P.UNIT. IMPR | J4: P.TOTAL
J5: =C5*E5*H5+C5*G5*I5 -> 0
A6: SUB-TOTAL | J6: =SUM(J5:J5) -> 0
A7: MATERIAL
A8: DISCRIMINAÇÃO | B8: UNIDADE | C8: QUANT. | E8: COD. | G8: FONTE | I8: P.UNIT. | J8: P.TOTAL
J9: Toneladas/ Projeto
J10: =C10*I10 -> 0
A11: SUB-TOTAL | J11: =SUM(J9:J10) -> 0
A12: SERVIÇOS - COMPOSIÇÕES AUXILIARES
A13: DISCRIMINAÇÃO | B13: UNIDADE | C13: QUANT. | E13: COD. | G13: FONTE | I13: P.UNIT. | J13: P.TOTAL
A14: TRANSPORTE COM CAVALO MECÂNICO COM SEMIRREBOQUE COM CAPACIDADE DE 30 T - RODOVIA PAVIMENTADA | B14: t*km | C14: ='CPU (DF)'!C14 -> 1 | E14: 5914640 | G14: SICRO MT 01/2023 | I14: =VLOOKUP(E14,[33]Sheet1!$A:$D,4,FALSE) -> 0.59 | J14: =C14*I14 -> 0.59
A15: SUB-TOTAL | J15: =SUM(J14:J14) -> 0.59
A16: MÃO DE OBRA
A17: DISCRIMINAÇÃO | B17: UNIDADE | C17: QUANT. | I17: P.UNIT. | J17: P.TOTAL
J18: =C18*I18 -> 0
A19: SUB-TOTAL | J19: =SUM(J18:J18) -> 0
A20: PRODUÇÃO DA EQUIPE (MOB E DESMOB) EM km | B20: =VLOOKUP(G2,DMT!D:E,2)*2 -> 800 | C20: CUSTO | J20: =J19+J15+J11+J6 -> 0.59
A21: TOTAL | J21: =J20*B20 -> 472
A22: BDI % | J22: 24.1
A23: TOTAL DO SERVIÇO - R$ | J23: =J21*(1+J22/100) -> 585.752
A25: COMPOSIÇÃO DE PREÇO UNITÁRIO
A26: LOCAÇÃO E CONSTRUÇÃO DE TERRAÇOS - INCLUSIVE SOLOS DUROS E SECOS | I26: UNIDADE: | J26: km
A27: EQUIPAMENTO
A28: DISCRIMINAÇÃO | B28: UNIDADE | C28: QUANT. PROD. | D28: QUANT. IMPROD. | E28: COD. P | F28: COD. I | G28: FONTE | H28: CHP | I28: CHI | J28: P.TOTAL
A29: TRATOR DE ESTEIRAS, POTÊNCIA 125 HP, PESO OPERACIONAL 12,9 T, COM LÂMINA 2,7 M3 | B29: H | C29: ='CPU (DF)'!C29 -> 7.058823529 | D29: ='CPU (DF)'!D29 -> 2.352941176 | E29: 5851 | F29: 5853 | G29: SINAPI MT 06/223 | H29: =VLOOKUP(E29,[34]planilhanull!$G$7:$K$7520,5,FALSE) -> 205.12 | I29: =VLOOKUP(F29,[34]planilhanull!$G$7:$K$7520,5,FALSE) -> 62.36 | J29: =C29*H29+D29*I29 -> 1594.635294
A30: VEÍCULO DE PASSEIO PARA DESLOCAMENTO DA EQUIPE | B30: H | C30: ='CPU (DF)'!C30 -> 0.9375 | D30: ='CPU (DF)'!D30 -> 1.5625 | E30: E9093 | F30: E9093 | G30: SICRO MT 01/2023 | H30: =VLOOKUP(E30,[35]Sheet1!$A:$K,10,FALSE) -> 33.3418 | I30: =VLOOKUP(F30,[35]Sheet1!$A:$K,11,FALSE) -> 6.3789 | J30: =C30*H30+D30*I30 -> 41.22496875
A31: CAMINHONETE CABINE SIMPLES COM MOTOR 1.6 FLEX, CÂMBIO MANUAL, POTÊNCIA 101/104 CV, 2 PORTAS | B31: H | C31: ='CPU (DF)'!C31 -> 0.5625 | D31: ='CPU (DF)'!D31 -> 0.9375 | E31: 92145 | F31: 92146 | G31: SINAPI MT 06/223 | H31: =VLOOKUP(E31,[34]planilhanull!$G$7:$K$7520,5,FALSE) -> 67.64 | I31: =VLOOKUP(F31,[34]planilhanull!$G$7:$K$7520,5,FALSE) -> 25.95 | J31: =C31*H31+D31*I31 -> 62.375625
A32: SUB-TOTAL | J32: =SUM(J29:J31) -> 1698.235888
A33: MATERIAL
A34: DISCRIMINAÇÃO | B34: UNIDADE | C34: QUANT. | E34: COD. | G34: FONTE | I34: P.UNIT. | J34: P.TOTAL
A36: SUB-TOTAL | J36: =SUM(J35:J35) -> 0
A37: SERVIÇOS - COMPOSIÇÕES AUXILIARES
A38: DISCRIMINAÇÃO | B38: UNIDADE | C38: QUANT. | E38: COD. | G38: FONTE | I38: P.UNIT. | J38: P.TOTAL
A39: LOCAÇÃO E NIVELAMENTO DE TERRAÇOS COM TOPOGRAFIA | B39: KM | C39: ='CPU (DF)'!C39 -> 1 | E39: COMPOSIÇÃO | I39: =J75 -> 151.75 | J39: =C39*I39 -> 151.75
A40: REVESTIMENTO VEGETAL POR SEMEADURA A LANÇO MANUAL DE GRAMÍNEAS E LEGUMINOSAS | B40: m² | C40: ='CPU (DF)'!C40 -> 1000 | E40: 4413993 | G40: SICRO MT 01/2023 | I40: =VLOOKUP(E40,[33]Sheet1!$A:$D,4,FALSE) -> 0.61 | J40: =C40*I40 -> 610
A41: SUB-TOTAL | J41: =SUM(J39:J40) -> 761.75
A42: MÃO DE OBRA
A43: DISCRIMINAÇÃO | B43: UNIDADE | C43: QUANT. | E43: COD. P | F43: COD. I | G43: FONTE | I43: P.UNIT. | J43: P.TOTAL
A44: ENGENHEIRO COM ENCARGO | B44: MES | C44: ='CPU (DF)'!C44 -> 0.005681818182 | E44: 93565 | G44: SINAPI MT 06/223 | I44: =VLOOKUP(E44,[34]planilhanull!$G$7:$K$7520,5,FALSE) -> 19262.42 | J44: =C44*I44 -> 109.4455682
A45: SERVENTE COM ENCARGOS COMPLEMENTARES - INLUSIVE ABERTURA E FECHAMENTO DE CERCAS | B45: MES | C45: ='CPU (DF)'!C45 -> 0.05347593583 | E45: 101452 | G45: SINAPI MT 06/223 | I45: =VLOOKUP(E45,[34]planilhanull!$G$7:$K$7520,5,FALSE) -> 3451.5 | J45: =C45*I45 -> 184.5721925
A46: ENCARREGADO COM ENCARGO | B46: MES | C46: ='CPU (DF)'!C46 -> 0.01704545455 | E46: 93572 | G46: SINAPI MT 06/223 | I46: =VLOOKUP(E46,[34]planilhanull!$G$7:$K$7520,5,FALSE) -> 4970.19 | J46: =C46*I46 -> 84.71914773
A47: SUB-TOTAL | J47: =SUM(J44:J46) -> 378.7369084
A48: PRODUÇÃO DA EQUIPE MÊS 22 KM, MAS COM FATOR DE REDUÇÃO PARA PÉRIODOS COM CHUVAS | B48: ='CPU (DF)'!B48 -> 18.7 | C48: CUSTO | J48: =J47+J41+J36+J32 -> 2838.722796
A49: TOTAL | J49: =ROUND(J48,2) -> 2838.72
A50: BDI % | J50: 24.1
A51: TOTAL DO SERVIÇO - R$ | J51: =ROUND(J49*(1+J50/100),2) -> 3522.85
A53: COMPOSIÇÃO DE PREÇO UNITÁRIO
A54: LOCAÇÃO E NIVELAMENTO DE TERRAÇOS COM TOPOGRAFIA | I54: UNIDADE: | J54: km
A55: EQUIPAMENTO
A56: DISCRIMINAÇÃO | B56: UNIDADE | C56: QUANT. PROD. | D56: QUANT. IMPROD. | E56: COD. P | F56: COD. I | G56: FONTE | H56: CHP/ P.UNIT. | I56: CHI | J56: P.TOTAL
A57: NIVEL OPTICO, COM PRECISAO DE 0,7 MM, AUMENTO DE 32X | B57: H | C57: ='CPU (DF)'!C57 -> 0.99609375 | E57: 7252 | G57: SINAPI MT 06/223 | H57: =VLOOKUP(E57,[36]sheet1!$A$1:$E$65536,5,FALSE) -> 2.25 | J57: =C57*H57+D57*I57 -> 2.241210937
A58: TEODOLITO ELETRONICO, PRECISAO ANGULAR DE 5 A 7 SEGUNDOS, INCLUINDO TRIPE | B58: H | C58: ='CPU (DF)'!C58 -> 0.99609375 | E58: 7247 | G58: SINAPI MT 06/223 | H58: =VLOOKUP(E58,[36]sheet1!$A$1:$E$65536,5,FALSE) -> 2.25 | J58: =C58*H58+D58*I58 -> 2.241210937
A59: CAMINHONETE CABINE SIMPLES COM MOTOR 1.6 FLEX, CÂMBIO MANUAL, POTÊNCIA 101/104 CV, 2 PORTAS | B59: H | C59: ='CPU (DF)'!C59 -> 0.3735351562 | D59: ='CPU (DF)'!D59 -> 0.6225585938 | E59: 92145 | F59: 92146 | G59: SINAPI MT 06/223 | H59: =H31 -> 67.64 | I59: =I31 -> 25.95 | J59: =C59*H59+D59*I59 -> 41.42131348
A60: SUB-TOTAL | J60: =SUM(J57:J59) -> 45.90373535
A61: MATERIAL
A62: DISCRIMINAÇÃO | B62: UNIDADE | C62: QUANT. | E62: COD. | I62: P.UNIT. | J62: P.TOTAL
A63: ESTACA/PIQUETE DE MADEIRA | B63: U | C63: ='CPU (DF)'!C63 -> 83.33333333 | E63: 4408 | G63: SINAPI MT 06/223 | I63: =VLOOKUP(E63,[36]sheet1!$A$1:$E$65536,5,FALSE)*0.4 -> 0.892 | J63: =C63*I63 -> 74.33333333
A64: SUB-TOTAL | J64: =SUM(J63:J63) -> 74.33333333
A65: SERVIÇOS - COMPOSIÇÕES AUXILIARES
A66: DISCRIMINAÇÃO | B66: UNIDADE | C66: QUANT. | I66: P.UNIT. | J66: P.TOTAL
A68: SUB-TOTAL
A69: MÃO DE OBRA
A70: DISCRIMINAÇÃO | B70: UNIDADE | C70: QUANT. | E70: COD. P | F70: COD. I | I70: P.UNIT. | J70: P.TOTAL
A71: AUXILIAR DE TOPOGRÁFO COM ENCARGOS | B71: MÊS | C71: ='CPU (DF)'!C71 -> 0.00565962358 | E71: 101389 | G71: SINAPI MT 06/223 | I71: =VLOOKUP(E71,[34]planilhanull!$G$7:$K$7520,5,FALSE) -> 1868.57 | J71: =C71*I71 -> 10.57540283
A72: TOPOGRAFO COM ENCARGOS | B72: MÊS | C72: ='CPU (DF)'!C72 -> 0.00565962358 | E72: 94296 | G72: SINAPI MT 06/223 | I72: =VLOOKUP(E72,[34]planilhanull!$G$7:$K$7520,5,FALSE) -> 3699.55 | J72: =C72*I72 -> 20.93806041
A73: SUB-TOTAL | J73: =SUM(J71:J72) -> 31.51346325
A74: PRODUÇÃO MENSAL DA EQUIPE | B74: ='CPU (DF)'!B74 -> 46.93333333 | C74: CUSTO | J74: =J73+J68+J64+J60 -> 151.7505319
A75: TOTAL | J75: =ROUND(J74,2) -> 151.75
A76: BDI % | J76: 24.1
A77: TOTAL DO SERVIÇO - R$ | J77: =ROUND(J75*(1+J76/100),2) -> 188.32
A79: COMPOSIÇÃO DE PREÇO UNITÁRIO
A80: LOCAÇÃO E CONSTRUÇÃO DE BACIAS DE CAPTAÇÃO DE ENXURRADA (4 METROS DE RAIO) | I80: UNIDADE: | J80: UNID.
A81: EQUIPAMENTO
A82: DISCRIMINAÇÃO | B82: UNIDADE | C82: QUANT. PROD. | D82: QUANT. IMPROD. | E82: COD. P | F82: COD. I | G82: FONTE | H82: CHP/ P.UNIT. | I82: CHI | J82: P.TOTAL
A83: NIVEL OPTICO, COM PRECISAO DE 0,7 MM, AUMENTO DE 32X | B83: H | C83: ='CPU (DF)'!C83 -> 0.6 | E83: 7252 | G83: SINAPI MT 06/223 | H83: =$H$57 -> 2.25 | J83: =C83*H83+D83*I83 -> 1.35
A84: TEODOLITO ELETRONICO, PRECISAO ANGULAR DE 5 A 7 SEGUNDOS, INCLUINDO TRIPE | B84: H | C84: ='CPU (DF)'!C84 -> 0.6 | E84: 7247 | G84: SINAPI MT 06/223 | H84: =$H$58 -> 2.25 | J84: =C84*H84+D84*I84 -> 1.35
A85: PÁ CARREGADEIRA SOBRE RODAS, POTÊNCIA LÍQUIDA 128 HP, CAPACIDADE DA CAÇAMBA 1,7 A 2,8 M³ | B85: H | C85: ='CPU (DF)'!C85 -> 0.7779529817 | D85: ='CPU (DF)'!D85 -> 0.2593176606 | E85: 5940 | F85: 5942 | G85: SINAPI MT 06/223 | H85: =VLOOKUP(E85,[34]planilhanull!$G$7:$K$7520,5,FALSE) -> 160.38 | I85: =VLOOKUP(F85,[34]planilhanull!$G$7:$K$7520,5,FALSE) -> 59.46 | J85: =C85*H85+D85*I85 -> 140.1871273
A86: VEÍCULO DE PASSEIO PARA DESLOCAMENTO DA EQUIPE | B86: H | C86: ='CPU (DF)'!C86 -> 0.234375 | D86: ='CPU (DF)'!D86 -> 0.390625 | E86: E9093 | G86: SICRO MT 01/2023 | H86: =$H$30 -> 33.3418 | I86: =$I$30 -> 6.3789 | J86: =C86*H86+D86*I86 -> 10.30624219
A87: CAMINHONETE CABINE SIMPLES COM MOTOR 1.6 FLEX, CÂMBIO MANUAL, POTÊNCIA 101/104 CV, 2 PORTAS | B87: H | C87: ='CPU (DF)'!C87 -> 0.609375 | D87: ='CPU (DF)'!D87 -> 0.365625 | E87: 92145 | F87: 92146 | G87: SINAPI MT 06/223 | H87: =$H$31 -> 67.64 | I87: =$I$31 -> 25.95 | J87: =C87*H87+D87*I87 -> 50.70609375
A88: SUB-TOTAL | J88: =SUM(J83:J87) -> 203.8994632
A89: MATERIAL
A90: DISCRIMINAÇÃO | B90: UNIDADE | C90: QUANT. | E90: COD. | I90: P.UNIT. | J90: P.TOTAL
A91: ESTACA/PIQUETE DE MADEIRA | B91: U | C91: ='CPU (DF)'!C91 -> 12 | E91: 4408 | G91: SINAPI MT 06/223 | I91: =$I$63 -> 0.892 | J91: =C91*I91 -> 10.704
A92: SUB-TOTAL | J92: =SUM(J91:J91) -> 10.704
A93: SERVIÇOS - COMPOSIÇÕES AUXILIARES
A94: DISCRIMINAÇÃO | B94: UNIDADE | C94: QUANT. | I94: P.UNIT. | J94: P.TOTAL
A95: REVESTIMENTO VEGETAL POR SEMEADURA A LANÇO MANUAL DE GRAMÍNEAS E LEGUMINOSAS | B95: m² | C95: ='CPU (DF)'!C95 -> 50.26548246 | E95: 4413993 | G95: SICRO MT 01/2023 | I95: =VLOOKUP(E95,[33]Sheet1!$A:$D,4,FALSE) -> 0.61 | J95: =C95*I95 -> 30.6619443
A96: SUB-TOTAL | J96: =SUM(J95:J95) -> 30.6619443
A97: MÃO DE OBRA
A98: DISCRIMINAÇÃO | B98: UNIDADE | C98: QUANT. | E98: COD. P | F98: COD. I | I98: P.UNIT. | J98: P.TOTAL
A99: ENGENHEIRO COM ENCARGO | B99: MÊS | C99: ='CPU (DF)'!C99 -> 0.001420454545 | E99: 93565 | G99: SINAPI MT 06/223 | I99: =$I$44 -> 19262.42 | J99: =C99*I99 -> 27.36139205
A100: ENCARREGADO COM ENCARGO | B100: MÊS | C100: ='CPU (DF)'!C100 -> 0.004261363636 | E100: 93572 | G100: SINAPI MT 06/223 | I100: =$I$46 -> 4970.19 | J100: =C100*I100 -> 21.17978693
A101: TOPOGRAFO COM ENCARGOS | B101: MÊS | C101: ='CPU (DF)'!C101 -> 0.003409090909 | E101: 94296 | G101: SINAPI MT 06/223 | I101: =$I$72 -> 3699.55 | J101: =C101*I101 -> 12.61210227
A102: AUXILIAR DE TOPOGRÁFO COM ENCARGOS | B102: MÊS | C102: ='CPU (DF)'!C102 -> 0.003409090909 | E102: 101389 | G102: SINAPI MT 06/223 | I102: =$I$71 -> 1868.57 | J102: =C102*I102 -> 6.370125
A103: SERVENTE COM ENCARGOS COMPLEMENTARES - INLUSIVE ABERTURA E FECHAMENTO DE CERCAS | B103: MES | C103: ='CPU (DF)'!C103 -> 0.005893583194 | E103: 101452 | G103: SINAPI MT 06/223 | I103: =$I$45 -> 3451.5 | J103: =C103*I103 -> 20.3417024
A104: SUB-TOTAL | J104: =SUM(J99:J103) -> 87.86510865
A105: PRODUÇÃO MENSAL DA EQUIPE | B105: ='CPU (DF)'!B105 -> 169.6760641 | C105: CUSTO | J105: =J104+J96+J92+J88 -> 333.1305162
A106: TOTAL | J106: =ROUND(J105,2) -> 333.13
A107: BDI % | J107: 24.1
A108: TOTAL DO SERVIÇO - R$ | J108: =ROUND(J106*(1+J107/100),2) -> 413.41
A111: COMPOSIÇÃO DE PREÇO UNITÁRIO
A112: LOCAÇÃO E CONSTRUÇÃO DE BACIAS DE CAPTAÇÃO DE ENXURRADA (6 METROS DE RAIO) | I112: UNIDADE: | J112: UNID.
A113: EQUIPAMENTO
A114: DISCRIMINAÇÃO | B114: UNIDADE | C114: QUANT. PROD. | D114: QUANT. IMPROD. | E114: COD. P | F114: COD. I | G114: FONTE | H114: CHP/ P.UNIT. | I114: CHI | J114: P.TOTAL
A115: NIVEL OPTICO, COM PRECISAO DE 0,7 MM, AUMENTO DE 32X | B115: H | C115: ='CPU (DF)'!C115 -> 0.6 | E115: 7252 | G115: SINAPI MT 06/223 | H115: =$H$57 -> 2.25 | J115: =C115*H115+D115*I115 -> 1.35
A116: TEODOLITO ELETRONICO, PRECISAO ANGULAR DE 5 A 7 SEGUNDOS, INCLUINDO TRIPE | B116: H | C116: ='CPU (DF)'!C116 -> 0.6 | E116: 7247 | G116: SINAPI MT 06/223 | H116: =$H$58 -> 2.25 | J116: =C116*H116+D116*I116 -> 1.35
A117: PÁ CARREGADEIRA SOBRE RODAS, POTÊNCIA LÍQUIDA 128 HP, CAPACIDADE DA CAÇAMBA 1,7 A 2,8 M³ | B117: H | C117: ='CPU (DF)'!C117 -> 1.536166858 | D117: ='CPU (DF)'!D117 -> 0.5120556193 | E117: 5940 | F117: 5942 | G117: SINAPI MT 06/223 | H117: =$H$85 -> 160.38 | I117: =$I$85 -> 59.46 | J117: =C117*H117+D117*I117 -> 276.8172678
A118: VEÍCULO DE PASSEIO PARA DESLOCAMENTO DA EQUIPE | B118: H | C118: ='CPU (DF)'!C118 -> 0.25 | D118: ='CPU (DF)'!D118 -> 0.4166666667 | E118: E9093 | G118: SICRO MT 01/2023 | H118: =$H$30 -> 33.3418 | I118: =$I$30 -> 6.3789 | J118: =C118*H118+D118*I118 -> 10.993325
A119: CAMINHONETE CABINE SIMPLES COM MOTOR 1.6 FLEX, CÂMBIO MANUAL, POTÊNCIA 101/104 CV, 2 PORTAS | B119: H | C119: ='CPU (DF)'!C119 -> 0.625 | D119: ='CPU (DF)'!D119 -> 0.375 | E119: 92145 | F119: 92146 | G119: SINAPI MT 06/223 | H119: =$H$31 -> 67.64 | I119: =$I$31 -> 25.95 | J119: =C119*H119+D119*I119 -> 52.00625
A120: SUB-TOTAL | J120: =SUM(J115:J119) -> 342.5168428
A121: MATERIAL
A122: DISCRIMINAÇÃO | B122: UNIDADE | C122: QUANT. | E122: COD. | I122: P.UNIT. | J122: P.TOTAL
A123: ESTACA/PIQUETE DE MADEIRA | B123: U | C123: ='CPU (DF)'!C123 -> 12 | E123: 4408 | G123: SINAPI MT 06/223 | I123: =$I$63 -> 0.892 | J123: =C123*I123 -> 10.704
A124: SUB-TOTAL | J124: =SUM(J123:J123) -> 10.704
A125: SERVIÇOS - COMPOSIÇÕES AUXILIARES
A126: DISCRIMINAÇÃO | B126: UNIDADE | C126: QUANT. | I126: P.UNIT. | J126: P.TOTAL
A127: REVESTIMENTO VEGETAL POR SEMEADURA A LANÇO MANUAL DE GRAMÍNEAS E LEGUMINOSAS | B127: m² | C127: ='CPU (DF)'!C127 -> 94.24777961 | E127: 4413993 | G127: SICRO MT 01/2023 | I127: =VLOOKUP(E127,[33]Sheet1!$A:$D,4,FALSE) -> 0.61 | J127: =C127*I127 -> 57.49114556
A128: SUB-TOTAL | J128: =SUM(J127:J127) -> 57.49114556
A129: MÃO DE OBRA
A130: DISCRIMINAÇÃO | B130: UNIDADE | C130: QUANT. | E130: COD. P | F130: COD. I | I130: P.UNIT. | J130: P.TOTAL
A131: ENGENHEIRO COM ENCARGO | B131: MÊS | C131: ='CPU (DF)'!C131 -> 0.001515151515 | E131: 93565 | G131: SINAPI MT 06/223 | I131: =$I$44 -> 19262.42 | J131: =C131*I131 -> 29.18548485
A132: ENCARREGADO COM ENCARGO | B132: MÊS | C132: ='CPU (DF)'!C132 -> 0.004545454545 | E132: 93572 | G132: SINAPI MT 06/223 | I132: =$I$46 -> 4970.19 | J132: =C132*I132 -> 22.59177273
A133: TOPOGRAFO COM ENCARGOS | B133: MÊS | C133: ='CPU (DF)'!C133 -> 0.003409090909 | E133: 94296 | G133: SINAPI MT 06/223 | I133: =$I$72 -> 3699.55 | J133: =C133*I133 -> 12.61210227
A134: AUXILIAR DE TOPOGRÁFO COM ENCARGOS | B134: MÊS | C134: ='CPU (DF)'!C134 -> 0.003409090909 | E134: 101389 | G134: SINAPI MT 06/223 | I134: =$I$71 -> 1868.57 | J134: =C134*I134 -> 6.370125
A135: SERVENTE COM ENCARGOS COMPLEMENTARES - INLUSIVE ABERTURA E FECHAMENTO DE CERCAS | B135: MES | C135: ='CPU (DF)'!C135 -> 0.01163762771 | E135: 101452 | G135: SINAPI MT 06/223 | I135: =$I$45 -> 3451.5 | J135: =C135*I135 -> 40.16727204
A136: SUB-TOTAL | J136: =SUM(J131:J135) -> 110.9267569
A137: PRODUÇÃO MENSAL DA EQUIPE | B137: ='CPU (DF)'!B137 -> 85.9281655 | C137: CUSTO | J137: =J136+J128+J124+J120 -> 521.6387452
A138: TOTAL | J138: =ROUND(J137,2) -> 521.64
A139: BDI % | J139: 24.1
A140: TOTAL DO SERVIÇO - R$ | J140: =ROUND(J138*(1+J139/100),2) -> 647.36
A142: COMPOSIÇÃO DE PREÇO UNITÁRIO
A143: LOCAÇÃO E CONSTRUÇÃO DE BACIAS DE CAPTAÇÃO DE ENXURRADA (9 METROS DE RAIO) | I143: UNIDADE: | J143: UNID.
A144: EQUIPAMENTO
A145: DISCRIMINAÇÃO | B145: UNIDADE | C145: QUANT. PROD. | D145: QUANT. IMPROD. | E145: COD. P | F145: COD. I | G145: FONTE | H145: CHP/ P.UNIT. | I145: CHI | J145: P.TOTAL
A146: NIVEL OPTICO, COM PRECISAO DE 0,7 MM, AUMENTO DE 32X | B146: H | C146: ='CPU (DF)'!C146 -> 0.65 | E146: 7252 | G146: SINAPI MT 06/223 | H146: =$H$57 -> 2.25 | J146: =C146*H146+D146*I146 -> 1.4625
A147: TEODOLITO ELETRONICO, PRECISAO ANGULAR DE 5 A 7 SEGUNDOS, INCLUINDO TRIPE | B147: H | C147: ='CPU (DF)'!C147 -> 0.65 | E147: 7247 | G147: SINAPI MT 06/223 | H147: =$H$58 -> 2.25 | J147: =C147*H147+D147*I147 -> 1.4625
A148: PÁ CARREGADEIRA SOBRE RODAS, POTÊNCIA LÍQUIDA 128 HP, CAPACIDADE DA CAÇAMBA 1,7 A 2,8 M³ | B148: H | C148: ='CPU (DF)'!C148 -> 3.738990826 | D148: ='CPU (DF)'!D148 -> 1.246330275 | E148: 5940 | F148: 5942 | G148: SINAPI MT 06/223 | H148: =$H$85 -> 160.38 | I148: =$I$85 -> 59.46 | J148: =C148*H148+D148*I148 -> 673.7661468
A149: VEÍCULO DE PASSEIO PARA DESLOCAMENTO DA EQUIPE | B149: H | C149: ='CPU (DF)'!C149 -> 0.265625 | D149: ='CPU (DF)'!D149 -> 0.4427083333 | E149: E9093 | G149: SICRO MT 01/2023 | H149: =$H$30 -> 33.3418 | I149: =$I$30 -> 6.3789 | J149: =C149*H149+D149*I149 -> 11.68040781
A150: CAMINHONETE CABINE SIMPLES COM MOTOR 1.6 FLEX, CÂMBIO MANUAL, POTÊNCIA 101/104 CV, 2 PORTAS | B150: H | C150: ='CPU (DF)'!C150 -> 0.671875 | D150: ='CPU (DF)'!D150 -> 0.403125 | E150: 92145 | F150: 92146 | G150: SINAPI MT 06/223 | H150: =$H$31 -> 67.64 | I150: =$I$31 -> 25.95 | J150: =C150*H150+D150*I150 -> 55.90671875
A151: SUB-TOTAL | J151: =SUM(J146:J150) -> 744.2782734
A152: MATERIAL
A153: DISCRIMINAÇÃO | B153: UNIDADE | C153: QUANT. | E153: COD. | I153: P.UNIT. | J153: P.TOTAL
A154: ESTACA/PIQUETE DE MADEIRA | B154: U | C154: ='CPU (DF)'!C154 -> 12 | E154: 4408 | G154: SINAPI MT 06/223 | I154: =$I$63 -> 0.892 | J154: =C154*I154 -> 10.704
A155: SUB-TOTAL | J155: =SUM(J154:J154) -> 10.704
A156: SERVIÇOS - COMPOSIÇÕES AUXILIARES
A157: DISCRIMINAÇÃO | B157: UNIDADE | C157: QUANT. | I157: P.UNIT. | J157: P.TOTAL
A158: REVESTIMENTO VEGETAL POR SEMEADURA A LANÇO MANUAL DE GRAMÍNEAS E LEGUMINOSAS | B158: m² | C158: ='CPU (DF)'!C158 -> 169.6460033 | E158: 4413993 | G158: SICRO MT 01/2023 | I158: =VLOOKUP(E158,[33]Sheet1!$A:$D,4,FALSE) -> 0.61 | J158: =C158*I158 -> 103.484062
A159: SUB-TOTAL | J159: =SUM(J158:J158) -> 103.484062
A160: MÃO DE OBRA
A161: DISCRIMINAÇÃO | B161: UNIDADE | C161: QUANT. | E161: COD. P | F161: COD. I | I161: P.UNIT. | J161: P.TOTAL
A162: ENGENHEIRO COM ENCARGO | B162: MÊS | C162: ='CPU (DF)'!C162 -> 0.001609848485 | E162: 93565 | G162: SINAPI MT 06/223 | I162: =$I$44 -> 19262.42 | J162: =C162*I162 -> 31.00957765
A163: ENCARREGADO COM ENCARGO | B163: MÊS | C163: ='CPU (DF)'!C163 -> 0.004829545455 | E163: 93572 | G163: SINAPI MT 06/223 | I163: =$I$46 -> 4970.19 | J163: =C163*I163 -> 24.00375852
A164: TOPOGRAFO COM ENCARGOS | B164: MÊS | C164: ='CPU (DF)'!C164 -> 0.003693181818 | E164: 94296 | G164: SINAPI MT 06/223 | I164: =$I$72 -> 3699.55 | J164: =C164*I164 -> 13.6631108
A165: AUXILIAR DE TOPOGRÁFO COM ENCARGOS | B165: MÊS | C165: ='CPU (DF)'!C165 -> 0.003693181818 | E165: 101389 | G165: SINAPI MT 06/223 | I165: =$I$71 -> 1868.57 | J165: =C165*I165 -> 6.90096875
A166: SERVENTE COM ENCARGOS COMPLEMENTARES - INLUSIVE ABERTURA E FECHAMENTO DE CERCAS | B166: MES | C166: ='CPU (DF)'!C166 -> 0.02832568807 | E166: 101452 | G166: SINAPI MT 06/223 | I166: =$I$45 -> 3451.5 | J166: =C166*I166 -> 97.76611239
A167: SUB-TOTAL | J167: =SUM(J162:J166) -> 173.3435281
A168: PRODUÇÃO MENSAL DA EQUIPE | B168: ='CPU (DF)'!B168 -> 35.30364372 | C168: CUSTO | J168: =J167+J159+J155+J151 -> 1031.809863
A169: TOTAL | J169: =ROUND(J168,2) -> 1031.81
A170: BDI % | J170: 24.1
A171: TOTAL DO SERVIÇO - R$ | J171: =ROUND(J169*(1+J170/100),2) -> 1280.48
A174: COMPOSIÇÃO DE PREÇO UNITÁRIO
A175: LOCAÇÃO E CONSTRUÇÃO DE BACIAS DE CAPTAÇÃO DE ENXURRADA (12 METROS DE RAIO) | I175: UNIDADE: | J175: UNID.
A176: EQUIPAMENTO
A177: DISCRIMINAÇÃO | B177: UNIDADE | C177: QUANT. PROD. | D177: QUANT. IMPROD. | E177: COD. P | F177: COD. I | G177: FONTE | H177: CHP/ P.UNIT. | I177: CHI | J177: P.TOTAL
A178: NIVEL OPTICO, COM PRECISAO DE 0,7 MM, AUMENTO DE 32X | B178: H | C178: ='CPU (DF)'!C178 -> 0.65 | E178: 7252 | G178: SINAPI MT 06/223 | H178: =$H$57 -> 2.25 | J178: =C178*H178+D178*I178 -> 1.4625
A179: TEODOLITO ELETRONICO, PRECISAO ANGULAR DE 5 A 7 SEGUNDOS, INCLUINDO TRIPE | B179: H | C179: ='CPU (DF)'!C179 -> 0.65 | E179: 7247 | G179: SINAPI MT 06/223 | H179: =$H$58 -> 2.25 | J179: =C179*H179+D179*I179 -> 1.4625
A180: PÁ CARREGADEIRA SOBRE RODAS, POTÊNCIA LÍQUIDA 128 HP, CAPACIDADE DA CAÇAMBA 1,7 A 2,8 M³ | B180: H | C180: ='CPU (DF)'!C180 -> 6 | D180: ='CPU (DF)'!D180 -> 2 | E180: 5940 | F180: 5942 | G180: SINAPI MT 06/223 | H180: =$H$85 -> 160.38 | I180: =$I$85 -> 59.46 | J180: =C180*H180+D180*I180 -> 1081.2
A181: VEÍCULO DE PASSEIO PARA DESLOCAMENTO DA EQUIPE | B181: H | C181: ='CPU (DF)'!C181 -> 0.28125 | D181: ='CPU (DF)'!D181 -> 0.46875 | E181: E9093 | G181: SICRO MT 01/2023 | H181: =$H$30 -> 33.3418 | I181: =$I$30 -> 6.3789 | J181: =C181*H181+D181*I181 -> 12.36749062
A182: CAMINHONETE CABINE SIMPLES COM MOTOR 1.6 FLEX, CÂMBIO MANUAL, POTÊNCIA 101/104 CV, 2 PORTAS | B182: H | C182: ='CPU (DF)'!C182 -> 0.6875 | D182: ='CPU (DF)'!D182 -> 0.4125 | E182: 92145 | F182: 92146 | G182: SINAPI MT 06/223 | H182: =$H$31 -> 67.64 | I182: =$I$31 -> 25.95 | J182: =C182*H182+D182*I182 -> 57.206875
A183: SUB-TOTAL | J183: =SUM(J178:J182) -> 1153.699366
A184: MATERIAL
A185: DISCRIMINAÇÃO | B185: UNIDADE | C185: QUANT. | E185: COD. | I185: P.UNIT. | J185: P.TOTAL
A186: ESTACA/PIQUETE DE MADEIRA | B186: U | C186: ='CPU (DF)'!C186 -> 16 | E186: 4408 | G186: SINAPI MT 06/223 | I186: =$I$63 -> 0.892 | J186: =C186*I186 -> 14.272
A187: SUB-TOTAL | J187: =SUM(J186:J186) -> 14.272
A188: SERVIÇOS - COMPOSIÇÕES AUXILIARES
A189: DISCRIMINAÇÃO | B189: UNIDADE | C189: QUANT. | I189: P.UNIT. | J189: P.TOTAL
A190: REVESTIMENTO VEGETAL POR SEMEADURA A LANÇO MANUAL DE GRAMÍNEAS E LEGUMINOSAS | B190: m² | C190: ='CPU (DF)'!C190 -> 263.8937829 | E190: 4413993 | G190: SICRO MT 01/2023 | I190: =VLOOKUP(E190,[33]Sheet1!$A:$D,4,FALSE) -> 0.61 | J190: =C190*I190 -> 160.9752076
A191: SUB-TOTAL | J191: =SUM(J190:J190) -> 160.9752076
A192: MÃO DE OBRA
A193: DISCRIMINAÇÃO | B193: UNIDADE | C193: QUANT. | E193: COD. P | F193: COD. I | I193: P.UNIT. | J193: P.TOTAL
A194: ENGENHEIRO COM ENCARGO | B194: MES | C194: ='CPU (DF)'!C194 -> 0.001704545455 | E194: 93565 | G194: SINAPI MT 06/223 | I194: =$I$44 -> 19262.42 | J194: =C194*I194 -> 32.83367045
A195: ENCARREGADO COM ENCARGO | B195: MES | C195: ='CPU (DF)'!C195 -> 0.005113636364 | E195: 93572 | G195: SINAPI MT 06/223 | I195: =$I$46 -> 4970.19 | J195: =C195*I195 -> 25.41574432
A196: TOPOGRAFO COM ENCARGOS | B196: MÊS | C196: ='CPU (DF)'!C196 -> 0.003693181818 | E196: 94296 | G196: SINAPI MT 06/223 | I196: =$I$72 -> 3699.55 | J196: =C196*I196 -> 13.6631108
A197: AUXILIAR DE TOPOGRÁFO COM ENCARGOS | B197: MÊS | C197: ='CPU (DF)'!C197 -> 0.003693181818 | E197: 101389 | G197: SINAPI MT 06/223 | I197: =$I$71 -> 1868.57 | J197: =C197*I197 -> 6.90096875
A198: SERVENTE COM ENCARGOS COMPLEMENTARES - INLUSIVE ABERTURA E FECHAMENTO DE CERCAS | B198: MES | C198: ='CPU (DF)'!C198 -> 0.04545454545 | E198: 101452 | G198: SINAPI MT 06/223 | I198: =$I$45 -> 3451.5 | J198: =C198*I198 -> 156.8863636
A199: SUB-TOTAL | J199: =SUM(J194:J198) -> 235.699858
A200: PRODUÇÃO DA EQUIPE | B200: ='CPU (DF)'!B200 -> 22 | C200: CUSTO | J200: =J199+J191+J187+J183 -> 1564.646431
A201: TOTAL | J201: =ROUND(J200,2) -> 1564.65
A202: BDI % | J202: 24.1
A203: TOTAL DO SERVIÇO - R$ | J203: =ROUND(J201*(1+J202/100),2) -> 1941.73
A205: COMPOSIÇÃO DE PREÇO UNITÁRIO
A206: CERCAMENTO DE ÁREAS AMBIENTALMENTE VULNERÁVEIS À CAPRINOVINOCULTURA | I206: UNIDADE: | J206: m
A207: EQUIPAMENTO
A208: DISCRIMINAÇÃO | B208: UNIDADE | C208: QUANT. PROD. | D208: QUANT. IMPROD. | E208: COD. P | F208: COD. I | G208: FONTE | I208: P.UNIT. | J208: P.TOTAL
A209: NIVEL OPTICO, COM PRECISAO DE 0,7 MM, AUMENTO DE 32X | B209: h | C209: ='CPU (DF)'!C209 -> 0.05 | E209: 7252 | G209: SINAPI MT 06/223 | H209: =H178 -> 2.25 | J209: =C209*H209+D209*I209 -> 0.1125
A210: TEODOLITO ELETRONICO, PRECISAO ANGULAR DE 5 A 7 SEGUNDOS, INCLUINDO TRIPE | B210: h | C210: ='CPU (DF)'!C210 -> 0.05 | E210: 7247 | G210: SINAPI MT 06/223 | H210: =H179 -> 2.25 | J210: =C210*H210+D210*I210 -> 0.1125
A211: VEÍCULO DE PASSEIO PARA DESLOCAMENTO DA EQUIPE | B211: h | C211: ='CPU (DF)'!C211 -> 0.01838235294 | D211: ='CPU (DF)'!D211 -> 0.0306372549 | E211: E9093 | F211: E9093 | G211: SICRO MT 01/2023 | H211: =H30 -> 33.3418 | I211: =I30 -> 6.3789 | J211: =C211*H211+D211*I211 -> 0.8083327206
... 87 more rows

Sheet CPU (PB)
A1: COMPOSIÇÃO DE PREÇO UNITÁRIO
A2: MOBILIZAÇÃO E DESMOBILIZAÇÃO | C2: REGIÃO: | G2: PB | I2: UNIDADE: | J2: R$/Tonelada/ Projeto
A3: EQUIPAMENTO
A4: DISCRIMINAÇÃO | B4: UNIDADE | C4: QUANT. PROD. | D4: QUANT. IMPROD. | E4: COD. | G4: FONTE | H4: P.UNIT. PROD | I4: P.UNIT. IMPR | J4: P.TOTAL
J5: =C5*E5*H5+C5*G5*I5 -> 0
A6: SUB-TOTAL | J6: =SUM(J5:J5) -> 0
A7: MATERIAL
A8: DISCRIMINAÇÃO | B8: UNIDADE | C8: QUANT. | E8: COD. | G8: FONTE | I8: P.UNIT. | J8: P.TOTAL
J9: Toneladas/ Projeto
J10: =C10*I10 -> 0
A11: SUB-TOTAL | J11: =SUM(J9:J10) -> 0
A12: SERVIÇOS - COMPOSIÇÕES AUXILIARES
A13: DISCRIMINAÇÃO | B13: UNIDADE | C13: QUANT. | E13: COD. | G13: FONTE | I13: P.UNIT. | J13: P.TOTAL
A14: TRANSPORTE COM CAVALO MECÂNICO COM SEMIRREBOQUE COM CAPACIDADE DE 30 T - RODOVIA PAVIMENTADA | B14: t*km | C14: ='CPU (DF)'!C14 -> 1 | E14: 5914640 | G14: SICRO PB 01/2023 | I14: =VLOOKUP(E14,[37]Sheet1!$A:$D,4,FALSE) -> 0.59 | J14: =C14*I14 -> 0.59
A15: SUB-TOTAL | J15: =SUM(J14:J14) -> 0.59
A16: MÃO DE OBRA
A17: DISCRIMINAÇÃO | B17: UNIDADE | C17: QUANT. | I17: P.UNIT. | J17: P.TOTAL
J18: =C18*I18 -> 0
A19: SUB-TOTAL | J19: =SUM(J18:J18) -> 0
A20: PRODUÇÃO DA EQUIPE (MOB E DESMOB) EM km | B20: =VLOOKUP(G2,DMT!D:E,2)*2 -> 400 | C20: CUSTO | J20: =J19+J15+J11+J6 -> 0.59
A21: TOTAL | J21: =J20*B20 -> 236
A22: BDI % | J22: 24.1
A23: TOTAL DO SERVIÇO - R$ | J23: =J21*(1+J22/100) -> 292.876
A25: COMPOSIÇÃO DE PREÇO UNITÁRIO
A26: LOCAÇÃO E CONSTRUÇÃO DE TERRAÇOS - INCLUSIVE SOLOS DUROS E SECOS | I26: UNIDADE: | J26: km
A27: EQUIPAMENTO
A28: DISCRIMINAÇÃO | B28: UNIDADE | C28: QUANT. PROD. | D28: QUANT. IMPROD. | E28: COD. P | F28: COD. I | G28: FONTE | H28: CHP | I28: CHI | J28: P.TOTAL
A29: TRATOR DE ESTEIRAS, POTÊNCIA 125 HP, PESO OPERACIONAL 12,9 T, COM LÂMINA 2,7 M3 | B29: H | C29: ='CPU (DF)'!C29 -> 7.058823529 | D29: ='CPU (DF)'!D29 -> 2.352941176 | E29: 5851 | F29: 5853 | G29: SINAPI PB 06/223 | H29: =VLOOKUP(E29,[38]planilhanull!$G$7:$K$7520,5,FALSE) -> 202,25 | I29: =VLOOKUP(F29,[38]planilhanull!$G$7:$K$7520,5,FALSE) -> 65,29 | J29: =C29*H29+D29*I29 -> 1581.270588
A30: VEÍCULO DE PASSEIO PARA DESLOCAMENTO DA EQUIPE | B30: H | C30: ='CPU (DF)'!C30 -> 0.9375 | D30: ='CPU (DF)'!D30 -> 1.5625 | E30: E9093 | F30: E9093 | G30: SICRO PB 01/2023 | H30: =VLOOKUP(E30,[39]Sheet1!$A:$K,10,FALSE) -> 33.059 | I30: =VLOOKUP(F30,[39]Sheet1!$A:$K,11,FALSE) -> 6.4166 | J30: =C30*H30+D30*I30 -> 41.01875
A31: CAMINHONETE CABINE SIMPLES COM MOTOR 1.6 FLEX, CÂMBIO MANUAL, POTÊNCIA 101/104 CV, 2 PORTAS | B31: H | C31: ='CPU (DF)'!C31 -> 0.5625 | D31: ='CPU (DF)'!D31 -> 0.9375 | E31: 92145 | F31: 92146 | G31: SINAPI PB 06/223 | H31: =VLOOKUP(E31,[38]planilhanull!$G$7:$K$7520,5,FALSE) -> 66,78 | I31: =VLOOKUP(F31,[38]planilhanull!$G$7:$K$7520,5,FALSE) -> 26,77 | J31: =C31*H31+D31*I31 -> 62.660625
A32: SUB-TOTAL | J32: =SUM(J29:J31) -> 1684.949963
A33: MATERIAL
A34: DISCRIMINAÇÃO | B34: UNIDADE | C34: QUANT. | E34: COD. | G34: FONTE | I34: P.UNIT. | J34: P.TOTAL
A36: SUB-TOTAL | J36: =SUM(J35:J35) -> 0
A37: SERVIÇOS - COMPOSIÇÕES AUXILIARES
A38: DISCRIMINAÇÃO | B38: UNIDADE | C38: QUANT. | E38: COD. | G38: FONTE | I38: P.UNIT. | J38: P.TOTAL
A39: LOCAÇÃO E NIVELAMENTO DE TERRAÇOS COM TOPOGRAFIA | B39: KM | C39: ='CPU (DF)'!C39 -> 1 | E39: COMPOSIÇÃO | I39: =J75 -> 162.65 | J39: =C39*I39 -> 162.65
A40: REVESTIMENTO VEGETAL POR SEMEADURA A LANÇO MANUAL DE GRAMÍNEAS E LEGUMINOSAS | B40: m² | C40: ='CPU (DF)'!C40 -> 1000 | E40: 4413993 | G40: SICRO PB 01/2023 | I40: =VLOOKUP(E40,[37]Sheet1!$A:$D,4,FALSE) -> 0.64 | J40: =C40*I40 -> 640
A41: SUB-TOTAL | J41: =SUM(J39:J40) -> 802.65
A42: MÃO DE OBRA
A43: DISCRIMINAÇÃO | B43: UNIDADE | C43: QUANT. | E43: COD. P | F43: COD. I | G43: FONTE | I43: P.UNIT. | J43: P.TOTAL
A44: ENGENHEIRO COM ENCARGO | B44: MES | C44: ='CPU (DF)'!C44 -> 0.005681818182 | E44: 93565 | G44: SINAPI PB 06/223 | I44: =VLOOKUP(E44,[38]planilhanull!$G$7:$K$7520,5,FALSE) -> 19.619,58 | J44: =C44*I44 -> 111.4748864
A45: SERVENTE COM ENCARGOS COMPLEMENTARES - INLUSIVE ABERTURA E FECHAMENTO DE CERCAS | B45: MES | C45: ='CPU (DF)'!C45 -> 0.05347593583 | E45: 101452 | G45: SINAPI PB 06/223 | I45: =VLOOKUP(E45,[38]planilhanull!$G$7:$K$7520,5,FALSE) -> 3.237,51 | J45: =C45*I45 -> 173.128877
A46: ENCARREGADO COM ENCARGO | B46: MES | C46: ='CPU (DF)'!C46 -> 0.01704545455 | E46: 93572 | G46: SINAPI PB 06/223 | I46: =VLOOKUP(E46,[38]planilhanull!$G$7:$K$7520,5,FALSE) -> 3.982,22 | J46: =C46*I46 -> 67.87875
A47: SUB-TOTAL | J47: =SUM(J44:J46) -> 352.4825134
A48: PRODUÇÃO DA EQUIPE MÊS 22 KM, MAS COM FATOR DE REDUÇÃO PARA PÉRIODOS COM CHUVAS | B48: ='CPU (DF)'!B48 -> 18.7 | C48: CUSTO | J48: =J47+J41+J36+J32 -> 2840.082477
A49: TOTAL | J49: =ROUND(J48,2) -> 2840.08
A50: BDI % | J50: 24.1
A51: TOTAL DO SERVIÇO - R$ | J51: =ROUND(J49*(1+J50/100),2) -> 3524.54
A53: COMPOSIÇÃO DE PREÇO UNITÁRIO
A54: LOCAÇÃO E NIVELAMENTO DE TERRAÇOS COM TOPOGRAFIA | I54: UNIDADE: | J54: km
A55: EQUIPAMENTO
A56: DISCRIMINAÇÃO | B56: UNIDADE | C56: QUANT. PROD. | D56: QUANT. IMPROD. | E56: COD. P | F56: COD. I | G56: FONTE | H56: CHP/ P.UNIT. | I56: CHI | J56: P.TOTAL
A57: NIVEL OPTICO, COM PRECISAO DE 0,7 MM, AUMENTO DE 32X | B57: H | C57: ='CPU (DF)'!C57 -> 0.99609375 | E57: 7252 | G57: SINAPI PB 06/223 | H57: =VLOOKUP(E57,[40]sheet1!$A$1:$E$65536,5,FALSE) -> 2.25 | J57: =C57*H57+D57*I57 -> 2.241210937
A58: TEODOLITO ELETRONICO, PRECISAO ANGULAR DE 5 A 7 SEGUNDOS, INCLUINDO TRIPE | B58: H | C58: ='CPU (DF)'!C58 -> 0.99609375 | E58: 7247 | G58: SINAPI PB 06/223 | H58: =VLOOKUP(E58,[40]sheet1!$A$1:$E$65536,5,FALSE) -> 2.25 | J58: =C58*H58+D58*I58 -> 2.241210937
A59: CAMINHONETE CABINE SIMPLES COM MOTOR 1.6 FLEX, CÂMBIO MANUAL, POTÊNCIA 101/104 CV, 2 PORTAS | B59: H | C59: ='CPU (DF)'!C59 -> 0.3735351562 | D59: ='CPU (DF)'!D59 -> 0.6225585938 | E59: 92145 | F59: 92146 | G59: SINAPI PB 06/223 | H59: =H31 -> 66,78 | I59: =I31 -> 26,77 | J59: =C59*H59+D59*I59 -> 41.61057129
A60: SUB-TOTAL | J60: =SUM(J57:J59) -> 46.09299316
A61: MATERIAL
A62: DISCRIMINAÇÃO | B62: UNIDADE | C62: QUANT. | E62: COD. | I62: P.UNIT. | J62: P.TOTAL
A63: ESTACA/PIQUETE DE MADEIRA | B63: U | C63: ='CPU (DF)'!C63 -> 83.33333333 | E63: 4408 | G63: SINAPI PB 06/223 | I63: =VLOOKUP(E63,[40]sheet1!$A$1:$E$65536,5,FALSE)*0.4 -> 0.8 | J63: =C63*I63 -> 66.66666667
A64: SUB-TOTAL | J64: =SUM(J63:J63) -> 66.66666667
A65: SERVIÇOS - COMPOSIÇÕES AUXILIARES
A66: DISCRIMINAÇÃO | B66: UNIDADE | C66: QUANT. | I66: P.UNIT. | J66: P.TOTAL
A68: SUB-TOTAL
A69: MÃO DE OBRA
A70: DISCRIMINAÇÃO | B70: UNIDADE | C70: QUANT. | E70: COD. P | F70: COD. I | I70: P.UNIT. | J70: P.TOTAL
A71: AUXILIAR DE TOPOGRÁFO COM ENCARGOS | B71: MÊS | C71: ='CPU (DF)'!C71 -> 0.00565962358 | E71: 101389 | G71: SINAPI PB 06/223 | I71: =VLOOKUP(E71,[38]planilhanull!$G$7:$K$7520,5,FALSE) -> 2.871,26 | J71: =C71*I71 -> 16.2502508
A72: TOPOGRAFO COM ENCARGOS | B72: MÊS | C72: ='CPU (DF)'!C72 -> 0.00565962358 | E72: 94296 | G72: SINAPI PB 06/223 | I72: =VLOOKUP(E72,[38]planilhanull!$G$7:$K$7520,5,FALSE) -> 5.943,36 | J72: =C72*I72 -> 33.6371804
A73: SUB-TOTAL | J73: =SUM(J71:J72) -> 49.8874312
A74: PRODUÇÃO MENSAL DA EQUIPE | B74: ='CPU (DF)'!B74 -> 46.93333333 | C74: CUSTO | J74: =J73+J68+J64+J60 -> 162.647091
A75: TOTAL | J75: =ROUND(J74,2) -> 162.65
A76: BDI % | J76: 24.1
A77: TOTAL DO SERVIÇO - R$ | J77: =ROUND(J75*(1+J76/100),2) -> 201.85
A79: COMPOSIÇÃO DE PREÇO UNITÁRIO
A80: LOCAÇÃO E CONSTRUÇÃO DE BACIAS DE CAPTAÇÃO DE ENXURRADA (4 METROS DE RAIO) | I80: UNIDADE: | J80: UNID.
A81: EQUIPAMENTO
A82: DISCRIMINAÇÃO | B82: UNIDADE | C82: QUANT. PROD. | D82: QUANT. IMPROD. | E82: COD. P | F82: COD. I | G82: FONTE | H82: CHP/ P.UNIT. | I82: CHI | J82: P.TOTAL
A83: NIVEL OPTICO, COM PRECISAO DE 0,7 MM, AUMENTO DE 32X | B83: H | C83: ='CPU (DF)'!C83 -> 0.6 | E83: 7252 | G83: SINAPI PB 06/223 | H83: =$H$57 -> 2.25 | J83: =C83*H83+D83*I83 -> 1.35
A84: TEODOLITO ELETRONICO, PRECISAO ANGULAR DE 5 A 7 SEGUNDOS, INCLUINDO TRIPE | B84: H | C84: ='CPU (DF)'!C84 -> 0.6 | E84: 7247 | G84: SINAPI PB 06/223 | H84: =$H$58 -> 2.25 | J84: =C84*H84+D84*I84 -> 1.35
A85: PÁ CARREGADEIRA SOBRE RODAS, POTÊNCIA LÍQUIDA 128 HP, CAPACIDADE DA CAÇAMBA 1,7 A 2,8 M³ | B85: H | C85: ='CPU (DF)'!C85 -> 0.7779529817 | D85: ='CPU (DF)'!D85 -> 0.2593176606 | E85: 5940 | F85: 5942 | G85: SINAPI PB 06/223 | H85: =VLOOKUP(E85,[38]planilhanull!$G$7:$K$7520,5,FALSE) -> 159,56 | I85: =VLOOKUP(F85,[38]planilhanull!$G$7:$K$7520,5,FALSE) -> 61,46 | J85: =C85*H85+D85*I85 -> 140.0678412
A86: VEÍCULO DE PASSEIO PARA DESLOCAMENTO DA EQUIPE | B86: H | C86: ='CPU (DF)'!C86 -> 0.234375 | D86: ='CPU (DF)'!D86 -> 0.390625 | E86: E9093 | G86: SICRO PB 01/2023 | H86: =$H$30 -> 33.059 | I86: =$I$30 -> 6.4166 | J86: =C86*H86+D86*I86 -> 10.2546875
A87: CAMINHONETE CABINE SIMPLES COM MOTOR 1.6 FLEX, CÂMBIO MANUAL, POTÊNCIA 101/104 CV, 2 PORTAS | B87: H | C87: ='CPU (DF)'!C87 -> 0.609375 | D87: ='CPU (DF)'!D87 -> 0.365625 | E87: 92145 | F87: 92146 | G87: SINAPI PB 06/223 | H87: =$H$31 -> 66,78 | I87: =$I$31 -> 26,77 | J87: =C87*H87+D87*I87 -> 50.48184375
A88: SUB-TOTAL | J88: =SUM(J83:J87) -> 203.5043724
A89: MATERIAL
A90: DISCRIMINAÇÃO | B90: UNIDADE | C90: QUANT. | E90: COD. | I90: P.UNIT. | J90: P.TOTAL
A91: ESTACA/PIQUETE DE MADEIRA | B91: U | C91: ='CPU (DF)'!C91 -> 12 | E91: 4408 | G91: SINAPI PB 06/223 | I91: =$I$63 -> 0.8 | J91: =C91*I91 -> 9.6
A92: SUB-TOTAL | J92: =SUM(J91:J91) -> 9.6
A93: SERVIÇOS - COMPOSIÇÕES AUXILIARES
A94: DISCRIMINAÇÃO | B94: UNIDADE | C94: QUANT. | I94: P.UNIT. | J94: P.TOTAL
A95: REVESTIMENTO VEGETAL POR SEMEADURA A LANÇO MANUAL DE GRAMÍNEAS E LEGUMINOSAS | B95: m² | C95: ='CPU (DF)'!C95 -> 50.26548246 | E95: 4413993 | G95: SICRO PB 01/2023 | I95: =VLOOKUP(E95,[37]Sheet1!$A:$D,4,FALSE) -> 0.64 | J95: =C95*I95 -> 32.16990877
A96: SUB-TOTAL | J96: =SUM(J95:J95) -> 32.16990877
A97: MÃO DE OBRA
A98: DISCRIMINAÇÃO | B98: UNIDADE | C98: QUANT. | E98: COD. P | F98: COD. I | I98: P.UNIT. | J98: P.TOTAL
A99: ENGENHEIRO COM ENCARGO | B99: MÊS | C99: ='CPU (DF)'!C99 -> 0.001420454545 | E99: 93565 | G99: SINAPI PB 06/223 | I99: =$I$44 -> 19.619,58 | J99: =C99*I99 -> 27.86872159
A100: ENCARREGADO COM ENCARGO | B100: MÊS | C100: ='CPU (DF)'!C100 -> 0.004261363636 | E100: 93572 | G100: SINAPI PB 06/223 | I100: =$I$46 -> 3.982,22 | J100: =C100*I100 -> 16.9696875
A101: TOPOGRAFO COM ENCARGOS | B101: MÊS | C101: ='CPU (DF)'!C101 -> 0.003409090909 | E101: 94296 | G101: SINAPI PB 06/223 | I101: =$I$72 -> 5.943,36 | J101: =C101*I101 -> 20.26145455
A102: AUXILIAR DE TOPOGRÁFO COM ENCARGOS | B102: MÊS | C102: ='CPU (DF)'!C102 -> 0.003409090909 | E102: 101389 | G102: SINAPI PB 06/223 | I102: =$I$71 -> 2.871,26 | J102: =C102*I102 -> 9.788386364
A103: SERVENTE COM ENCARGOS COMPLEMENTARES - INLUSIVE ABERTURA E FECHAMENTO DE CERCAS | B103: MES | C103: ='CPU (DF)'!C103 -> 0.005893583194 | E103: 101452 | G103: SINAPI PB 06/223 | I103: =$I$45 -> 3.237,51 | J103: =C103*I103 -> 19.08053453
A104: SUB-TOTAL | J104: =SUM(J99:J103) -> 93.96878453
A105: PRODUÇÃO MENSAL DA EQUIPE | B105: ='CPU (DF)'!B105 -> 169.6760641 | C105: CUSTO | J105: =J104+J96+J92+J88 -> 339.2430657
A106: TOTAL | J106: =ROUND(J105,2) -> 339.24
A107: BDI % | J107: 24.1
A108: TOTAL DO SERVIÇO - R$ | J108: =ROUND(J106*(1+J107/100),2) -> 421
A111: COMPOSIÇÃO DE PREÇO UNITÁRIO
A112: LOCAÇÃO E CONSTRUÇÃO DE BACIAS DE CAPTAÇÃO DE ENXURRADA (6 METROS DE RAIO) | I112: UNIDADE: | J112: UNID.
A113: EQUIPAMENTO
A114: DISCRIMINAÇÃO | B114: UNIDADE | C114: QUANT. PROD. | D114: QUANT. IMPROD. | E114: COD. P | F114: COD. I | G114: FONTE | H114: CHP/ P.UNIT. | I114: CHI | J114: P.TOTAL
A115: NIVEL OPTICO, COM PRECISAO DE 0,7 MM, AUMENTO DE 32X | B115: H | C115: ='CPU (DF)'!C115 -> 0.6 | E115: 7252 | G115: SINAPI PB 06/223 | H115: =$H$57 -> 2.25 | J115: =C115*H115+D115*I115 -> 1.35
A116: TEODOLITO ELETRONICO, PRECISAO ANGULAR DE 5 A 7 SEGUNDOS, INCLUINDO TRIPE | B116: H | C116: ='CPU (DF)'!C116 -> 0.6 | E116: 7247 | G116: SINAPI PB 06/223 | H116: =$H$58 -> 2.25 | J116: =C116*H116+D116*I116 -> 1.35
A117: PÁ CARREGADEIRA SOBRE RODAS, POTÊNCIA LÍQUIDA 128 HP, CAPACIDADE DA CAÇAMBA 1,7 A 2,8 M³ | B117: H | C117: ='CPU (DF)'!C117 -> 1.536166858 | D117: ='CPU (DF)'!D117 -> 0.5120556193 | E117: 5940 | F117: 5942 | G117: SINAPI PB 06/223 | H117: =$H$85 -> 159,56 | I117: =$I$85 -> 61,46 | J117: =C117*H117+D117*I117 -> 276.5817222
A118: VEÍCULO DE PASSEIO PARA DESLOCAMENTO DA EQUIPE | B118: H | C118: ='CPU (DF)'!C118 -> 0.25 | D118: ='CPU (DF)'!D118 -> 0.4166666667 | E118: E9093 | G118: SICRO PB 01/2023 | H118: =$H$30 -> 33.059 | I118: =$I$30 -> 6.4166 | J118: =C118*H118+D118*I118 -> 10.93833333
A119: CAMINHONETE CABINE SIMPLES COM MOTOR 1.6 FLEX, CÂMBIO MANUAL, POTÊNCIA 101/104 CV, 2 PORTAS | B119: H | C119: ='CPU (DF)'!C119 -> 0.625 | D119: ='CPU (DF)'!D119 -> 0.375 | E119: 92145 | F119: 92146 | G119: SINAPI PB 06/223 | H119: =$H$31 -> 66,78 | I119: =$I$31 -> 26,77 | J119: =C119*H119+D119*I119 -> 51.77625
A120: SUB-TOTAL | J120: =SUM(J115:J119) -> 341.9963055
A121: MATERIAL
A122: DISCRIMINAÇÃO | B122: UNIDADE | C122: QUANT. | E122: COD. | I122: P.UNIT. | J122: P.TOTAL
A123: ESTACA/PIQUETE DE MADEIRA | B123: U | C123: ='CPU (DF)'!C123 -> 12 | E123: 4408 | G123: SINAPI PB 06/223 | I123: =$I$63 -> 0.8 | J123: =C123*I123 -> 9.6
A124: SUB-TOTAL | J124: =SUM(J123:J123) -> 9.6
A125: SERVIÇOS - COMPOSIÇÕES AUXILIARES
A126: DISCRIMINAÇÃO | B126: UNIDADE | C126: QUANT. | I126: P.UNIT. | J126: P.TOTAL
A127: REVESTIMENTO VEGETAL POR SEMEADURA A LANÇO MANUAL DE GRAMÍNEAS E LEGUMINOSAS | B127: m² | C127: ='CPU (DF)'!C127 -> 94.24777961 | E127: 4413993 | G127: SICRO PB 01/2023 | I127: =VLOOKUP(E127,[37]Sheet1!$A:$D,4,FALSE) -> 0.64 | J127: =C127*I127 -> 60.31857895
A128: SUB-TOTAL | J128: =SUM(J127:J127) -> 60.31857895
A129: MÃO DE OBRA
A130: DISCRIMINAÇÃO | B130: UNIDADE | C130: QUANT. | E130: COD. P | F130: COD. I | I130: P.UNIT. | J130: P.TOTAL
A131: ENGENHEIRO COM ENCARGO | B131: MÊS | C131: ='CPU (DF)'!C131 -> 0.001515151515 | E131: 93565 | G131: SINAPI PB 06/223 | I131: =$I$44 -> 19.619,58 | J131: =C131*I131 -> 29.72663636
A132: ENCARREGADO COM ENCARGO | B132: MÊS | C132: ='CPU (DF)'!C132 -> 0.004545454545 | E132: 93572 | G132: SINAPI PB 06/223 | I132: =$I$46 -> 3.982,22 | J132: =C132*I132 -> 18.101
A133: TOPOGRAFO COM ENCARGOS | B133: MÊS | C133: ='CPU (DF)'!C133 -> 0.003409090909 | E133: 94296 | G133: SINAPI PB 06/223 | I133: =$I$72 -> 5.943,36 | J133: =C133*I133 -> 20.26145455
A134: AUXILIAR DE TOPOGRÁFO COM ENCARGOS | B134: MÊS | C134: ='CPU (DF)'!C134 -> 0.003409090909 | E134: 101389 | G134: SINAPI PB 06/223 | I134: =$I$71 -> 2.871,26 | J134: =C134*I134 -> 9.788386364
A135: SERVENTE COM ENCARGOS COMPLEMENTARES - INLUSIVE ABERTURA E FECHAMENTO DE CERCAS | B135: MES | C135: ='CPU (DF)'!C135 -> 0.01163762771 | E135: 101452 | G135: SINAPI PB 06/223 | I135: =$I$45 -> 3.237,51 | J135: =C135*I135 -> 37.67693609
A136: SUB-TOTAL | J136: =SUM(J131:J135) -> 115.5544134
A137: PRODUÇÃO MENSAL DA EQUIPE | B137: ='CPU (DF)'!B137 -> 85.9281655 | C137: CUSTO | J137: =J136+J128+J124+J120 -> 527.4692978
A138: TOTAL | J138: =ROUND(J137,2) -> 527.47
A139: BDI % | J139: 24.1
A140: TOTAL DO SERVIÇO - R$ | J140: =ROUND(J138*(1+J139/100),2) -> 654.59
A142: COMPOSIÇÃO DE PREÇO UNITÁRIO
A143: LOCAÇÃO E CONSTRUÇÃO DE BACIAS DE CAPTAÇÃO DE ENXURRADA (9 METROS DE RAIO) | I143: UNIDADE: | J143: UNID.
A144: EQUIPAMENTO
A145: DISCRIMINAÇÃO | B145: UNIDADE | C145: QUANT. PROD. | D145: QUANT. IMPROD. | E145: COD. P | F145: COD. I | G145: FONTE | H145: CHP/ P.UNIT. | I145: CHI | J145: P.TOTAL
A146: NIVEL OPTICO, COM PRECISAO DE 0,7 MM, AUMENTO DE 32X | B146: H | C146: ='CPU (DF)'!C146 -> 0.65 | E146: 7252 | G146: SINAPI PB 06/223 | H146: =$H$57 -> 2.25 | J146: =C146*H146+D146*I146 -> 1.4625
A147: TEODOLITO ELETRONICO, PRECISAO ANGULAR DE 5 A 7 SEGUNDOS, INCLUINDO TRIPE | B147: H | C147: ='CPU (DF)'!C147 -> 0.65 | E147: 7247 | G147: SINAPI PB 06/223 | H147: =$H$58 -> 2.25 | J147: =C147*H147+D147*I147 -> 1.4625
A148: PÁ CARREGADEIRA SOBRE RODAS, POTÊNCIA LÍQUIDA 128 HP, CAPACIDADE DA CAÇAMBA 1,7 A 2,8 M³ | B148: H | C148: ='CPU (DF)'!C148 -> 3.738990826 | D148: ='CPU (DF)'!D148 -> 1.246330275 | E148: 5940 | F148: 5942 | G148: SINAPI PB 06/223 | H148: =$H$85 -> 159,56 | I148: =$I$85 -> 61,46 | J148: =C148*H148+D148*I148 -> 673.1928349
A149: VEÍCULO DE PASSEIO PARA DESLOCAMENTO DA EQUIPE | B149: H | C149: ='CPU (DF)'!C149 -> 0.265625 | D149: ='CPU (DF)'!D149 -> 0.4427083333 | E149: E9093 | G149: SICRO PB 01/2023 | H149: =$H$30 -> 33.059 | I149: =$I$30 -> 6.4166 | J149: =C149*H149+D149*I149 -> 11.62197917
A150: CAMINHONETE CABINE SIMPLES COM MOTOR 1.6 FLEX, CÂMBIO MANUAL, POTÊNCIA 101/104 CV, 2 PORTAS | B150: H | C150: ='CPU (DF)'!C150 -> 0.671875 | D150: ='CPU (DF)'!D150 -> 0.403125 | E150: 92145 | F150: 92146 | G150: SINAPI PB 06/223 | H150: =$H$31 -> 66,78 | I150: =$I$31 -> 26,77 | J150: =C150*H150+D150*I150 -> 55.65946875
A151: SUB-TOTAL | J151: =SUM(J146:J150) -> 743.3992828
A152: MATERIAL
A153: DISCRIMINAÇÃO | B153: UNIDADE | C153: QUANT. | E153: COD. | I153: P.UNIT. | J153: P.TOTAL
A154: ESTACA/PIQUETE DE MADEIRA | B154: U | C154: ='CPU (DF)'!C154 -> 12 | E154: 4408 | G154: SINAPI PB 06/223 | I154: =$I$63 -> 0.8 | J154: =C154*I154 -> 9.6
A155: SUB-TOTAL | J155: =SUM(J154:J154) -> 9.6
A156: SERVIÇOS - COMPOSIÇÕES AUXILIARES
A157: DISCRIMINAÇÃO | B157: UNIDADE | C157: QUANT. | I157: P.UNIT. | J157: P.TOTAL
A158: REVESTIMENTO VEGETAL POR SEMEADURA A LANÇO MANUAL DE GRAMÍNEAS E LEGUMINOSAS | B158: m² | C158: ='CPU (DF)'!C158 -> 169.6460033 | E158: 4413993 | G158: SICRO PB 01/2023 | I158: =VLOOKUP(E158,[37]Sheet1!$A:$D,4,FALSE) -> 0.64 | J158: =C158*I158 -> 108.5734421
A159: SUB-TOTAL | J159: =SUM(J158:J158) -> 108.5734421
A160: MÃO DE OBRA
A161: DISCRIMINAÇÃO | B161: UNIDADE | C161: QUANT. | E161: COD. P | F161: COD. I | I161: P.UNIT. | J161: P.TOTAL
A162: ENGENHEIRO COM ENCARGO | B162: MÊS | C162: ='CPU (DF)'!C162 -> 0.001609848485 | E162: 93565 | G162: SINAPI PB 06/223 | I162: =$I$44 -> 19.619,58 | J162: =C162*I162 -> 31.58455114
A163: ENCARREGADO COM ENCARGO | B163: MÊS | C163: ='CPU (DF)'!C163 -> 0.004829545455 | E163: 93572 | G163: SINAPI PB 06/223 | I163: =$I$46 -> 3.982,22 | J163: =C163*I163 -> 19.2323125
A164: TOPOGRAFO COM ENCARGOS | B164: MÊS | C164: ='CPU (DF)'!C164 -> 0.003693181818 | E164: 94296 | G164: SINAPI PB 06/223 | I164: =$I$72 -> 5.943,36 | J164: =C164*I164 -> 21.94990909
A165: AUXILIAR DE TOPOGRÁFO COM ENCARGOS | B165: MÊS | C165: ='CPU (DF)'!C165 -> 0.003693181818 | E165: 101389 | G165: SINAPI PB 06/223 | I165: =$I$71 -> 2.871,26 | J165: =C165*I165 -> 10.60408523
A166: SERVENTE COM ENCARGOS COMPLEMENTARES - INLUSIVE ABERTURA E FECHAMENTO DE CERCAS | B166: MES | C166: ='CPU (DF)'!C166 -> 0.02832568807 | E166: 101452 | G166: SINAPI PB 06/223 | I166: =$I$45 -> 3.237,51 | J166: =C166*I166 -> 91.70469839
A167: SUB-TOTAL | J167: =SUM(J162:J166) -> 175.0755563
A168: PRODUÇÃO MENSAL DA EQUIPE | B168: ='CPU (DF)'!B168 -> 35.30364372 | C168: CUSTO | J168: =J167+J159+J155+J151 -> 1036.648281
A169: TOTAL | J169: =ROUND(J168,2) -> 1036.65
A170: BDI % | J170: 24.1
A171: TOTAL DO SERVIÇO - R$ | J171: =ROUND(J169*(1+J170/100),2) -> 1286.48
A174: COMPOSIÇÃO DE PREÇO UNITÁRIO
A175: LOCAÇÃO E CONSTRUÇÃO DE BACIAS DE CAPTAÇÃO DE ENXURRADA (12 METROS DE RAIO) | I175: UNIDADE: | J175: UNID.
A176: EQUIPAMENTO
A177: DISCRIMINAÇÃO | B177: UNIDADE | C177: QUANT. PROD. | D177: QUANT. IMPROD. | E177: COD. P | F177: COD. I | G177: FONTE | H177: CHP/ P.UNIT. | I177: CHI | J177: P.TOTAL
A178: NIVEL OPTICO, COM PRECISAO DE 0,7 MM, AUMENTO DE 32X | B178: H | C178: ='CPU (DF)'!C178 -> 0.65 | E178: 7252 | G178: SINAPI PB 06/223 | H178: =$H$57 -> 2.25 | J178: =C178*H178+D178*I178 -> 1.4625
A179: TEODOLITO ELETRONICO, PRECISAO ANGULAR DE 5 A 7 SEGUNDOS, INCLUINDO TRIPE | B179: H | C179: ='CPU (DF)'!C179 -> 0.65 | E179: 7247 | G179: SINAPI PB 06/223 | H179: =$H$58 -> 2.25 | J179: =C179*H179+D179*I179 -> 1.4625
A180: PÁ CARREGADEIRA SOBRE RODAS, POTÊNCIA LÍQUIDA 128 HP, CAPACIDADE DA CAÇAMBA 1,7 A 2,8 M³ | B180: H | C180: ='CPU (DF)'!C180 -> 6 | D180: ='CPU (DF)'!D180 -> 2 | E180: 5940 | F180: 5942 | G180: SINAPI PB 06/223 | H180: =$H$85 -> 159,56 | I180: =$I$85 -> 61,46 | J180: =C180*H180+D180*I180 -> 1080.28
A181: VEÍCULO DE PASSEIO PARA DESLOCAMENTO DA EQUIPE | B181: H | C181: ='CPU (DF)'!C181 -> 0.28125 | D181: ='CPU (DF)'!D181 -> 0.46875 | E181: E9093 | G181: SICRO PB 01/2023 | H181: =$H$30 -> 33.059 | I181: =$I$30 -> 6.4166 | J181: =C181*H181+D181*I181 -> 12.305625
A182: CAMINHONETE CABINE SIMPLES COM MOTOR 1.6 FLEX, CÂMBIO MANUAL, POTÊNCIA 101/104 CV, 2 PORTAS | B182: H | C182: ='CPU (DF)'!C182 -> 0.6875 | D182: ='CPU (DF)'!D182 -> 0.4125 | E182: 92145 | F182: 92146 | G182: SINAPI PB 06/223 | H182: =$H$31 -> 66,78 | I182: =$I$31 -> 26,77 | J182: =C182*H182+D182*I182 -> 56.953875
A183: SUB-TOTAL | J183: =SUM(J178:J182) -> 1152.4645
A184: MATERIAL
A185: DISCRIMINAÇÃO | B185: UNIDADE | C185: QUANT. | E185: COD. | I185: P.UNIT. | J185: P.TOTAL
A186: ESTACA/PIQUETE DE MADEIRA | B186: U | C186: ='CPU (DF)'!C186 -> 16 | E186: 4408 | G186: SINAPI PB 06/223 | I186: =$I$63 -> 0.8 | J186: =C186*I186 -> 12.8
A187: SUB-TOTAL | J187: =SUM(J186:J186) -> 12.8
A188: SERVIÇOS - COMPOSIÇÕES AUXILIARES
A189: DISCRIMINAÇÃO | B189: UNIDADE | C189: QUANT. | I189: P.UNIT. | J189: P.TOTAL
A190: REVESTIMENTO VEGETAL POR SEMEADURA A LANÇO MANUAL DE GRAMÍNEAS E LEGUMINOSAS | B190: m² | C190: ='CPU (DF)'!C190 -> 263.8937829 | E190: 4413993 | G190: SICRO PB 01/2023 | I190: =VLOOKUP(E190,[37]Sheet1!$A:$D,4,FALSE) -> 0.64 | J190: =C190*I190 -> 168.8920211
A191: SUB-TOTAL | J191: =SUM(J190:J190) -> 168.8920211
A192: MÃO DE OBRA
A193: DISCRIMINAÇÃO | B193: UNIDADE | C193: QUANT. | E193: COD. P | F193: COD. I | I193: P.UNIT. | J193: P.TOTAL
A194: ENGENHEIRO COM ENCARGO | B194: MES | C194: ='CPU (DF)'!C194 -> 0.001704545455 | E194: 93565 | G194: SINAPI PB 06/223 | I194: =$I$44 -> 19.619,58 | J194: =C194*I194 -> 33.44246591
A195: ENCARREGADO COM ENCARGO | B195: MES | C195: ='CPU (DF)'!C195 -> 0.005113636364 | E195: 93572 | G195: SINAPI PB 06/223 | I195: =$I$46 -> 3.982,22 | J195: =C195*I195 -> 20.363625
A196: TOPOGRAFO COM ENCARGOS | B196: MÊS | C196: ='CPU (DF)'!C196 -> 0.003693181818 | E196: 94296 | G196: SINAPI PB 06/223 | I196: =$I$72 -> 5.943,36 | J196: =C196*I196 -> 21.94990909
A197: AUXILIAR DE TOPOGRÁFO COM ENCARGOS | B197: MÊS | C197: ='CPU (DF)'!C197 -> 0.003693181818 | E197: 101389 | G197: SINAPI PB 06/223 | I197: =$I$71 -> 2.871,26 | J197: =C197*I197 -> 10.60408523
A198: SERVENTE COM ENCARGOS COMPLEMENTARES - INLUSIVE ABERTURA E FECHAMENTO DE CERCAS | B198: MES | C198: ='CPU (DF)'!C198 -> 0.04545454545 | E198: 101452 | G198: SINAPI PB 06/223 | I198: =$I$45 -> 3.237,51 | J198: =C198*I198 -> 147.1595455
A199: SUB-TOTAL | J199: =SUM(J194:J198) -> 233.5196307
A200: PRODUÇÃO DA EQUIPE | B200: ='CPU (DF)'!B200 -> 22 | C200: CUSTO | J200: =J199+J191+J187+J183 -> 1567.676152
A201: TOTAL | J201: =ROUND(J200,2) -> 1567.68
A202: BDI % | J202: 24.1
A203: TOTAL DO SERVIÇO - R$ | J203: =ROUND(J201*(1+J202/100),2) -> 1945.49
A205: COMPOSIÇÃO DE PREÇO UNITÁRIO
A206: CERCAMENTO DE ÁREAS AMBIENTALMENTE VULNERÁVEIS À CAPRINOVINOCULTURA | I206: UNIDADE: | J206: m
A207: EQUIPAMENTO
A208: DISCRIMINAÇÃO | B208: UNIDADE | C208: QUANT. PROD. | D208: QUANT. IMPROD. | E208: COD. P | F208: COD. I | G208: FONTE | I208: P.UNIT. | J208: P.TOTAL
A209: NIVEL OPTICO, COM PRECISAO DE 0,7 MM, AUMENTO DE 32X | B209: h | C209: ='CPU (DF)'!C209 -> 0.05 | E209: 7252 | G209: SINAPI PB 06/223 | H209: =H178 -> 2.25 | J209: =C209*H209+D209*I209 -> 0.1125
A210: TEODOLITO ELETRONICO, PRECISAO ANGULAR DE 5 A 7 SEGUNDOS, INCLUINDO TRIPE | B210: h | C210: ='CPU (DF)'!C210 -> 0.05 | E210: 7247 | G210: SINAPI PB 06/223 | H210: =H179 -> 2.25 | J210: =C210*H210+D210*I210 -> 0.1125
A211: VEÍCULO DE PASSEIO PARA DESLOCAMENTO DA EQUIPE | B211: h | C211: ='CPU (DF)'!C211 -> 0.01838235294 | D211: ='CPU (DF)'!D211 -> 0.0306372549 | E211: E9093 | F211: E9093 | G211: SICRO PB 01/2023 | H211: =H30 -> 33.059 | I211: =I30 -> 6.4166 | J211: =C211*H211+D211*I211 -> 0.8042892157
... 87 more rows

Sheet CPU (PE)
A1: COMPOSIÇÃO DE PREÇO UNITÁRIO
A2: MOBILIZAÇÃO E DESMOBILIZAÇÃO | C2: REGIÃO: | G2: PE | I2: UNIDADE: | J2: R$/Tonelada/ Projeto
A3: EQUIPAMENTO
A4: DISCRIMINAÇÃO | B4: UNIDADE | C4: QUANT. PROD. | D4: QUANT. IMPROD. | E4: COD. | G4: FONTE | H4: P.UNIT. PROD | I4: P.UNIT. IMPR | J4: P.TOTAL
J5: =C5*E5*H5+C5*G5*I5 -> 0
A6: SUB-TOTAL | J6: =SUM(J5:J5) -> 0
A7: MATERIAL
A8: DISCRIMINAÇÃO | B8: UNIDADE | C8: QUANT. | E8: COD. | G8: FONTE | I8: P.UNIT. | J8: P.TOTAL
J9: Toneladas/ Projeto
J10: =C10*I10 -> 0
A11: SUB-TOTAL | J11: =SUM(J9:J10) -> 0
A12: SERVIÇOS - COMPOSIÇÕES AUXILIARES
A13: DISCRIMINAÇÃO | B13: UNIDADE | C13: QUANT. | E13: COD. | G13: FONTE | I13: P.UNIT. | J13: P.TOTAL
A14: TRANSPORTE COM CAVALO MECÂNICO COM SEMIRREBOQUE COM CAPACIDADE DE 30 T - RODOVIA PAVIMENTADA | B14: t*km | C14: ='CPU (DF)'!C14 -> 1 | E14: 5914640 | G14: SICRO PE 01/2023 | I14: =VLOOKUP(E14,[41]Sheet1!$A:$D,4,FALSE) -> 0.56 | J14: =C14*I14 -> 0.56
A15: SUB-TOTAL | J15: =SUM(J14:J14) -> 0.56
A16: MÃO DE OBRA
A17: DISCRIMINAÇÃO | B17: UNIDADE | C17: QUANT. | I17: P.UNIT. | J17: P.TOTAL
J18: =C18*I18 -> 0
A19: SUB-TOTAL | J19: =SUM(J18:J18) -> 0
A20: PRODUÇÃO DA EQUIPE (MOB E DESMOB) EM km | B20: =VLOOKUP(G2,DMT!D:E,2)*2 -> 500.96 | C20: CUSTO | J20: =J19+J15+J11+J6 -> 0.56
A21: TOTAL | J21: =J20*B20 -> 280.5376
A22: BDI % | J22: 24.1
A23: TOTAL DO SERVIÇO - R$ | J23: =J21*(1+J22/100) -> 348.1471616
A25: COMPOSIÇÃO DE PREÇO UNITÁRIO
A26: LOCAÇÃO E CONSTRUÇÃO DE TERRAÇOS - INCLUSIVE SOLOS DUROS E SECOS | I26: UNIDADE: | J26: km
A27: EQUIPAMENTO
A28: DISCRIMINAÇÃO | B28: UNIDADE | C28: QUANT. PROD. | D28: QUANT. IMPROD. | E28: COD. P | F28: COD. I | G28: FONTE | H28: CHP | I28: CHI | J28: P.TOTAL
A29: TRATOR DE ESTEIRAS, POTÊNCIA 125 HP, PESO OPERACIONAL 12,9 T, COM LÂMINA 2,7 M3 | B29: H | C29: ='CPU (DF)'!C29 -> 7.058823529 | D29: ='CPU (DF)'!D29 -> 2.352941176 | E29: 5851 | F29: 5853 | G29: SINAPI PE 06/223 | H29: =VLOOKUP(E29,[42]planilhanull!$G$7:$K$7520,5,FALSE) -> 217.76 | I29: =VLOOKUP(F29,[42]planilhanull!$G$7:$K$7520,5,FALSE) -> 77.98 | J29: =C29*H29+D29*I29 -> 1720.611765
A30: VEÍCULO DE PASSEIO PARA DESLOCAMENTO DA EQUIPE | B30: H | C30: ='CPU (DF)'!C30 -> 0.9375 | D30: ='CPU (DF)'!D30 -> 1.5625 | E30: E9093 | F30: E9093 | G30: SICRO PE 01/2023 | H30: =VLOOKUP(E30,[43]Sheet1!$A:$K,10,FALSE) -> 33.2065 | I30: =VLOOKUP(F30,[43]Sheet1!$A:$K,11,FALSE) -> 6.3956 | J30: =C30*H30+D30*I30 -> 41.12421875
A31: CAMINHONETE CABINE SIMPLES COM MOTOR 1.6 FLEX, CÂMBIO MANUAL, POTÊNCIA 101/104 CV, 2 PORTAS | B31: H | C31: ='CPU (DF)'!C31 -> 0.5625 | D31: ='CPU (DF)'!D31 -> 0.9375 | E31: 92145 | F31: 92146 | G31: SINAPI PE 06/223 | H31: =VLOOKUP(E31,[42]planilhanull!$G$7:$K$7520,5,FALSE) -> 70.59 | I31: =VLOOKUP(F31,[42]planilhanull!$G$7:$K$7520,5,FALSE) -> 27.97 | J31: =C31*H31+D31*I31 -> 65.92875
A32: SUB-TOTAL | J32: =SUM(J29:J31) -> 1827.664733
A33: MATERIAL
A34: DISCRIMINAÇÃO | B34: UNIDADE | C34: QUANT. | E34: COD. | G34: FONTE | I34: P.UNIT. | J34: P.TOTAL
A36: SUB-TOTAL | J36: =SUM(J35:J35) -> 0
A37: SERVIÇOS - COMPOSIÇÕES AUXILIARES
A38: DISCRIMINAÇÃO | B38: UNIDADE | C38: QUANT. | E38: COD. | G38: FONTE | I38: P.UNIT. | J38: P.TOTAL
A39: LOCAÇÃO E NIVELAMENTO DE TERRAÇOS COM TOPOGRAFIA | B39: KM | C39: ='CPU (DF)'!C39 -> 1 | E39: COMPOSIÇÃO | I39: =J75 -> 190.68 | J39: =C39*I39 -> 190.68
A40: REVESTIMENTO VEGETAL POR SEMEADURA A LANÇO MANUAL DE GRAMÍNEAS E LEGUMINOSAS | B40: m² | C40: ='CPU (DF)'!C40 -> 1000 | E40: 4413993 | G40: SICRO DF 07/2022 | I40: =VLOOKUP(E40,[41]Sheet1!$A:$D,4,FALSE) -> 0.65 | J40: =C40*I40 -> 650
A41: SUB-TOTAL | J41: =SUM(J39:J40) -> 840.68
A42: MÃO DE OBRA
A43: DISCRIMINAÇÃO | B43: UNIDADE | C43: QUANT. | E43: COD. P | F43: COD. I | G43: FONTE | I43: P.UNIT. | J43: P.TOTAL
A44: ENGENHEIRO COM ENCARGO | B44: MES | C44: ='CPU (DF)'!C44 -> 0.005681818182 | E44: 93565 | G44: SINAPI PE 06/223 | I44: =VLOOKUP(E44,[42]planilhanull!$G$7:$K$7520,5,FALSE) -> 19660.44 | J44: =C44*I44 -> 111.7070455
A45: SERVENTE COM ENCARGOS COMPLEMENTARES - INLUSIVE ABERTURA E FECHAMENTO DE CERCAS | B45: MES | C45: ='CPU (DF)'!C45 -> 0.05347593583 | E45: 101452 | G45: SINAPI PE 06/223 | I45: =VLOOKUP(E45,[42]planilhanull!$G$7:$K$7520,5,FALSE) -> 3779.86 | J45: =C45*I45 -> 202.1315508
A46: ENCARREGADO COM ENCARGO | B46: MES | C46: ='CPU (DF)'!C46 -> 0.01704545455 | E46: 93572 | G46: SINAPI PE 06/223 | I46: =VLOOKUP(E46,[42]planilhanull!$G$7:$K$7520,5,FALSE) -> 6786.45 | J46: =C46*I46 -> 115.678125
A47: SUB-TOTAL | J47: =SUM(J44:J46) -> 429.5167213
A48: PRODUÇÃO DA EQUIPE MÊS 22 KM, MAS COM FATOR DE REDUÇÃO PARA PÉRIODOS COM CHUVAS | B48: ='CPU (DF)'!B48 -> 18.7 | C48: CUSTO | J48: =J47+J41+J36+J32 -> 3097.861455
A49: TOTAL | J49: =ROUND(J48,2) -> 3097.86
A50: BDI % | J50: 24.1
A51: TOTAL DO SERVIÇO - R$ | J51: =ROUND(J49*(1+J50/100),2) -> 3844.44
A53: COMPOSIÇÃO DE PREÇO UNITÁRIO
A54: LOCAÇÃO E NIVELAMENTO DE TERRAÇOS COM TOPOGRAFIA | I54: UNIDADE: | J54: km
A55: EQUIPAMENTO
A56: DISCRIMINAÇÃO | B56: UNIDADE | C56: QUANT. PROD. | D56: QUANT. IMPROD. | E56: COD. P | F56: COD. I | G56: FONTE | H56: CHP/ P.UNIT. | I56: CHI | J56: P.TOTAL
A57: NIVEL OPTICO, COM PRECISAO DE 0,7 MM, AUMENTO DE 32X | B57: H | C57: ='CPU (DF)'!C57 -> 0.99609375 | E57: 7252 | G57: SINAPI PE 06/223 | H57: =VLOOKUP(E57,[44]sheet1!$A$1:$E$65536,5,FALSE) -> 2.25 | J57: =C57*H57+D57*I57 -> 2.241210937
A58: TEODOLITO ELETRONICO, PRECISAO ANGULAR DE 5 A 7 SEGUNDOS, INCLUINDO TRIPE | B58: H | C58: ='CPU (DF)'!C58 -> 0.99609375 | E58: 7247 | G58: SINAPI PE 06/223 | H58: =VLOOKUP(E58,[44]sheet1!$A$1:$E$65536,5,FALSE) -> 2.25 | J58: =C58*H58+D58*I58 -> 2.241210937
A59: CAMINHONETE CABINE SIMPLES COM MOTOR 1.6 FLEX, CÂMBIO MANUAL, POTÊNCIA 101/104 CV, 2 PORTAS | B59: H | C59: ='CPU (DF)'!C59 -> 0.3735351562 | D59: ='CPU (DF)'!D59 -> 0.6225585938 | E59: 92145 | F59: 92146 | G59: SINAPI PE 06/223 | H59: =H31 -> 70.59 | I59: =I31 -> 27.97 | J59: =C59*H59+D59*I59 -> 43.78081055
A60: SUB-TOTAL | J60: =SUM(J57:J59) -> 48.26323242
A61: MATERIAL
A62: DISCRIMINAÇÃO | B62: UNIDADE | C62: QUANT. | E62: COD. | I62: P.UNIT. | J62: P.TOTAL
A63: ESTACA/PIQUETE DE MADEIRA | B63: U | C63: ='CPU (DF)'!C63 -> 83.33333333 | E63: 4408 | G63: SINAPI PE 06/223 | I63: =VLOOKUP(E63,[44]sheet1!$A$1:$E$65536,5,FALSE)*0.4 -> 1.18 | J63: =C63*I63 -> 98.33333333
A64: SUB-TOTAL | J64: =SUM(J63:J63) -> 98.33333333
A65: SERVIÇOS - COMPOSIÇÕES AUXILIARES
A66: DISCRIMINAÇÃO | B66: UNIDADE | C66: QUANT. | I66: P.UNIT. | J66: P.TOTAL
A68: SUB-TOTAL
A69: MÃO DE OBRA
A70: DISCRIMINAÇÃO | B70: UNIDADE | C70: QUANT. | E70: COD. P | F70: COD. I | I70: P.UNIT. | J70: P.TOTAL
A71: AUXILIAR DE TOPOGRÁFO COM ENCARGOS | B71: MÊS | C71: ='CPU (DF)'!C71 -> 0.00565962358 | E71: 101389 | G71: SINAPI PE 06/223 | I71: =VLOOKUP(E71,[42]planilhanull!$G$7:$K$7520,5,FALSE) -> 2552.8 | J71: =C71*I71 -> 14.44788707
A72: TOPOGRAFO COM ENCARGOS | B72: MÊS | C72: ='CPU (DF)'!C72 -> 0.00565962358 | E72: 94296 | G72: SINAPI PE 06/223 | I72: =VLOOKUP(E72,[42]planilhanull!$G$7:$K$7520,5,FALSE) -> 5235.72 | J72: =C72*I72 -> 29.63220437
A73: SUB-TOTAL | J73: =SUM(J71:J72) -> 44.08009144
A74: PRODUÇÃO MENSAL DA EQUIPE | B74: ='CPU (DF)'!B74 -> 46.93333333 | C74: CUSTO | J74: =J73+J68+J64+J60 -> 190.6766572
A75: TOTAL | J75: =ROUND(J74,2) -> 190.68
A76: BDI % | J76: 24.1
A77: TOTAL DO SERVIÇO - R$ | J77: =ROUND(J75*(1+J76/100),2) -> 236.63
A79: COMPOSIÇÃO DE PREÇO UNITÁRIO
A80: LOCAÇÃO E CONSTRUÇÃO DE BACIAS DE CAPTAÇÃO DE ENXURRADA (4 METROS DE RAIO) | I80: UNIDADE: | J80: UNID.
A81: EQUIPAMENTO
A82: DISCRIMINAÇÃO | B82: UNIDADE | C82: QUANT. PROD. | D82: QUANT. IMPROD. | E82: COD. P | F82: COD. I | G82: FONTE | H82: CHP/ P.UNIT. | I82: CHI | J82: P.TOTAL
A83: NIVEL OPTICO, COM PRECISAO DE 0,7 MM, AUMENTO DE 32X | B83: H | C83: ='CPU (DF)'!C83 -> 0.6 | E83: 7252 | G83: SINAPI PE 06/223 | H83: =$H$57 -> 2.25 | J83: =C83*H83+D83*I83 -> 1.35
A84: TEODOLITO ELETRONICO, PRECISAO ANGULAR DE 5 A 7 SEGUNDOS, INCLUINDO TRIPE | B84: H | C84: ='CPU (DF)'!C84 -> 0.6 | E84: 7247 | G84: SINAPI PE 06/223 | H84: =$H$58 -> 2.25 | J84: =C84*H84+D84*I84 -> 1.35
A85: PÁ CARREGADEIRA SOBRE RODAS, POTÊNCIA LÍQUIDA 128 HP, CAPACIDADE DA CAÇAMBA 1,7 A 2,8 M³ | B85: H | C85: ='CPU (DF)'!C85 -> 0.7779529817 | D85: ='CPU (DF)'!D85 -> 0.2593176606 | E85: 5940 | F85: 5942 | G85: SINAPI PE 06/223 | H85: =VLOOKUP(E85,[42]planilhanull!$G$7:$K$7520,5,FALSE) -> 182.13 | I85: =VLOOKUP(F85,[42]planilhanull!$G$7:$K$7520,5,FALSE) -> 77.16 | J85: =C85*H85+D85*I85 -> 161.6975272
A86: VEÍCULO DE PASSEIO PARA DESLOCAMENTO DA EQUIPE | B86: H | C86: ='CPU (DF)'!C86 -> 0.234375 | D86: ='CPU (DF)'!D86 -> 0.390625 | E86: E9093 | G86: SICRO PE 01/2023 | H86: =$H$30 -> 33.2065 | I86: =$I$30 -> 6.3956 | J86: =C86*H86+D86*I86 -> 10.28105469
A87: CAMINHONETE CABINE SIMPLES COM MOTOR 1.6 FLEX, CÂMBIO MANUAL, POTÊNCIA 101/104 CV, 2 PORTAS | B87: H | C87: ='CPU (DF)'!C87 -> 0.609375 | D87: ='CPU (DF)'!D87 -> 0.365625 | E87: 92145 | F87: 92146 | G87: SINAPI PE 06/223 | H87: =$H$31 -> 70.59 | I87: =$I$31 -> 27.97 | J87: =C87*H87+D87*I87 -> 53.2423125
A88: SUB-TOTAL | J88: =SUM(J83:J87) -> 227.9208944
A89: MATERIAL
A90: DISCRIMINAÇÃO | B90: UNIDADE | C90: QUANT. | E90: COD. | I90: P.UNIT. | J90: P.TOTAL
A91: ESTACA/PIQUETE DE MADEIRA | B91: U | C91: ='CPU (DF)'!C91 -> 12 | E91: 4408 | G91: SINAPI PE 06/223 | I91: =$I$63 -> 1.18 | J91: =C91*I91 -> 14.16
A92: SUB-TOTAL | J92: =SUM(J91:J91) -> 14.16
A93: SERVIÇOS - COMPOSIÇÕES AUXILIARES
A94: DISCRIMINAÇÃO | B94: UNIDADE | C94: QUANT. | I94: P.UNIT. | J94: P.TOTAL
A95: REVESTIMENTO VEGETAL POR SEMEADURA A LANÇO MANUAL DE GRAMÍNEAS E LEGUMINOSAS | B95: m² | C95: ='CPU (DF)'!C95 -> 50.26548246 | E95: 4413993 | G95: SICRO DF 07/2022 | I95: =VLOOKUP(E95,[41]Sheet1!$A:$D,4,FALSE) -> 0.65 | J95: =C95*I95 -> 32.6725636
A96: SUB-TOTAL | J96: =SUM(J95:J95) -> 32.6725636
A97: MÃO DE OBRA
A98: DISCRIMINAÇÃO | B98: UNIDADE | C98: QUANT. | E98: COD. P | F98: COD. I | I98: P.UNIT. | J98: P.TOTAL
A99: ENGENHEIRO COM ENCARGO | B99: MÊS | C99: ='CPU (DF)'!C99 -> 0.001420454545 | E99: 93565 | G99: SINAPI PE 06/223 | I99: =$I$44 -> 19660.44 | J99: =C99*I99 -> 27.92676136
A100: ENCARREGADO COM ENCARGO | B100: MÊS | C100: ='CPU (DF)'!C100 -> 0.004261363636 | E100: 93572 | G100: SINAPI PE 06/223 | I100: =$I$46 -> 6786.45 | J100: =C100*I100 -> 28.91953125
A101: TOPOGRAFO COM ENCARGOS | B101: MÊS | C101: ='CPU (DF)'!C101 -> 0.003409090909 | E101: 94296 | G101: SINAPI PE 06/223 | I101: =$I$72 -> 5235.72 | J101: =C101*I101 -> 17.84904545
A102: AUXILIAR DE TOPOGRÁFO COM ENCARGOS | B102: MÊS | C102: ='CPU (DF)'!C102 -> 0.003409090909 | E102: 101389 | G102: SINAPI PE 06/223 | I102: =$I$71 -> 2552.8 | J102: =C102*I102 -> 8.702727273
A103: SERVENTE COM ENCARGOS COMPLEMENTARES - INLUSIVE ABERTURA E FECHAMENTO DE CERCAS | B103: MES | C103: ='CPU (DF)'!C103 -> 0.005893583194 | E103: 101452 | G103: SINAPI PE 06/223 | I103: =$I$45 -> 3779.86 | J103: =C103*I103 -> 22.27691937
A104: SUB-TOTAL | J104: =SUM(J99:J103) -> 105.6749847
A105: PRODUÇÃO MENSAL DA EQUIPE | B105: ='CPU (DF)'!B105 -> 169.6760641 | C105: CUSTO | J105: =J104+J96+J92+J88 -> 380.4284427
A106: TOTAL | J106: =ROUND(J105,2) -> 380.43
A107: BDI % | J107: 24.1
A108: TOTAL DO SERVIÇO - R$ | J108: =ROUND(J106*(1+J107/100),2) -> 472.11
A111: COMPOSIÇÃO DE PREÇO UNITÁRIO
A112: LOCAÇÃO E CONSTRUÇÃO DE BACIAS DE CAPTAÇÃO DE ENXURRADA (6 METROS DE RAIO) | I112: UNIDADE: | J112: UNID.
A113: EQUIPAMENTO
A114: DISCRIMINAÇÃO | B114: UNIDADE | C114: QUANT. PROD. | D114: QUANT. IMPROD. | E114: COD. P | F114: COD. I | G114: FONTE | H114: CHP/ P.UNIT. | I114: CHI | J114: P.TOTAL
A115: NIVEL OPTICO, COM PRECISAO DE 0,7 MM, AUMENTO DE 32X | B115: H | C115: ='CPU (DF)'!C115 -> 0.6 | E115: 7252 | G115: SINAPI PE 06/223 | H115: =$H$57 -> 2.25 | J115: =C115*H115+D115*I115 -> 1.35
A116: TEODOLITO ELETRONICO, PRECISAO ANGULAR DE 5 A 7 SEGUNDOS, INCLUINDO TRIPE | B116: H | C116: ='CPU (DF)'!C116 -> 0.6 | E116: 7247 | G116: SINAPI PE 06/223 | H116: =$H$58 -> 2.25 | J116: =C116*H116+D116*I116 -> 1.35
A117: PÁ CARREGADEIRA SOBRE RODAS, POTÊNCIA LÍQUIDA 128 HP, CAPACIDADE DA CAÇAMBA 1,7 A 2,8 M³ | B117: H | C117: ='CPU (DF)'!C117 -> 1.536166858 | D117: ='CPU (DF)'!D117 -> 0.5120556193 | E117: 5940 | F117: 5942 | G117: SINAPI PE 06/223 | H117: =$H$85 -> 182.13 | I117: =$I$85 -> 77.16 | J117: =C117*H117+D117*I117 -> 319.2922814
A118: VEÍCULO DE PASSEIO PARA DESLOCAMENTO DA EQUIPE | B118: H | C118: ='CPU (DF)'!C118 -> 0.25 | D118: ='CPU (DF)'!D118 -> 0.4166666667 | E118: E9093 | G118: SICRO PE 01/2023 | H118: =$H$30 -> 33.2065 | I118: =$I$30 -> 6.3956 | J118: =C118*H118+D118*I118 -> 10.96645833
A119: CAMINHONETE CABINE SIMPLES COM MOTOR 1.6 FLEX, CÂMBIO MANUAL, POTÊNCIA 101/104 CV, 2 PORTAS | B119: H | C119: ='CPU (DF)'!C119 -> 0.625 | D119: ='CPU (DF)'!D119 -> 0.375 | E119: 92145 | F119: 92146 | G119: SINAPI PE 06/223 | H119: =$H$31 -> 70.59 | I119: =$I$31 -> 27.97 | J119: =C119*H119+D119*I119 -> 54.6075
A120: SUB-TOTAL | J120: =SUM(J115:J119) -> 387.5662397
A121: MATERIAL
A122: DISCRIMINAÇÃO | B122: UNIDADE | C122: QUANT. | E122: COD. | I122: P.UNIT. | J122: P.TOTAL
A123: ESTACA/PIQUETE DE MADEIRA | B123: U | C123: ='CPU (DF)'!C123 -> 12 | E123: 4408 | G123: SINAPI PE 06/223 | I123: =$I$63 -> 1.18 | J123: =C123*I123 -> 14.16
A124: SUB-TOTAL | J124: =SUM(J123:J123) -> 14.16
A125: SERVIÇOS - COMPOSIÇÕES AUXILIARES
A126: DISCRIMINAÇÃO | B126: UNIDADE | C126: QUANT. | I126: P.UNIT. | J126: P.TOTAL
A127: REVESTIMENTO VEGETAL POR SEMEADURA A LANÇO MANUAL DE GRAMÍNEAS E LEGUMINOSAS | B127: m² | C127: ='CPU (DF)'!C127 -> 94.24777961 | E127: 4413993 | G127: SICRO DF 07/2022 | I127: =VLOOKUP(E127,[41]Sheet1!$A:$D,4,FALSE) -> 0.65 | J127: =C127*I127 -> 61.26105675
A128: SUB-TOTAL | J128: =SUM(J127:J127) -> 61.26105675
A129: MÃO DE OBRA
A130: DISCRIMINAÇÃO | B130: UNIDADE | C130: QUANT. | E130: COD. P | F130: COD. I | I130: P.UNIT. | J130: P.TOTAL
A131: ENGENHEIRO COM ENCARGO | B131: MÊS | C131: ='CPU (DF)'!C131 -> 0.001515151515 | E131: 93565 | G131: SINAPI PE 06/223 | I131: =$I$44 -> 19660.44 | J131: =C131*I131 -> 29.78854545
A132: ENCARREGADO COM ENCARGO | B132: MÊS | C132: ='CPU (DF)'!C132 -> 0.004545454545 | E132: 93572 | G132: SINAPI PE 06/223 | I132: =$I$46 -> 6786.45 | J132: =C132*I132 -> 30.8475
A133: TOPOGRAFO COM ENCARGOS | B133: MÊS | C133: ='CPU (DF)'!C133 -> 0.003409090909 | E133: 94296 | G133: SINAPI PE 06/223 | I133: =$I$72 -> 5235.72 | J133: =C133*I133 -> 17.84904545
A134: AUXILIAR DE TOPOGRÁFO COM ENCARGOS | B134: MÊS | C134: ='CPU (DF)'!C134 -> 0.003409090909 | E134: 101389 | G134: SINAPI PE 06/223 | I134: =$I$71 -> 2552.8 | J134: =C134*I134 -> 8.702727273
A135: SERVENTE COM ENCARGOS COMPLEMENTARES - INLUSIVE ABERTURA E FECHAMENTO DE CERCAS | B135: MES | C135: ='CPU (DF)'!C135 -> 0.01163762771 | E135: 101452 | G135: SINAPI PE 06/223 | I135: =$I$45 -> 3779.86 | J135: =C135*I135 -> 43.98860348
A136: SUB-TOTAL | J136: =SUM(J131:J135) -> 131.1764217
A137: PRODUÇÃO MENSAL DA EQUIPE | B137: ='CPU (DF)'!B137 -> 85.9281655 | C137: CUSTO | J137: =J136+J128+J124+J120 -> 594.1637181
A138: TOTAL | J138: =ROUND(J137,2) -> 594.16
A139: BDI % | J139: 24.1
A140: TOTAL DO SERVIÇO - R$ | J140: =ROUND(J138*(1+J139/100),2) -> 737.35
A142: COMPOSIÇÃO DE PREÇO UNITÁRIO
A143: LOCAÇÃO E CONSTRUÇÃO DE BACIAS DE CAPTAÇÃO DE ENXURRADA (9 METROS DE RAIO) | I143: UNIDADE: | J143: UNID.
A144: EQUIPAMENTO
A145: DISCRIMINAÇÃO | B145: UNIDADE | C145: QUANT. PROD. | D145: QUANT. IMPROD. | E145: COD. P | F145: COD. I | G145: FONTE | H145: CHP/ P.UNIT. | I145: CHI | J145: P.TOTAL
A146: NIVEL OPTICO, COM PRECISAO DE 0,7 MM, AUMENTO DE 32X | B146: H | C146: ='CPU (DF)'!C146 -> 0.65 | E146: 7252 | G146: SINAPI PE 06/223 | H146: =$H$57 -> 2.25 | J146: =C146*H146+D146*I146 -> 1.4625
A147: TEODOLITO ELETRONICO, PRECISAO ANGULAR DE 5 A 7 SEGUNDOS, INCLUINDO TRIPE | B147: H | C147: ='CPU (DF)'!C147 -> 0.65 | E147: 7247 | G147: SINAPI PE 06/223 | H147: =$H$58 -> 2.25 | J147: =C147*H147+D147*I147 -> 1.4625
A148: PÁ CARREGADEIRA SOBRE RODAS, POTÊNCIA LÍQUIDA 128 HP, CAPACIDADE DA CAÇAMBA 1,7 A 2,8 M³ | B148: H | C148: ='CPU (DF)'!C148 -> 3.738990826 | D148: ='CPU (DF)'!D148 -> 1.246330275 | E148: 5940 | F148: 5942 | G148: SINAPI PE 06/223 | H148: =$H$85 -> 182.13 | I148: =$I$85 -> 77.16 | J148: =C148*H148+D148*I148 -> 777.1492431
A149: VEÍCULO DE PASSEIO PARA DESLOCAMENTO DA EQUIPE | B149: H | C149: ='CPU (DF)'!C149 -> 0.265625 | D149: ='CPU (DF)'!D149 -> 0.4427083333 | E149: E9093 | G149: SICRO PE 01/2023 | H149: =$H$30 -> 33.2065 | I149: =$I$30 -> 6.3956 | J149: =C149*H149+D149*I149 -> 11.65186198
A150: CAMINHONETE CABINE SIMPLES COM MOTOR 1.6 FLEX, CÂMBIO MANUAL, POTÊNCIA 101/104 CV, 2 PORTAS | B150: H | C150: ='CPU (DF)'!C150 -> 0.671875 | D150: ='CPU (DF)'!D150 -> 0.403125 | E150: 92145 | F150: 92146 | G150: SINAPI PE 06/223 | H150: =$H$31 -> 70.59 | I150: =$I$31 -> 27.97 | J150: =C150*H150+D150*I150 -> 58.7030625
A151: SUB-TOTAL | J151: =SUM(J146:J150) -> 850.4291676
A152: MATERIAL
A153: DISCRIMINAÇÃO | B153: UNIDADE | C153: QUANT. | E153: COD. | I153: P.UNIT. | J153: P.TOTAL
A154: ESTACA/PIQUETE DE MADEIRA | B154: U | C154: ='CPU (DF)'!C154 -> 12 | E154: 4408 | G154: SINAPI PE 06/223 | I154: =$I$63 -> 1.18 | J154: =C154*I154 -> 14.16
A155: SUB-TOTAL | J155: =SUM(J154:J154) -> 14.16
A156: SERVIÇOS - COMPOSIÇÕES AUXILIARES
A157: DISCRIMINAÇÃO | B157: UNIDADE | C157: QUANT. | I157: P.UNIT. | J157: P.TOTAL
A158: REVESTIMENTO VEGETAL POR SEMEADURA A LANÇO MANUAL DE GRAMÍNEAS E LEGUMINOSAS | B158: m² | C158: ='CPU (DF)'!C158 -> 169.6460033 | E158: 4413993 | G158: SICRO DF 07/2022 | I158: =VLOOKUP(E158,[41]Sheet1!$A:$D,4,FALSE) -> 0.65 | J158: =C158*I158 -> 110.2699021
A159: SUB-TOTAL | J159: =SUM(J158:J158) -> 110.2699021
A160: MÃO DE OBRA
A161: DISCRIMINAÇÃO | B161: UNIDADE | C161: QUANT. | E161: COD. P | F161: COD. I | I161: P.UNIT. | J161: P.TOTAL
A162: ENGENHEIRO COM ENCARGO | B162: MÊS | C162: ='CPU (DF)'!C162 -> 0.001609848485 | E162: 93565 | G162: SINAPI PE 06/223 | I162: =$I$44 -> 19660.44 | J162: =C162*I162 -> 31.65032955
A163: ENCARREGADO COM ENCARGO | B163: MÊS | C163: ='CPU (DF)'!C163 -> 0.004829545455 | E163: 93572 | G163: SINAPI PE 06/223 | I163: =$I$46 -> 6786.45 | J163: =C163*I163 -> 32.77546875
A164: TOPOGRAFO COM ENCARGOS | B164: MÊS | C164: ='CPU (DF)'!C164 -> 0.003693181818 | E164: 94296 | G164: SINAPI PE 06/223 | I164: =$I$72 -> 5235.72 | J164: =C164*I164 -> 19.33646591
A165: AUXILIAR DE TOPOGRÁFO COM ENCARGOS | B165: MÊS | C165: ='CPU (DF)'!C165 -> 0.003693181818 | E165: 101389 | G165: SINAPI PE 06/223 | I165: =$I$71 -> 2552.8 | J165: =C165*I165 -> 9.427954545
A166: SERVENTE COM ENCARGOS COMPLEMENTARES - INLUSIVE ABERTURA E FECHAMENTO DE CERCAS | B166: MES | C166: ='CPU (DF)'!C166 -> 0.02832568807 | E166: 101452 | G166: SINAPI PE 06/223 | I166: =$I$45 -> 3779.86 | J166: =C166*I166 -> 107.0671353
A167: SUB-TOTAL | J167: =SUM(J162:J166) -> 200.2573541
A168: PRODUÇÃO MENSAL DA EQUIPE | B168: ='CPU (DF)'!B168 -> 35.30364372 | C168: CUSTO | J168: =J167+J159+J155+J151 -> 1175.116424
A169: TOTAL | J169: =ROUND(J168,2) -> 1175.12
A170: BDI % | J170: 24.1
A171: TOTAL DO SERVIÇO - R$ | J171: =ROUND(J169*(1+J170/100),2) -> 1458.32
A174: COMPOSIÇÃO DE PREÇO UNITÁRIO
A175: LOCAÇÃO E CONSTRUÇÃO DE BACIAS DE CAPTAÇÃO DE ENXURRADA (12 METROS DE RAIO) | I175: UNIDADE: | J175: UNID.
A176: EQUIPAMENTO
A177: DISCRIMINAÇÃO | B177: UNIDADE | C177: QUANT. PROD. | D177: QUANT. IMPROD. | E177: COD. P | F177: COD. I | G177: FONTE | H177: CHP/ P.UNIT. | I177: CHI | J177: P.TOTAL
A178: NIVEL OPTICO, COM PRECISAO DE 0,7 MM, AUMENTO DE 32X | B178: H | C178: ='CPU (DF)'!C178 -> 0.65 | E178: 7252 | G178: SINAPI PE 06/223 | H178: =$H$57 -> 2.25 | J178: =C178*H178+D178*I178 -> 1.4625
A179: TEODOLITO ELETRONICO, PRECISAO ANGULAR DE 5 A 7 SEGUNDOS, INCLUINDO TRIPE | B179: H | C179: ='CPU (DF)'!C179 -> 0.65 | E179: 7247 | G179: SINAPI PE 06/223 | H179: =$H$58 -> 2.25 | J179: =C179*H179+D179*I179 -> 1.4625
A180: PÁ CARREGADEIRA SOBRE RODAS, POTÊNCIA LÍQUIDA 128 HP, CAPACIDADE DA CAÇAMBA 1,7 A 2,8 M³ | B180: H | C180: ='CPU (DF)'!C180 -> 6 | D180: ='CPU (DF)'!D180 -> 2 | E180: 5940 | F180: 5942 | G180: SINAPI PE 06/223 | H180: =$H$85 -> 182.13 | I180: =$I$85 -> 77.16 | J180: =C180*H180+D180*I180 -> 1247.1
A181: VEÍCULO DE PASSEIO PARA DESLOCAMENTO DA EQUIPE | B181: H | C181: ='CPU (DF)'!C181 -> 0.28125 | D181: ='CPU (DF)'!D181 -> 0.46875 | E181: E9093 | G181: SICRO PE 01/2023 | H181: =$H$30 -> 33.2065 | I181: =$I$30 -> 6.3956 | J181: =C181*H181+D181*I181 -> 12.33726562
A182: CAMINHONETE CABINE SIMPLES COM MOTOR 1.6 FLEX, CÂMBIO MANUAL, POTÊNCIA 101/104 CV, 2 PORTAS | B182: H | C182: ='CPU (DF)'!C182 -> 0.6875 | D182: ='CPU (DF)'!D182 -> 0.4125 | E182: 92145 | F182: 92146 | G182: SINAPI PE 06/223 | H182: =$H$31 -> 70.59 | I182: =$I$31 -> 27.97 | J182: =C182*H182+D182*I182 -> 60.06825
A183: SUB-TOTAL | J183: =SUM(J178:J182) -> 1322.430516
A184: MATERIAL
A185: DISCRIMINAÇÃO | B185: UNIDADE | C185: QUANT. | E185: COD. | I185: P.UNIT. | J185: P.TOTAL
A186: ESTACA/PIQUETE DE MADEIRA | B186: U | C186: ='CPU (DF)'!C186 -> 16 | E186: 4408 | G186: SINAPI PE 06/223 | I186: =$I$63 -> 1.18 | J186: =C186*I186 -> 18.88
A187: SUB-TOTAL | J187: =SUM(J186:J186) -> 18.88
A188: SERVIÇOS - COMPOSIÇÕES AUXILIARES
A189: DISCRIMINAÇÃO | B189: UNIDADE | C189: QUANT. | I189: P.UNIT. | J189: P.TOTAL
A190: REVESTIMENTO VEGETAL POR SEMEADURA A LANÇO MANUAL DE GRAMÍNEAS E LEGUMINOSAS | B190: m² | C190: ='CPU (DF)'!C190 -> 263.8937829 | E190: 4413993 | G190: SICRO DF 07/2022 | I190: =VLOOKUP(E190,[41]Sheet1!$A:$D,4,FALSE) -> 0.65 | J190: =C190*I190 -> 171.5309589
A191: SUB-TOTAL | J191: =SUM(J190:J190) -> 171.5309589
A192: MÃO DE OBRA
A193: DISCRIMINAÇÃO | B193: UNIDADE | C193: QUANT. | E193: COD. P | F193: COD. I | I193: P.UNIT. | J193: P.TOTAL
A194: ENGENHEIRO COM ENCARGO | B194: MES | C194: ='CPU (DF)'!C194 -> 0.001704545455 | E194: 93565 | G194: SINAPI PE 06/223 | I194: =$I$44 -> 19660.44 | J194: =C194*I194 -> 33.51211364
A195: ENCARREGADO COM ENCARGO | B195: MES | C195: ='CPU (DF)'!C195 -> 0.005113636364 | E195: 93572 | G195: SINAPI PE 06/223 | I195: =$I$46 -> 6786.45 | J195: =C195*I195 -> 34.7034375
A196: TOPOGRAFO COM ENCARGOS | B196: MÊS | C196: ='CPU (DF)'!C196 -> 0.003693181818 | E196: 94296 | G196: SINAPI PE 06/223 | I196: =$I$72 -> 5235.72 | J196: =C196*I196 -> 19.33646591
A197: AUXILIAR DE TOPOGRÁFO COM ENCARGOS | B197: MÊS | C197: ='CPU (DF)'!C197 -> 0.003693181818 | E197: 101389 | G197: SINAPI PE 06/223 | I197: =$I$71 -> 2552.8 | J197: =C197*I197 -> 9.427954545
A198: SERVENTE COM ENCARGOS COMPLEMENTARES - INLUSIVE ABERTURA E FECHAMENTO DE CERCAS | B198: MES | C198: ='CPU (DF)'!C198 -> 0.04545454545 | E198: 101452 | G198: SINAPI PE 06/223 | I198: =$I$45 -> 3779.86 | J198: =C198*I198 -> 171.8118182
A199: SUB-TOTAL | J199: =SUM(J194:J198) -> 268.7917898
A200: PRODUÇÃO DA EQUIPE | B200: ='CPU (DF)'!B200 -> 22 | C200: CUSTO | J200: =J199+J191+J187+J183 -> 1781.633264
A201: TOTAL | J201: =ROUND(J200,2) -> 1781.63
A202: BDI % | J202: 24.1
A203: TOTAL DO SERVIÇO - R$ | J203: =ROUND(J201*(1+J202/100),2) -> 2211
A205: COMPOSIÇÃO DE PREÇO UNITÁRIO
A206: CERCAMENTO DE ÁREAS AMBIENTALMENTE VULNERÁVEIS À CAPRINOVINOCULTURA | I206: UNIDADE: | J206: m
A207: EQUIPAMENTO
A208: DISCRIMINAÇÃO | B208: UNIDADE | C208: QUANT. PROD. | D208: QUANT. IMPROD. | E208: COD. P | F208: COD. I | G208: FONTE | I208: P.UNIT. | J208: P.TOTAL
A209: NIVEL OPTICO, COM PRECISAO DE 0,7 MM, AUMENTO DE 32X | B209: h | C209: ='CPU (DF)'!C209 -> 0.05 | E209: 7252 | G209: SINAPI PE 06/223 | H209: =H178 -> 2.25 | J209: =C209*H209+D209*I209 -> 0.1125
A210: TEODOLITO ELETRONICO, PRECISAO ANGULAR DE 5 A 7 SEGUNDOS, INCLUINDO TRIPE | B210: h | C210: ='CPU (DF)'!C210 -> 0.05 | E210: 7247 | G210: SINAPI PE 06/223 | H210: =H179 -> 2.25 | J210: =C210*H210+D210*I210 -> 0.1125
A211: VEÍCULO DE PASSEIO PARA DESLOCAMENTO DA EQUIPE | B211: h | C211: ='CPU (DF)'!C211 -> 0.01838235294 | D211: ='CPU (DF)'!D211 -> 0.0306372549 | E211: E9093 | F211: E9093 | G211: SICRO PE 01/2023 | H211: =H30 -> 33.2065 | I211: =I30 -> 6.3956 | J211: =C211*H211+D211*I211 -> 0.8063572304
... 87 more rows

Sheet CPU (PI)
A1: COMPOSIÇÃO DE PREÇO UNITÁRIO
A2: MOBILIZAÇÃO E DESMOBILIZAÇÃO | C2: REGIÃO: | G2: PI | I2: UNIDADE: | J2: R$/Tonelada/ Projeto
A3: EQUIPAMENTO
A4: DISCRIMINAÇÃO | B4: UNIDADE | C4: QUANT. PROD. | D4: QUANT. IMPROD. | E4: COD. | G4: FONTE | H4: P.UNIT. PROD | I4: P.UNIT. IMPR | J4: P.TOTAL
J5: =C5*E5*H5+C5*G5*I5 -> 0
A6: SUB-TOTAL | J6: =SUM(J5:J5) -> 0
A7: MATERIAL
A8: DISCRIMINAÇÃO | B8: UNIDADE | C8: QUANT. | E8: COD. | G8: FONTE | I8: P.UNIT. | J8: P.TOTAL
J9: Toneladas/ Projeto
J10: =C10*I10 -> 0
A11: SUB-TOTAL | J11: =SUM(J9:J10) -> 0
A12: SERVIÇOS - COMPOSIÇÕES AUXILIARES
A13: DISCRIMINAÇÃO | B13: UNIDADE | C13: QUANT. | E13: COD. | G13: FONTE | I13: P.UNIT. | J13: P.TOTAL
A14: TRANSPORTE COM CAVALO MECÂNICO COM SEMIRREBOQUE COM CAPACIDADE DE 30 T - RODOVIA PAVIMENTADA | B14: t*km | C14: ='CPU (DF)'!C14 -> 1 | E14: 5914640 | G14: SICRO PI 01/2023 | I14: =VLOOKUP(E14,[45]Sheet1!$A:$D,4,FALSE) -> 0.57 | J14: =C14*I14 -> 0.57
A15: SUB-TOTAL | J15: =SUM(J14:J14) -> 0.57
A16: MÃO DE OBRA
A17: DISCRIMINAÇÃO | B17: UNIDADE | C17: QUANT. | I17: P.UNIT. | J17: P.TOTAL
J18: =C18*I18 -> 0
A19: SUB-TOTAL | J19: =SUM(J18:J18) -> 0
A20: PRODUÇÃO DA EQUIPE (MOB E DESMOB) EM km | B20: =VLOOKUP(G2,DMT!D:E,2)*2 -> 600 | C20: CUSTO | J20: =J19+J15+J11+J6 -> 0.57
A21: TOTAL | J21: =J20*B20 -> 342
A22: BDI % | J22: 24.1
A23: TOTAL DO SERVIÇO - R$ | J23: =J21*(1+J22/100) -> 424.422
A25: COMPOSIÇÃO DE PREÇO UNITÁRIO
A26: LOCAÇÃO E CONSTRUÇÃO DE TERRAÇOS - INCLUSIVE SOLOS DUROS E SECOS | I26: UNIDADE: | J26: km
A27: EQUIPAMENTO
A28: DISCRIMINAÇÃO | B28: UNIDADE | C28: QUANT. PROD. | D28: QUANT. IMPROD. | E28: COD. P | F28: COD. I | G28: FONTE | H28: CHP | I28: CHI | J28: P.TOTAL
A29: TRATOR DE ESTEIRAS, POTÊNCIA 125 HP, PESO OPERACIONAL 12,9 T, COM LÂMINA 2,7 M3 | B29: H | C29: ='CPU (DF)'!C29 -> 7.058823529 | D29: ='CPU (DF)'!D29 -> 2.352941176 | E29: 5851 | F29: 5853 | G29: SINAPI PI 06/223 | H29: =VLOOKUP(E29,[46]planilhanull!$G$7:$K$7520,5,FALSE) -> 211.78 | I29: =VLOOKUP(F29,[46]planilhanull!$G$7:$K$7520,5,FALSE) -> 72.32 | J29: =C29*H29+D29*I29 -> 1665.082353
A30: VEÍCULO DE PASSEIO PARA DESLOCAMENTO DA EQUIPE | B30: H | C30: ='CPU (DF)'!C30 -> 0.9375 | D30: ='CPU (DF)'!D30 -> 1.5625 | E30: E9093 | F30: E9093 | G30: SICRO PI 01/2023 | H30: =VLOOKUP(E30,[47]Sheet1!$A:$K,10,FALSE) -> 34.2581 | I30: =VLOOKUP(F30,[47]Sheet1!$A:$K,11,FALSE) -> 6.4213 | J30: =C30*H30+D30*I30 -> 42.15025
A31: CAMINHONETE CABINE SIMPLES COM MOTOR 1.6 FLEX, CÂMBIO MANUAL, POTÊNCIA 101/104 CV, 2 PORTAS | B31: H | C31: ='CPU (DF)'!C31 -> 0.5625 | D31: ='CPU (DF)'!D31 -> 0.9375 | E31: 92145 | F31: 92146 | G31: SINAPI PI 06/223 | H31: =VLOOKUP(E31,[46]planilhanull!$G$7:$K$7520,5,FALSE) -> 68.44 | I31: =VLOOKUP(F31,[46]planilhanull!$G$7:$K$7520,5,FALSE) -> 27.09 | J31: =C31*H31+D31*I31 -> 63.894375
A32: SUB-TOTAL | J32: =SUM(J29:J31) -> 1771.126978
A33: MATERIAL
A34: DISCRIMINAÇÃO | B34: UNIDADE | C34: QUANT. | E34: COD. | G34: FONTE | I34: P.UNIT. | J34: P.TOTAL
A36: SUB-TOTAL | J36: =SUM(J35:J35) -> 0
A37: SERVIÇOS - COMPOSIÇÕES AUXILIARES
A38: DISCRIMINAÇÃO | B38: UNIDADE | C38: QUANT. | E38: COD. | G38: FONTE | I38: P.UNIT. | J38: P.TOTAL
A39: LOCAÇÃO E NIVELAMENTO DE TERRAÇOS COM TOPOGRAFIA | B39: KM | C39: ='CPU (DF)'!C39 -> 1 | E39: COMPOSIÇÃO | I39: =J75 -> 148.24 | J39: =C39*I39 -> 148.24
A40: REVESTIMENTO VEGETAL POR SEMEADURA A LANÇO MANUAL DE GRAMÍNEAS E LEGUMINOSAS | B40: m² | C40: ='CPU (DF)'!C40 -> 1000 | E40: 4413993 | G40: SICRO PI 01/2023 | I40: =VLOOKUP(E40,[45]Sheet1!$A:$D,4,FALSE) -> 0.64 | J40: =C40*I40 -> 640
A41: SUB-TOTAL | J41: =SUM(J39:J40) -> 788.24
A42: MÃO DE OBRA
A43: DISCRIMINAÇÃO | B43: UNIDADE | C43: QUANT. | E43: COD. P | F43: COD. I | G43: FONTE | I43: P.UNIT. | J43: P.TOTAL
A44: ENGENHEIRO COM ENCARGO | B44: MES | C44: ='CPU (DF)'!C44 -> 0.005681818182 | E44: 93565 | G44: SINAPI PI 06/223 | I44: =VLOOKUP(E44,[46]planilhanull!$G$7:$K$7520,5,FALSE) -> 19763 | J44: =C44*I44 -> 112.2897727
A45: SERVENTE COM ENCARGOS COMPLEMENTARES - INLUSIVE ABERTURA E FECHAMENTO DE CERCAS | B45: MES | C45: ='CPU (DF)'!C45 -> 0.05347593583 | E45: 101452 | G45: SINAPI PI 06/223 | I45: =VLOOKUP(E45,[46]planilhanull!$G$7:$K$7520,5,FALSE) -> 3417.2 | J45: =C45*I45 -> 182.7379679
A46: ENCARREGADO COM ENCARGO | B46: MES | C46: ='CPU (DF)'!C46 -> 0.01704545455 | E46: 93572 | G46: SINAPI PI 06/223 | I46: =VLOOKUP(E46,[46]planilhanull!$G$7:$K$7520,5,FALSE) -> 5456.34 | J46: =C46*I46 -> 93.00579545
A47: SUB-TOTAL | J47: =SUM(J44:J46) -> 388.0335361
A48: PRODUÇÃO DA EQUIPE MÊS 22 KM, MAS COM FATOR DE REDUÇÃO PARA PÉRIODOS COM CHUVAS | B48: ='CPU (DF)'!B48 -> 18.7 | C48: CUSTO | J48: =J47+J41+J36+J32 -> 2947.400514
A49: TOTAL | J49: =ROUND(J48,2) -> 2947.4
A50: BDI % | J50: 24.1
A51: TOTAL DO SERVIÇO - R$ | J51: =ROUND(J49*(1+J50/100),2) -> 3657.72
A53: COMPOSIÇÃO DE PREÇO UNITÁRIO
A54: LOCAÇÃO E NIVELAMENTO DE TERRAÇOS COM TOPOGRAFIA | I54: UNIDADE: | J54: km
A55: EQUIPAMENTO
A56: DISCRIMINAÇÃO | B56: UNIDADE | C56: QUANT. PROD. | D56: QUANT. IMPROD. | E56: COD. P | F56: COD. I | G56: FONTE | H56: CHP/ P.UNIT. | I56: CHI | J56: P.TOTAL
A57: NIVEL OPTICO, COM PRECISAO DE 0,7 MM, AUMENTO DE 32X | B57: H | C57: ='CPU (DF)'!C57 -> 0.99609375 | E57: 7252 | G57: SINAPI PI 06/223 | H57: =VLOOKUP(E57,[48]sheet1!$A$1:$E$65536,5,FALSE) -> 2.25 | J57: =C57*H57+D57*I57 -> 2.241210937
A58: TEODOLITO ELETRONICO, PRECISAO ANGULAR DE 5 A 7 SEGUNDOS, INCLUINDO TRIPE | B58: H | C58: ='CPU (DF)'!C58 -> 0.99609375 | E58: 7247 | G58: SINAPI PI 06/223 | H58: =VLOOKUP(E58,[48]sheet1!$A$1:$E$65536,5,FALSE) -> 2.25 | J58: =C58*H58+D58*I58 -> 2.241210937
A59: CAMINHONETE CABINE SIMPLES COM MOTOR 1.6 FLEX, CÂMBIO MANUAL, POTÊNCIA 101/104 CV, 2 PORTAS | B59: H | C59: ='CPU (DF)'!C59 -> 0.3735351562 | D59: ='CPU (DF)'!D59 -> 0.6225585938 | E59: 92145 | F59: 92146 | G59: SINAPI PI 06/223 | H59: =H31 -> 68.44 | I59: =I31 -> 27.09 | J59: =C59*H59+D59*I59 -> 42.4298584
A60: SUB-TOTAL | J60: =SUM(J57:J59) -> 46.91228027
A61: MATERIAL
A62: DISCRIMINAÇÃO | B62: UNIDADE | C62: QUANT. | E62: COD. | I62: P.UNIT. | J62: P.TOTAL
A63: ESTACA/PIQUETE DE MADEIRA | B63: U | C63: ='CPU (DF)'!C63 -> 83.33333333 | E63: 4408 | G63: SINAPI PI 06/223 | I63: =VLOOKUP(E63,[48]sheet1!$A$1:$E$65536,5,FALSE)*0.4 -> 0.532 | J63: =C63*I63 -> 44.33333333
A64: SUB-TOTAL | J64: =SUM(J63:J63) -> 44.33333333
A65: SERVIÇOS - COMPOSIÇÕES AUXILIARES
A66: DISCRIMINAÇÃO | B66: UNIDADE | C66: QUANT. | I66: P.UNIT. | J66: P.TOTAL
A68: SUB-TOTAL
A69: MÃO DE OBRA
A70: DISCRIMINAÇÃO | B70: UNIDADE | C70: QUANT. | E70: COD. P | F70: COD. I | I70: P.UNIT. | J70: P.TOTAL
A71: AUXILIAR DE TOPOGRÁFO COM ENCARGOS | B71: MÊS | C71: ='CPU (DF)'!C71 -> 0.00565962358 | E71: 101389 | G71: SINAPI PI 06/223 | I71: =VLOOKUP(E71,[46]planilhanull!$G$7:$K$7520,5,FALSE) -> 3265.65 | J71: =C71*I71 -> 18.48234974
A72: TOPOGRAFO COM ENCARGOS | B72: MÊS | C72: ='CPU (DF)'!C72 -> 0.00565962358 | E72: 94296 | G72: SINAPI PI 06/223 | I72: =VLOOKUP(E72,[46]planilhanull!$G$7:$K$7520,5,FALSE) -> 6803.98 | J72: =C72*I72 -> 38.50796564
A73: SUB-TOTAL | J73: =SUM(J71:J72) -> 56.99031539
A74: PRODUÇÃO MENSAL DA EQUIPE | B74: ='CPU (DF)'!B74 -> 46.93333333 | C74: CUSTO | J74: =J73+J68+J64+J60 -> 148.235929
A75: TOTAL | J75: =ROUND(J74,2) -> 148.24
A76: BDI % | J76: 24.1
A77: TOTAL DO SERVIÇO - R$ | J77: =ROUND(J75*(1+J76/100),2) -> 183.97
A79: COMPOSIÇÃO DE PREÇO UNITÁRIO
A80: LOCAÇÃO E CONSTRUÇÃO DE BACIAS DE CAPTAÇÃO DE ENXURRADA (4 METROS DE RAIO) | I80: UNIDADE: | J80: UNID.
A81: EQUIPAMENTO
A82: DISCRIMINAÇÃO | B82: UNIDADE | C82: QUANT. PROD. | D82: QUANT. IMPROD. | E82: COD. P | F82: COD. I | G82: FONTE | H82: CHP/ P.UNIT. | I82: CHI | J82: P.TOTAL
A83: NIVEL OPTICO, COM PRECISAO DE 0,7 MM, AUMENTO DE 32X | B83: H | C83: ='CPU (DF)'!C83 -> 0.6 | E83: 7252 | G83: SINAPI PI 06/223 | H83: =$H$57 -> 2.25 | J83: =C83*H83+D83*I83 -> 1.35
A84: TEODOLITO ELETRONICO, PRECISAO ANGULAR DE 5 A 7 SEGUNDOS, INCLUINDO TRIPE | B84: H | C84: ='CPU (DF)'!C84 -> 0.6 | E84: 7247 | G84: SINAPI PI 06/223 | H84: =$H$58 -> 2.25 | J84: =C84*H84+D84*I84 -> 1.35
A85: PÁ CARREGADEIRA SOBRE RODAS, POTÊNCIA LÍQUIDA 128 HP, CAPACIDADE DA CAÇAMBA 1,7 A 2,8 M³ | B85: H | C85: ='CPU (DF)'!C85 -> 0.7779529817 | D85: ='CPU (DF)'!D85 -> 0.2593176606 | E85: 5940 | F85: 5942 | G85: SINAPI PI 06/223 | H85: =VLOOKUP(E85,[46]planilhanull!$G$7:$K$7520,5,FALSE) -> 168.06 | I85: =VLOOKUP(F85,[46]planilhanull!$G$7:$K$7520,5,FALSE) -> 68.74 | J85: =C85*H85+D85*I85 -> 148.5682741
A86: VEÍCULO DE PASSEIO PARA DESLOCAMENTO DA EQUIPE | B86: H | C86: ='CPU (DF)'!C86 -> 0.234375 | D86: ='CPU (DF)'!D86 -> 0.390625 | E86: E9093 | G86: SICRO PI 01/2023 | H86: =$H$30 -> 34.2581 | I86: =$I$30 -> 6.4213 | J86: =C86*H86+D86*I86 -> 10.5375625
A87: CAMINHONETE CABINE SIMPLES COM MOTOR 1.6 FLEX, CÂMBIO MANUAL, POTÊNCIA 101/104 CV, 2 PORTAS | B87: H | C87: ='CPU (DF)'!C87 -> 0.609375 | D87: ='CPU (DF)'!D87 -> 0.365625 | E87: 92145 | F87: 92146 | G87: SINAPI PI 06/223 | H87: =$H$31 -> 68.44 | I87: =$I$31 -> 27.09 | J87: =C87*H87+D87*I87 -> 51.61040625
A88: SUB-TOTAL | J88: =SUM(J83:J87) -> 213.4162428
A89: MATERIAL
A90: DISCRIMINAÇÃO | B90: UNIDADE | C90: QUANT. | E90: COD. | I90: P.UNIT. | J90: P.TOTAL
A91: ESTACA/PIQUETE DE MADEIRA | B91: U | C91: ='CPU (DF)'!C91 -> 12 | E91: 4408 | G91: SINAPI PI 06/223 | I91: =$I$63 -> 0.532 | J91: =C91*I91 -> 6.384
A92: SUB-TOTAL | J92: =SUM(J91:J91) -> 6.384
A93: SERVIÇOS - COMPOSIÇÕES AUXILIARES
A94: DISCRIMINAÇÃO | B94: UNIDADE | C94: QUANT. | I94: P.UNIT. | J94: P.TOTAL
A95: REVESTIMENTO VEGETAL POR SEMEADURA A LANÇO MANUAL DE GRAMÍNEAS E LEGUMINOSAS | B95: m² | C95: ='CPU (DF)'!C95 -> 50.26548246 | E95: 4413993 | G95: SICRO PI 01/2023 | I95: =VLOOKUP(E95,[45]Sheet1!$A:$D,4,FALSE) -> 0.64 | J95: =C95*I95 -> 32.16990877
A96: SUB-TOTAL | J96: =SUM(J95:J95) -> 32.16990877
A97: MÃO DE OBRA
A98: DISCRIMINAÇÃO | B98: UNIDADE | C98: QUANT. | E98: COD. P | F98: COD. I | I98: P.UNIT. | J98: P.TOTAL
A99: ENGENHEIRO COM ENCARGO | B99: MÊS | C99: ='CPU (DF)'!C99 -> 0.001420454545 | E99: 93565 | G99: SINAPI PI 06/223 | I99: =$I$44 -> 19763 | J99: =C99*I99 -> 28.07244318
A100: ENCARREGADO COM ENCARGO | B100: MÊS | C100: ='CPU (DF)'!C100 -> 0.004261363636 | E100: 93572 | G100: SINAPI PI 06/223 | I100: =$I$46 -> 5456.34 | J100: =C100*I100 -> 23.25144886
A101: TOPOGRAFO COM ENCARGOS | B101: MÊS | C101: ='CPU (DF)'!C101 -> 0.003409090909 | E101: 94296 | G101: SINAPI PI 06/223 | I101: =$I$72 -> 6803.98 | J101: =C101*I101 -> 23.19538636
A102: AUXILIAR DE TOPOGRÁFO COM ENCARGOS | B102: MÊS | C102: ='CPU (DF)'!C102 -> 0.003409090909 | E102: 101389 | G102: SINAPI PI 06/223 | I102: =$I$71 -> 3265.65 | J102: =C102*I102 -> 11.13289773
A103: SERVENTE COM ENCARGOS COMPLEMENTARES - INLUSIVE ABERTURA E FECHAMENTO DE CERCAS | B103: MES | C103: ='CPU (DF)'!C103 -> 0.005893583194 | E103: 101452 | G103: SINAPI PI 06/223 | I103: =$I$45 -> 3417.2 | J103: =C103*I103 -> 20.13955249
A104: SUB-TOTAL | J104: =SUM(J99:J103) -> 105.7917286
A105: PRODUÇÃO MENSAL DA EQUIPE | B105: ='CPU (DF)'!B105 -> 169.6760641 | C105: CUSTO | J105: =J104+J96+J92+J88 -> 357.7618802
A106: TOTAL | J106: =ROUND(J105,2) -> 357.76
A107: BDI % | J107: 24.1
A108: TOTAL DO SERVIÇO - R$ | J108: =ROUND(J106*(1+J107/100),2) -> 443.98
A111: COMPOSIÇÃO DE PREÇO UNITÁRIO
A112: LOCAÇÃO E CONSTRUÇÃO DE BACIAS DE CAPTAÇÃO DE ENXURRADA (6 METROS DE RAIO) | I112: UNIDADE: | J112: UNID.
A113: EQUIPAMENTO
A114: DISCRIMINAÇÃO | B114: UNIDADE | C114: QUANT. PROD. | D114: QUANT. IMPROD. | E114: COD. P | F114: COD. I | G114: FONTE | H114: CHP/ P.UNIT. | I114: CHI | J114: P.TOTAL
A115: NIVEL OPTICO, COM PRECISAO DE 0,7 MM, AUMENTO DE 32X | B115: H | C115: ='CPU (DF)'!C115 -> 0.6 | E115: 7252 | G115: SINAPI PI 06/223 | H115: =$H$57 -> 2.25 | J115: =C115*H115+D115*I115 -> 1.35
A116: TEODOLITO ELETRONICO, PRECISAO ANGULAR DE 5 A 7 SEGUNDOS, INCLUINDO TRIPE | B116: H | C116: ='CPU (DF)'!C116 -> 0.6 | E116: 7247 | G116: SINAPI PI 06/223 | H116: =$H$58 -> 2.25 | J116: =C116*H116+D116*I116 -> 1.35
A117: PÁ CARREGADEIRA SOBRE RODAS, POTÊNCIA LÍQUIDA 128 HP, CAPACIDADE DA CAÇAMBA 1,7 A 2,8 M³ | B117: H | C117: ='CPU (DF)'!C117 -> 1.536166858 | D117: ='CPU (DF)'!D117 -> 0.5120556193 | E117: 5940 | F117: 5942 | G117: SINAPI PI 06/223 | H117: =$H$85 -> 168.06 | I117: =$I$85 -> 68.74 | J117: =C117*H117+D117*I117 -> 293.3669054
A118: VEÍCULO DE PASSEIO PARA DESLOCAMENTO DA EQUIPE | B118: H | C118: ='CPU (DF)'!C118 -> 0.25 | D118: ='CPU (DF)'!D118 -> 0.4166666667 | E118: E9093 | G118: SICRO PI 01/2023 | H118: =$H$30 -> 34.2581 | I118: =$I$30 -> 6.4213 | J118: =C118*H118+D118*I118 -> 11.24006667
A119: CAMINHONETE CABINE SIMPLES COM MOTOR 1.6 FLEX, CÂMBIO MANUAL, POTÊNCIA 101/104 CV, 2 PORTAS | B119: H | C119: ='CPU (DF)'!C119 -> 0.625 | D119: ='CPU (DF)'!D119 -> 0.375 | E119: 92145 | F119: 92146 | G119: SINAPI PI 06/223 | H119: =$H$31 -> 68.44 | I119: =$I$31 -> 27.09 | J119: =C119*H119+D119*I119 -> 52.93375
A120: SUB-TOTAL | J120: =SUM(J115:J119) -> 360.2407221
A121: MATERIAL
A122: DISCRIMINAÇÃO | B122: UNIDADE | C122: QUANT. | E122: COD. | I122: P.UNIT. | J122: P.TOTAL
A123: ESTACA/PIQUETE DE MADEIRA | B123: U | C123: ='CPU (DF)'!C123 -> 12 | E123: 4408 | G123: SINAPI PI 06/223 | I123: =$I$63 -> 0.532 | J123: =C123*I123 -> 6.384
A124: SUB-TOTAL | J124: =SUM(J123:J123) -> 6.384
A125: SERVIÇOS - COMPOSIÇÕES AUXILIARES
A126: DISCRIMINAÇÃO | B126: UNIDADE | C126: QUANT. | I126: P.UNIT. | J126: P.TOTAL
A127: REVESTIMENTO VEGETAL POR SEMEADURA A LANÇO MANUAL DE GRAMÍNEAS E LEGUMINOSAS | B127: m² | C127: ='CPU (DF)'!C127 -> 94.24777961 | E127: 4413993 | G127: SICRO PI 01/2023 | I127: =VLOOKUP(E127,[45]Sheet1!$A:$D,4,FALSE) -> 0.64 | J127: =C127*I127 -> 60.31857895
A128: SUB-TOTAL | J128: =SUM(J127:J127) -> 60.31857895
A129: MÃO DE OBRA
A130: DISCRIMINAÇÃO | B130: UNIDADE | C130: QUANT. | E130: COD. P | F130: COD. I | I130: P.UNIT. | J130: P.TOTAL
A131: ENGENHEIRO COM ENCARGO | B131: MÊS | C131: ='CPU (DF)'!C131 -> 0.001515151515 | E131: 93565 | G131: SINAPI PI 06/223 | I131: =$I$44 -> 19763 | J131: =C131*I131 -> 29.94393939
A132: ENCARREGADO COM ENCARGO | B132: MÊS | C132: ='CPU (DF)'!C132 -> 0.004545454545 | E132: 93572 | G132: SINAPI PI 06/223 | I132: =$I$46 -> 5456.34 | J132: =C132*I132 -> 24.80154545
A133: TOPOGRAFO COM ENCARGOS | B133: MÊS | C133: ='CPU (DF)'!C133 -> 0.003409090909 | E133: 94296 | G133: SINAPI PI 06/223 | I133: =$I$72 -> 6803.98 | J133: =C133*I133 -> 23.19538636
A134: AUXILIAR DE TOPOGRÁFO COM ENCARGOS | B134: MÊS | C134: ='CPU (DF)'!C134 -> 0.003409090909 | E134: 101389 | G134: SINAPI PI 06/223 | I134: =$I$71 -> 3265.65 | J134: =C134*I134 -> 11.13289773
A135: SERVENTE COM ENCARGOS COMPLEMENTARES - INLUSIVE ABERTURA E FECHAMENTO DE CERCAS | B135: MES | C135: ='CPU (DF)'!C135 -> 0.01163762771 | E135: 101452 | G135: SINAPI PI 06/223 | I135: =$I$45 -> 3417.2 | J135: =C135*I135 -> 39.76810141
A136: SUB-TOTAL | J136: =SUM(J131:J135) -> 128.8418704
A137: PRODUÇÃO MENSAL DA EQUIPE | B137: ='CPU (DF)'!B137 -> 85.9281655 | C137: CUSTO | J137: =J136+J128+J124+J120 -> 555.7851714
A138: TOTAL | J138: =ROUND(J137,2) -> 555.79
A139: BDI % | J139: 24.1
A140: TOTAL DO SERVIÇO - R$ | J140: =ROUND(J138*(1+J139/100),2) -> 689.74
A142: COMPOSIÇÃO DE PREÇO UNITÁRIO
A143: LOCAÇÃO E CONSTRUÇÃO DE BACIAS DE CAPTAÇÃO DE ENXURRADA (9 METROS DE RAIO) | I143: UNIDADE: | J143: UNID.
A144: EQUIPAMENTO
A145: DISCRIMINAÇÃO | B145: UNIDADE | C145: QUANT. PROD. | D145: QUANT. IMPROD. | E145: COD. P | F145: COD. I | G145: FONTE | H145: CHP/ P.UNIT. | I145: CHI | J145: P.TOTAL
A146: NIVEL OPTICO, COM PRECISAO DE 0,7 MM, AUMENTO DE 32X | B146: H | C146: ='CPU (DF)'!C146 -> 0.65 | E146: 7252 | G146: SINAPI PI 06/223 | H146: =$H$57 -> 2.25 | J146: =C146*H146+D146*I146 -> 1.4625
A147: TEODOLITO ELETRONICO, PRECISAO ANGULAR DE 5 A 7 SEGUNDOS, INCLUINDO TRIPE | B147: H | C147: ='CPU (DF)'!C147 -> 0.65 | E147: 7247 | G147: SINAPI PI 06/223 | H147: =$H$58 -> 2.25 | J147: =C147*H147+D147*I147 -> 1.4625
A148: PÁ CARREGADEIRA SOBRE RODAS, POTÊNCIA LÍQUIDA 128 HP, CAPACIDADE DA CAÇAMBA 1,7 A 2,8 M³ | B148: H | C148: ='CPU (DF)'!C148 -> 3.738990826 | D148: ='CPU (DF)'!D148 -> 1.246330275 | E148: 5940 | F148: 5942 | G148: SINAPI PI 06/223 | H148: =$H$85 -> 168.06 | I148: =$I$85 -> 68.74 | J148: =C148*H148+D148*I148 -> 714.0475413
A149: VEÍCULO DE PASSEIO PARA DESLOCAMENTO DA EQUIPE | B149: H | C149: ='CPU (DF)'!C149 -> 0.265625 | D149: ='CPU (DF)'!D149 -> 0.4427083333 | E149: E9093 | G149: SICRO PI 01/2023 | H149: =$H$30 -> 34.2581 | I149: =$I$30 -> 6.4213 | J149: =C149*H149+D149*I149 -> 11.94257083
A150: CAMINHONETE CABINE SIMPLES COM MOTOR 1.6 FLEX, CÂMBIO MANUAL, POTÊNCIA 101/104 CV, 2 PORTAS | B150: H | C150: ='CPU (DF)'!C150 -> 0.671875 | D150: ='CPU (DF)'!D150 -> 0.403125 | E150: 92145 | F150: 92146 | G150: SINAPI PI 06/223 | H150: =$H$31 -> 68.44 | I150: =$I$31 -> 27.09 | J150: =C150*H150+D150*I150 -> 56.90378125
A151: SUB-TOTAL | J151: =SUM(J146:J150) -> 785.8188934
A152: MATERIAL
A153: DISCRIMINAÇÃO | B153: UNIDADE | C153: QUANT. | E153: COD. | I153: P.UNIT. | J153: P.TOTAL
A154: ESTACA/PIQUETE DE MADEIRA | B154: U | C154: ='CPU (DF)'!C154 -> 12 | E154: 4408 | G154: SINAPI PI 06/223 | I154: =$I$63 -> 0.532 | J154: =C154*I154 -> 6.384
A155: SUB-TOTAL | J155: =SUM(J154:J154) -> 6.384
A156: SERVIÇOS - COMPOSIÇÕES AUXILIARES
A157: DISCRIMINAÇÃO | B157: UNIDADE | C157: QUANT. | I157: P.UNIT. | J157: P.TOTAL
A158: REVESTIMENTO VEGETAL POR SEMEADURA A LANÇO MANUAL DE GRAMÍNEAS E LEGUMINOSAS | B158: m² | C158: ='CPU (DF)'!C158 -> 169.6460033 | E158: 4413993 | G158: SICRO PI 01/2023 | I158: =VLOOKUP(E158,[45]Sheet1!$A:$D,4,FALSE) -> 0.64 | J158: =C158*I158 -> 108.5734421
A159: SUB-TOTAL | J159: =SUM(J158:J158) -> 108.5734421
A160: MÃO DE OBRA
A161: DISCRIMINAÇÃO | B161: UNIDADE | C161: QUANT. | E161: COD. P | F161: COD. I | I161: P.UNIT. | J161: P.TOTAL
A162: ENGENHEIRO COM ENCARGO | B162: MÊS | C162: ='CPU (DF)'!C162 -> 0.001609848485 | E162: 93565 | G162: SINAPI PI 06/223 | I162: =$I$44 -> 19763 | J162: =C162*I162 -> 31.81543561
A163: ENCARREGADO COM ENCARGO | B163: MÊS | C163: ='CPU (DF)'!C163 -> 0.004829545455 | E163: 93572 | G163: SINAPI PI 06/223 | I163: =$I$46 -> 5456.34 | J163: =C163*I163 -> 26.35164205
A164: TOPOGRAFO COM ENCARGOS | B164: MÊS | C164: ='CPU (DF)'!C164 -> 0.003693181818 | E164: 94296 | G164: SINAPI PI 06/223 | I164: =$I$72 -> 6803.98 | J164: =C164*I164 -> 25.12833523
A165: AUXILIAR DE TOPOGRÁFO COM ENCARGOS | B165: MÊS | C165: ='CPU (DF)'!C165 -> 0.003693181818 | E165: 101389 | G165: SINAPI PI 06/223 | I165: =$I$71 -> 3265.65 | J165: =C165*I165 -> 12.0606392
A166: SERVENTE COM ENCARGOS COMPLEMENTARES - INLUSIVE ABERTURA E FECHAMENTO DE CERCAS | B166: MES | C166: ='CPU (DF)'!C166 -> 0.02832568807 | E166: 101452 | G166: SINAPI PI 06/223 | I166: =$I$45 -> 3417.2 | J166: =C166*I166 -> 96.79454128
A167: SUB-TOTAL | J167: =SUM(J162:J166) -> 192.1505934
A168: PRODUÇÃO MENSAL DA EQUIPE | B168: ='CPU (DF)'!B168 -> 35.30364372 | C168: CUSTO | J168: =J167+J159+J155+J151 -> 1092.926929
A169: TOTAL | J169: =ROUND(J168,2) -> 1092.93
A170: BDI % | J170: 24.1
A171: TOTAL DO SERVIÇO - R$ | J171: =ROUND(J169*(1+J170/100),2) -> 1356.33
A174: COMPOSIÇÃO DE PREÇO UNITÁRIO
A175: LOCAÇÃO E CONSTRUÇÃO DE BACIAS DE CAPTAÇÃO DE ENXURRADA (12 METROS DE RAIO) | I175: UNIDADE: | J175: UNID.
A176: EQUIPAMENTO
A177: DISCRIMINAÇÃO | B177: UNIDADE | C177: QUANT. PROD. | D177: QUANT. IMPROD. | E177: COD. P | F177: COD. I | G177: FONTE | H177: CHP/ P.UNIT. | I177: CHI | J177: P.TOTAL
A178: NIVEL OPTICO, COM PRECISAO DE 0,7 MM, AUMENTO DE 32X | B178: H | C178: ='CPU (DF)'!C178 -> 0.65 | E178: 7252 | G178: SINAPI PI 06/223 | H178: =$H$57 -> 2.25 | J178: =C178*H178+D178*I178 -> 1.4625
A179: TEODOLITO ELETRONICO, PRECISAO ANGULAR DE 5 A 7 SEGUNDOS, INCLUINDO TRIPE | B179: H | C179: ='CPU (DF)'!C179 -> 0.65 | E179: 7247 | G179: SINAPI PI 06/223 | H179: =$H$58 -> 2.25 | J179: =C179*H179+D179*I179 -> 1.4625
A180: PÁ CARREGADEIRA SOBRE RODAS, POTÊNCIA LÍQUIDA 128 HP, CAPACIDADE DA CAÇAMBA 1,7 A 2,8 M³ | B180: H | C180: ='CPU (DF)'!C180 -> 6 | D180: ='CPU (DF)'!D180 -> 2 | E180: 5940 | F180: 5942 | G180: SINAPI PI 06/223 | H180: =$H$85 -> 168.06 | I180: =$I$85 -> 68.74 | J180: =C180*H180+D180*I180 -> 1145.84
A181: VEÍCULO DE PASSEIO PARA DESLOCAMENTO DA EQUIPE | B181: H | C181: ='CPU (DF)'!C181 -> 0.28125 | D181: ='CPU (DF)'!D181 -> 0.46875 | E181: E9093 | G181: SICRO PI 01/2023 | H181: =$H$30 -> 34.2581 | I181: =$I$30 -> 6.4213 | J181: =C181*H181+D181*I181 -> 12.645075
A182: CAMINHONETE CABINE SIMPLES COM MOTOR 1.6 FLEX, CÂMBIO MANUAL, POTÊNCIA 101/104 CV, 2 PORTAS | B182: H | C182: ='CPU (DF)'!C182 -> 0.6875 | D182: ='CPU (DF)'!D182 -> 0.4125 | E182: 92145 | F182: 92146 | G182: SINAPI PI 06/223 | H182: =$H$31 -> 68.44 | I182: =$I$31 -> 27.09 | J182: =C182*H182+D182*I182 -> 58.227125
A183: SUB-TOTAL | J183: =SUM(J178:J182) -> 1219.6372
A184: MATERIAL
A185: DISCRIMINAÇÃO | B185: UNIDADE | C185: QUANT. | E185: COD. | I185: P.UNIT. | J185: P.TOTAL
A186: ESTACA/PIQUETE DE MADEIRA | B186: U | C186: ='CPU (DF)'!C186 -> 16 | E186: 4408 | G186: SINAPI PI 06/223 | I186: =$I$63 -> 0.532 | J186: =C186*I186 -> 8.512
A187: SUB-TOTAL | J187: =SUM(J186:J186) -> 8.512
A188: SERVIÇOS - COMPOSIÇÕES AUXILIARES
A189: DISCRIMINAÇÃO | B189: UNIDADE | C189: QUANT. | I189: P.UNIT. | J189: P.TOTAL
A190: REVESTIMENTO VEGETAL POR SEMEADURA A LANÇO MANUAL DE GRAMÍNEAS E LEGUMINOSAS | B190: m² | C190: ='CPU (DF)'!C190 -> 263.8937829 | E190: 4413993 | G190: SICRO PI 01/2023 | I190: =VLOOKUP(E190,[45]Sheet1!$A:$D,4,FALSE) -> 0.64 | J190: =C190*I190 -> 168.8920211
A191: SUB-TOTAL | J191: =SUM(J190:J190) -> 168.8920211
A192: MÃO DE OBRA
A193: DISCRIMINAÇÃO | B193: UNIDADE | C193: QUANT. | E193: COD. P | F193: COD. I | I193: P.UNIT. | J193: P.TOTAL
A194: ENGENHEIRO COM ENCARGO | B194: MES | C194: ='CPU (DF)'!C194 -> 0.001704545455 | E194: 93565 | G194: SINAPI PI 06/223 | I194: =$I$44 -> 19763 | J194: =C194*I194 -> 33.68693182
A195: ENCARREGADO COM ENCARGO | B195: MES | C195: ='CPU (DF)'!C195 -> 0.005113636364 | E195: 93572 | G195: SINAPI PI 06/223 | I195: =$I$46 -> 5456.34 | J195: =C195*I195 -> 27.90173864
A196: TOPOGRAFO COM ENCARGOS | B196: MÊS | C196: ='CPU (DF)'!C196 -> 0.003693181818 | E196: 94296 | G196: SINAPI PI 06/223 | I196: =$I$72 -> 6803.98 | J196: =C196*I196 -> 25.12833523
A197: AUXILIAR DE TOPOGRÁFO COM ENCARGOS | B197: MÊS | C197: ='CPU (DF)'!C197 -> 0.003693181818 | E197: 101389 | G197: SINAPI PI 06/223 | I197: =$I$71 -> 3265.65 | J197: =C197*I197 -> 12.0606392
A198: SERVENTE COM ENCARGOS COMPLEMENTARES - INLUSIVE ABERTURA E FECHAMENTO DE CERCAS | B198: MES | C198: ='CPU (DF)'!C198 -> 0.04545454545 | E198: 101452 | G198: SINAPI PI 06/223 | I198: =$I$45 -> 3417.2 | J198: =C198*I198 -> 155.3272727
A199: SUB-TOTAL | J199: =SUM(J194:J198) -> 254.1049176
A200: PRODUÇÃO DA EQUIPE | B200: ='CPU (DF)'!B200 -> 22 | C200: CUSTO | J200: =J199+J191+J187+J183 -> 1651.146139
A201: TOTAL | J201: =ROUND(J200,2) -> 1651.15
A202: BDI % | J202: 24.1
A203: TOTAL DO SERVIÇO - R$ | J203: =ROUND(J201*(1+J202/100),2) -> 2049.08
A205: COMPOSIÇÃO DE PREÇO UNITÁRIO
A206: CERCAMENTO DE ÁREAS AMBIENTALMENTE VULNERÁVEIS À CAPRINOVINOCULTURA | I206: UNIDADE: | J206: m
A207: EQUIPAMENTO
A208: DISCRIMINAÇÃO | B208: UNIDADE | C208: QUANT. PROD. | D208: QUANT. IMPROD. | E208: COD. P | F208: COD. I | G208: FONTE | I208: P.UNIT. | J208: P.TOTAL
A209: NIVEL OPTICO, COM PRECISAO DE 0,7 MM, AUMENTO DE 32X | B209: h | C209: ='CPU (DF)'!C209 -> 0.05 | E209: 7252 | G209: SINAPI PI 06/223 | H209: =H178 -> 2.25 | J209: =C209*H209+D209*I209 -> 0.1125
A210: TEODOLITO ELETRONICO, PRECISAO ANGULAR DE 5 A 7 SEGUNDOS, INCLUINDO TRIPE | B210: h | C210: ='CPU (DF)'!C210 -> 0.05 | E210: 7247 | G210: SINAPI PI 06/223 | H210: =H179 -> 2.25 | J210: =C210*H210+D210*I210 -> 0.1125
A211: VEÍCULO DE PASSEIO PARA DESLOCAMENTO DA EQUIPE | B211: h | C211: ='CPU (DF)'!C211 -> 0.01838235294 | D211: ='CPU (DF)'!D211 -> 0.0306372549 | E211: E9093 | F211: E9093 | G211: SICRO PI 01/2023 | H211: =H30 -> 34.2581 | I211: =I30 -> 6.4213 | J211: =C211*H211+D211*I211 -> 0.8264754902
... 87 more rows

Sheet CPU (RN)
A1: COMPOSIÇÃO DE PREÇO UNITÁRIO
A2: MOBILIZAÇÃO E DESMOBILIZAÇÃO | C2: REGIÃO: | G2: RN | I2: UNIDADE: | J2: R$/Tonelada/ Projeto
A3: EQUIPAMENTO
A4: DISCRIMINAÇÃO | B4: UNIDADE | C4: QUANT. PROD. | D4: QUANT. IMPROD. | E4: COD. | G4: FONTE | H4: P.UNIT. PROD | I4: P.UNIT. IMPR | J4: P.TOTAL
J5: =C5*E5*H5+C5*G5*I5 -> 0
A6: SUB-TOTAL | J6: =SUM(J5:J5) -> 0
A7: MATERIAL
A8: DISCRIMINAÇÃO | B8: UNIDADE | C8: QUANT. | E8: COD. | G8: FONTE | I8: P.UNIT. | J8: P.TOTAL
J9: Toneladas/ Projeto
J10: =C10*I10 -> 0
A11: SUB-TOTAL | J11: =SUM(J9:J10) -> 0
A12: SERVIÇOS - COMPOSIÇÕES AUXILIARES
A13: DISCRIMINAÇÃO | B13: UNIDADE | C13: QUANT. | E13: COD. | G13: FONTE | I13: P.UNIT. | J13: P.TOTAL
A14: TRANSPORTE COM CAVALO MECÂNICO COM SEMIRREBOQUE COM CAPACIDADE DE 30 T - RODOVIA PAVIMENTADA | B14: t*km | C14: ='CPU (DF)'!C14 -> 1 | E14: 5914640 | G14: SICRO RN 01/2023 | I14: =VLOOKUP(E14,[49]Sheet1!$A:$D,4,FALSE) -> 0.6 | J14: =C14*I14 -> 0.6
A15: SUB-TOTAL | J15: =SUM(J14:J14) -> 0.6
A16: MÃO DE OBRA
A17: DISCRIMINAÇÃO | B17: UNIDADE | C17: QUANT. | I17: P.UNIT. | J17: P.TOTAL
J18: =C18*I18 -> 0
A19: SUB-TOTAL | J19: =SUM(J18:J18) -> 0
A20: PRODUÇÃO DA EQUIPE (MOB E DESMOB) EM km | B20: =VLOOKUP(G2,DMT!D:E,2)*2 -> 434.64 | C20: CUSTO | J20: =J19+J15+J11+J6 -> 0.6
A21: TOTAL | J21: =J20*B20 -> 260.784
A22: BDI % | J22: 24.1
A23: TOTAL DO SERVIÇO - R$ | J23: =J21*(1+J22/100) -> 323.632944
A25: COMPOSIÇÃO DE PREÇO UNITÁRIO
A26: LOCAÇÃO E CONSTRUÇÃO DE TERRAÇOS - INCLUSIVE SOLOS DUROS E SECOS | I26: UNIDADE: | J26: km
A27: EQUIPAMENTO
A28: DISCRIMINAÇÃO | B28: UNIDADE | C28: QUANT. PROD. | D28: QUANT. IMPROD. | E28: COD. P | F28: COD. I | G28: FONTE | H28: CHP | I28: CHI | J28: P.TOTAL
A29: TRATOR DE ESTEIRAS, POTÊNCIA 125 HP, PESO OPERACIONAL 12,9 T, COM LÂMINA 2,7 M3 | B29: H | C29: ='CPU (DF)'!C29 -> 7.058823529 | D29: ='CPU (DF)'!D29 -> 2.352941176 | E29: 5851 | F29: 5853 | G29: SINAPI RN 06/223 | H29: =VLOOKUP(E29,[50]planilhanull!$G$7:$K$7520,5,FALSE) -> 217.01 | I29: =VLOOKUP(F29,[50]planilhanull!$G$7:$K$7520,5,FALSE) -> 73.47 | J29: =C29*H29+D29*I29 -> 1704.705882
A30: VEÍCULO DE PASSEIO PARA DESLOCAMENTO DA EQUIPE | B30: H | C30: ='CPU (DF)'!C30 -> 0.9375 | D30: ='CPU (DF)'!D30 -> 1.5625 | E30: E9093 | F30: E9093 | G30: SICRO RN 01/2023 | H30: =VLOOKUP(E30,[51]Sheet1!$A:$K,10,FALSE) -> 35.2778 | I30: =VLOOKUP(F30,[51]Sheet1!$A:$K,11,FALSE) -> 6.423 | J30: =C30*H30+D30*I30 -> 43.108875
A31: CAMINHONETE CABINE SIMPLES COM MOTOR 1.6 FLEX, CÂMBIO MANUAL, POTÊNCIA 101/104 CV, 2 PORTAS | B31: H | C31: ='CPU (DF)'!C31 -> 0.5625 | D31: ='CPU (DF)'!D31 -> 0.9375 | E31: 92145 | F31: 92146 | G31: SINAPI RN 06/223 | H31: =VLOOKUP(E31,[50]planilhanull!$G$7:$K$7520,5,FALSE) -> 72.92 | I31: =VLOOKUP(F31,[50]planilhanull!$G$7:$K$7520,5,FALSE) -> 28.42 | J31: =C31*H31+D31*I31 -> 67.66125
A32: SUB-TOTAL | J32: =SUM(J29:J31) -> 1815.476007
A33: MATERIAL
A34: DISCRIMINAÇÃO | B34: UNIDADE | C34: QUANT. | E34: COD. | G34: FONTE | I34: P.UNIT. | J34: P.TOTAL
A36: SUB-TOTAL | J36: =SUM(J35:J35) -> 0
A37: SERVIÇOS - COMPOSIÇÕES AUXILIARES
